{"text_format":"1","workbook":"xlsx","n_sheets":14,"sheets":["Instructions","Nutrient Management","Corn K Calculations","Soybean K Calculations","Wheat K Calculations","Fertilizer Products & Pricing","Manure and Nutrient Credits","Fertilizer Plan (Fruit 1)","Fertilizer Plan (Fruit 2)","Fertilizer Plan (Fruit 3)","Simple Fertilizer Calculator","Nutrient Removal Table","Tri-State Recommendations","Charts"],"not_rendered":{"charts":0,"images":22,"macros":1,"external_links":1,"defined_names":25,"comments":0,"pivot_tables":0},"unopened":[],"bounds":{"document_bytes":16777216,"sheet_cells":100000,"rows_first":2000,"rows_last":500,"rows_between":2000,"halvings":0,"cell_chars":16384,"cell_head_chars":4096},"cells_cut":0,"cells_raw":0,"read":"whole","date_system":"1900"}

{"sheet":"Instructions","index":0,"n_rows":36,"n_cols":16,"rows_kept":36,"cut":false,"hidden":false,"merged":[[22,4,22,14],[35,1,36,17],[17,4,17,17],[16,4,16,17],[15,4,15,17],[18,4,18,17],[23,4,24,17],[26,2,31,2],[26,4,26,17],[27,4,28,17],[29,4,29,17],[30,4,31,17],[12,4,13,17],[14,4,14,17],[19,4,20,17],[21,4,21,17],[0,0,2,17],[6,0,6,17],[5,0,5,17],[3,0,3,17],[11,2,11,17],[4,0,4,17]]}
["Fertilizer Cost Comparison Tool (Fruit)"]
[]
[]
["Template by: Jon LaPorte, Farm Management Educator"]
["Michigan State University Extension"]
["120 N. Broadway, Suite 116, Cassopolis, MI 49031"]
["Phone: (269) 445-4356          Email: laportej@msu.edu"]
[]
[]
["1)","Each TAB represents an important aspect of fertilizer planning (i.e., nutrient management, sources of fertilizer, and overall fertilizer plan for each commodity grown).  Click on a TAB to enter specific  information."]
[null,"These include:"]
[]
[null,null,"Nutrient Management","-","Input yield goals, soil test based nutrient recommendations, manure nutrient analysis, and nutrient credits.  This section will determine the total amount of nutrients that will need to be supplied through commercial fertilizer products.  "]
[]
[null,null,null,null,"This section provides detailed information for use with the Fertilizer Plan sections to determine how much commercial fertilizer will need to be applied."]
[null,null,"Fertilizer Products & Pricing","-","Input the products and prices for fertilizer, lime, and nitrogen stabilizers to use in the Fertilizer Plan.  Common fertilizer products are already provided."]
[null,null,null,null,"Each crop has its own tab (i.e. Fertilizer - Corn)"]
[null,null,"Fertilizer Plan Tabs","-","Choose the fertilizer from the drop-down menu and enter product/acre to be used.  (i.e. 100lbs/acre of 9-23-30 = 50lbs 18-46-0 & 50lbs 0-0-62lbs)"]
[null,null,"(Fruit 1, Fruit 2,Fruit 3)",null,"Note: Includes an in-depth assessment of nutrients provided at each application of the farm's fertilizer program."]
[null,null,"Tri-State Recommendations","-","This section allows for calculating of P and K values needed to meet yield goals based on Tri-State Recommendations.  The information can be transferred to the Nutrient Management page for use in commercial fertilizer cost comparison.  "]
[]
[null,null,null,null,"Note: This section is not a replacement for recommendations from a soil test analysis obtained from soil test laboratories.  "]
[null,null,null,null,"For soil test based recommendations, visit the MSU Soil and Plant Nutrient Laboratory:",null,null,null,null,null,null,null,null,null,null,"https://www.canr.msu.edu/spnl/"]
[null,null,"Simple Fertilizer Calculator","-","This section contains a calculation for finding cost per acre on select fertilizer products.  There are also calculators to extract nitrogen and sulfur costs from combination fertilizer products."]
[]
[]
[null,null,"Manure Applications ---START HERE",null,"Do you plan to include manure cost in your fertilizer plan?  Go to the Fertilizer Products & Pricing worksheet"]
[null,null,null,null,"Note: There is a Manure Calculator to input nutrient analysis values.  The calculator will adjust values based on selected number of days before manure is expected to be incorporated.  Retention factors used to adjust values are based on 2022 proposed MI GAAMPS charts."]
[]
[null,null,null,null,"Do you plan to include only commercial fertilizer products in your fertilizer plan?  Go to the Nutrient Management worksheet"]
[null,null,null,null,"Note: Step 4 provides an area to include values of manure, preferably based on a nutrient analysis.  Values can also be adjusted based on selected number of days before manure is expected to be incorporated.  Retention factors used to adjust values are based on 2022 proposed MI GAAMPS charts."]
[]
[]
["2)","Only items that are colored in BLUE should be altered in each TAB.  Changing the value of an item not marked BLUE can cause the formulas in the spreadsheet to stop working."]
[]
["3)","The Nutrient Management and Fertilizer Plan Tabs can be printed for your farm records.  The Fertilizer Plan Tab also allows for printing of three different plans for your chosen commodity.  This allows for comparison of different fertilizer sources to identify the best way to meet nutrient needs at the lowest possible cost."]

{"sheet":"Nutrient Management","index":1,"n_rows":79,"n_cols":18,"rows_kept":79,"cut":false,"hidden":false,"merged":[[51,0,52,0],[0,1,0,11],[1,1,1,3],[1,5,1,7],[1,9,1,11],[20,1,20,11],[7,1,7,11],[3,1,3,11],[8,1,8,11],[47,9,47,10],[37,1,37,3],[37,5,37,7],[37,9,37,11],[4,0,6,0],[48,0,49,0],[35,0,36,0],[66,1,66,11],[51,1,51,11],[30,1,30,11],[21,1,21,11],[46,1,46,11],[50,1,50,11],[45,1,45,11],[29,1,29,11],[39,1,39,11],[64,9,64,11],[40,1,40,11],[48,1,48,2],[48,5,48,6],[48,9,48,10],[47,1,47,2],[47,5,47,6],[21,0,28,0],[8,0,19,0],[43,13,44,13],[43,0,44,0],[2,15,2,22],[14,13,15,13],[18,13,19,13],[9,17,9,18],[10,17,10,18],[7,15,7,18],[14,15,30,19],[32,15,33,19],[41,15,42,19]]}
[null,"Nutrient Management",null,null,null,null,null,null,null,null,null,null,null,null,null,"Additional Resources:"]
[null,"Enter Crop Name",null,null,null,"Enter Crop Name",null,null,null,"Enter Crop Name",null,null,null,null,null,"For more information on Fertilizer Recommendations, see: "]
[null,null,null,null,null,null,null,null,null,null,null,null,null,null,null,"MSU Bulletin E-2934, Nutrient Recommendations for Vegetables in Michigan"]
["Step 1:","Yield Goal:"]
[null,null,"(Enter Below)","(Enter Below)",null,null,"(Enter Below)","(Enter Below)",null,null,"(Enter Below)","(Enter Below)",null,null,null,"MSU Fertilizer Recommendation Program"]
[null,null,0,"Unit",null,null,0,"Unit",null,null,0,"Unit",null,null,null,"https://www.canr.msu.edu/fertrec/"]
[null,null,null,"(tons, cwt, etc.)",null,null,null,"(tons, cwt, etc.)",null,null,null,"(tons, cwt, etc.)"]
["Step 2: ","Soil Test Based Recommendations:",null,null,null,null,null,null,null,null,null,null,null,null,null,"PPM to Pounds (Lbs) Conversion Calculator"]
[null,"Obtained from MSU Fertilizer Recommendation Program or your local soil lab.",null,null,null,null,null,null,null,null,null,null,null,null,null,"(Enter Below)"]
[null,"(Enter Below)","(Enter Below)","(Enter Below)",null,"(Enter Below)","(Enter Below)","(Enter Below)",null,"(Enter Below)","(Enter Below)","(Enter Below)",null,null,null,"PPM",null,"Pounds (Lbs)"]
[null,"N","P","K",null,"N","P","K",null,"N","P","K",null,null,null,0,"x 2",{"$f":"P11*2","v":0}]
[null,0,0,0,null,0,0,0,null,0,0,0]
[null,"S","Ca","Mag",null,"S","Ca","Mag",null,"S","Ca","Mag",null,"More"]
[null,0,0,0,null,0,0,0,null,0,0,0,null,"Below",null,"Note:"]
[null,"Z","B","Mn",null,"Z","B","Mn",null,"Z","B","Mn",null,"¯",null,"Nutrient removal rates are based on soil nutrients at \"maintenance levels.\"  Soil testing is recommended to confirm maintenance levels exist prior to consideration of removal rates.  "]
[null,0,0,0,null,0,0,0,null,0,0,0]
[null,"Cu","Mo","Fe",null,"Cu","Mo","Fe",null,"Cu","Mo","Fe"]
[null,0,0,0,null,0,0,0,null,0,0,0]
[null,"Lbs/Acre","Lbs/Acre","Lbs/Acre",null,"Lbs/Acre","Lbs/Acre","Lbs/Acre",null,"Lbs/Acre","Lbs/Acre","Lbs/Acre",null,"¯"]
[]
["Step 3: ","Nutrient Removal"]
[null,"Amount of nutrients being removed based on yield goal."]
[]
[null,"N","P","K",null,"N","P","K",null,"N","P","K"]
[null,{"$f":"VLOOKUP($B$2,'Nutrient Removal Table'!$A$6:$D$40,2,FALSE)*$C$6","v":{"$error":"#N/A"}},{"$f":"VLOOKUP($B$2,'Nutrient Removal Table'!$A$6:$D$40,4,FALSE)*$C$6","v":{"$error":"#N/A"}},{"$f":"VLOOKUP($B$2,'Nutrient Removal Table'!$A$6:$D$40,3,FALSE)*$C$6","v":{"$error":"#N/A"}},null,{"$f":"VLOOKUP($F$2,'Nutrient Removal Table'!$A$6:$D$40,2,FALSE)*$G$6","v":{"$error":"#N/A"}},{"$f":"VLOOKUP($F$2,'Nutrient Removal Table'!$A$6:$D$40,4,FALSE)*$G$6","v":{"$error":"#N/A"}},{"$f":"VLOOKUP($F$2,'Nutrient Removal Table'!$A$6:$D$40,3,FALSE)*$G$6","v":{"$error":"#N/A"}},null,{"$f":"VLOOKUP($J$2,'Nutrient Removal Table'!$A$6:$D$40,2,FALSE)*$K$6","v":{"$error":"#N/A"}},{"$f":"VLOOKUP($J$2,'Nutrient Removal Table'!$A$6:$D$40,4,FALSE)*$K$6","v":{"$error":"#N/A"}},{"$f":"VLOOKUP($J$2,'Nutrient Removal Table'!$A$6:$D$40,3,FALSE)*$K$6","v":{"$error":"#N/A"}}]
[null,"S","Ca","Mag",null,"S","Ca","Mag",null,"S","Ca","Mag"]
[null,0,0,0,null,0,0,0,null,0,0,0]
[null,"Lbs/Acre","Lbs/Acre","Lbs/Acre",null,"Lbs/Acre","Lbs/Acre","Lbs/Acre",null,"Lbs/Acre","Lbs/Acre","Lbs/Acre"]
[]
["Step 3: ","Manure  Application - This Year"]
[null,"Input nutrients being provided in manure applications \"this year\" (based on nutrient analysis results)."]
[null,"(Enter Below)","(Enter Below)","(Enter Below)",null,"(Enter Below)","(Enter Below)","(Enter Below)",null,"(Enter Below)","(Enter Below)","(Enter Below)"]
[null,"N","P","K",null,"N","P","K",null,"N","P","K",null,null,null,"MSU recommends using soil test-based information to address nutrient needs of your intended yield goals."]
[null,0,0,0,null,0,0,0,null,0,0,0]
[null,"S",null,null,null,"S",null,null,null,"S"]
["Note: these values are subtracted in Step 6",0,null,"(Select Below)",null,0,null,"(Select Below)",null,0,null,"(Select Below)"]
[null,"Days Before Incorporation",null,"----",null,"Days Before Incorporation",null,"----",null,"Days Before Incorporation",null,"----",null,null,null,"Manure Resources"]
[null,"*for all liquid and solid manure types",null,null,null,"*for all liquid and solid manure types",null,null,null,"*for all liquid and solid manure types",null,null,null,null,null,"Manure application methods and nitrogen losses (University of Minnesota)"]
[null,null,null,null,null,null,null,null,null,null,null,null,null,null,null,"Michigan GAAMPS",null,"←  See table A4 in Manure Mgmt & Utilization section for approximate manure values in place of nutrient analysis"]
["Step 4: ","Nutrient Credit: Manure - Previous Year(s)"]
[null,"Input nutrients being provided in manure applications from previous year(s).",null,null,null,null,null,null,null,null,null,null,null,null,null,"Note:"]
[null,"(Enter Below)","(Enter Below)","(Enter Below)",null,"(Enter Below)","(Enter Below)","(Enter Below)",null,"(Enter Below)","(Enter Below)","(Enter Below)",null,"More",null,"If you are using manure or compost, for best results a nutrient analysis is highly recommended."]
[null,"N","P","K",null,"N","P","K",null,"N","P","K",null,"Below"]
["Note: these values are subtracted in Step 6",0,0,0,null,0,0,0,null,20,32,25,null,"¯"]
[]
["Step 5: ","Nutrient Credit: Previous Crop",null,null,null,null,null,null,null,null,null,null,null,null,null,"For use with Step 6 (per MSU Bulletin: E-2904)"]
[null,"Input nutrients being credited from legume crops planted in previous year."]
[null,"(Select Below)",null,"N",null,"(Select Below)",null,"N",null,"(Select Below)",null,"N"]
["Note: these values are subtracted in Step 6","Select Previous Crop",null,{"$f":"VLOOKUP(B49,'Manure and Nutrient Credits'!$A$3:$B$16,2,FALSE)","v":0},null,"Select Previous Crop",null,{"$f":"VLOOKUP(F49,'Manure and Nutrient Credits'!$A$3:$B$16,2,FALSE)","v":0},null,"Select Previous Crop",null,{"$f":"VLOOKUP(J49,'Manure and Nutrient Credits'!$A$3:$B$16,2,FALSE)","v":0}]
[]
["Step 6: ","Total Nutrient Needs"]
[null,"Based on comparison of soil test recommendations minus any manure or nutrient credits. "]
[]
[null,"N","P","K",null,"N","P","K",null,"N","P","K"]
[null,{"$f":"B12-(B34*'Manure and Nutrient Credits'!$D$27)-B44-D49","v":0},{"$f":"C12-(C34*'Manure and Nutrient Credits'!$D$27)-C44","v":0},{"$f":"D12-(D34*'Manure and Nutrient Credits'!$D$27)-D44","v":0},null,{"$f":"F12-(F34*'Manure and Nutrient Credits'!$D$30)-F44-H49","v":0},{"$f":"G12-(G34*'Manure and Nutrient Credits'!$D$30)-G44","v":0},{"$f":"H12-(H34*'Manure and Nutrient Credits'!$D$30)-H44","v":0},null,{"$f":"J12-(J34*'Manure and Nutrient Credits'!$D$33)-J44-L49","v":-20},{"$f":"K12-(K34*'Manure and Nutrient Credits'!$D$33)-K44","v":-32},{"$f":"L12-(L34*'Manure and Nutrient Credits'!$D$33)-L44","v":-25}]
[null,{"$f":"MAX(0,B55)","v":0},{"$f":"MAX(0,C55)","v":0},0,null,{"$f":"MAX(0,F55)","v":0},{"$f":"MAX(0,G55)","v":0},{"$f":"MAX(0,H55)","v":0},null,{"$f":"MAX(0,J55)","v":0},{"$f":"MAX(0,K55)","v":0},{"$f":"MAX(0,L55)","v":0}]
[null,"S","Ca","Mag",null,"S","Ca","Mag",null,"S","Ca","Mag"]
[null,{"$f":"B14-(B36*'Manure and Nutrient Credits'!$D$27)","v":0},{"$f":"C14","v":0},{"$f":"D14","v":0},null,{"$f":"F14-(F36*'Manure and Nutrient Credits'!$D$30)","v":0},{"$f":"G14","v":0},{"$f":"H14","v":0},null,{"$f":"J14-(J36*'Manure and Nutrient Credits'!$D$33)","v":0},{"$f":"K14","v":0},{"$f":"L14","v":0}]
[null,{"$f":"MAX(0,B58)","v":0},{"$f":"MAX(0,C58)","v":0},0,null,{"$f":"MAX(0,F58)","v":0},{"$f":"MAX(0,G58)","v":0},{"$f":"MAX(0,H58)","v":0},null,{"$f":"MAX(0,J58)","v":0},{"$f":"MAX(0,K58)","v":0},{"$f":"MAX(0,L58)","v":0}]
[null,"Z","B","Mn",null,"Z","B","Mn",null,"Z","B","Mn"]
[null,{"$f":"B16","v":0},{"$f":"C16","v":0},0,null,0,0,0,null,0,0,0]
[null,"Cu","Mo","Fe",null,"Cu","Mo","Fe",null,"Cu","Mo","Fe"]
[null,{"$f":"B18","v":0},{"$f":"C18","v":0},0,null,0,0,0,null,0,0,0]
[]
[null,null,null,null,null,null,null,null,null,"Enter Farm Name"]
[]
[null,"Use this information to help determine the amount of commercial fertilizer needed in the Fertilizer Plan tab."]
[]
[null,"Soil Test Based Recommendations",null,null,null,"Soil Test Based Recommendations",null,null,null,"Soil Test Based Recommendations"]
[null,{"$f":"B12-(B34*'Manure and Nutrient Credits'!$D$27)-B44-D49","v":0},{"$f":"C12-(C34*'Manure and Nutrient Credits'!$D$27)-C44","v":0},{"$f":"D12-(D34*'Manure and Nutrient Credits'!$D$27)-D44","v":0},null,{"$f":"F12-(F34*'Manure and Nutrient Credits'!$D$30)-F44-H49","v":0},{"$f":"G12-(G34*'Manure and Nutrient Credits'!$D$30)-G44","v":0},{"$f":"H12-(H34*'Manure and Nutrient Credits'!$D$30)-H44","v":0},null,{"$f":"J12-(J34*'Manure and Nutrient Credits'!$D$33)-J44-L49","v":-20},{"$f":"K12-(K34*'Manure and Nutrient Credits'!$D$33)-K44","v":-32},{"$f":"L12-(L34*'Manure and Nutrient Credits'!$D$33)-L44","v":-25}]
[null,{"$f":"MAX(0,B70)","v":0},{"$f":"MAX(0,C70)","v":0},0,null,{"$f":"MAX(0,F70)","v":0},{"$f":"MAX(0,G70)","v":0},{"$f":"MAX(0,H70)","v":0},null,{"$f":"MAX(0,J70)","v":0},{"$f":"MAX(0,K70)","v":0},{"$f":"MAX(0,L70)","v":0}]
[null,{"$f":"B14-(B36*'Manure and Nutrient Credits'!$D$27)","v":0},null,null,null,{"$f":"F14-(F36*'Manure and Nutrient Credits'!$D$30)","v":0},null,null,null,{"$f":"J14-(J36*'Manure and Nutrient Credits'!$D$33)","v":0}]
[null,{"$f":"MAX(0,B72)","v":0},null,null,null,{"$f":"MAX(0,F72)","v":0},null,null,null,{"$f":"MAX(0,J72)","v":0}]
[]
[null,"Nutrient Removal",null,null,null,"Nutrient Removal",null,null,null,"Nutrient Removal"]
[null,{"$f":"B25-(B34*'Manure and Nutrient Credits'!$D$27)-B44-D49","v":{"$error":"#N/A"}},{"$f":"C25-(C34*'Manure and Nutrient Credits'!$D$27)-C44","v":{"$error":"#N/A"}},{"$f":"D25-(D34*'Manure and Nutrient Credits'!$D$27)-D44","v":{"$error":"#N/A"}},null,{"$f":"F25-(F34*'Manure and Nutrient Credits'!$D$30)-F44-H49","v":{"$error":"#N/A"}},{"$f":"G25-(G34*'Manure and Nutrient Credits'!$D$30)-G44","v":{"$error":"#N/A"}},{"$f":"H25-(H34*'Manure and Nutrient Credits'!$D$30)-H44","v":{"$error":"#N/A"}},null,{"$f":"J25-(J34*'Manure and Nutrient Credits'!$D$33)-J44-L49","v":{"$error":"#N/A"}},{"$f":"K25-(K34*'Manure and Nutrient Credits'!$D$33)-K44","v":{"$error":"#N/A"}},{"$f":"L25-(L34*'Manure and Nutrient Credits'!$D$33)-L44","v":{"$error":"#N/A"}}]
[null,{"$f":"MAX(0,B76)","v":{"$error":"#N/A"}},{"$f":"MAX(0,C76)","v":{"$error":"#N/A"}},{"$f":"MAX(0,D76)","v":{"$error":"#N/A"}},null,{"$f":"MAX(0,F76)","v":{"$error":"#N/A"}},{"$f":"MAX(0,G76)","v":{"$error":"#N/A"}},{"$f":"MAX(0,H76)","v":{"$error":"#N/A"}},null,{"$f":"MAX(0,J76)","v":{"$error":"#N/A"}},{"$f":"MAX(0,K76)","v":{"$error":"#N/A"}},{"$f":"MAX(0,L76)","v":{"$error":"#N/A"}}]
[null,{"$f":"B27-(B36*'Manure and Nutrient Credits'!$D$27)","v":0},null,null,null,{"$f":"F27-(F36*'Manure and Nutrient Credits'!$D$30)","v":0},null,null,null,{"$f":"J27-(J36*'Manure and Nutrient Credits'!$D$33)","v":0}]
[null,{"$f":"MAX(0,B78)","v":0},null,null,null,{"$f":"MAX(0,F78)","v":0},null,null,null,{"$f":"MAX(0,J78)","v":0}]

{"sheet":"Corn K Calculations","index":2,"n_rows":24,"n_cols":4,"rows_kept":24,"cut":false,"hidden":true,"merged":[]}
[9,50,"IF(AND(E8<=50,'Crop Budget (Main)'!C14<=100,D14<=9),125,IF(AND(E8<=50,'Crop Budget (Main)'!C14<=120,D14<=9),130,IF(AND(E8<=50,'Crop Budget (Main)'!C14<=140,D14<=9),135,IF(AND(E8<=50,'Crop Budget (Main)'!C14<=160,D14<=9),140,IF(AND(E8<=50,'Crop Budget (Main)'!C14<=180,D14<=9),145,IF(AND(E8<=50,'Crop Budget (Main)'!C14>180,D14<=9),145"]
[9,100,"IF(AND(E8<=100,'Crop Budget (Main)'!C14<=100,D14<=9),95,IF(AND(E8<=100,'Crop Budget (Main)'!C14<=120,D14<=9),100,IF(AND(E8<=100,'Crop Budget (Main)'!C14<=140,D14<=9),105,IF(AND(E8<=100,'Crop Budget (Main)'!C14<=160,D14<=9),110,IF(AND(E8<=100,'Crop Budget (Main)'!C14<=180,D14<=9),115,IF(AND(E8<=100,'Crop Budget (Main)'!C14>180,D14<=9),115"]
[9,150,"IF(AND(E8<=150,'Crop Budget (Main)'!C14<=100,D14<=9),65,IF(AND(E8<=150,'Crop Budget (Main)'!C14<=120,D14<=9),70,IF(AND(E8<=150,'Crop Budget (Main)'!C14<=140,D14<=9),75,IF(AND(E8<=150,'Crop Budget (Main)'!C14<=160,D14<=9),80,IF(AND(E8<=150,'Crop Budget (Main)'!C14<=180,D14<=9),85,IF(AND(E8<=150,'Crop Budget (Main)'!C14>180,D14<=9),80"]
[9,235]
[9,260]
[9,280]
[19,50,"IF(AND(E8<=50,'Crop Budget (Main)'!C14<=100,D14<=19),160,IF(AND(E8<=50,'Crop Budget (Main)'!C14<=120,D14<=19),165,IF(AND(E8<=50,'Crop Budget (Main)'!C14<=140,D14<=19),170,IF(AND(E8<=50,'Crop Budget (Main)'!C14<=160,D14<=19),175,IF(AND(E8<=50,'Crop Budget (Main)'!C14<=180,D14<=19),180,IF(AND(E8<=50,'Crop Budget (Main)'!C14>180,D14<=19),180"]
[19,100,"IF(AND(E8<=100,'Crop Budget (Main)'!C14<=100,D14<=19),120,IF(AND(E8<=100,'Crop Budget (Main)'!C14<=120,D14<=19),125,IF(AND(E8<=100,'Crop Budget (Main)'!C14<=140,D14<=19),135,IF(AND(E8<=100,'Crop Budget (Main)'!C14<=160,D14<=19),140,IF(AND(E8<=100,'Crop Budget (Main)'!C14<=180,D14<=19),145,IF(AND(E8<=100,'Crop Budget (Main)'!C14>180,D14<=19),145"]
[19,150,"IF(AND(E8<=150,'Crop Budget (Main)'!C14<=100,D14<=19),85,IF(AND(E8<=150,'Crop Budget (Main)'!C14<=120,D14<=19),90,IF(AND(E8<=150,'Crop Budget (Main)'!C14<=140,D14<=19),95,IF(AND(E8<=150,'Crop Budget (Main)'!C14<=160,D14<=19),100,IF(AND(E8<=150,'Crop Budget (Main)'!C14<=180,D14<=19),105,IF(AND(E8<=150,'Crop Budget (Main)'!C14>180,D14<=19),100"]
[19,250,"IF(AND(E8<=250,'Crop Budget (Main)'!C14<=100,D14<=19),45,IF(AND(E8<=250,'Crop Budget (Main)'!C14<=120,D14<=19),50,IF(AND(E8<=250,'Crop Budget (Main)'!C14<=140,D14<=19),60,IF(AND(E8<=250,'Crop Budget (Main)'!C14<=160,D14<=19),65,IF(AND(E8<=250,'Crop Budget (Main)'!C14<=180,D14<=19),70,IF(AND(E8<=250,'Crop Budget (Main)'!C14>180,D14<=19),70"]
[19,280]
[19,300]
[29,100,"IF(AND(E8<=100,'Crop Budget (Main)'!C14<=100,D14<=29),195,IF(AND(E8<=100,'Crop Budget (Main)'!C14<=120,D14<=29),200,IF(AND(E8<=100,'Crop Budget (Main)'!C14<=140,D14<=29),210,IF(AND(E8<=100,'Crop Budget (Main)'!C14<=160,D14<=29),215,IF(AND(E8<=100,'Crop Budget (Main)'!C14<=180,D14<=29),220,IF(AND(E8<=100,'Crop Budget (Main)'!C14>180,D14<=29),220"]
[29,150,"IF(AND(E8<=150,'Crop Budget (Main)'!C14<=100,D14<=29),145,IF(AND(E8<=150,'Crop Budget (Main)'!C14<=120,D14<=29),150,IF(AND(E8<=150,'Crop Budget (Main)'!C14<=140,D14<=29),160,IF(AND(E8<=150,'Crop Budget (Main)'!C14<=160,D14<=29),165,IF(AND(E8<=150,'Crop Budget (Main)'!C14<=180,D14<=29),170,IF(AND(E8<=150,'Crop Budget (Main)'!C14>180,D14<=29),170"]
[29,250,"IF(AND(E8<=250,'Crop Budget (Main)'!C14<=100,D14<=29),95,IF(AND(E8<=250,'Crop Budget (Main)'!C14<=120,D14<=29),100,IF(AND(E8<=250,'Crop Budget (Main)'!C14<=140,D14<=29),110,IF(AND(E8<=250,'Crop Budget (Main)'!C14<=160,D14<=29),115,IF(AND(E8<=250,'Crop Budget (Main)'!C14<=180,D14<=29),120,IF(AND(E8<=250,'Crop Budget (Main)'!C14>180,D14<=29),120"]
[29,310]
[29,330]
[29,350,null,"IF(AND(E8<=50,'Crop Budget (Main)'!C14<=100,D14<=9),125,IF(AND(E8<=50,'Crop Budget (Main)'!C14<=120,D14<=9),130,IF(AND(E8<=50,'Crop Budget (Main)'!C14<=140,D14<=9),135,IF(AND(E8<=50,'Crop Budget (Main)'!C14<=160,D14<=9),140,IF(AND(E8<=50,'Crop Budget (Main)'!C14<=180,D14<=9),145,IF(AND(E8<=50,'Crop Budget (Main)'!C14>180,D14<=9),145,IF(AND(E8<=100,'Crop Budget (Main)'!C14<=100,D14<=9),95,IF(AND(E8<=100,'Crop Budget (Main)'!C14<=120,D14<=9),100,IF(AND(E8<=100,'Crop Budget (Main)'!C14<=140,D14<=9),105,IF(AND(E8<=100,'Crop Budget (Main)'!C14<=160,D14<=9),110,IF(AND(E8<=100,'Crop Budget (Main)'!C14<=180,D14<=9),115,IF(AND(E8<=100,'Crop Budget (Main)'!C14>180,D14<=9),115,IF(AND(E8<=150,'Crop Budget (Main)'!C14<=100,D14<=9),65,IF(AND(E8<=150,'Crop Budget (Main)'!C14<=120,D14<=9),70,IF(AND(E8<=150,'Crop Budget (Main)'!C14<=140,D14<=9),75,IF(AND(E8<=150,'Crop Budget (Main)'!C14<=160,D14<=9),80,IF(AND(E8<=150,'Crop Budget (Main)'!C14<=180,D14<=9),85,IF(AND(E8<=150,'Crop Budget (Main)'!C14>180,D14<=9),80,IF(AND(E8<=50,'Crop Budget (Main)'!C14<=100,D14<=19),160,IF(AND(E8<=50,'Crop Budget (Main)'!C14<=120,D14<=19),165,IF(AND(E8<=50,'Crop Budget (Main)'!C14<=140,D14<=19),170,IF(AND(E8<=50,'Crop Budget (Main)'!C14<=160,D14<=19),175,IF(AND(E8<=50,'Crop Budget (Main)'!C14<=180,D14<=19),180,IF(AND(E8<=50,'Crop Budget (Main)'!C14>180,D14<=19),180,IF(AND(E8<=100,'Crop Budget (Main)'!C14<=100,D14<=19),120,IF(AND(E8<=100,'Crop Budget (Main)'!C14<=120,D14<=19),125,IF(AND(E8<=100,'Crop Budget (Main)'!C14<=140,D14<=19),135,IF(AND(E8<=100,'Crop Budget (Main)'!C14<=160,D14<=19),140,IF(AND(E8<=100,'Crop Budget (Main)'!C14<=180,D14<=19),145,IF(AND(E8<=100,'Crop Budget (Main)'!C14>180,D14<=19),145,IF(AND(E8<=150,'Crop Budget (Main)'!C14<=100,D14<=19),85,IF(AND(E8<=150,'Crop Budget (Main)'!C14<=120,D14<=19),90,IF(AND(E8<=150,'Crop Budget (Main)'!C14<=140,D14<=19),95,IF(AND(E8<=150,'Crop Budget (Main)'!C14<=160,D14<=19),100,IF(AND(E8<=150,'Crop Budget (Main)'!C14<=180,D14<=19),105,IF(AND(E8<=150,'Crop Budget (Main)'!C14>180,D14<=19),100,IF(AND(E8<=200,'Crop Budget (Main)'!C14<=100,D14<=19),45,IF(AND(E8<=200,'Crop Budget (Main)'!C14<=120,D14<=19),50,IF(AND(E8<=200,'Crop Budget (Main)'!C14<=140,D14<=19),60,IF(AND(E8<=200,'Crop Budget (Main)'!C14<=160,D14<=19),65,IF(AND(E8<=200,'Crop Budget (Main)'!C14<=180,D14<=19),70,IF(AND(E8<=200,'Crop Budget (Main)'!C14>180,D14<=19),70,IF(AND(E8<=100,'Crop Budget (Main)'!C14<=100,D14<=29),195,IF(AND(E8<=100,'Crop Budget (Main)'!C14<=120,D14<=29),200,IF(AND(E8<=100,'Crop Budget (Main)'!C14<=140,D14<=29),210,IF(AND(E8<=100,'Crop Budget (Main)'!C14<=160,D14<=29),215,IF(AND(E8<=100,'Crop Budget (Main)'!C14<=180,D14<=29),220,IF(AND(E8<=100,'Crop Budget (Main)'!C14>180,D14<=29),220,IF(AND(E8<=150,'Crop Budget (Main)'!C14<=100,D14<=29),145,IF(AND(E8<=150,'Crop Budget (Main)'!C14<=120,D14<=29),150,IF(AND(E8<=150,'Crop Budget (Main)'!C14<=140,D14<=29),160,IF(AND(E8<=150,'Crop Budget (Main)'!C14<=160,D14<=29),165,IF(AND(E8<=150,'Crop Budget (Main)'!C14<=180,D14<=29),170,IF(AND(E8<=150,'Crop Budget (Main)'!C14>180,D14<=29),170,IF(AND(E8<=200,'Crop Budget (Main)'!C14<=100,D14<=29),95,IF(AND(E8<=200,'Crop Budget (Main)'!C14<=120,D14<=29),100,IF(AND(E8<=200,'Crop Budget (Main)'!C14<=140,D14<=29),110,IF(AND(E8<=200,'Crop Budget (Main)'!C14<=160,D14<=29),115,IF(AND(E8<=200,'Crop Budget (Main)'!C14<=180,D14<=29),120,IF(AND(E8<=200,'Crop Budget (Main)'!C14>180,D14<=29),120"]
[30,150]
[30,200]
[30,250]
[30,360]
[30,380]
[30,400]

{"sheet":"Soybean K Calculations","index":3,"n_rows":24,"n_cols":4,"rows_kept":24,"cut":false,"hidden":true,"merged":[]}
[9,50,"IF(AND(I8<=50,'Crop Budget (Main)'!G14<=30,H14<=9),140,IF(AND(I8<=50,'Crop Budget (Main)'!G14<=40,H14<=9),155,IF(AND(I8<=50,'Crop Budget (Main)'!G14<=50,H14<=9),170,IF(AND(I8<=50,'Crop Budget (Main)'!G14<=60,H14<=9),180,IF(AND(I8<=50,'Crop Budget (Main)'!G14<=70,H14<=9),195,IF(AND(I8<=50,'Crop Budget (Main)'!G14>70,H14<=9),195"]
[9,100,"IF(AND(I8<=100,'Crop Budget (Main)'!G14<=30,H14<=9),110,IF(AND(I8<=100,'Crop Budget (Main)'!G14<=40,H14<=9),125,IF(AND(I8<=100,'Crop Budget (Main)'!G14<=50,H14<=9),135,IF(AND(I8<=100,'Crop Budget (Main)'!G14<=60,H14<=9),150,IF(AND(I8<=100,'Crop Budget (Main)'!G14<=70,H14<=9),165,IF(AND(I8<=100,'Crop Budget (Main)'!G14>70,H14<=9),165"]
[9,150,"IF(AND(I8<=150,'Crop Budget (Main)'!G14<=30,H14<=9),80,IF(AND(I8<=150,'Crop Budget (Main)'!G14<=40,H14<=9),90,IF(AND(I8<=150,'Crop Budget (Main)'!G14<=50,H14<=9),105,IF(AND(I8<=150,'Crop Budget (Main)'!G14<=60,H14<=9),105,IF(AND(I8<=150,'Crop Budget (Main)'!G14<=70,H14<=9),120,IF(AND(I8<=150,'Crop Budget (Main)'!G14>70,H14<=9),120"]
[9,235]
[9,260]
[9,280]
[19,50,"IF(AND(I8<=50,'Crop Budget (Main)'!G14<=30,H14<=19),175,IF(AND(I8<=50,'Crop Budget (Main)'!G14<=40,H14<=19),190,IF(AND(I8<=50,'Crop Budget (Main)'!G14<=50,H14<=19),205,IF(AND(I8<=50,'Crop Budget (Main)'!G14<=60,H14<=19),215,IF(AND(I8<=50,'Crop Budget (Main)'!G14<=70,H14<=19),230,IF(AND(I8<=50,'Crop Budget (Main)'!G14>70,H14<=19),230"]
[19,100,"IF(AND(I8<=100,'Crop Budget (Main)'!G14<=30,H14<=19),135,IF(AND(I8<=100,'Crop Budget (Main)'!G14<=40,H14<=19),150,IF(AND(I8<=100,'Crop Budget (Main)'!G14<=50,H14<=19),165,IF(AND(I8<=100,'Crop Budget (Main)'!G14<=60,H14<=19),180,IF(AND(I8<=100,'Crop Budget (Main)'!G14<=70,H14<=19),195,IF(AND(I8<=100,'Crop Budget (Main)'!G14>70,H14<=19),195"]
[19,150,"IF(AND(I8<=150,'Crop Budget (Main)'!G14<=30,H14<=19),100,IF(AND(I8<=150,'Crop Budget (Main)'!G14<=40,H14<=19),115,IF(AND(I8<=150,'Crop Budget (Main)'!G14<=50,H14<=19),130,IF(AND(I8<=150,'Crop Budget (Main)'!G14<=60,H14<=19),140,IF(AND(I8<=150,'Crop Budget (Main)'!G14<=70,H14<=19),155,IF(AND(I8<=150,'Crop Budget (Main)'!G14>70,H14<=19),155"]
[19,250,"IF(AND(I8<=250,'Crop Budget (Main)'!G14<=30,H14<=19),60,IF(AND(I8<=250,'Crop Budget (Main)'!G14<=40,H14<=19),75,IF(AND(I8<=250,'Crop Budget (Main)'!G14<=50,H14<=19),90,IF(AND(I8<=250,'Crop Budget (Main)'!G14<=60,H14<=19),105,IF(AND(I8<=250,'Crop Budget (Main)'!G14<=70,H14<=19),120,IF(AND(I8<=250,'Crop Budget (Main)'!G14>70,H14<=19),120"]
[19,280]
[19,300]
[29,100,"IF(AND(I8<=100,'Crop Budget (Main)'!G14<=100,H14<=29),210,IF(AND(I8<=100,'Crop Budget (Main)'!G14<=120,H14<=29),225,IF(AND(I8<=100,'Crop Budget (Main)'!G14<=140,H14<=29),240,IF(AND(I8<=100,'Crop Budget (Main)'!G14<=160,H14<=29),255,IF(AND(I8<=100,'Crop Budget (Main)'!G14<=180,H14<=29),270,IF(AND(I8<=100,'Crop Budget (Main)'!G14>180,H14<=29),270"]
[29,150,"IF(AND(I8<=150,'Crop Budget (Main)'!G14<=100,H14<=29),160,IF(AND(I8<=150,'Crop Budget (Main)'!G14<=120,H14<=29),175,IF(AND(I8<=150,'Crop Budget (Main)'!G14<=140,H14<=29),190,IF(AND(I8<=150,'Crop Budget (Main)'!G14<=160,H14<=29),205,IF(AND(I8<=150,'Crop Budget (Main)'!G14<=180,H14<=29),220,IF(AND(I8<=150,'Crop Budget (Main)'!G14>180,H14<=29),220"]
[29,250,"IF(AND(I8<=250,'Crop Budget (Main)'!G14<=100,H14<=29),110,IF(AND(I8<=250,'Crop Budget (Main)'!G14<=120,H14<=29),125,IF(AND(I8<=250,'Crop Budget (Main)'!G14<=140,H14<=29),140,IF(AND(I8<=250,'Crop Budget (Main)'!G14<=160,H14<=29),155,IF(AND(I8<=250,'Crop Budget (Main)'!G14<=180,H14<=29),170,IF(AND(I8<=250,'Crop Budget (Main)'!G14>180,H14<=29),170"]
[29,310]
[29,330]
[29,350,null,"IF(AND(I8<=50,'Crop Budget (Main)'!G14<=30,H14<=9),140,IF(AND(I8<=50,'Crop Budget (Main)'!G14<=40,H14<=9),155,IF(AND(I8<=50,'Crop Budget (Main)'!G14<=50,H14<=9),170,IF(AND(I8<=50,'Crop Budget (Main)'!G14<=60,H14<=9),180,IF(AND(I8<=50,'Crop Budget (Main)'!G14<=70,H14<=9),195,IF(AND(I8<=50,'Crop Budget (Main)'!G14>70,H14<=9),195,IF(AND(I8<=100,'Crop Budget (Main)'!G14<=30,H14<=9),110,IF(AND(I8<=100,'Crop Budget (Main)'!G14<=40,H14<=9),125,IF(AND(I8<=100,'Crop Budget (Main)'!G14<=50,H14<=9),135,IF(AND(I8<=100,'Crop Budget (Main)'!G14<=60,H14<=9),150,IF(AND(I8<=100,'Crop Budget (Main)'!G14<=70,H14<=9),165,IF(AND(I8<=100,'Crop Budget (Main)'!G14>70,H14<=9),165,IF(AND(I8<=150,'Crop Budget (Main)'!G14<=30,H14<=9),80,IF(AND(I8<=150,'Crop Budget (Main)'!G14<=40,H14<=9),90,IF(AND(I8<=150,'Crop Budget (Main)'!G14<=50,H14<=9),105,IF(AND(I8<=150,'Crop Budget (Main)'!G14<=60,H14<=9),105,IF(AND(I8<=150,'Crop Budget (Main)'!G14<=70,H14<=9),120,IF(AND(I8<=150,'Crop Budget (Main)'!G14>70,H14<=9),120,IF(AND(I8<=50,'Crop Budget (Main)'!G14<=30,H14<=19),175,IF(AND(I8<=50,'Crop Budget (Main)'!G14<=40,H14<=19),190,IF(AND(I8<=50,'Crop Budget (Main)'!G14<=50,H14<=19),205,IF(AND(I8<=50,'Crop Budget (Main)'!G14<=60,H14<=19),215,IF(AND(I8<=50,'Crop Budget (Main)'!G14<=70,H14<=19),230,IF(AND(I8<=50,'Crop Budget (Main)'!G14>70,H14<=19),230,IF(AND(I8<=100,'Crop Budget (Main)'!G14<=30,H14<=19),135,IF(AND(I8<=100,'Crop Budget (Main)'!G14<=40,H14<=19),150,IF(AND(I8<=100,'Crop Budget (Main)'!G14<=50,H14<=19),165,IF(AND(I8<=100,'Crop Budget (Main)'!G14<=60,H14<=19),180,IF(AND(I8<=100,'Crop Budget (Main)'!G14<=70,H14<=19),195,IF(AND(I8<=100,'Crop Budget (Main)'!G14>70,H14<=19),195,IF(AND(I8<=150,'Crop Budget (Main)'!G14<=30,H14<=19),100,IF(AND(I8<=150,'Crop Budget (Main)'!G14<=40,H14<=19),115,IF(AND(I8<=150,'Crop Budget (Main)'!G14<=50,H14<=19),130,IF(AND(I8<=150,'Crop Budget (Main)'!G14<=60,H14<=19),140,IF(AND(I8<=150,'Crop Budget (Main)'!G14<=70,H14<=19),155,IF(AND(I8<=150,'Crop Budget (Main)'!G14>70,H14<=19),155,IF(AND(I8<=250,'Crop Budget (Main)'!G14<=30,H14<=19),60,IF(AND(I8<=250,'Crop Budget (Main)'!G14<=40,H14<=19),75,IF(AND(I8<=250,'Crop Budget (Main)'!G14<=50,H14<=19),90,IF(AND(I8<=250,'Crop Budget (Main)'!G14<=60,H14<=19),105,IF(AND(I8<=250,'Crop Budget (Main)'!G14<=70,H14<=19),120,IF(AND(I8<=250,'Crop Budget (Main)'!G14>70,H14<=19),120,IF(AND(I8<=100,'Crop Budget (Main)'!G14<=100,H14<=29),210,IF(AND(I8<=100,'Crop Budget (Main)'!G14<=120,H14<=29),225,IF(AND(I8<=100,'Crop Budget (Main)'!G14<=140,H14<=29),240,IF(AND(I8<=100,'Crop Budget (Main)'!G14<=160,H14<=29),255,IF(AND(I8<=100,'Crop Budget (Main)'!G14<=180,H14<=29),270,IF(AND(I8<=100,'Crop Budget (Main)'!G14>180,H14<=29),270,IF(AND(I8<=150,'Crop Budget (Main)'!G14<=100,H14<=29),160,IF(AND(I8<=150,'Crop Budget (Main)'!G14<=120,H14<=29),175,IF(AND(I8<=150,'Crop Budget (Main)'!G14<=140,H14<=29),190,IF(AND(I8<=150,'Crop Budget (Main)'!G14<=160,H14<=29),205,IF(AND(I8<=150,'Crop Budget (Main)'!G14<=180,H14<=29),220,IF(AND(I8<=150,'Crop Budget (Main)'!G14>180,H14<=29),220,IF(AND(I8<=250,'Crop Budget (Main)'!G14<=100,H14<=29),110,IF(AND(I8<=250,'Crop Budget (Main)'!G14<=120,H14<=29),125,IF(AND(I8<=250,'Crop Budget (Main)'!G14<=140,H14<=29),140,IF(AND(I8<=250,'Crop Budget (Main)'!G14<=160,H14<=29),155,IF(AND(I8<=250,'Crop Budget (Main)'!G14<=180,H14<=29),170,IF(AND(I8<=250,'Crop Budget (Main)'!G14>180,H14<=29),170"]
[30,150]
[30,200]
[30,250]
[30,360]
[30,380]
[30,400]

{"sheet":"Wheat K Calculations","index":4,"n_rows":24,"n_cols":4,"rows_kept":24,"cut":false,"hidden":true,"merged":[]}
[9,50,"IF(AND(M8<=50,'Crop Budget (Main)'!K14<=50,L14<=9),115,IF(AND(M8<=50,'Crop Budget (Main)'!K14<=60,L14<=9),130,IF(AND(M8<=50,'Crop Budget (Main)'!K14<=70,L14<=9),125,IF(AND(M8<=50,'Crop Budget (Main)'!K14<=80,L14<=9),130,IF(AND(M8<=50,'Crop Budget (Main)'!K14<=90,L14<=9),130,IF(AND(M8<=50,'Crop Budget (Main)'!K14>90,L14<=9),130"]
[9,100,"IF(AND(M8<=100,'Crop Budget (Main)'!K14<=50,L14<=9),85,IF(AND(M8<=100,'Crop Budget (Main)'!K14<=60,L14<=9),90,IF(AND(M8<=100,'Crop Budget (Main)'!K14<=70,L14<=9),95,IF(AND(M8<=100,'Crop Budget (Main)'!K14<=80,L14<=9),95,IF(AND(M8<=100,'Crop Budget (Main)'!K14<=90,L14<=9),100,IF(AND(M8<=100,'Crop Budget (Main)'!K14>90,L14<=9),100"]
[9,150,"IF(AND(M8<=150,'Crop Budget (Main)'!K14<=50,L14<=9),55,IF(AND(M8<=150,'Crop Budget (Main)'!K14<=60,L14<=9),60,IF(AND(M8<=150,'Crop Budget (Main)'!K14<=70,L14<=9),60,IF(AND(M8<=150,'Crop Budget (Main)'!K14<=80,L14<=9),65,IF(AND(M8<=150,'Crop Budget (Main)'!K14<=90,L14<=9),70,IF(AND(M8<=150,'Crop Budget (Main)'!K14>90,L14<=9),70"]
[9,235]
[9,260]
[9,280]
[19,50,"IF(AND(M8<=50,'Crop Budget (Main)'!K14<=50,L14<=19),150,IF(AND(M8<=50,'Crop Budget (Main)'!K14<=60,L14<=19),155,IF(AND(M8<=50,'Crop Budget (Main)'!K14<=70,L14<=19),160,IF(AND(M8<=50,'Crop Budget (Main)'!K14<=80,L14<=19),160,IF(AND(M8<=50,'Crop Budget (Main)'!K14<=90,L14<=19),165,IF(AND(M8<=50,'Crop Budget (Main)'!K14>90,L14<=19),165"]
[19,100,"IF(AND(M8<=100,'Crop Budget (Main)'!K14<=50,L14<=19),115,IF(AND(M8<=100,'Crop Budget (Main)'!K14<=60,L14<=19),115,IF(AND(M8<=100,'Crop Budget (Main)'!K14<=70,L14<=19),120,IF(AND(M8<=100,'Crop Budget (Main)'!K14<=80,L14<=19),125,IF(AND(M8<=100,'Crop Budget (Main)'!K14<=90,L14<=19),130,IF(AND(M8<=100,'Crop Budget (Main)'!K14>90,L14<=19),130"]
[19,150,"IF(AND(M8<=150,'Crop Budget (Main)'!K14<=50,L14<=19),75,IF(AND(M8<=150,'Crop Budget (Main)'!K14<=60,L14<=19),80,IF(AND(M8<=150,'Crop Budget (Main)'!K14<=70,L14<=19),85,IF(AND(M8<=150,'Crop Budget (Main)'!K14<=80,L14<=19),85,IF(AND(M8<=150,'Crop Budget (Main)'!K14<=90,L14<=19),90,IF(AND(M8<=150,'Crop Budget (Main)'!K14>90,L14<=19),90"]
[19,200,"IF(AND(M8<=200,'Crop Budget (Main)'!K14<=50,L14<=19),40,IF(AND(M8<=200,'Crop Budget (Main)'!K14<=60,L14<=19),40,IF(AND(M8<=200,'Crop Budget (Main)'!K14<=70,L14<=19),45,IF(AND(M8<=200,'Crop Budget (Main)'!K14<=80,L14<=19),50,IF(AND(M8<=200,'Crop Budget (Main)'!K14<=90,L14<=19),50,IF(AND(M8<=200,'Crop Budget (Main)'!K14>90,L14<=19),50"]
[19,280]
[19,300]
[29,100,"IF(AND(M8<=100,'Crop Budget (Main)'!K14<=50,L14<=29),190,IF(AND(M8<=100,'Crop Budget (Main)'!K14<=60,L14<=29),190,IF(AND(M8<=100,'Crop Budget (Main)'!K14<=70,L14<=29),195,IF(AND(M8<=100,'Crop Budget (Main)'!K14<=80,L14<=29),200,IF(AND(M8<=100,'Crop Budget (Main)'!K14<=90,L14<=29),205,IF(AND(M8<=100,'Crop Budget (Main)'!K14>90,L14<=29),205"]
[29,150,"IF(AND(M8<=150,'Crop Budget (Main)'!K14<=50,L14<=29),140,IF(AND(M8<=150,'Crop Budget (Main)'!K14<=60,L14<=29),140,IF(AND(M8<=150,'Crop Budget (Main)'!K14<=70,L14<=29),145,IF(AND(M8<=150,'Crop Budget (Main)'!K14<=80,L14<=29),150,IF(AND(M8<=150,'Crop Budget (Main)'!K14<=90,L14<=29),155,IF(AND(M8<=150,'Crop Budget (Main)'!K14>90,L14<=29),155"]
[29,200,"IF(AND(M8<=200,'Crop Budget (Main)'!K14<=50,L14<=29),90,IF(AND(M8<=200,'Crop Budget (Main)'!K14<=60,L14<=29),90,IF(AND(M8<=200,'Crop Budget (Main)'!K14<=70,L14<=29),95,IF(AND(M8<=200,'Crop Budget (Main)'!K14<=80,L14<=29),100,IF(AND(M8<=200,'Crop Budget (Main)'!K14<=90,L14<=29),105,IF(AND(M8<=200,'Crop Budget (Main)'!K14>90,L14<=29),105"]
[29,310]
[29,330]
[29,350,null,"IF(AND(M8<=50,'Crop Budget (Main)'!K14<=50,L14<=9),115,IF(AND(M8<=50,'Crop Budget (Main)'!K14<=60,L14<=9),130,IF(AND(M8<=50,'Crop Budget (Main)'!K14<=70,L14<=9),125,IF(AND(M8<=50,'Crop Budget (Main)'!K14<=80,L14<=9),130,IF(AND(M8<=50,'Crop Budget (Main)'!K14<=90,L14<=9),130,IF(AND(M8<=50,'Crop Budget (Main)'!K14>90,L14<=9),130,IF(AND(M8<=100,'Crop Budget (Main)'!K14<=50,L14<=9),85,IF(AND(M8<=100,'Crop Budget (Main)'!K14<=60,L14<=9),90,IF(AND(M8<=100,'Crop Budget (Main)'!K14<=70,L14<=9),95,IF(AND(M8<=100,'Crop Budget (Main)'!K14<=80,L14<=9),95,IF(AND(M8<=100,'Crop Budget (Main)'!K14<=90,L14<=9),100,IF(AND(M8<=100,'Crop Budget (Main)'!K14>90,L14<=9),100,IF(AND(M8<=150,'Crop Budget (Main)'!K14<=50,L14<=9),55,IF(AND(M8<=150,'Crop Budget (Main)'!K14<=60,L14<=9),60,IF(AND(M8<=150,'Crop Budget (Main)'!K14<=70,L14<=9),60,IF(AND(M8<=150,'Crop Budget (Main)'!K14<=80,L14<=9),65,IF(AND(M8<=150,'Crop Budget (Main)'!K14<=90,L14<=9),70,IF(AND(M8<=150,'Crop Budget (Main)'!K14>90,L14<=9),70,IF(AND(M8<=50,'Crop Budget (Main)'!K14<=50,L14<=19),150,IF(AND(M8<=50,'Crop Budget (Main)'!K14<=60,L14<=19),155,IF(AND(M8<=50,'Crop Budget (Main)'!K14<=70,L14<=19),160,IF(AND(M8<=50,'Crop Budget (Main)'!K14<=80,L14<=19),160,IF(AND(M8<=50,'Crop Budget (Main)'!K14<=90,L14<=19),165,IF(AND(M8<=50,'Crop Budget (Main)'!K14>90,L14<=19),165,IF(AND(M8<=100,'Crop Budget (Main)'!K14<=50,L14<=19),115,IF(AND(M8<=100,'Crop Budget (Main)'!K14<=60,L14<=19),115,IF(AND(M8<=100,'Crop Budget (Main)'!K14<=70,L14<=19),120,IF(AND(M8<=100,'Crop Budget (Main)'!K14<=80,L14<=19),125,IF(AND(M8<=100,'Crop Budget (Main)'!K14<=90,L14<=19),130,IF(AND(M8<=100,'Crop Budget (Main)'!K14>90,L14<=19),130,IF(AND(M8<=150,'Crop Budget (Main)'!K14<=50,L14<=19),75,IF(AND(M8<=150,'Crop Budget (Main)'!K14<=60,L14<=19),80,IF(AND(M8<=150,'Crop Budget (Main)'!K14<=70,L14<=19),85,IF(AND(M8<=150,'Crop Budget (Main)'!K14<=80,L14<=19),85,IF(AND(M8<=150,'Crop Budget (Main)'!K14<=90,L14<=19),90,IF(AND(M8<=150,'Crop Budget (Main)'!K14>90,L14<=19),90,IF(AND(M8<=200,'Crop Budget (Main)'!K14<=50,L14<=19),40,IF(AND(M8<=200,'Crop Budget (Main)'!K14<=60,L14<=19),40,IF(AND(M8<=200,'Crop Budget (Main)'!K14<=70,L14<=19),45,IF(AND(M8<=200,'Crop Budget (Main)'!K14<=80,L14<=19),50,IF(AND(M8<=200,'Crop Budget (Main)'!K14<=90,L14<=19),50,IF(AND(M8<=200,'Crop Budget (Main)'!K14>90,L14<=19),50,IF(AND(M8<=100,'Crop Budget (Main)'!K14<=50,L14<=29),190,IF(AND(M8<=100,'Crop Budget (Main)'!K14<=60,L14<=29),190,IF(AND(M8<=100,'Crop Budget (Main)'!K14<=70,L14<=29),195,IF(AND(M8<=100,'Crop Budget (Main)'!K14<=80,L14<=29),200,IF(AND(M8<=100,'Crop Budget (Main)'!K14<=90,L14<=29),205,IF(AND(M8<=100,'Crop Budget (Main)'!K14>90,L14<=29),205,IF(AND(M8<=150,'Crop Budget (Main)'!K14<=50,L14<=29),140,IF(AND(M8<=150,'Crop Budget (Main)'!K14<=60,L14<=29),140,IF(AND(M8<=150,'Crop Budget (Main)'!K14<=70,L14<=29),145,IF(AND(M8<=150,'Crop Budget (Main)'!K14<=80,L14<=29),150,IF(AND(M8<=150,'Crop Budget (Main)'!K14<=90,L14<=29),155,IF(AND(M8<=150,'Crop Budget (Main)'!K14>90,L14<=29),155,IF(AND(M8<=200,'Crop Budget (Main)'!K14<=50,L14<=29),90,IF(AND(M8<=200,'Crop Budget (Main)'!K14<=60,L14<=29),90,IF(AND(M8<=200,'Crop Budget (Main)'!K14<=70,L14<=29),95,IF(AND(M8<=200,'Crop Budget (Main)'!K14<=80,L14<=29),100,IF(AND(M8<=200,'Crop Budget (Main)'!K14<=90,L14<=29),105,IF(AND(M8<=200,'Crop Budget (Main)'!K14>90,L14<=29),105"]
[30,150]
[30,200]
[30,250]
[30,360]
[30,380]
[30,400]

{"sheet":"Fertilizer Products & Pricing","index":5,"n_rows":118,"n_cols":42,"rows_kept":118,"cut":false,"hidden":false,"merged":[[29,37,30,41],[32,37,32,41],[33,41,34,41],[38,41,39,41],[44,37,46,41],[4,37,5,39],[1,1,1,9],[1,24,1,27],[1,19,1,22],[1,30,1,33]]}
[1,2,3,4,5,6,7,8,9,10,11,12,13,14,15,16,17,18]
[null,"Pounds per Material",null,null,null,null,null,null,null,null,null,null,null,null,null,null,null,"(Enter Below)",null,"Cost Per Lb Calculations",null,null,null,null,"Lbs Per Purchase Unit",null,null,null,"Total per Ton",null,"Percentage of Total"]
["Macronutrients","Nitrogen","Phosphorus","Potassium","Sulfur","Magnesium","Calcium","Zinc","Boron","Manganese","Copper","Molybdenum","Iron","Unit Size","App Units","Units/Pkg","Purchase Units","Price/Unit",null,"N","P","K","S",null,"N","P","K","S",null,"Inert Material","N","P","K","S","Inert Material"]
["None",null,null,null,null,null,null,null,null,null,null,null,null,null,null,1,"None",0]
["Ammonium polyphosphate (10-34-0)",{"$f":"N5*0.1","v":1.17},{"$f":"N5*0.34","v":3.9780000000000002},null,null,null,null,null,null,null,null,null,null,11.7,"gal",2000,"Tons",0,null,{"$f":"IFERROR($R5/($P5*(B5/$N5))*AE5,0)","v":0},{"$f":"IFERROR($R5/($P5*(C5/$N5))*AF5,0)","v":0},{"$f":"IFERROR($R5/($P5*(D5/$N5))*AG5,0)","v":0},{"$f":"IFERROR($R5/($P5*(E5/$N5))*AH5,0)","v":0},null,{"$f":"2000*(B5/$N5)","v":200},{"$f":"2000*(C5/$N5)","v":680},{"$f":"2000*(D5/$N5)","v":0},{"$f":"2000*(E5/$N5)","v":0},{"$f":"Y5+Z5+AA5+AB5","v":880},{"$f":"2000-AC5","v":1120},{"$f":"Y5/AC5","v":0.22727272727272727},{"$f":"Z5/AC5","v":0.77272727272727271},{"$f":"AA5/AC5","v":0},{"$f":"AB5/AC5","v":0},null,null,"Note:","All listed product values are based on nutrient analysis from product labels"]
["AMS (21-0-0-24S)",0.21,null,null,0.24,null,null,null,null,null,null,null,null,1,"lbs",2000,"Tons",0,null,0,0,0,0,null,{"$f":"2000*(B6/$N6)","v":420},{"$f":"2000*(C6/$N6)","v":0},{"$f":"2000*(D6/$N6)","v":0},{"$f":"2000*(E6/$N6)","v":480},900,{"$f":"2000-AC6","v":1100},{"$f":"Y6/AC6","v":0.46666666666666667},{"$f":"Z6/AC6","v":0},{"$f":"AA6/AC6","v":0},{"$f":"AB6/AC6","v":0.53333333333333333}]
["Anhydrous (82-0-0)",0.82,null,null,null,null,null,null,null,null,null,null,null,1,"lbs",2000,"Tons",0,null,0,0,0,0,null,1640,0,0,0,1640,360,1,0,0,0]
["Calcium Nitrate (16-0-0-19Ca)",0.16,null,null,null,null,0.19,null,null,null,null,null,null,1,"lbs",2000,"Tons",0]
["DAP (18-46-0)",0.18,0.46,null,null,null,null,null,null,null,null,null,null,1,"lbs",2000,"Tons",0,null,0,0,0,0,null,360,920,0,0,1280,720,0.28125,0.71875,0,0]
["ESN (44-0-0)",0.44,null,null,null,null,null,null,null,null,null,null,null,1,"lbs",2000,"Tons",0,null,0,0,0,0,null,880,0,0,0,880,1120,1,0,0,0]
["Gypsum (0-0-0-17S-21Ca)",null,null,null,0.17,null,0.21,null,null,null,null,null,null,1,"lbs",2000,"Tons",0,null,0,0,0,0,null,0,0,0,340,340,1660,0,0,0,1]
["K-Mag (0-0-22-11Mg-21S)",null,null,0.22,0.21,0.11,null,null,null,null,null,null,null,1,"lbs",2000,"Tons",0,null,0,0,0,0,null,0,0,440,420,860,1140,0,0,0.51162790697674421,0.48837209302325579]
["MAP (11-52-00)",0.11,0.52,null,null,null,null,null,null,null,null,null,null,1,"lbs",2000,"Tons",0,null,0,0,0,0,null,220,1040,0,0,1260,740,0.17460317460317459,0.82539682539682535,0,0]
["MESZ (12-40-0-10S-1Z)",0.12,0.4,null,0.1,null,null,0.01,null,null,null,null,null,1,"lbs",2000,"Tons",0,null,0,0,0,0,null,240,800,0,200,1240,760,0.19354838709677419,0.64516129032258063,0,0.16129032258064516]
["Potash (0-0-60)",null,null,0.6,null,null,null,null,null,null,null,null,null,1,"lbs",2000,"Tons",0,null,0,0,0,0,null,0,0,1200,0,1200,800,0,0,1,0]
["Potassium Acetate (0-0-24)",null,null,0.24,null,null,null,null,null,null,null,null,null,10.65,"gal",2000,"Gallons",0,null,0,0,0,0,null,0,0,45.070422535211264,0,45.070422535211264,1954.9295774647887,0,0,1,0]
["Potassium Sulphate (0-0-52-18S)",null,null,0.52,0.18,null,null,null,null,null,null,null,null,1,"lbs",2000,"Tons",0,null,0,0,0,0,null,0,0,1040,360,1400,600,0,0,0.74285714285714288,0.25714285714285712]
["SuperU (46-0-0)",0.46,null,null,null,null,null,null,null,null,null,null,null,1,"lbs",2000,"Tons",0]
["Thiosul (12-0-0-26)",{"$f":"N19*0.12","v":1.3247999999999998},null,null,{"$f":"N19*0.26","v":2.8704000000000001},null,null,null,null,null,null,null,null,11.04,"gal",2000,"Tons",0,null,0,0,0,0,null,239.99999999999997,0,0,520,760,1240,0.31578947368421051,0,0,0.68421052631578949]
["Triple Superphosphate (0-46-0)",null,0.46,null,null,null,null,null,null,null,null,null,null,1,"lbs",2000,"Tons",0,null,0,0,0,0,null,0,920,0,0,920,1080,0,1,0,0]
["UAN 28% (28-0-0)",{"$f":"N21*0.28","v":2.9876000000000005},null,null,null,null,null,null,null,null,null,null,null,10.67,"gal",2000,"Tons",0,null,0,0,0,0,null,560,0,0,0,560,1440,1,0,0,0]
["UAN 32% (32-0-0)",{"$f":"N22*0.32","v":3.5392000000000001},null,null,null,null,null,null,null,null,null,null,null,11.06,"gal",2000,"Tons",0,null,0,0,0,0,null,640,0,0,0,640,1360,1,0,0,0]
["Urea (46-0-0)",{"$f":"0.46","v":0.46},null,null,null,null,null,null,null,null,null,null,null,1,"lbs",2000,"Tons",0,null,0,0,0,0,null,920,0,0,0,920,1080,1,0,0,0]
["9-18-9 (liquid)",0.98730000000000007,1.9746000000000001,0.98730000000000007,null,null,null,null,null,null,null,null,null,1,"gal",1,"Gallons",0,null,0,0,0,0,null,1974.6000000000001,3949.2000000000003,1974.6000000000001,0,7898.4000000000005,-5898.4000000000005,0.25,0.5,0.25,0]
["6-24-6 (liquid)",0.66539999999999999,2.6616,0.66539999999999999,null,null,null,null,null,null,null,null,null,1,"gal",1,"Gallons",0,null,0,0,0,0,null,1330.8,5323.2,1330.8,0,7984.8,-5984.8,0.16666666666666666,0.66666666666666663,0.16666666666666666,0,null,null,null,"Manure Resources"]
["6-12-12 (dry)",0.06,0.12,0.12,null,null,null,null,null,null,null,null,null,1,"lbs",2000,"Tons",0,null,0,0,0,0,null,120,240,240,0,600,1400,0.2,0.4,0.4,0,null,null,null,"Manure application methods and nitrogen losses (University of Minnesota)"]
["5-10-5 (dry)",0.05,0.1,0.05,null,null,null,null,null,null,null,null,null,1,"lbs",2000,"Tons",0,null,0,0,0,0,null,100,200,100,0,400,1600,0.25,0.5,0.25,0,null,null,null,"Michigan GAAMPS",null,"←  See table A4 in Manure Mgmt & Utilization section for approximate manure values in place of nutrient analysis"]
["3-18-18 (liquid)",0.35099999999999998,2.1059999999999999,2.1059999999999999,null,null,null,null,null,null,null,null,null,1,"gal",1,"Gallons",0,null,0,0,0,0,null,702,4212,4212,0,9126,-7126,7.6923076923076927E-2,0.46153846153846156,0.46153846153846156,0]
["19-19-19 (dry)",0.19,0.19,0.19,null,null,null,null,null,null,null,null,null,1,"lbs",2000,"Tons",0,null,0,0,0,0,null,380,380,380,0,1140,860,0.33333333333333331,0.33333333333333331,0.33333333333333331,0,null,null,null,"Note:"]
["15-15-2 (liquid)",1.738,1.65,0.22,null,null,null,null,null,null,null,null,null,1,"gal",1,"Gallons",0,null,0,0,0,0,null,3476,3300,440,0,7216,-5216,0.48170731707317072,0.45731707317073172,6.097560975609756E-2,0,null,null,null,"If you are using manure or compost, for best results a nutrient analysis is highly recommended."]
["15-15-15 (dry)",0.15,0.15,0.15,null,null,null,null,null,null,null,null,null,1,"lbs",2000,"Tons",0,null,0,0,0,0,null,300,300,300,0,900,1100,0.33333333333333331,0.33333333333333331,0.33333333333333331,0]
["12-24-24 (dry)",0.12,0.24,0.24,null,null,null,null,null,null,null,null,null,1,"lbs",2000,"Tons",0,null,0,0,0,0,null,240,480,480,0,1200,800,0.2,0.4,0.4,0]
["10-10-10 (dry)",0.1,0.1,0.1,null,null,null,null,null,null,null,null,null,1,"lbs",2000,"Tons",0,null,0,0,0,0,null,200,200,200,0,600,1400,0.33333333333333331,0.33333333333333331,0.33333333333333331,0,null,null,null,"Manure Calculator"]
["Manure (solid)",{"$f":"AL37","v":29.4},{"$f":"AM37","v":52.5},39.9,5.6,null,null,null,null,null,null,null,null,2000,"Tons",2000,"Tons",0,"calculator →",0,0,0,0,null,29.4,52.5,39.9,5.6,127.4,1872.6,0.23076923076923075,0.41208791208791207,0.31318681318681318,4.3956043956043953E-2,null,null,null,"Manure (Solid)",null,null,null,"Days of Incorporation %"]
["Manure (liquid)",{"$f":"AL42","v":30.099999999999998},{"$f":"AM42","v":11.899999999999999},26.599999999999998,7,null,null,null,null,null,null,null,null,1,"1,000 gal",1,"Gallons",0,"calculator →",null,null,null,null,null,null,null,null,null,null,null,null,null,null,null,null,null,null,"N","P","K","S"]
["Compost",0,0,0,0,0,0,0,0,0,0,0,0,0,0,0,"Enter",0,null,0,0,0,0,null,{"$error":"#DIV/0!"},{"$error":"#DIV/0!"},{"$error":"#DIV/0!"},{"$error":"#DIV/0!"},{"$error":"#DIV/0!"},{"$error":"#DIV/0!"},{"$error":"#DIV/0!"},{"$error":"#DIV/0!"},{"$error":"#DIV/0!"},{"$error":"#DIV/0!"},null,null,null,42,75,57,8,"0-1 days"]
["Enter",0,0,0,0,0,0,0,0,0,0,0,0,0,0,0,"Enter",0,null,0,0,0,0,null,{"$error":"#DIV/0!"},{"$error":"#DIV/0!"},{"$error":"#DIV/0!"},{"$error":"#DIV/0!"},{"$error":"#DIV/0!"},{"$error":"#DIV/0!"},{"$error":"#DIV/0!"},{"$error":"#DIV/0!"},{"$error":"#DIV/0!"},{"$error":"#DIV/0!"},null,null,null,{"$f":"'Manure and Nutrient Credits'!E38","v":29.4},{"$f":"'Manure and Nutrient Credits'!F38","v":52.5},{"$f":"'Manure and Nutrient Credits'!G38","v":39.9},{"$f":"'Manure and Nutrient Credits'!H38","v":5.6},"←Incorporation Adjustment"]
["Enter",0,0,0,0,0,0,0,0,0,0,0,0,0,0,0,"Enter",0,null,0,0,0,0,null,{"$error":"#DIV/0!"},{"$error":"#DIV/0!"},{"$error":"#DIV/0!"},{"$error":"#DIV/0!"},{"$error":"#DIV/0!"},{"$error":"#DIV/0!"},{"$error":"#DIV/0!"},{"$error":"#DIV/0!"},{"$error":"#DIV/0!"},{"$error":"#DIV/0!"}]
["Enter",0,0,0,0,0,0,0,0,0,0,0,0,0,0,0,"Enter",0,null,0,0,0,0,null,{"$error":"#DIV/0!"},{"$error":"#DIV/0!"},{"$error":"#DIV/0!"},{"$error":"#DIV/0!"},{"$error":"#DIV/0!"},{"$error":"#DIV/0!"},{"$error":"#DIV/0!"},{"$error":"#DIV/0!"},{"$error":"#DIV/0!"},{"$error":"#DIV/0!"},null,null,null,"Manure (Liquid)",null,null,null,"Days of Incorporation %"]
["Enter",0,0,0,0,0,0,0,0,0,0,0,0,0,0,0,"Enter",0,null,0,0,0,0,null,{"$error":"#DIV/0!"},{"$error":"#DIV/0!"},{"$error":"#DIV/0!"},{"$error":"#DIV/0!"},{"$error":"#DIV/0!"},{"$error":"#DIV/0!"},{"$error":"#DIV/0!"},{"$error":"#DIV/0!"},{"$error":"#DIV/0!"},{"$error":"#DIV/0!"},null,null,null,"N","P","K","S"]
[null,null,null,null,null,null,null,null,null,null,null,null,null,null,null,null,null,null,null,null,null,null,null,null,null,null,null,null,null,null,null,null,null,null,null,null,null,43,17,38,10,"0-1 days"]
[null,null,null,null,null,null,null,null,null,null,null,null,null,null,null,null,null,null,null,null,null,null,null,null,null,null,null,null,null,null,null,null,null,null,null,null,null,{"$f":"'Manure and Nutrient Credits'!E41","v":30.099999999999998},{"$f":"'Manure and Nutrient Credits'!F41","v":11.899999999999999},{"$f":"'Manure and Nutrient Credits'!G41","v":26.599999999999998},{"$f":"'Manure and Nutrient Credits'!H41","v":7},"←Incorporation Adjustment"]
["Micronutrients","Nitrogen","Phosphorus","Potassium","Sulfur","Magnesium","Calcium","Zinc","Boron","Manganese","Copper","Molybdenum","Iron","Unit Size","App Units","Units/Pkg","Purchase Units","(Enter Below)"]
["None",null,null,null,null,null,null,null,null,null,null,null,null,null,null,1,"None",0]
["Boron (14.3%)",null,null,null,null,null,null,null,0.14299999999999999,null,null,null,null,1,"lbs",1,"Pound",0,null,null,null,null,null,null,null,null,null,null,null,null,null,null,null,null,null,null,null,"*Do NOT use manure values if already input on Nutrient Management tab.  This will double count values in fertilizer plan."]
["Zinc (35.5%)",null,null,null,null,null,null,0.35499999999999998,null,null,null,null,null,1,"lbs",1,"Pound",0]
["Zinc Liquid (12-0-0-12zn)",0.318,null,null,null,null,null,0.318,null,null,null,null,null,1,"qts",4,"Gallons",0]
["Boron Liquid (0-0-0-10B)",null,null,null,null,null,null,null,{"$f":"(11.12*0.25)*0.1","v":0.27799999999999997},null,null,null,null,1,"qts",4,"Gallons",0]
["Manganese Sulfate",null,null,null,0.18,null,null,null,null,0.33,null,null,null,1,"lbs",1,"Pound",0]
["Zinc Sulphate",35.5,null,null,0.185,null,null,null,null,null,null,null,null,1,"lbs",1,"Pound",0]
["Magnesium Sulfate",null,null,null,0.14000000000000001,9.0999999999999998E-2,null,null,null,null,null,null,null,1,"lbs",1,"Pound",0]
["Borosol 10",null,null,null,null,null,null,null,0.1,null,null,null,null,1,"gal",1,"Gallons",0]
["EDTA ZN (9%)",0.04,null,null,null,null,null,0.09,null,null,null,null,null,1,"gal",1,"Gallons",0]
["Enter",0,0,0,0,0,0,0,0,0,0,0,0,0,0,0,"Enter",0]
["Enter",0,0,0,0,0,0,0,0,0,0,0,0,0,0,0,"Enter",0]
["Enter",0,0,0,0,0,0,0,0,0,0,0,0,0,0,0,"Enter",0]
["Enter",0,0,0,0,0,0,0,0,0,0,0,0,0,0,0,"Enter",0]
[]
[]
["Lime","Nitrogen","Phosphorus","Potassium","Sulfur","Magnesium","Calcium","Zinc","Boron","Manganese","Copper","Molybdenum","Iron","Unit Size","App Units","Units/Pkg","Purchase Units","(Enter Below)"]
["None",null,null,null,null,null,null,null,null,null,null,null,null,null,null,1,"None",0]
["Pelleted Lime",null,null,null,null,0.03,0.22,null,null,null,null,null,null,1,"lbs",2000,"Ton",0]
["Sugar Beet Lime",0.55000000000000004,0.01,3.5999999999999999E-3,null,null,29,null,null,null,null,null,null,1,"tons",1,"Ton",0]
["Dolometic",null,null,null,null,11,42,null,null,null,null,null,null,1,"tons",1,"Ton",0]
["High Calcium",null,null,null,null,null,80,null,null,null,null,null,null,1,"tons",1,"Ton",0]
["Enter",0,0,0,0,0,0,0,0,0,0,0,0,0,0,0,"Enter",0]
["Enter",0,0,0,0,0,0,0,0,0,0,0,0,0,0,0,"Enter",0]
["Enter",0,0,0,0,0,0,0,0,0,0,0,0,0,0,0,"Enter",0]
["Enter",0,0,0,0,0,0,0,0,0,0,0,0,0,0,0,"Enter",0]
[]
[]
["Nitrogen Stabilizers",null,null,null,null,null,null,null,null,null,null,null,null,"Unit Size","Units","Units/Pkg","Purchase Units","(Enter Below)"]
["None",null,null,null,null,null,null,null,null,null,null,null,null,null,null,1,"None",0]
["N-Serve",null,null,null,null,null,null,null,null,null,null,null,null,1,"ozs",128,"Gallons",0]
["Instinct",null,null,null,null,null,null,null,null,null,null,null,null,1,"ozs",128,"Gallons",0]
["Factor",null,null,null,null,null,null,null,null,null,null,null,null,1,"qt/ton",4,"Gallons",0]
["Nutrisphere",null,null,null,null,null,null,null,null,null,null,null,null,1,"qt/ton",4,"Gallons",0]
["Agrotain",null,null,null,null,null,null,null,null,null,null,null,null,1,"qt/ton",4,"Gallons",0]
["Enter",null,null,null,null,null,null,null,null,null,null,null,null,0,0,0,"Enter",0]
["Enter",null,null,null,null,null,null,null,null,null,null,null,null,0,0,0,"Enter",0]
["Enter",null,null,null,null,null,null,null,null,null,null,null,null,0,0,0,"Enter",0]
["Enter",null,null,null,null,null,null,null,null,null,null,null,null,0,0,0,"Enter",0]
[]
["Foliars","Nitrogen","Phosphorus","Potassium","Sulfur","Magnesium","Calcium","Zinc","Boron","Manganese","Copper","Molybdenum","Iron","Unit Size","App Units","Units/Pkg","Purchase Units","(Enter Below)"]
["None",null,null,null,null,null,null,null,null,null,null,null,null,null,null,1,"None",0]
["0-0-0-4Ca (Sysstem-Cal)",null,null,null,null,null,0.4,null,null,null,null,null,null,10.01,"qts",4,"Gallons",0]
["0-0-0-2Ca (Calexin)",null,null,null,null,null,0.18,null,null,null,null,null,null,9.1300000000000008,"pts",8,"Gallons",0]
["0-0-15 (Teca Fruit)",null,null,1.73,null,null,null,null,null,null,null,null,null,11.5,"gal",1,"Gallons",0]
["0-0-24 (ReKovery Fruit)",null,null,2.61,null,null,null,null,null,null,null,null,null,10.86,"qts",4,"Gallons",0]
["0-0-26 (Signature StarPhite)",null,null,3.22,null,null,null,null,null,null,null,null,null,12.4,"pts",8,"Gallons",0]
["0-21-26 (Carbol Optifruit)",null,2.63,3.26,null,null,null,null,null,null,null,null,null,12.53,"qts",4,"Gallons",0]
["13-8-8-17B (Perfection Fruit & Veg Foliar",1.42,0.88,0.88,null,null,null,null,1.86,null,null,null,null,10.94,"gal",1,"Gallons",0]
["15-0-7 (SizeN)",1.62,null,0.76,null,null,null,null,null,null,null,null,null,10.8,"qts",4,"Gallons",0]
["26-0-0 (N-PACT)",2.6,null,null,null,null,null,null,null,null,null,null,null,10.01,"qts",4,"Gallons",0]
["3-3-7-1Z-0.5Mn (Maxifruit)",0.3,0.3,0.7,null,null,null,0.01,null,5.0000000000000001E-3,null,null,null,10.02,"pts",8,"Gallons",0]
["Enter",0,0,0,0,0,0,0,0,0,0,0,0,0,0,0,"Enter",0]
["Enter",0,0,0,0,0,0,0,0,0,0,0,0,0,0,0,"Enter",0]
["Enter",0,0,0,0,0,0,0,0,0,0,0,0,0,0,0,"Enter",0]
["Enter",0,0,0,0,0,0,0,0,0,0,0,0,0,"Enter",0,"Enter",0]
["Enter",0,0,0,0,0,0,0,0,0,0,0,0,0,"Enter",0,"Enter",0]
["Enter",0,0,0,0,0,0,0,0,0,0,0,0,0,"Enter",0,"Enter",0]
["Enter",0,0,0,0,0,0,0,0,0,0,0,0,0,"Enter",0,"Enter",0]
["Enter",0,0,0,0,0,0,0,0,0,0,0,0,0,0,0,"Enter",0]
[null,null,null,null,null,null,null,null,null,null,null,null,null,null,0]
[null,null,null,null,null,null,null,null,null,null,null,null,null,null,0]
["Fertigation","Nitrogen","Phosphorus","Potassium","Sulfur","Magnesium","Calcium","Zinc","Boron","Manganese","Copper","Molybdenum","Iron","Unit Size","App Units","Units/Pkg","Purchase Units","(Enter Below)"]
["None",null,null,null,null,null,null,null,null,null,null,null,null,null,null,1,"None",0]
["UAN 28% (28-0-0)",{"$f":"N108*0.28","v":2.9876000000000005},null,null,null,null,null,null,null,null,null,null,null,10.67,"gal",2000,"Tons",0]
["Urea (46-0-0) Low Biuret",0.46,null,null,null,null,null,null,null,null,null,null,null,1,"lb",1,"Pound",0]
["K-Mag (0-29-5-4.1Mg) liquid",null,3.49,0.6,null,0.49,null,null,null,null,null,null,null,12.05,"gal",1,"Gallons",0]
["Enter",0,0,0,0,0,0,0,0,0,0,0,0,0,0,0,"Enter",0]
["Enter",0,0,0,0,0,0,0,0,0,0,0,0,0,0,0,"Enter",0]
["Enter",0,0,0,0,0,0,0,0,0,0,0,0,0,0,0,"Enter",0]
["Enter",0,0,0,0,0,0,0,0,0,0,0,0,0,0,0,"Enter",0]
["Enter",0,0,0,0,0,0,0,0,0,0,0,0,0,0,0,"Enter",0]
["Enter",0,0,0,0,0,0,0,0,0,0,0,0,0,"Enter",0,"Enter",0]
["Enter",0,0,0,0,0,0,0,0,0,0,0,0,0,"Enter",0,"Enter",0]
["Enter",0,0,0,0,0,0,0,0,0,0,0,0,0,"Enter",0,"Enter",0]

{"sheet":"Manure and Nutrient Credits","index":6,"n_rows":41,"n_cols":12,"rows_kept":41,"cut":false,"hidden":true,"merged":[]}
[]
[]
["Select Previous Crop",0,null,null,null,null,null,null,null,null,null,"Select Option Below"]
["Alfalfa, established",40,null,null,null,null,null,null,null,null,null,"Nutrient Removal"]
["Alfalfa, seeding",40,null,null,null,null,null,null,null,null,null,"Soil Test Based Recs"]
["Clover, established",40]
["Clover, seeding",20]
["Trefoil, established",40]
["Barley + legume",30]
["Oats + legume",30]
["Wheat + legume",30]
["Clover-grass hay",40]
["Grass hay",40]
["Dry edible beans",20]
["Soybeans",30]
["CRP land",40]
[]
[]
[]
[]
[]
[]
[]
[]
["Days Before Incorporation","Retention Factor",null,"Manure Nitrogen Multiplier (corn)"]
["----",1,null,"Factor","Nitrogen","Phosphorus","Potassium","Sulfur"]
["0-1 days",0.7,null,{"$f":"VLOOKUP('Nutrient Management'!D37,'Manure and Nutrient Credits'!A26:B30,2,FALSE)","v":1},{"$f":"$D$27*'Nutrient Management'!B34","v":0},{"$f":"$D$27*'Nutrient Management'!C34","v":0},{"$f":"$D$27*'Nutrient Management'!D34","v":0},{"$f":"$D$27*'Nutrient Management'!B36","v":0}]
["2-3 days",0.4,null,"Manure Nitrogen Multiplier (soybeans)"]
["4-7 days",0.2]
[">7 days",0.1,null,{"$f":"VLOOKUP('Nutrient Management'!H37,A26:B30,2,FALSE)","v":1},{"$f":"$D$30*'Nutrient Management'!F34","v":0},{"$f":"$D$30*'Nutrient Management'!G34","v":0},{"$f":"$D$30*'Nutrient Management'!H34","v":0},{"$f":"$D$30*'Nutrient Management'!F36","v":0}]
[null,null,null,"Manure Nitrogen Multiplier (wheat)"]
[]
[null,null,null,{"$f":"VLOOKUP('Nutrient Management'!L37,A26:B30,2,FALSE)","v":1},{"$f":"$D$33*'Nutrient Management'!J34","v":0},{"$f":"$D$33*'Nutrient Management'!K34","v":0},{"$f":"$D$33*'Nutrient Management'!L34","v":0},{"$f":"$D$33*'Nutrient Management'!J36","v":0}]
[]
["Fertilizer Products & Pricing"]
["Days Before Incorporation","Retention Factor",null,"Manure (solid)"]
["----",1,null,"Factor","Nitrogen","Phosphorus","Potassium","Sulfur"]
["0-1 days",0.7,null,{"$f":"VLOOKUP('Fertilizer Products & Pricing'!AP36,A37:B41,2,FALSE)","v":0.7},{"$f":"$D$38*'Fertilizer Products & Pricing'!AL36","v":29.4},{"$f":"$D$38*'Fertilizer Products & Pricing'!AM36","v":52.5},{"$f":"$D$38*'Fertilizer Products & Pricing'!AN36","v":39.9},{"$f":"$D$38*'Fertilizer Products & Pricing'!AO36","v":5.6}]
["2-3 days",0.4,null,"Manure (liquid)"]
["4-7 days",0.2]
[">7 days",0.1,null,{"$f":"VLOOKUP('Fertilizer Products & Pricing'!AP41,A37:B41,2,FALSE)","v":0.7},{"$f":"$D$41*'Fertilizer Products & Pricing'!AL41","v":30.099999999999998},{"$f":"$D$41*'Fertilizer Products & Pricing'!AM41","v":11.899999999999999},{"$f":"$D$41*'Fertilizer Products & Pricing'!AN41","v":26.599999999999998},{"$f":"$D$41*'Fertilizer Products & Pricing'!AO41","v":7}]

{"sheet":"Fertilizer Plan (Fruit 1)","index":7,"n_rows":79,"n_cols":35,"rows_kept":79,"cut":false,"hidden":false,"merged":[[39,12,39,22],[52,24,52,34],[52,0,52,10],[52,12,52,22],[39,0,39,10],[21,23,22,23],[0,0,0,10],[22,0,22,10],[2,0,2,10],[1,0,1,10],[1,12,1,22],[0,12,0,22],[2,12,2,22],[22,12,22,22],[0,24,0,34],[2,24,2,34],[22,24,22,34],[39,24,39,34],[1,24,1,34],[68,8,68,10],[69,32,69,34],[69,20,69,22],[69,5,69,6],[68,16,68,18],[69,17,69,18],[68,28,68,30],[69,29,69,30],[68,32,68,34],[69,8,69,10],[68,20,68,22],[68,4,68,6]]}
[{"$f":"'Nutrient Management'!F2","v":"Enter Crop Name"},null,null,null,null,null,null,null,null,null,null,null,{"$f":"A1","v":"Enter Crop Name"},null,null,null,null,null,null,null,null,null,null,null,{"$f":"A1","v":"Enter Crop Name"}]
["Comparison Plan 1",null,null,null,null,null,null,null,null,null,null,null,"Comparison Plan 2",null,null,null,null,null,null,null,null,null,null,null,"Comparison Plan 3"]
["1st Application (i.e., Pre-Plant or Broadcast Fertilizer)",null,null,null,null,null,null,null,null,null,null,null,"1st Application (i.e., Pre-Plant or Broadcast Fertilizer)",null,null,null,null,null,null,null,null,null,null,null,"1st Application (i.e., Pre-Plant or Broadcast Fertilizer)"]
["Fertilizer Source","Purchase Units","Package Price (Gals, Lbs, etc.)","Units/Pkg","Rate/Acre","Units","Cost",null,null,null,null,null,"Fertilizer Source","Purchase Units","Package Price (Gals, Lbs, etc.)","Units/Pkg","Rate/Acre","Units","Cost",null,null,null,null,null,"Fertilizer Source","Purchase Units","Package Price (Gals, Lbs, etc.)","Units/Pkg","Rate/Acre","Units","Cost"]
["Macronutrients (drop down menu)",null,null,null,"(Enter Below)",null,null,null,"N","P","K",null,"Macronutrients (drop down menu)",null,null,null,"(Enter Below)",null,null,null,"N","P","K",null,"Macronutrients (drop down menu)",null,null,null,"(Enter Below)",null,null,null,"N","P","K"]
["None",{"$f":"VLOOKUP(A6,Macronutrients,18,FALSE)","v":0},{"$f":"VLOOKUP(A6,Macronutrients,18,FALSE)","v":0},{"$f":"VLOOKUP(A6,Macronutrients,16,FALSE)","v":1},0,{"$f":"VLOOKUP(A6,Macronutrients,15,FALSE)","v":0},{"$f":"(E6*VLOOKUP(A6,Macronutrients,14,FALSE)/D6)*C6","v":0},null,{"$f":"VLOOKUP(A6,Macronutrients,2,FALSE)*E6+VLOOKUP(A7,Macronutrients,2,FALSE)*E7+VLOOKUP(A8,Macronutrients,2,FALSE)*E8+VLOOKUP(A9,Macronutrients,2,FALSE)*E9+VLOOKUP(A10,Macronutrients,2,FALSE)*E10+VLOOKUP(A11,Macronutrients,2,FALSE)*E11+VLOOKUP(A14,Micronutrients,2,FALSE)*E14+VLOOKUP(A15,Micronutrients,2,FALSE)*E15+VLOOKUP(A16,Micronutrients,2,FALSE)*E16+VLOOKUP(A17,Micronutrients,2,FALSE)*E17","v":0},{"$f":"VLOOKUP(A6,Macronutrients,3,FALSE)*E6+VLOOKUP(A7,Macronutrients,3,FALSE)*E7+VLOOKUP(A8,Macronutrients,3,FALSE)*E8+VLOOKUP(A9,Macronutrients,3,FALSE)*E9+VLOOKUP(A10,Macronutrients,3,FALSE)*E10+VLOOKUP(A11,Macronutrients,3,FALSE)*E11+VLOOKUP(A14,Micronutrients,3,FALSE)*E14+VLOOKUP(A15,Micronutrients,3,FALSE)*E15+VLOOKUP(A16,Micronutrients,3,FALSE)*E16+VLOOKUP(A17,Micronutrients,3,FALSE)*E17","v":0},{"$f":"VLOOKUP(A6,Macronutrients,4,FALSE)*E6+VLOOKUP(A7,Macronutrients,4,FALSE)*E7+VLOOKUP(A8,Macronutrients,4,FALSE)*E8+VLOOKUP(A9,Macronutrients,4,FALSE)*E9+VLOOKUP(A10,Macronutrients,4,FALSE)*E10+VLOOKUP(A11,Macronutrients,4,FALSE)*E11+VLOOKUP(A14,Micronutrients,4,FALSE)*E14+VLOOKUP(A15,Micronutrients,4,FALSE)*E15+VLOOKUP(A16,Micronutrients,4,FALSE)*E16+VLOOKUP(A17,Micronutrients,4,FALSE)*E17","v":0},null,"None",{"$f":"VLOOKUP(M6,Macronutrients,14,FALSE)","v":0},{"$f":"VLOOKUP(M6,Macronutrients,18,FALSE)","v":0},{"$f":"VLOOKUP(M6,Macronutrients,16,FALSE)","v":1},0,{"$f":"VLOOKUP(M6,Macronutrients,15,FALSE)","v":0},{"$f":"(Q6*VLOOKUP(M6,Macronutrients,14,FALSE)/P6)*O6","v":0},null,{"$f":"VLOOKUP(M6,Macronutrients,2,FALSE)*Q6+VLOOKUP(M7,Macronutrients,2,FALSE)*Q7+VLOOKUP(M8,Macronutrients,2,FALSE)*Q8+VLOOKUP(M9,Macronutrients,2,FALSE)*Q9+VLOOKUP(M10,Macronutrients,2,FALSE)*Q10+VLOOKUP(M11,Macronutrients,2,FALSE)*Q11+VLOOKUP(M14,Micronutrients,2,FALSE)*Q14+VLOOKUP(M15,Micronutrients,2,FALSE)*Q15+VLOOKUP(M16,Micronutrients,2,FALSE)*Q16+VLOOKUP(M17,Micronutrients,2,FALSE)*Q17","v":0},{"$f":"VLOOKUP(M6,Macronutrients,3,FALSE)*Q6+VLOOKUP(M7,Macronutrients,3,FALSE)*Q7+VLOOKUP(M8,Macronutrients,3,FALSE)*Q8+VLOOKUP(M9,Macronutrients,3,FALSE)*Q9+VLOOKUP(M10,Macronutrients,3,FALSE)*Q10+VLOOKUP(M11,Macronutrients,3,FALSE)*Q11+VLOOKUP(M14,Micronutrients,3,FALSE)*Q14+VLOOKUP(M15,Micronutrients,3,FALSE)*Q15+VLOOKUP(M16,Micronutrients,3,FALSE)*Q16+VLOOKUP(M17,Micronutrients,3,FALSE)*Q17","v":0},{"$f":"VLOOKUP(M6,Macronutrients,4,FALSE)*Q6+VLOOKUP(M7,Macronutrients,4,FALSE)*Q7+VLOOKUP(M8,Macronutrients,4,FALSE)*Q8+VLOOKUP(M9,Macronutrients,4,FALSE)*Q9+VLOOKUP(M10,Macronutrients,4,FALSE)*Q10+VLOOKUP(M11,Macronutrients,4,FALSE)*Q11+VLOOKUP(M14,Micronutrients,4,FALSE)*Q14+VLOOKUP(M15,Micronutrients,4,FALSE)*Q15+VLOOKUP(M16,Micronutrients,4,FALSE)*Q16+VLOOKUP(M17,Micronutrients,4,FALSE)*Q17","v":0},null,"None",{"$f":"VLOOKUP(Y6,Macronutrients,14,FALSE)","v":0},{"$f":"VLOOKUP(Y6,Macronutrients,18,FALSE)","v":0},{"$f":"VLOOKUP(Y6,Macronutrients,16,FALSE)","v":1},0,{"$f":"VLOOKUP(Y6,Macronutrients,15,FALSE)","v":0},{"$f":"(AC6*VLOOKUP(Y6,Macronutrients,14,FALSE)/AB6)*AA6","v":0},null,{"$f":"VLOOKUP(Y6,Macronutrients,2,FALSE)*AC6+VLOOKUP(Y7,Macronutrients,2,FALSE)*AC7+VLOOKUP(Y8,Macronutrients,2,FALSE)*AC8+VLOOKUP(Y9,Macronutrients,2,FALSE)*AC9+VLOOKUP(Y10,Macronutrients,2,FALSE)*AC10+VLOOKUP(Y11,Macronutrients,2,FALSE)*AC11+VLOOKUP(Y14,Micronutrients,2,FALSE)*AC14+VLOOKUP(Y15,Micronutrients,2,FALSE)*AC15+VLOOKUP(Y16,Micronutrients,2,FALSE)*AC16+VLOOKUP(Y17,Micronutrients,2,FALSE)*AC17","v":0},{"$f":"VLOOKUP(Y6,Macronutrients,3,FALSE)*AC6+VLOOKUP(Y7,Macronutrients,3,FALSE)*AC7+VLOOKUP(Y8,Macronutrients,3,FALSE)*AC8+VLOOKUP(Y9,Macronutrients,3,FALSE)*AC9+VLOOKUP(Y10,Macronutrients,3,FALSE)*AC10+VLOOKUP(Y11,Macronutrients,3,FALSE)*AC11+VLOOKUP(Y14,Micronutrients,3,FALSE)*AC14+VLOOKUP(Y15,Micronutrients,3,FALSE)*AC15+VLOOKUP(Y16,Micronutrients,3,FALSE)*AC16+VLOOKUP(Y17,Micronutrients,3,FALSE)*AC17","v":0},{"$f":"VLOOKUP(Y6,Macronutrients,4,FALSE)*AC6+VLOOKUP(Y7,Macronutrients,4,FALSE)*AC7+VLOOKUP(Y8,Macronutrients,4,FALSE)*AC8+VLOOKUP(Y9,Macronutrients,4,FALSE)*AC9+VLOOKUP(Y10,Macronutrients,4,FALSE)*AC10+VLOOKUP(Y11,Macronutrients,4,FALSE)*AC11+VLOOKUP(Y14,Micronutrients,4,FALSE)*AC14+VLOOKUP(Y15,Micronutrients,4,FALSE)*AC15+VLOOKUP(Y16,Micronutrients,4,FALSE)*AC16+VLOOKUP(Y17,Micronutrients,4,FALSE)*AC17","v":0}]
["None",{"$f":"VLOOKUP(A7,Macronutrients,18,FALSE)","v":0},0,1,0,0,0,null,null,null,null,null,"None",0,0,1,0,0,0,null,null,null,null,null,"None",0,0,1,0,0,0]
["None",{"$f":"VLOOKUP(A8,Macronutrients,14,FALSE)","v":0},0,1,0,0,0,null,"S","Ca","Mg",null,"None",0,0,1,0,0,0,null,"S","Ca","Mg",null,"None",0,0,1,0,0,0,null,"S","Ca","Mg"]
["None",0,0,1,0,0,0,null,{"$f":"VLOOKUP(A6,Macronutrients,5,FALSE)*E6+VLOOKUP(A7,Macronutrients,5,FALSE)*E7+VLOOKUP(A8,Macronutrients,5,FALSE)*E8+VLOOKUP(A9,Macronutrients,5,FALSE)*E9+VLOOKUP(A10,Macronutrients,5,FALSE)*E10+VLOOKUP(A11,Macronutrients,5,FALSE)*E11+VLOOKUP(A14,Micronutrients,5,FALSE)*E14+VLOOKUP(A15,Micronutrients,5,FALSE)*E15+VLOOKUP(A16,Micronutrients,5,FALSE)*E16+VLOOKUP(A17,Micronutrients,5,FALSE)*E17+VLOOKUP(A20,Lime,5,FALSE)*E20","v":0},{"$f":"VLOOKUP(A6,Macronutrients,7,FALSE)*E6+VLOOKUP(A7,Macronutrients,7,FALSE)*E7+VLOOKUP(A8,Macronutrients,7,FALSE)*E8+VLOOKUP(A9,Macronutrients,7,FALSE)*E9+VLOOKUP(A10,Macronutrients,7,FALSE)*E10+VLOOKUP(A11,Macronutrients,7,FALSE)*E11+VLOOKUP(A14,Micronutrients,7,FALSE)*E14+VLOOKUP(A15,Micronutrients,7,FALSE)*E15+VLOOKUP(A16,Micronutrients,7,FALSE)*E16+VLOOKUP(A17,Micronutrients,7,FALSE)*E17+VLOOKUP(A20,Lime,7,FALSE)*E20","v":0},{"$f":"VLOOKUP($A6,Macronutrients,6,FALSE)*$E$6+VLOOKUP($A7,Macronutrients,6,FALSE)*$E$7+VLOOKUP($A8,Macronutrients,6,FALSE)*$E$8+VLOOKUP($A9,Macronutrients,6,FALSE)*$E$9+VLOOKUP($A10,Macronutrients,6,FALSE)*$E$10+VLOOKUP($A11,Macronutrients,6,FALSE)*$E$11+VLOOKUP($A14,Micronutrients,6,FALSE)*$E$14+VLOOKUP($A15,Micronutrients,6,FALSE)*E15+VLOOKUP($A16,Micronutrients,6,FALSE)*$E$16+VLOOKUP($A17,Micronutrients,6,FALSE)*$E$17+VLOOKUP($A20,Lime,6,FALSE)*E20","v":0},null,"None",0,0,1,0,0,0,null,{"$f":"VLOOKUP(M6,Macronutrients,5,FALSE)*Q6+VLOOKUP(M7,Macronutrients,5,FALSE)*Q7+VLOOKUP(M8,Macronutrients,5,FALSE)*Q8+VLOOKUP(M9,Macronutrients,5,FALSE)*Q9+VLOOKUP(M10,Macronutrients,5,FALSE)*Q10+VLOOKUP(M11,Macronutrients,5,FALSE)*Q11+VLOOKUP(M14,Micronutrients,5,FALSE)*Q14+VLOOKUP(M15,Micronutrients,5,FALSE)*Q15+VLOOKUP(M16,Micronutrients,5,FALSE)*Q16+VLOOKUP(M17,Micronutrients,5,FALSE)*Q17+VLOOKUP(M20,Lime,5,FALSE)*Q20","v":0},{"$f":"VLOOKUP(M6,Macronutrients,7,FALSE)*Q6+VLOOKUP(M7,Macronutrients,7,FALSE)*Q7+VLOOKUP(M8,Macronutrients,7,FALSE)*Q8+VLOOKUP(M9,Macronutrients,7,FALSE)*Q9+VLOOKUP(M10,Macronutrients,7,FALSE)*Q10+VLOOKUP(M11,Macronutrients,7,FALSE)*Q11+VLOOKUP(M14,Micronutrients,7,FALSE)*Q14+VLOOKUP(M15,Micronutrients,7,FALSE)*Q15+VLOOKUP(M16,Micronutrients,7,FALSE)*Q16+VLOOKUP(M17,Micronutrients,7,FALSE)*Q17+VLOOKUP(M20,Lime,7,FALSE)*Q20","v":0},{"$f":"VLOOKUP($A6,Macronutrients,6,FALSE)*$E$6+VLOOKUP($A7,Macronutrients,6,FALSE)*$E$7+VLOOKUP($A8,Macronutrients,6,FALSE)*$E$8+VLOOKUP($A9,Macronutrients,6,FALSE)*$E$9+VLOOKUP($A10,Macronutrients,6,FALSE)*$E$10+VLOOKUP($A11,Macronutrients,6,FALSE)*$E$11+VLOOKUP($A14,Micronutrients,6,FALSE)*$E$14+VLOOKUP($A15,Micronutrients,6,FALSE)*Q15+VLOOKUP($A16,Micronutrients,6,FALSE)*$E$16+VLOOKUP($A17,Micronutrients,6,FALSE)*$E$17+VLOOKUP($A20,Lime,6,FALSE)*Q20","v":0},null,"None",0,0,1,0,0,0,null,{"$f":"VLOOKUP(Y6,Macronutrients,5,FALSE)*AC6+VLOOKUP(Y7,Macronutrients,5,FALSE)*AC7+VLOOKUP(Y8,Macronutrients,5,FALSE)*AC8+VLOOKUP(Y9,Macronutrients,5,FALSE)*AC9+VLOOKUP(Y10,Macronutrients,5,FALSE)*AC10+VLOOKUP(Y11,Macronutrients,5,FALSE)*AC11+VLOOKUP(Y14,Micronutrients,5,FALSE)*AC14+VLOOKUP(Y15,Micronutrients,5,FALSE)*AC15+VLOOKUP(Y16,Micronutrients,5,FALSE)*AC16+VLOOKUP(Y17,Micronutrients,5,FALSE)*AC17+VLOOKUP(Y20,Lime,5,FALSE)*AC20","v":0},{"$f":"VLOOKUP(Y6,Macronutrients,7,FALSE)*AC6+VLOOKUP(Y7,Macronutrients,7,FALSE)*AC7+VLOOKUP(Y8,Macronutrients,7,FALSE)*AC8+VLOOKUP(Y9,Macronutrients,7,FALSE)*AC9+VLOOKUP(Y10,Macronutrients,7,FALSE)*AC10+VLOOKUP(Y11,Macronutrients,7,FALSE)*AC11+VLOOKUP(Y14,Micronutrients,7,FALSE)*AC14+VLOOKUP(Y15,Micronutrients,7,FALSE)*AC15+VLOOKUP(Y16,Micronutrients,7,FALSE)*AC16+VLOOKUP(Y17,Micronutrients,7,FALSE)*AC17+VLOOKUP(Y20,Lime,7,FALSE)*AC20","v":0},{"$f":"VLOOKUP($A6,Macronutrients,6,FALSE)*$E$6+VLOOKUP($A7,Macronutrients,6,FALSE)*$E$7+VLOOKUP($A8,Macronutrients,6,FALSE)*$E$8+VLOOKUP($A9,Macronutrients,6,FALSE)*$E$9+VLOOKUP($A10,Macronutrients,6,FALSE)*$E$10+VLOOKUP($A11,Macronutrients,6,FALSE)*$E$11+VLOOKUP($A14,Micronutrients,6,FALSE)*$E$14+VLOOKUP($A15,Micronutrients,6,FALSE)*AC15+VLOOKUP($A16,Micronutrients,6,FALSE)*$E$16+VLOOKUP($A17,Micronutrients,6,FALSE)*$E$17+VLOOKUP($A20,Lime,6,FALSE)*AC20","v":0}]
["None",0,0,1,0,0,0,null,null,null,null,null,"None",0,0,1,0,0,0,null,null,null,null,null,"None",0,0,1,0,0,0]
["None",0,0,1,0,0,0,null,"Z","B","Mn",null,"None",0,0,1,0,0,0,null,"Z","B","Mn",null,"None",0,0,1,0,0,0,null,"Z","B","Mn"]
[null,null,null,null,null,null,null,null,{"$f":"VLOOKUP(A6,Macronutrients,8,FALSE)*E6+VLOOKUP(A7,Macronutrients,8,FALSE)*E7+VLOOKUP(A8,Macronutrients,8,FALSE)*E8+VLOOKUP(A9,Macronutrients,8,FALSE)*E9+VLOOKUP(A10,Macronutrients,8,FALSE)*E10+VLOOKUP(A11,Macronutrients,8,FALSE)*E11+VLOOKUP(A14,Micronutrients,8,FALSE)*E14+VLOOKUP(A15,Micronutrients,8,FALSE)*E15+VLOOKUP(A16,Micronutrients,8,FALSE)*E16+VLOOKUP(A17,Micronutrients,8,FALSE)*E17+VLOOKUP(A20,Lime,8,FALSE)*E20","v":0},{"$f":"VLOOKUP(A6,Macronutrients,9,FALSE)*E6+VLOOKUP(A7,Macronutrients,9,FALSE)*E7+VLOOKUP(A8,Macronutrients,9,FALSE)*E8+VLOOKUP(A9,Macronutrients,9,FALSE)*E9+VLOOKUP(A10,Macronutrients,9,FALSE)*E10+VLOOKUP(A11,Macronutrients,9,FALSE)*E11+VLOOKUP(A14,Micronutrients,9,FALSE)*E14+VLOOKUP(A15,Micronutrients,9,FALSE)*E15+VLOOKUP(A16,Micronutrients,9,FALSE)*E16+VLOOKUP(A17,Micronutrients,9,FALSE)*E17+VLOOKUP(A20,Lime,9,FALSE)*E20","v":0},{"$f":"VLOOKUP(A6,Macronutrients,10,FALSE)*E6+VLOOKUP(A7,Macronutrients,10,FALSE)*E7+VLOOKUP(A8,Macronutrients,10,FALSE)*E8+VLOOKUP(A9,Macronutrients,10,FALSE)*E9+VLOOKUP(A10,Macronutrients,10,FALSE)*E10+VLOOKUP(A11,Macronutrients,10,FALSE)*E11+VLOOKUP(A14,Micronutrients,10,FALSE)*E14+VLOOKUP(A15,Micronutrients,10,FALSE)*E15+VLOOKUP(A16,Micronutrients,10,FALSE)*E16+VLOOKUP(A17,Micronutrients,10,FALSE)*E17+VLOOKUP(A20,Lime,10,FALSE)*E20","v":0},null,null,null,null,null,null,null,null,null,{"$f":"VLOOKUP(M6,Macronutrients,8,FALSE)*Q6+VLOOKUP(M7,Macronutrients,8,FALSE)*Q7+VLOOKUP(M8,Macronutrients,8,FALSE)*Q8+VLOOKUP(M9,Macronutrients,8,FALSE)*Q9+VLOOKUP(M10,Macronutrients,8,FALSE)*Q10+VLOOKUP(M11,Macronutrients,8,FALSE)*Q11+VLOOKUP(M14,Micronutrients,8,FALSE)*Q14+VLOOKUP(M15,Micronutrients,8,FALSE)*Q15+VLOOKUP(M16,Micronutrients,8,FALSE)*Q16+VLOOKUP(M17,Micronutrients,8,FALSE)*Q17+VLOOKUP(M20,Lime,8,FALSE)*Q20","v":0},{"$f":"VLOOKUP(M6,Macronutrients,9,FALSE)*Q6+VLOOKUP(M7,Macronutrients,9,FALSE)*Q7+VLOOKUP(M8,Macronutrients,9,FALSE)*Q8+VLOOKUP(M9,Macronutrients,9,FALSE)*Q9+VLOOKUP(M10,Macronutrients,9,FALSE)*Q10+VLOOKUP(M11,Macronutrients,9,FALSE)*Q11+VLOOKUP(M14,Micronutrients,9,FALSE)*Q14+VLOOKUP(M15,Micronutrients,9,FALSE)*Q15+VLOOKUP(M16,Micronutrients,9,FALSE)*Q16+VLOOKUP(M17,Micronutrients,9,FALSE)*Q17+VLOOKUP(M20,Lime,9,FALSE)*Q20","v":0},{"$f":"VLOOKUP(M6,Macronutrients,10,FALSE)*Q6+VLOOKUP(M7,Macronutrients,10,FALSE)*Q7+VLOOKUP(M8,Macronutrients,10,FALSE)*Q8+VLOOKUP(M9,Macronutrients,10,FALSE)*Q9+VLOOKUP(M10,Macronutrients,10,FALSE)*Q10+VLOOKUP(M11,Macronutrients,10,FALSE)*Q11+VLOOKUP(M14,Micronutrients,10,FALSE)*Q14+VLOOKUP(M15,Micronutrients,10,FALSE)*Q15+VLOOKUP(M16,Micronutrients,10,FALSE)*Q16+VLOOKUP(M17,Micronutrients,10,FALSE)*Q17+VLOOKUP(M20,Lime,10,FALSE)*Q20","v":0},null,null,null,null,null,null,null,null,null,{"$f":"VLOOKUP(Y6,Macronutrients,8,FALSE)*AC6+VLOOKUP(Y7,Macronutrients,8,FALSE)*AC7+VLOOKUP(Y8,Macronutrients,8,FALSE)*AC8+VLOOKUP(Y9,Macronutrients,8,FALSE)*AC9+VLOOKUP(Y10,Macronutrients,8,FALSE)*AC10+VLOOKUP(Y11,Macronutrients,8,FALSE)*AC11+VLOOKUP(Y14,Micronutrients,8,FALSE)*AC14+VLOOKUP(Y15,Micronutrients,8,FALSE)*AC15+VLOOKUP(Y16,Micronutrients,8,FALSE)*AC16+VLOOKUP(Y17,Micronutrients,8,FALSE)*AC17+VLOOKUP(Y20,Lime,8,FALSE)*AC20","v":0},{"$f":"VLOOKUP(Y6,Macronutrients,9,FALSE)*AC6+VLOOKUP(Y7,Macronutrients,9,FALSE)*AC7+VLOOKUP(Y8,Macronutrients,9,FALSE)*AC8+VLOOKUP(Y9,Macronutrients,9,FALSE)*AC9+VLOOKUP(Y10,Macronutrients,9,FALSE)*AC10+VLOOKUP(Y11,Macronutrients,9,FALSE)*AC11+VLOOKUP(Y14,Micronutrients,9,FALSE)*AC14+VLOOKUP(Y15,Micronutrients,9,FALSE)*AC15+VLOOKUP(Y16,Micronutrients,9,FALSE)*AC16+VLOOKUP(Y17,Micronutrients,9,FALSE)*AC17+VLOOKUP(Y20,Lime,9,FALSE)*AC20","v":0},{"$f":"VLOOKUP(Y6,Macronutrients,10,FALSE)*AC6+VLOOKUP(Y7,Macronutrients,10,FALSE)*AC7+VLOOKUP(Y8,Macronutrients,10,FALSE)*AC8+VLOOKUP(Y9,Macronutrients,10,FALSE)*AC9+VLOOKUP(Y10,Macronutrients,10,FALSE)*AC10+VLOOKUP(Y11,Macronutrients,10,FALSE)*AC11+VLOOKUP(Y14,Micronutrients,10,FALSE)*AC14+VLOOKUP(Y15,Micronutrients,10,FALSE)*AC15+VLOOKUP(Y16,Micronutrients,10,FALSE)*AC16+VLOOKUP(Y17,Micronutrients,10,FALSE)*AC17+VLOOKUP(Y20,Lime,10,FALSE)*AC20","v":0}]
["Micronutrients (drop down menu)",null,null,null,null,null,null,null,null,null,null,null,"Micronutrients (drop down menu)",null,null,null,null,null,null,null,null,null,null,null,"Micronutrients (drop down menu)"]
["None",{"$f":"VLOOKUP($A14,Micronutrients,18,FALSE)","v":0},{"$f":"VLOOKUP(A14,Micronutrients,18,FALSE)","v":0},{"$f":"VLOOKUP(A14,Micronutrients,16,FALSE)","v":1},0,{"$f":"VLOOKUP(A14,Micronutrients,15,FALSE)","v":0},{"$f":"(E14*VLOOKUP(A14,Micronutrients,14,FALSE)/D14)*C14","v":0},null,"Cu","Mo","Fe",null,"None",{"$f":"VLOOKUP($A14,Micronutrients,14,FALSE)","v":0},{"$f":"VLOOKUP(M14,Micronutrients,18,FALSE)","v":0},{"$f":"VLOOKUP(M14,Micronutrients,16,FALSE)","v":1},0,{"$f":"VLOOKUP(M14,Micronutrients,15,FALSE)","v":0},{"$f":"(Q14*VLOOKUP(M14,Micronutrients,14,FALSE)/P14)*O14","v":0},null,"Cu","Mo","Fe",null,"None",{"$f":"VLOOKUP($A14,Micronutrients,14,FALSE)","v":0},{"$f":"VLOOKUP(Y14,Micronutrients,18,FALSE)","v":0},{"$f":"VLOOKUP(Y14,Micronutrients,16,FALSE)","v":1},0,{"$f":"VLOOKUP(Y14,Micronutrients,15,FALSE)","v":0},{"$f":"(AC14*VLOOKUP(Y14,Micronutrients,14,FALSE)/AB14)*AA14","v":0},null,"Cu","Mo","Fe"]
["None",{"$f":"VLOOKUP($A15,Micronutrients,14,FALSE)","v":0},{"$f":"VLOOKUP(A15,Micronutrients,18,FALSE)","v":0},{"$f":"VLOOKUP(A15,Micronutrients,16,FALSE)","v":1},0,{"$f":"VLOOKUP(A15,Micronutrients,15,FALSE)","v":0},{"$f":"(E15*VLOOKUP(A15,Micronutrients,14,FALSE)/D15)*C15","v":0},null,{"$f":"VLOOKUP(A6,Macronutrients,11,FALSE)*E6+VLOOKUP(A7,Macronutrients,11,FALSE)*E7+VLOOKUP(A8,Macronutrients,11,FALSE)*E8+VLOOKUP(A9,Macronutrients,11,FALSE)*E9+VLOOKUP(A10,Macronutrients,11,FALSE)*E10+VLOOKUP(A11,Macronutrients,11,FALSE)*E11+VLOOKUP(A14,Micronutrients,11,FALSE)*E14+VLOOKUP(A15,Micronutrients,11,FALSE)*E15+VLOOKUP(A16,Micronutrients,11,FALSE)*E16+VLOOKUP(A17,Micronutrients,11,FALSE)*E17+VLOOKUP(A20,Lime,11,FALSE)*E20","v":0},{"$f":"VLOOKUP(A6,Macronutrients,12,FALSE)*E6+VLOOKUP(A7,Macronutrients,12,FALSE)*E7+VLOOKUP(A8,Macronutrients,12,FALSE)*E8+VLOOKUP(A9,Macronutrients,12,FALSE)*E9+VLOOKUP(A10,Macronutrients,12,FALSE)*E10+VLOOKUP(A11,Macronutrients,12,FALSE)*E11+VLOOKUP(A14,Micronutrients,12,FALSE)*E14+VLOOKUP(A15,Micronutrients,12,FALSE)*E15+VLOOKUP(A16,Micronutrients,12,FALSE)*E16+VLOOKUP(A17,Micronutrients,12,FALSE)*E17+VLOOKUP(A20,Lime,12,FALSE)*E20","v":0},{"$f":"VLOOKUP(A6,Macronutrients,13,FALSE)*E6+VLOOKUP(A7,Macronutrients,13,FALSE)*E7+VLOOKUP(A8,Macronutrients,13,FALSE)*E8+VLOOKUP(A9,Macronutrients,13,FALSE)*E9+VLOOKUP(A10,Macronutrients,13,FALSE)*E10+VLOOKUP(A11,Macronutrients,13,FALSE)*E11+VLOOKUP(A14,Micronutrients,13,FALSE)*E14+VLOOKUP(A15,Micronutrients,13,FALSE)*E15+VLOOKUP(A16,Micronutrients,13,FALSE)*E16+VLOOKUP(A17,Micronutrients,13,FALSE)*E17+VLOOKUP(A20,Lime,13,FALSE)*E20","v":0},null,"None",{"$f":"VLOOKUP($A15,Micronutrients,14,FALSE)","v":0},{"$f":"VLOOKUP(M15,Micronutrients,18,FALSE)","v":0},{"$f":"VLOOKUP(M15,Micronutrients,16,FALSE)","v":1},0,{"$f":"VLOOKUP(M15,Micronutrients,15,FALSE)","v":0},{"$f":"(Q15*VLOOKUP(M15,Micronutrients,14,FALSE)/P15)*O15","v":0},null,{"$f":"VLOOKUP(M6,Macronutrients,11,FALSE)*Q6+VLOOKUP(M7,Macronutrients,11,FALSE)*Q7+VLOOKUP(M8,Macronutrients,11,FALSE)*Q8+VLOOKUP(M9,Macronutrients,11,FALSE)*Q9+VLOOKUP(M10,Macronutrients,11,FALSE)*Q10+VLOOKUP(M11,Macronutrients,11,FALSE)*Q11+VLOOKUP(M14,Micronutrients,11,FALSE)*Q14+VLOOKUP(M15,Micronutrients,11,FALSE)*Q15+VLOOKUP(M16,Micronutrients,11,FALSE)*Q16+VLOOKUP(M17,Micronutrients,11,FALSE)*Q17+VLOOKUP(M20,Lime,11,FALSE)*Q20","v":0},{"$f":"VLOOKUP(M6,Macronutrients,12,FALSE)*Q6+VLOOKUP(M7,Macronutrients,12,FALSE)*Q7+VLOOKUP(M8,Macronutrients,12,FALSE)*Q8+VLOOKUP(M9,Macronutrients,12,FALSE)*Q9+VLOOKUP(M10,Macronutrients,12,FALSE)*Q10+VLOOKUP(M11,Macronutrients,12,FALSE)*Q11+VLOOKUP(M14,Micronutrients,12,FALSE)*Q14+VLOOKUP(M15,Micronutrients,12,FALSE)*Q15+VLOOKUP(M16,Micronutrients,12,FALSE)*Q16+VLOOKUP(M17,Micronutrients,12,FALSE)*Q17+VLOOKUP(M20,Lime,12,FALSE)*Q20","v":0},{"$f":"VLOOKUP(M6,Macronutrients,13,FALSE)*Q6+VLOOKUP(M7,Macronutrients,13,FALSE)*Q7+VLOOKUP(M8,Macronutrients,13,FALSE)*Q8+VLOOKUP(M9,Macronutrients,13,FALSE)*Q9+VLOOKUP(M10,Macronutrients,13,FALSE)*Q10+VLOOKUP(M11,Macronutrients,13,FALSE)*Q11+VLOOKUP(M14,Micronutrients,13,FALSE)*Q14+VLOOKUP(M15,Micronutrients,13,FALSE)*Q15+VLOOKUP(M16,Micronutrients,13,FALSE)*Q16+VLOOKUP(M17,Micronutrients,13,FALSE)*Q17+VLOOKUP(M20,Lime,13,FALSE)*Q20","v":0},null,"None",{"$f":"VLOOKUP($A15,Micronutrients,14,FALSE)","v":0},{"$f":"VLOOKUP(Y15,Micronutrients,18,FALSE)","v":0},{"$f":"VLOOKUP(Y15,Micronutrients,16,FALSE)","v":1},0,{"$f":"VLOOKUP(Y15,Micronutrients,15,FALSE)","v":0},{"$f":"(AC15*VLOOKUP(Y15,Micronutrients,14,FALSE)/AB15)*AA15","v":0},null,{"$f":"VLOOKUP(Y6,Macronutrients,11,FALSE)*AC6+VLOOKUP(Y7,Macronutrients,11,FALSE)*AC7+VLOOKUP(Y8,Macronutrients,11,FALSE)*AC8+VLOOKUP(Y9,Macronutrients,11,FALSE)*AC9+VLOOKUP(Y10,Macronutrients,11,FALSE)*AC10+VLOOKUP(Y11,Macronutrients,11,FALSE)*AC11+VLOOKUP(Y14,Micronutrients,11,FALSE)*AC14+VLOOKUP(Y15,Micronutrients,11,FALSE)*AC15+VLOOKUP(Y16,Micronutrients,11,FALSE)*AC16+VLOOKUP(Y17,Micronutrients,11,FALSE)*AC17+VLOOKUP(Y20,Lime,11,FALSE)*AC20","v":0},{"$f":"VLOOKUP(Y6,Macronutrients,12,FALSE)*AC6+VLOOKUP(Y7,Macronutrients,12,FALSE)*AC7+VLOOKUP(Y8,Macronutrients,12,FALSE)*AC8+VLOOKUP(Y9,Macronutrients,12,FALSE)*AC9+VLOOKUP(Y10,Macronutrients,12,FALSE)*AC10+VLOOKUP(Y11,Macronutrients,12,FALSE)*AC11+VLOOKUP(Y14,Micronutrients,12,FALSE)*AC14+VLOOKUP(Y15,Micronutrients,12,FALSE)*AC15+VLOOKUP(Y16,Micronutrients,12,FALSE)*AC16+VLOOKUP(Y17,Micronutrients,12,FALSE)*AC17+VLOOKUP(Y20,Lime,12,FALSE)*AC20","v":0},{"$f":"VLOOKUP(Y6,Macronutrients,13,FALSE)*AC6+VLOOKUP(Y7,Macronutrients,13,FALSE)*AC7+VLOOKUP(Y8,Macronutrients,13,FALSE)*AC8+VLOOKUP(Y9,Macronutrients,13,FALSE)*AC9+VLOOKUP(Y10,Macronutrients,13,FALSE)*AC10+VLOOKUP(Y11,Macronutrients,13,FALSE)*AC11+VLOOKUP(Y14,Micronutrients,13,FALSE)*AC14+VLOOKUP(Y15,Micronutrients,13,FALSE)*AC15+VLOOKUP(Y16,Micronutrients,13,FALSE)*AC16+VLOOKUP(Y17,Micronutrients,13,FALSE)*AC17+VLOOKUP(Y20,Lime,13,FALSE)*AC20","v":0}]
["None",{"$f":"VLOOKUP($A16,Micronutrients,14,FALSE)","v":0},{"$f":"VLOOKUP(A16,Micronutrients,18,FALSE)","v":0},{"$f":"VLOOKUP(A16,Micronutrients,16,FALSE)","v":1},0,{"$f":"VLOOKUP(A16,Micronutrients,15,FALSE)","v":0},{"$f":"(E16*VLOOKUP(A16,Micronutrients,14,FALSE)/D16)*C16","v":0},null,null,null,null,null,"None",{"$f":"VLOOKUP($A16,Micronutrients,14,FALSE)","v":0},{"$f":"VLOOKUP(M16,Micronutrients,18,FALSE)","v":0},{"$f":"VLOOKUP(M16,Micronutrients,16,FALSE)","v":1},0,{"$f":"VLOOKUP(M16,Micronutrients,15,FALSE)","v":0},{"$f":"(Q16*VLOOKUP(M16,Micronutrients,14,FALSE)/P16)*O16","v":0},null,null,null,null,null,"None",{"$f":"VLOOKUP($A16,Micronutrients,14,FALSE)","v":0},{"$f":"VLOOKUP(Y16,Micronutrients,18,FALSE)","v":0},{"$f":"VLOOKUP(Y16,Micronutrients,16,FALSE)","v":1},0,{"$f":"VLOOKUP(Y16,Micronutrients,15,FALSE)","v":0},{"$f":"(AC16*VLOOKUP(Y16,Micronutrients,14,FALSE)/AB16)*AA16","v":0}]
["None",{"$f":"VLOOKUP($A17,Micronutrients,14,FALSE)","v":0},{"$f":"VLOOKUP(A17,Micronutrients,18,FALSE)","v":0},{"$f":"VLOOKUP(A17,Micronutrients,16,FALSE)","v":1},0,{"$f":"VLOOKUP(A17,Micronutrients,15,FALSE)","v":0},{"$f":"(E17*VLOOKUP(A17,Micronutrients,14,FALSE)/D17)*C17","v":0},null,null,null,null,null,"None",{"$f":"VLOOKUP($A17,Micronutrients,14,FALSE)","v":0},{"$f":"VLOOKUP(M17,Micronutrients,18,FALSE)","v":0},{"$f":"VLOOKUP(M17,Micronutrients,16,FALSE)","v":1},0,{"$f":"VLOOKUP(M17,Micronutrients,15,FALSE)","v":0},{"$f":"(Q17*VLOOKUP(M17,Micronutrients,14,FALSE)/P17)*O17","v":0},null,null,null,null,null,"None",{"$f":"VLOOKUP($A17,Micronutrients,14,FALSE)","v":0},{"$f":"VLOOKUP(Y17,Micronutrients,18,FALSE)","v":0},{"$f":"VLOOKUP(Y17,Micronutrients,16,FALSE)","v":1},0,{"$f":"VLOOKUP(Y17,Micronutrients,15,FALSE)","v":0},{"$f":"(AC17*VLOOKUP(Y17,Micronutrients,14,FALSE)/AB17)*AA17","v":0}]
[]
["Lime (drop down menu)",null,null,null,null,null,null,null,null,null,null,null,"Lime (drop down menu)",null,null,null,null,null,null,null,null,null,null,null,"Lime (drop down menu)"]
["None",{"$f":"VLOOKUP(A20,Lime,14,FALSE)","v":0},{"$f":"VLOOKUP(A20,Lime,18,FALSE)","v":0},{"$f":"VLOOKUP(A20,Lime,16,FALSE)","v":1},0,{"$f":"VLOOKUP(A20,Lime,15,FALSE)","v":0},{"$f":"(E20*VLOOKUP(A20,Lime,14,FALSE)/D20)*C20","v":0},null,null,null,null,null,"None",{"$f":"VLOOKUP(M20,Lime,14,FALSE)","v":0},{"$f":"VLOOKUP(M20,Lime,18,FALSE)","v":0},{"$f":"VLOOKUP(M20,Lime,16,FALSE)","v":1},0,{"$f":"VLOOKUP(M20,Lime,15,FALSE)","v":0},{"$f":"(Q20*VLOOKUP(M20,Lime,14,FALSE)/P20)*O20","v":0},null,null,null,null,null,"None",{"$f":"VLOOKUP(Y20,Lime,14,FALSE)","v":0},{"$f":"VLOOKUP(Y20,Lime,18,FALSE)","v":0},{"$f":"VLOOKUP(Y20,Lime,16,FALSE)","v":1},0,{"$f":"VLOOKUP(Y20,Lime,15,FALSE)","v":0},{"$f":"(AC20*VLOOKUP(Y20,Lime,14,FALSE)/AB20)*AA20","v":0}]
["1st Application Fertilizer Cost/Acre",null,null,null,null,null,{"$f":"SUM(G6:G20)","v":0},null,null,null,null,null,"1st Application Fertilizer Cost/Acre",null,null,null,null,null,{"$f":"SUM(S6:S20)","v":0},null,null,null,null,null,"1st Application Fertilizer Cost/Acre",null,null,null,null,null,{"$f":"SUM(AE6:AE20)","v":0}]
[]
["2nd Application (i.e., Broadcast)",null,null,null,null,null,null,null,null,null,null,null,"2nd Application (i.e., Broadcast)",null,null,null,null,null,null,null,null,null,null,null,"2nd Application (i.e., Broadcast)"]
["Fertilizer Source","Purchase Units","Package Price (Gals, Lbs, etc.)","Units/Pkg","Rate/Acre","Units","Cost",null,null,null,null,null,"Fertilizer Source","Purchase Units","Package Price (Gals, Lbs, etc.)","Units/Pkg","Rate/Acre","Units","Cost",null,null,null,null,null,"Fertilizer Source","Purchase Units","Package Price (Gals, Lbs, etc.)","Units/Pkg","Rate/Acre","Units","Cost"]
["Macronutrients (drop down menu)",null,null,null,"(Enter Below)",null,null,null,"N","P","K",null,"Macronutrients (drop down menu)",null,null,null,"(Enter Below)",null,null,null,"N","P","K",null,"Macronutrients (drop down menu)",null,null,null,"(Enter Below)",null,null,null,"N","P","K"]
["None",{"$f":"VLOOKUP(A26,Macronutrients,14,FALSE)","v":0},{"$f":"VLOOKUP(A26,Macronutrients,18,FALSE)","v":0},{"$f":"VLOOKUP(A26,Macronutrients,16,FALSE)","v":1},0,{"$f":"VLOOKUP(A26,Macronutrients,15,FALSE)","v":0},{"$f":"(E26*VLOOKUP(A26,Macronutrients,14,FALSE)/D26)*C26","v":0},null,{"$f":"VLOOKUP(A26,Macronutrients,2,FALSE)*E26+VLOOKUP(A27,Macronutrients,2,FALSE)*E27+VLOOKUP(A28,Macronutrients,2,FALSE)*E28+VLOOKUP(A29,Macronutrients,2,FALSE)*E29+VLOOKUP(A30,Macronutrients,2,FALSE)*E30+VLOOKUP(A31,Macronutrients,2,FALSE)*E31+VLOOKUP(A34,Micronutrients,2,FALSE)*E34+VLOOKUP(A35,Micronutrients,2,FALSE)*E35+VLOOKUP(A36,Micronutrients,2,FALSE)*E36+VLOOKUP(A37,Micronutrients,2,FALSE)*E37","v":0},{"$f":"VLOOKUP(A26,Macronutrients,3,FALSE)*E26+VLOOKUP(A27,Macronutrients,3,FALSE)*E27+VLOOKUP(A28,Macronutrients,3,FALSE)*E28+VLOOKUP(A29,Macronutrients,3,FALSE)*E29+VLOOKUP(A30,Macronutrients,3,FALSE)*E30+VLOOKUP(A31,Macronutrients,3,FALSE)*E31+VLOOKUP(A34,Micronutrients,3,FALSE)*E34+VLOOKUP(A35,Micronutrients,3,FALSE)*E35+VLOOKUP(A36,Micronutrients,3,FALSE)*E36+VLOOKUP(A37,Micronutrients,3,FALSE)*E37","v":0},{"$f":"VLOOKUP(A26,Macronutrients,4,FALSE)*E26+VLOOKUP(A27,Macronutrients,4,FALSE)*E27+VLOOKUP(A28,Macronutrients,4,FALSE)*E28+VLOOKUP(A29,Macronutrients,4,FALSE)*E29+VLOOKUP(A30,Macronutrients,4,FALSE)*E30+VLOOKUP(A31,Macronutrients,4,FALSE)*E31+VLOOKUP(A34,Micronutrients,4,FALSE)*E34+VLOOKUP(A35,Micronutrients,4,FALSE)*E35+VLOOKUP(A36,Micronutrients,4,FALSE)*E36+VLOOKUP(A37,Micronutrients,4,FALSE)*E37","v":0},null,"None",{"$f":"VLOOKUP(M26,Macronutrients,14,FALSE)","v":0},{"$f":"VLOOKUP(M26,Macronutrients,18,FALSE)","v":0},{"$f":"VLOOKUP(M26,Macronutrients,16,FALSE)","v":1},0,{"$f":"VLOOKUP(M26,Macronutrients,15,FALSE)","v":0},{"$f":"(Q26*VLOOKUP(M26,Macronutrients,14,FALSE)/P26)*O26","v":0},null,{"$f":"VLOOKUP(M26,Macronutrients,2,FALSE)*Q26+VLOOKUP(M27,Macronutrients,2,FALSE)*Q27+VLOOKUP(M28,Macronutrients,2,FALSE)*Q28+VLOOKUP(M29,Macronutrients,2,FALSE)*Q29+VLOOKUP(M30,Macronutrients,2,FALSE)*Q30+VLOOKUP(M31,Macronutrients,2,FALSE)*Q31+VLOOKUP(M34,Micronutrients,2,FALSE)*Q34+VLOOKUP(M35,Micronutrients,2,FALSE)*Q35+VLOOKUP(M36,Micronutrients,2,FALSE)*Q36+VLOOKUP(M37,Micronutrients,2,FALSE)*Q37","v":0},{"$f":"VLOOKUP(M26,Macronutrients,3,FALSE)*Q26+VLOOKUP(M27,Macronutrients,3,FALSE)*Q27+VLOOKUP(M28,Macronutrients,3,FALSE)*Q28+VLOOKUP(M29,Macronutrients,3,FALSE)*Q29+VLOOKUP(M30,Macronutrients,3,FALSE)*Q30+VLOOKUP(M31,Macronutrients,3,FALSE)*Q31+VLOOKUP(M34,Micronutrients,3,FALSE)*Q34+VLOOKUP(M35,Micronutrients,3,FALSE)*Q35+VLOOKUP(M36,Micronutrients,3,FALSE)*Q36+VLOOKUP(M37,Micronutrients,3,FALSE)*Q37","v":0},{"$f":"VLOOKUP(M26,Macronutrients,4,FALSE)*Q26+VLOOKUP(M27,Macronutrients,4,FALSE)*Q27+VLOOKUP(M28,Macronutrients,4,FALSE)*Q28+VLOOKUP(M29,Macronutrients,4,FALSE)*Q29+VLOOKUP(M30,Macronutrients,4,FALSE)*Q30+VLOOKUP(M31,Macronutrients,4,FALSE)*Q31+VLOOKUP(M34,Micronutrients,4,FALSE)*Q34+VLOOKUP(M35,Micronutrients,4,FALSE)*Q35+VLOOKUP(M36,Micronutrients,4,FALSE)*Q36+VLOOKUP(M37,Micronutrients,4,FALSE)*Q37","v":0},null,"None",{"$f":"VLOOKUP(Y26,Macronutrients,14,FALSE)","v":0},{"$f":"VLOOKUP(Y26,Macronutrients,18,FALSE)","v":0},{"$f":"VLOOKUP(Y26,Macronutrients,16,FALSE)","v":1},0,{"$f":"VLOOKUP(Y26,Macronutrients,15,FALSE)","v":0},{"$f":"(AC26*VLOOKUP(Y26,Macronutrients,14,FALSE)/AB26)*AA26","v":0},null,{"$f":"VLOOKUP(Y26,Macronutrients,2,FALSE)*AC26+VLOOKUP(Y27,Macronutrients,2,FALSE)*AC27+VLOOKUP(Y28,Macronutrients,2,FALSE)*AC28+VLOOKUP(Y29,Macronutrients,2,FALSE)*AC29+VLOOKUP(Y30,Macronutrients,2,FALSE)*AC30+VLOOKUP(Y31,Macronutrients,2,FALSE)*AC31+VLOOKUP(Y34,Micronutrients,2,FALSE)*AC34+VLOOKUP(Y35,Micronutrients,2,FALSE)*AC35+VLOOKUP(Y36,Micronutrients,2,FALSE)*AC36+VLOOKUP(Y37,Micronutrients,2,FALSE)*AC37","v":0},{"$f":"VLOOKUP(Y26,Macronutrients,3,FALSE)*AC26+VLOOKUP(Y27,Macronutrients,3,FALSE)*AC27+VLOOKUP(Y28,Macronutrients,3,FALSE)*AC28+VLOOKUP(Y29,Macronutrients,3,FALSE)*AC29+VLOOKUP(Y30,Macronutrients,3,FALSE)*AC30+VLOOKUP(Y31,Macronutrients,3,FALSE)*AC31+VLOOKUP(Y34,Micronutrients,3,FALSE)*AC34+VLOOKUP(Y35,Micronutrients,3,FALSE)*AC35+VLOOKUP(Y36,Micronutrients,3,FALSE)*AC36+VLOOKUP(Y37,Micronutrients,3,FALSE)*AC37","v":0},{"$f":"VLOOKUP(Y26,Macronutrients,4,FALSE)*AC26+VLOOKUP(Y27,Macronutrients,4,FALSE)*AC27+VLOOKUP(Y28,Macronutrients,4,FALSE)*AC28+VLOOKUP(Y29,Macronutrients,4,FALSE)*AC29+VLOOKUP(Y30,Macronutrients,4,FALSE)*AC30+VLOOKUP(Y31,Macronutrients,4,FALSE)*AC31+VLOOKUP(Y34,Micronutrients,4,FALSE)*AC34+VLOOKUP(Y35,Micronutrients,4,FALSE)*AC35+VLOOKUP(Y36,Micronutrients,4,FALSE)*AC36+VLOOKUP(Y37,Micronutrients,4,FALSE)*AC37","v":0}]
["None",0,0,1,0,0,0,null,null,null,null,null,"None",0,0,1,0,0,0,null,null,null,null,null,"None",0,0,1,0,0,0]
["None",0,0,1,0,0,0,null,"S","Ca","Mg",null,"None",0,0,1,0,0,0,null,"S","Ca","Mg",null,"None",0,0,1,0,0,0,null,"S","Ca","Mg"]
["None",0,0,1,0,0,0,null,{"$f":"VLOOKUP(A26,Macronutrients,5,FALSE)*E26+VLOOKUP(A27,Macronutrients,5,FALSE)*E27+VLOOKUP(A28,Macronutrients,5,FALSE)*E28+VLOOKUP(A29,Macronutrients,5,FALSE)*E29+VLOOKUP(A30,Macronutrients,5,FALSE)*E30+VLOOKUP(A31,Macronutrients,5,FALSE)*E31+VLOOKUP(A34,Micronutrients,5,FALSE)*E34+VLOOKUP(A35,Micronutrients,5,FALSE)*E35+VLOOKUP(A36,Micronutrients,5,FALSE)*E36+VLOOKUP(A37,Micronutrients,5,FALSE)*E37","v":0},{"$f":"VLOOKUP(A26,Macronutrients,7,FALSE)*E26+VLOOKUP(A27,Macronutrients,7,FALSE)*E27+VLOOKUP(A28,Macronutrients,7,FALSE)*E28+VLOOKUP(A29,Macronutrients,7,FALSE)*E29+VLOOKUP(A30,Macronutrients,7,FALSE)*E30+VLOOKUP(A31,Macronutrients,7,FALSE)*E31+VLOOKUP(A34,Micronutrients,7,FALSE)*E34+VLOOKUP(A35,Micronutrients,7,FALSE)*E35+VLOOKUP(A36,Micronutrients,7,FALSE)*E36+VLOOKUP(A37,Micronutrients,7,FALSE)*E37","v":0},{"$f":"VLOOKUP($A26,Macronutrients,6,FALSE)*$E$6+VLOOKUP($A27,Macronutrients,6,FALSE)*$E$7+VLOOKUP($A28,Macronutrients,6,FALSE)*$E$8+VLOOKUP($A29,Macronutrients,6,FALSE)*$E$9+VLOOKUP($A30,Macronutrients,6,FALSE)*$E$10+VLOOKUP($A31,Macronutrients,6,FALSE)*$E$11+VLOOKUP($A34,Micronutrients,6,FALSE)*$E$14+VLOOKUP($A35,Micronutrients,6,FALSE)*E35+VLOOKUP($A36,Micronutrients,6,FALSE)*$E$16+VLOOKUP($A37,Micronutrients,6,FALSE)*$E$17","v":0},null,"None",0,0,1,0,0,0,null,{"$f":"VLOOKUP(M26,Macronutrients,5,FALSE)*Q26+VLOOKUP(M27,Macronutrients,5,FALSE)*Q27+VLOOKUP(M28,Macronutrients,5,FALSE)*Q28+VLOOKUP(M29,Macronutrients,5,FALSE)*Q29+VLOOKUP(M30,Macronutrients,5,FALSE)*Q30+VLOOKUP(M31,Macronutrients,5,FALSE)*Q31+VLOOKUP(M34,Micronutrients,5,FALSE)*Q34+VLOOKUP(M35,Micronutrients,5,FALSE)*Q35+VLOOKUP(M36,Micronutrients,5,FALSE)*Q36+VLOOKUP(M37,Micronutrients,5,FALSE)*Q37","v":0},{"$f":"VLOOKUP(M26,Macronutrients,7,FALSE)*Q26+VLOOKUP(M27,Macronutrients,7,FALSE)*Q27+VLOOKUP(M28,Macronutrients,7,FALSE)*Q28+VLOOKUP(M29,Macronutrients,7,FALSE)*Q29+VLOOKUP(M30,Macronutrients,7,FALSE)*Q30+VLOOKUP(M31,Macronutrients,7,FALSE)*Q31+VLOOKUP(M34,Micronutrients,7,FALSE)*Q34+VLOOKUP(M35,Micronutrients,7,FALSE)*Q35+VLOOKUP(M36,Micronutrients,7,FALSE)*Q36+VLOOKUP(M37,Micronutrients,7,FALSE)*Q37","v":0},{"$f":"VLOOKUP($A26,Macronutrients,6,FALSE)*$E$6+VLOOKUP($A27,Macronutrients,6,FALSE)*$E$7+VLOOKUP($A28,Macronutrients,6,FALSE)*$E$8+VLOOKUP($A29,Macronutrients,6,FALSE)*$E$9+VLOOKUP($A30,Macronutrients,6,FALSE)*$E$10+VLOOKUP($A31,Macronutrients,6,FALSE)*$E$11+VLOOKUP($A34,Micronutrients,6,FALSE)*$E$14+VLOOKUP($A35,Micronutrients,6,FALSE)*Q35+VLOOKUP($A36,Micronutrients,6,FALSE)*$E$16+VLOOKUP($A37,Micronutrients,6,FALSE)*$E$17","v":0},null,"None",0,0,1,0,0,0,null,{"$f":"VLOOKUP(Y26,Macronutrients,5,FALSE)*AC26+VLOOKUP(Y27,Macronutrients,5,FALSE)*AC27+VLOOKUP(Y28,Macronutrients,5,FALSE)*AC28+VLOOKUP(Y29,Macronutrients,5,FALSE)*AC29+VLOOKUP(Y30,Macronutrients,5,FALSE)*AC30+VLOOKUP(Y31,Macronutrients,5,FALSE)*AC31+VLOOKUP(Y34,Micronutrients,5,FALSE)*AC34+VLOOKUP(Y35,Micronutrients,5,FALSE)*AC35+VLOOKUP(Y36,Micronutrients,5,FALSE)*AC36+VLOOKUP(Y37,Micronutrients,5,FALSE)*AC37","v":0},{"$f":"VLOOKUP(Y26,Macronutrients,7,FALSE)*AC26+VLOOKUP(Y27,Macronutrients,7,FALSE)*AC27+VLOOKUP(Y28,Macronutrients,7,FALSE)*AC28+VLOOKUP(Y29,Macronutrients,7,FALSE)*AC29+VLOOKUP(Y30,Macronutrients,7,FALSE)*AC30+VLOOKUP(Y31,Macronutrients,7,FALSE)*AC31+VLOOKUP(Y34,Micronutrients,7,FALSE)*AC34+VLOOKUP(Y35,Micronutrients,7,FALSE)*AC35+VLOOKUP(Y36,Micronutrients,7,FALSE)*AC36+VLOOKUP(Y37,Micronutrients,7,FALSE)*AC37","v":0},{"$f":"VLOOKUP($A26,Macronutrients,6,FALSE)*$E$6+VLOOKUP($A27,Macronutrients,6,FALSE)*$E$7+VLOOKUP($A28,Macronutrients,6,FALSE)*$E$8+VLOOKUP($A29,Macronutrients,6,FALSE)*$E$9+VLOOKUP($A30,Macronutrients,6,FALSE)*$E$10+VLOOKUP($A31,Macronutrients,6,FALSE)*$E$11+VLOOKUP($A34,Micronutrients,6,FALSE)*$E$14+VLOOKUP($A35,Micronutrients,6,FALSE)*AC35+VLOOKUP($A36,Micronutrients,6,FALSE)*$E$16+VLOOKUP($A37,Micronutrients,6,FALSE)*$E$17","v":0}]
["None",0,0,1,0,0,0,null,null,null,null,null,"None",0,0,1,0,0,0,null,null,null,null,null,"None",0,0,1,0,0,0]
["None",0,0,1,0,0,0,null,"Z","B","Mn",null,"None",0,0,1,0,0,0,null,"Z","B","Mn",null,"None",0,0,1,0,0,0,null,"Z","B","Mn"]
[null,null,null,null,null,null,null,null,{"$f":"VLOOKUP(A26,Macronutrients,8,FALSE)*E26+VLOOKUP(A27,Macronutrients,8,FALSE)*E27+VLOOKUP(A28,Macronutrients,8,FALSE)*E28+VLOOKUP(A29,Macronutrients,8,FALSE)*E29+VLOOKUP(A30,Macronutrients,8,FALSE)*E30+VLOOKUP(A31,Macronutrients,8,FALSE)*E31+VLOOKUP(A34,Micronutrients,8,FALSE)*E34+VLOOKUP(A35,Micronutrients,8,FALSE)*E35+VLOOKUP(A36,Micronutrients,8,FALSE)*E36+VLOOKUP(A37,Micronutrients,8,FALSE)*E37","v":0},{"$f":"VLOOKUP(A26,Macronutrients,9,FALSE)*E26+VLOOKUP(A27,Macronutrients,9,FALSE)*E27+VLOOKUP(A28,Macronutrients,9,FALSE)*E28+VLOOKUP(A29,Macronutrients,9,FALSE)*E29+VLOOKUP(A30,Macronutrients,9,FALSE)*E30+VLOOKUP(A31,Macronutrients,9,FALSE)*E31+VLOOKUP(A34,Micronutrients,9,FALSE)*E34+VLOOKUP(A35,Micronutrients,9,FALSE)*E35+VLOOKUP(A36,Micronutrients,9,FALSE)*E36+VLOOKUP(A37,Micronutrients,9,FALSE)","v":0},{"$f":"VLOOKUP(A26,Macronutrients,10,FALSE)*E26+VLOOKUP(A27,Macronutrients,10,FALSE)*E27+VLOOKUP(A28,Macronutrients,10,FALSE)*E28+VLOOKUP(A29,Macronutrients,10,FALSE)*E29+VLOOKUP(A30,Macronutrients,10,FALSE)*E30+VLOOKUP(A31,Macronutrients,10,FALSE)*E31+VLOOKUP(A34,Micronutrients,10,FALSE)*E34+VLOOKUP(A35,Micronutrients,10,FALSE)*E35+VLOOKUP(A36,Micronutrients,10,FALSE)*E36+VLOOKUP(A37,Micronutrients,10,FALSE)*E37","v":0},null,null,null,null,null,null,null,null,null,{"$f":"VLOOKUP(M26,Macronutrients,8,FALSE)*Q26+VLOOKUP(M27,Macronutrients,8,FALSE)*Q27+VLOOKUP(M28,Macronutrients,8,FALSE)*Q28+VLOOKUP(M29,Macronutrients,8,FALSE)*Q29+VLOOKUP(M30,Macronutrients,8,FALSE)*Q30+VLOOKUP(M31,Macronutrients,8,FALSE)*Q31+VLOOKUP(M34,Micronutrients,8,FALSE)*Q34+VLOOKUP(M35,Micronutrients,8,FALSE)*Q35+VLOOKUP(M36,Micronutrients,8,FALSE)*Q36+VLOOKUP(M37,Micronutrients,8,FALSE)*Q37","v":0},{"$f":"VLOOKUP(M26,Macronutrients,9,FALSE)*Q26+VLOOKUP(M27,Macronutrients,9,FALSE)*Q27+VLOOKUP(M28,Macronutrients,9,FALSE)*Q28+VLOOKUP(M29,Macronutrients,9,FALSE)*Q29+VLOOKUP(M30,Macronutrients,9,FALSE)*Q30+VLOOKUP(M31,Macronutrients,9,FALSE)*Q31+VLOOKUP(M34,Micronutrients,9,FALSE)*Q34+VLOOKUP(M35,Micronutrients,9,FALSE)*Q35+VLOOKUP(M36,Micronutrients,9,FALSE)*Q36+VLOOKUP(M37,Micronutrients,9,FALSE)","v":0},{"$f":"VLOOKUP(M26,Macronutrients,10,FALSE)*Q26+VLOOKUP(M27,Macronutrients,10,FALSE)*Q27+VLOOKUP(M28,Macronutrients,10,FALSE)*Q28+VLOOKUP(M29,Macronutrients,10,FALSE)*Q29+VLOOKUP(M30,Macronutrients,10,FALSE)*Q30+VLOOKUP(M31,Macronutrients,10,FALSE)*Q31+VLOOKUP(M34,Micronutrients,10,FALSE)*Q34+VLOOKUP(M35,Micronutrients,10,FALSE)*Q35+VLOOKUP(M36,Micronutrients,10,FALSE)*Q36+VLOOKUP(M37,Micronutrients,10,FALSE)*Q37","v":0},null,null,null,null,null,null,null,null,null,{"$f":"VLOOKUP(Y26,Macronutrients,8,FALSE)*AC26+VLOOKUP(Y27,Macronutrients,8,FALSE)*AC27+VLOOKUP(Y28,Macronutrients,8,FALSE)*AC28+VLOOKUP(Y29,Macronutrients,8,FALSE)*AC29+VLOOKUP(Y30,Macronutrients,8,FALSE)*AC30+VLOOKUP(Y31,Macronutrients,8,FALSE)*AC31+VLOOKUP(Y34,Micronutrients,8,FALSE)*AC34+VLOOKUP(Y35,Micronutrients,8,FALSE)*AC35+VLOOKUP(Y36,Micronutrients,8,FALSE)*AC36+VLOOKUP(Y37,Micronutrients,8,FALSE)*AC37","v":0},{"$f":"VLOOKUP(Y26,Macronutrients,9,FALSE)*AC26+VLOOKUP(Y27,Macronutrients,9,FALSE)*AC27+VLOOKUP(Y28,Macronutrients,9,FALSE)*AC28+VLOOKUP(Y29,Macronutrients,9,FALSE)*AC29+VLOOKUP(Y30,Macronutrients,9,FALSE)*AC30+VLOOKUP(Y31,Macronutrients,9,FALSE)*AC31+VLOOKUP(Y34,Micronutrients,9,FALSE)*AC34+VLOOKUP(Y35,Micronutrients,9,FALSE)*AC35+VLOOKUP(Y36,Micronutrients,9,FALSE)*AC36+VLOOKUP(Y37,Micronutrients,9,FALSE)","v":0},{"$f":"VLOOKUP(Y26,Macronutrients,10,FALSE)*AC26+VLOOKUP(Y27,Macronutrients,10,FALSE)*AC27+VLOOKUP(Y28,Macronutrients,10,FALSE)*AC28+VLOOKUP(Y29,Macronutrients,10,FALSE)*AC29+VLOOKUP(Y30,Macronutrients,10,FALSE)*AC30+VLOOKUP(Y31,Macronutrients,10,FALSE)*AC31+VLOOKUP(Y34,Micronutrients,10,FALSE)*AC34+VLOOKUP(Y35,Micronutrients,10,FALSE)*AC35+VLOOKUP(Y36,Micronutrients,10,FALSE)*AC36+VLOOKUP(Y37,Micronutrients,10,FALSE)*AC37","v":0}]
["Micronutrients (drop down menu)",null,null,null,null,null,null,null,null,null,null,null,"Micronutrients (drop down menu)",null,null,null,null,null,null,null,null,null,null,null,"Micronutrients (drop down menu)"]
["None",{"$f":"VLOOKUP($A34,Micronutrients,14,FALSE)","v":0},{"$f":"VLOOKUP(A34,Micronutrients,18,FALSE)","v":0},{"$f":"VLOOKUP(A34,Micronutrients,16,FALSE)","v":1},0,{"$f":"VLOOKUP(A34,Micronutrients,15,FALSE)","v":0},{"$f":"(E34*VLOOKUP(A34,Micronutrients,14,FALSE)/D34)*C34","v":0},null,"Cu","Mo","Fe",null,"None",{"$f":"VLOOKUP($A34,Micronutrients,14,FALSE)","v":0},{"$f":"VLOOKUP(M34,Micronutrients,18,FALSE)","v":0},{"$f":"VLOOKUP(M34,Micronutrients,16,FALSE)","v":1},0,{"$f":"VLOOKUP(M34,Micronutrients,15,FALSE)","v":0},{"$f":"(Q34*VLOOKUP(M34,Micronutrients,14,FALSE)/P34)*O34","v":0},null,"Cu","Mo","Fe",null,"None",{"$f":"VLOOKUP($A34,Micronutrients,14,FALSE)","v":0},{"$f":"VLOOKUP(Y34,Micronutrients,18,FALSE)","v":0},{"$f":"VLOOKUP(Y34,Micronutrients,16,FALSE)","v":1},0,{"$f":"VLOOKUP(Y34,Micronutrients,15,FALSE)","v":0},{"$f":"(AC34*VLOOKUP(Y34,Micronutrients,14,FALSE)/AB34)*AA34","v":0},null,"Cu","Mo","Fe"]
["None",{"$f":"VLOOKUP($A35,Micronutrients,14,FALSE)","v":0},{"$f":"VLOOKUP(A35,Micronutrients,18,FALSE)","v":0},{"$f":"VLOOKUP(A35,Micronutrients,16,FALSE)","v":1},0,{"$f":"VLOOKUP(A35,Micronutrients,15,FALSE)","v":0},{"$f":"(E35*VLOOKUP(A35,Micronutrients,14,FALSE)/D35)*C35","v":0},null,{"$f":"VLOOKUP(A26,Macronutrients,11,FALSE)*E26+VLOOKUP(A27,Macronutrients,11,FALSE)*E27+VLOOKUP(A28,Macronutrients,11,FALSE)*E28+VLOOKUP(A29,Macronutrients,11,FALSE)*E29+VLOOKUP(A30,Macronutrients,11,FALSE)*E30+VLOOKUP(A31,Macronutrients,11,FALSE)*E31+VLOOKUP(A34,Micronutrients,11,FALSE)*E34+VLOOKUP(A35,Micronutrients,11,FALSE)*E35+VLOOKUP(A36,Micronutrients,11,FALSE)*E36+VLOOKUP(A37,Micronutrients,11,FALSE)*E37","v":0},{"$f":"VLOOKUP(A26,Macronutrients,12,FALSE)*E26+VLOOKUP(A27,Macronutrients,12,FALSE)*E27+VLOOKUP(A28,Macronutrients,12,FALSE)*E28+VLOOKUP(A29,Macronutrients,12,FALSE)*E29+VLOOKUP(A30,Macronutrients,12,FALSE)*E30+VLOOKUP(A31,Macronutrients,12,FALSE)*E31+VLOOKUP(A34,Micronutrients,12,FALSE)*E34+VLOOKUP(A35,Micronutrients,12,FALSE)*E35+VLOOKUP(A36,Micronutrients,12,FALSE)*E36+VLOOKUP(A37,Micronutrients,12,FALSE)*E37","v":0},{"$f":"VLOOKUP(A26,Macronutrients,13,FALSE)*E26+VLOOKUP(A27,Macronutrients,13,FALSE)*E27+VLOOKUP(A28,Macronutrients,13,FALSE)*E28+VLOOKUP(A29,Macronutrients,13,FALSE)*E29+VLOOKUP(A30,Macronutrients,13,FALSE)*E30+VLOOKUP(A31,Macronutrients,13,FALSE)*E31+VLOOKUP(A34,Micronutrients,13,FALSE)*E34+VLOOKUP(A35,Micronutrients,13,FALSE)*E35+VLOOKUP(A36,Micronutrients,13,FALSE)*E36+VLOOKUP(A37,Micronutrients,13,FALSE)*E37","v":0},null,"None",{"$f":"VLOOKUP($A35,Micronutrients,14,FALSE)","v":0},{"$f":"VLOOKUP(M35,Micronutrients,18,FALSE)","v":0},{"$f":"VLOOKUP(M35,Micronutrients,16,FALSE)","v":1},0,{"$f":"VLOOKUP(M35,Micronutrients,15,FALSE)","v":0},{"$f":"(Q35*VLOOKUP(M35,Micronutrients,14,FALSE)/P35)*O35","v":0},null,{"$f":"VLOOKUP(M26,Macronutrients,11,FALSE)*Q26+VLOOKUP(M27,Macronutrients,11,FALSE)*Q27+VLOOKUP(M28,Macronutrients,11,FALSE)*Q28+VLOOKUP(M29,Macronutrients,11,FALSE)*Q29+VLOOKUP(M30,Macronutrients,11,FALSE)*Q30+VLOOKUP(M31,Macronutrients,11,FALSE)*Q31+VLOOKUP(M34,Micronutrients,11,FALSE)*Q34+VLOOKUP(M35,Micronutrients,11,FALSE)*Q35+VLOOKUP(M36,Micronutrients,11,FALSE)*Q36+VLOOKUP(M37,Micronutrients,11,FALSE)*Q37","v":0},{"$f":"VLOOKUP(M26,Macronutrients,12,FALSE)*Q26+VLOOKUP(M27,Macronutrients,12,FALSE)*Q27+VLOOKUP(M28,Macronutrients,12,FALSE)*Q28+VLOOKUP(M29,Macronutrients,12,FALSE)*Q29+VLOOKUP(M30,Macronutrients,12,FALSE)*Q30+VLOOKUP(M31,Macronutrients,12,FALSE)*Q31+VLOOKUP(M34,Micronutrients,12,FALSE)*Q34+VLOOKUP(M35,Micronutrients,12,FALSE)*Q35+VLOOKUP(M36,Micronutrients,12,FALSE)*Q36+VLOOKUP(M37,Micronutrients,12,FALSE)*Q37","v":0},{"$f":"VLOOKUP(M26,Macronutrients,13,FALSE)*Q26+VLOOKUP(M27,Macronutrients,13,FALSE)*Q27+VLOOKUP(M28,Macronutrients,13,FALSE)*Q28+VLOOKUP(M29,Macronutrients,13,FALSE)*Q29+VLOOKUP(M30,Macronutrients,13,FALSE)*Q30+VLOOKUP(M31,Macronutrients,13,FALSE)*Q31+VLOOKUP(M34,Micronutrients,13,FALSE)*Q34+VLOOKUP(M35,Micronutrients,13,FALSE)*Q35+VLOOKUP(M36,Micronutrients,13,FALSE)*Q36+VLOOKUP(M37,Micronutrients,13,FALSE)*Q37","v":0},null,"None",{"$f":"VLOOKUP($A35,Micronutrients,14,FALSE)","v":0},{"$f":"VLOOKUP(Y35,Micronutrients,18,FALSE)","v":0},{"$f":"VLOOKUP(Y35,Micronutrients,16,FALSE)","v":1},0,{"$f":"VLOOKUP(Y35,Micronutrients,15,FALSE)","v":0},{"$f":"(AC35*VLOOKUP(Y35,Micronutrients,14,FALSE)/AB35)*AA35","v":0},null,{"$f":"VLOOKUP(Y26,Macronutrients,11,FALSE)*AC26+VLOOKUP(Y27,Macronutrients,11,FALSE)*AC27+VLOOKUP(Y28,Macronutrients,11,FALSE)*AC28+VLOOKUP(Y29,Macronutrients,11,FALSE)*AC29+VLOOKUP(Y30,Macronutrients,11,FALSE)*AC30+VLOOKUP(Y31,Macronutrients,11,FALSE)*AC31+VLOOKUP(Y34,Micronutrients,11,FALSE)*AC34+VLOOKUP(Y35,Micronutrients,11,FALSE)*AC35+VLOOKUP(Y36,Micronutrients,11,FALSE)*AC36+VLOOKUP(Y37,Micronutrients,11,FALSE)*AC37","v":0},{"$f":"VLOOKUP(Y26,Macronutrients,12,FALSE)*AC26+VLOOKUP(Y27,Macronutrients,12,FALSE)*AC27+VLOOKUP(Y28,Macronutrients,12,FALSE)*AC28+VLOOKUP(Y29,Macronutrients,12,FALSE)*AC29+VLOOKUP(Y30,Macronutrients,12,FALSE)*AC30+VLOOKUP(Y31,Macronutrients,12,FALSE)*AC31+VLOOKUP(Y34,Micronutrients,12,FALSE)*AC34+VLOOKUP(Y35,Micronutrients,12,FALSE)*AC35+VLOOKUP(Y36,Micronutrients,12,FALSE)*AC36+VLOOKUP(Y37,Micronutrients,12,FALSE)*AC37","v":0},{"$f":"VLOOKUP(Y26,Macronutrients,13,FALSE)*AC26+VLOOKUP(Y27,Macronutrients,13,FALSE)*AC27+VLOOKUP(Y28,Macronutrients,13,FALSE)*AC28+VLOOKUP(Y29,Macronutrients,13,FALSE)*AC29+VLOOKUP(Y30,Macronutrients,13,FALSE)*AC30+VLOOKUP(Y31,Macronutrients,13,FALSE)*AC31+VLOOKUP(Y34,Micronutrients,13,FALSE)*AC34+VLOOKUP(Y35,Micronutrients,13,FALSE)*AC35+VLOOKUP(Y36,Micronutrients,13,FALSE)*AC36+VLOOKUP(Y37,Micronutrients,13,FALSE)*AC37","v":0}]
["None",{"$f":"VLOOKUP($A36,Micronutrients,14,FALSE)","v":0},{"$f":"VLOOKUP(A36,Micronutrients,18,FALSE)","v":0},{"$f":"VLOOKUP(A36,Micronutrients,16,FALSE)","v":1},0,{"$f":"VLOOKUP(A36,Micronutrients,15,FALSE)","v":0},{"$f":"(E36*VLOOKUP(A36,Micronutrients,14,FALSE)/D36)*C36","v":0},null,null,null,null,null,"None",{"$f":"VLOOKUP($A36,Micronutrients,14,FALSE)","v":0},{"$f":"VLOOKUP(M36,Micronutrients,18,FALSE)","v":0},{"$f":"VLOOKUP(M36,Micronutrients,16,FALSE)","v":1},0,{"$f":"VLOOKUP(M36,Micronutrients,15,FALSE)","v":0},{"$f":"(Q36*VLOOKUP(M36,Micronutrients,14,FALSE)/P36)*O36","v":0},null,null,null,null,null,"None",{"$f":"VLOOKUP($A36,Micronutrients,14,FALSE)","v":0},{"$f":"VLOOKUP(Y36,Micronutrients,18,FALSE)","v":0},{"$f":"VLOOKUP(Y36,Micronutrients,16,FALSE)","v":1},0,{"$f":"VLOOKUP(Y36,Micronutrients,15,FALSE)","v":0},{"$f":"(AC36*VLOOKUP(Y36,Micronutrients,14,FALSE)/AB36)*AA36","v":0}]
["None",{"$f":"VLOOKUP($A37,Micronutrients,14,FALSE)","v":0},{"$f":"VLOOKUP(A37,Micronutrients,18,FALSE)","v":0},{"$f":"VLOOKUP(A37,Micronutrients,16,FALSE)","v":1},0,{"$f":"VLOOKUP(A37,Micronutrients,15,FALSE)","v":0},{"$f":"(E37*VLOOKUP(A37,Micronutrients,14,FALSE)/D37)*C37","v":0},null,null,null,"More",null,"None",{"$f":"VLOOKUP($A37,Micronutrients,14,FALSE)","v":0},{"$f":"VLOOKUP(M37,Micronutrients,18,FALSE)","v":0},{"$f":"VLOOKUP(M37,Micronutrients,16,FALSE)","v":1},0,{"$f":"VLOOKUP(M37,Micronutrients,15,FALSE)","v":0},{"$f":"(Q37*VLOOKUP(M37,Micronutrients,14,FALSE)/P37)*O37","v":0},null,null,null,"More",null,"None",{"$f":"VLOOKUP($A37,Micronutrients,14,FALSE)","v":0},{"$f":"VLOOKUP(Y37,Micronutrients,18,FALSE)","v":0},{"$f":"VLOOKUP(Y37,Micronutrients,16,FALSE)","v":1},0,{"$f":"VLOOKUP(Y37,Micronutrients,15,FALSE)","v":0},{"$f":"(AC37*VLOOKUP(Y37,Micronutrients,14,FALSE)/AB37)*AA37","v":0},null,null,null,"More"]
["2nd Application Fertilizer Cost/Acre",null,null,null,null,null,{"$f":"SUM(G26:G37)","v":0},null,null,null,"Below",null,"2nd Application Fertilizer Cost/Acre",null,null,null,null,null,{"$f":"SUM(S26:S37)","v":0},null,null,null,"Below",null,"2nd Application Fertilizer Cost/Acre",null,null,null,null,null,{"$f":"SUM(AE26:AE37)","v":0},null,null,null,"Below"]
[null,null,null,null,null,null,null,null,null,null,"¯",null,null,null,null,null,null,null,null,null,null,null,"¯",null,null,null,null,null,null,null,null,null,null,null,"¯"]
["Foliar Applications",null,null,null,null,null,null,null,null,null,null,null,"Foliar Applications",null,null,null,null,null,null,null,null,null,null,null,"Foliar Applications"]
["Fertilizer Source","Purchase Units","Package Price (Gals, Lbs, etc.)","Units/Pkg","Rate/Acre","Units","Cost",null,null,null,null,null,"Fertilizer Source","Purchase Units","Package Price (Gals, Lbs, etc.)","Units/Pkg","Rate/Acre","Units","Cost",null,null,null,null,null,"Fertilizer Source","Purchase Units","Package Price (Gals, Lbs, etc.)","Units/Pkg","Rate/Acre","Units","Cost"]
["Foliars (drop down menu)",null,null,null,"(Enter Below)",null,null,null,"N","P","K",null,"Foliars (drop down menu)",null,null,null,"(Enter Below)",null,null,null,"N","P","K",null,"Foliars (drop down menu)",null,null,null,"(Enter Below)",null,null,null,"N","P","K"]
["None",{"$f":"VLOOKUP(A43,Foliars,14,FALSE)","v":0},{"$f":"VLOOKUP(A43,Foliars,18,FALSE)","v":0},{"$f":"VLOOKUP(A43,Foliars,16,FALSE)","v":1},0,{"$f":"VLOOKUP(A43,Foliars,15,FALSE)","v":0},{"$f":"(E43*VLOOKUP(A43,Foliars,14,FALSE)/D43)*C43","v":0},null,{"$f":"VLOOKUP(A$43,Foliars,2,FALSE)*E$43+VLOOKUP(A$44,Foliars,2,FALSE)*E$44+VLOOKUP(A$45,Foliars,2,FALSE)*E$45+VLOOKUP(A$46,Foliars,2,FALSE)*E$46+VLOOKUP(A$47,Foliars,2,FALSE)*E$47+VLOOKUP(A$48,Foliars,2,FALSE)*E$48","v":0},{"$f":"VLOOKUP(A$43,Foliars,3,FALSE)*E$43+VLOOKUP(A$44,Foliars,3,FALSE)*E$44+VLOOKUP(A$45,Foliars,3,FALSE)*E$45+VLOOKUP(A$46,Foliars,3,FALSE)*E$46+VLOOKUP(A$47,Foliars,3,FALSE)*E$47+VLOOKUP(A$48,Foliars,3,FALSE)*E$48","v":0},{"$f":"VLOOKUP(A$43,Foliars,4,FALSE)*E$43+VLOOKUP(A$44,Foliars,4,FALSE)*E$44+VLOOKUP(A$45,Foliars,4,FALSE)*E$45+VLOOKUP(A$46,Foliars,4,FALSE)*E$46+VLOOKUP(A$47,Foliars,4,FALSE)*E$47+VLOOKUP(A$48,Foliars,4,FALSE)*E$48","v":0},null,"None",{"$f":"VLOOKUP(M43,Foliars,14,FALSE)","v":0},{"$f":"VLOOKUP(M43,Foliars,18,FALSE)","v":0},{"$f":"VLOOKUP(M43,Foliars,16,FALSE)","v":1},0,{"$f":"VLOOKUP(M43,Foliars,15,FALSE)","v":0},{"$f":"(Q43*VLOOKUP(M43,Foliars,14,FALSE)/P43)*O43","v":0},null,{"$f":"VLOOKUP(M$43,Foliars,2,FALSE)*Q$43+VLOOKUP(M$44,Foliars,2,FALSE)*Q$44+VLOOKUP(M$45,Foliars,2,FALSE)*Q$45+VLOOKUP(M$46,Foliars,2,FALSE)*Q$46+VLOOKUP(M$47,Foliars,2,FALSE)*Q$47+VLOOKUP(M$48,Foliars,2,FALSE)*Q$48","v":0},{"$f":"VLOOKUP(M$43,Foliars,3,FALSE)*Q$43+VLOOKUP(M$44,Foliars,3,FALSE)*Q$44+VLOOKUP(M$45,Foliars,3,FALSE)*Q$45+VLOOKUP(M$46,Foliars,3,FALSE)*Q$46+VLOOKUP(M$47,Foliars,3,FALSE)*Q$47+VLOOKUP(M$48,Foliars,3,FALSE)*Q$48","v":0},{"$f":"VLOOKUP(M$43,Foliars,4,FALSE)*Q$43+VLOOKUP(M$44,Foliars,4,FALSE)*Q$44+VLOOKUP(M$45,Foliars,4,FALSE)*Q$45+VLOOKUP(M$46,Foliars,4,FALSE)*Q$46+VLOOKUP(M$47,Foliars,4,FALSE)*Q$47+VLOOKUP(M$48,Foliars,4,FALSE)*Q$48","v":0},null,"None",{"$f":"VLOOKUP(Y43,Foliars,14,FALSE)","v":0},{"$f":"VLOOKUP(Y43,Foliars,18,FALSE)","v":0},{"$f":"VLOOKUP(Y43,Foliars,16,FALSE)","v":1},0,{"$f":"VLOOKUP(Y43,Foliars,15,FALSE)","v":0},{"$f":"(AC43*VLOOKUP(Y43,Foliars,14,FALSE)/AB43)*AA43","v":0},null,{"$f":"VLOOKUP(Y$43,Foliars,2,FALSE)*AC$43+VLOOKUP(Y$44,Foliars,2,FALSE)*AC$44+VLOOKUP(Y$45,Foliars,2,FALSE)*AC$45+VLOOKUP(Y$46,Foliars,2,FALSE)*AC$46+VLOOKUP(Y$47,Foliars,2,FALSE)*AC$47+VLOOKUP(Y$48,Foliars,2,FALSE)*AC$48","v":0},{"$f":"VLOOKUP(Y$43,Foliars,3,FALSE)*AC$43+VLOOKUP(Y$44,Foliars,3,FALSE)*AC$44+VLOOKUP(Y$45,Foliars,3,FALSE)*AC$45+VLOOKUP(Y$46,Foliars,3,FALSE)*AC$46+VLOOKUP(Y$47,Foliars,3,FALSE)*AC$47+VLOOKUP(Y$48,Foliars,3,FALSE)*AC$48","v":0},{"$f":"VLOOKUP(Y$43,Foliars,4,FALSE)*AC$43+VLOOKUP(Y$44,Foliars,4,FALSE)*AC$44+VLOOKUP(Y$45,Foliars,4,FALSE)*AC$45+VLOOKUP(Y$46,Foliars,4,FALSE)*AC$46+VLOOKUP(Y$47,Foliars,4,FALSE)*AC$47+VLOOKUP(Y$48,Foliars,4,FALSE)*AC$48","v":0}]
["None",{"$f":"VLOOKUP(A44,Foliars,14,FALSE)","v":0},0,1,0,0,0,null,null,null,null,null,"None",0,0,1,0,0,0,null,null,null,null,null,"None",0,0,1,0,0,0]
["None",0,0,1,0,0,0,null,"S","Ca","Mg",null,"None",0,0,1,0,0,0,null,"S","Ca","Mg",null,"None",0,0,1,0,0,0,null,"S","Ca","Mg"]
["None",0,0,1,0,0,0,null,{"$f":"VLOOKUP(A$43,Foliars,5,FALSE)*E$43+VLOOKUP(A$44,Foliars,5,FALSE)*E$44+VLOOKUP(A$45,Foliars,5,FALSE)*E$45+VLOOKUP(A$46,Foliars,5,FALSE)*E$46+VLOOKUP(A$47,Foliars,5,FALSE)*E$47+VLOOKUP(A$48,Foliars,5,FALSE)*E$48","v":0},{"$f":"VLOOKUP(A$43,Foliars,7,FALSE)*E$43+VLOOKUP(A$44,Foliars,7,FALSE)*E$44+VLOOKUP(A$45,Foliars,7,FALSE)*E$45+VLOOKUP(A$46,Foliars,7,FALSE)*E$46+VLOOKUP(A$47,Foliars,7,FALSE)*E$47+VLOOKUP(A$48,Foliars,7,FALSE)*E$48","v":0},{"$f":"VLOOKUP(A$43,Foliars,6,FALSE)*E$43+VLOOKUP(A$44,Foliars,6,FALSE)*E$44+VLOOKUP(A$45,Foliars,6,FALSE)*E$45+VLOOKUP(A$46,Foliars,6,FALSE)*E$46+VLOOKUP(A$47,Foliars,6,FALSE)*E$47+VLOOKUP(A$48,Foliars,6,FALSE)*E$48","v":0},null,"None",0,0,1,0,0,0,null,{"$f":"VLOOKUP(M$43,Foliars,5,FALSE)*Q$43+VLOOKUP(M$44,Foliars,5,FALSE)*Q$44+VLOOKUP(M$45,Foliars,5,FALSE)*Q$45+VLOOKUP(M$46,Foliars,5,FALSE)*Q$46+VLOOKUP(M$47,Foliars,5,FALSE)*Q$47+VLOOKUP(M$48,Foliars,5,FALSE)*Q$48","v":0},{"$f":"VLOOKUP(M$43,Foliars,7,FALSE)*Q$43+VLOOKUP(M$44,Foliars,7,FALSE)*Q$44+VLOOKUP(M$45,Foliars,7,FALSE)*Q$45+VLOOKUP(M$46,Foliars,7,FALSE)*Q$46+VLOOKUP(M$47,Foliars,7,FALSE)*Q$47+VLOOKUP(M$48,Foliars,7,FALSE)*Q$48","v":0},{"$f":"VLOOKUP(M$43,Foliars,6,FALSE)*Q$43+VLOOKUP(M$44,Foliars,6,FALSE)*Q$44+VLOOKUP(M$45,Foliars,6,FALSE)*Q$45+VLOOKUP(M$46,Foliars,6,FALSE)*Q$46+VLOOKUP(M$47,Foliars,6,FALSE)*Q$47+VLOOKUP(M$48,Foliars,6,FALSE)*Q$48","v":0},null,"None",0,0,1,0,0,0,null,{"$f":"VLOOKUP(Y$43,Foliars,5,FALSE)*AC$43+VLOOKUP(Y$44,Foliars,5,FALSE)*AC$44+VLOOKUP(Y$45,Foliars,5,FALSE)*AC$45+VLOOKUP(Y$46,Foliars,5,FALSE)*AC$46+VLOOKUP(Y$47,Foliars,5,FALSE)*AC$47+VLOOKUP(Y$48,Foliars,5,FALSE)*AC$48","v":0},{"$f":"VLOOKUP(Y$43,Foliars,7,FALSE)*AC$43+VLOOKUP(Y$44,Foliars,7,FALSE)*AC$44+VLOOKUP(Y$45,Foliars,7,FALSE)*AC$45+VLOOKUP(Y$46,Foliars,7,FALSE)*AC$46+VLOOKUP(Y$47,Foliars,7,FALSE)*AC$47+VLOOKUP(Y$48,Foliars,7,FALSE)*AC$48","v":0},{"$f":"VLOOKUP(Y$43,Foliars,6,FALSE)*AC$43+VLOOKUP(Y$44,Foliars,6,FALSE)*AC$44+VLOOKUP(Y$45,Foliars,6,FALSE)*AC$45+VLOOKUP(Y$46,Foliars,6,FALSE)*AC$46+VLOOKUP(Y$47,Foliars,6,FALSE)*AC$47+VLOOKUP(Y$48,Foliars,6,FALSE)*AC$48","v":0}]
["None",0,0,1,0,0,0,null,null,null,null,null,"None",0,0,1,0,0,0,null,null,null,null,null,"None",0,0,1,0,0,0]
["None",0,0,1,0,0,0,null,"Z","B","Mn",null,"None",0,0,1,0,0,0,null,"Z","B","Mn",null,"None",0,0,1,0,0,0,null,"Z","B","Mn"]
[null,null,null,null,null,null,null,null,{"$f":"VLOOKUP(A$43,Foliars,8,FALSE)*E$43+VLOOKUP(A$44,Foliars,8,FALSE)*E$44+VLOOKUP(A$45,Foliars,8,FALSE)*E$45+VLOOKUP(A$46,Foliars,8,FALSE)*E$46+VLOOKUP(A$47,Foliars,8,FALSE)*E$47+VLOOKUP(A$48,Foliars,8,FALSE)*E$48","v":0},{"$f":"VLOOKUP(A$43,Foliars,9,FALSE)*E$43+VLOOKUP(A$44,Foliars,9,FALSE)*E$44+VLOOKUP(A$45,Foliars,9,FALSE)*E$45+VLOOKUP(A$46,Foliars,9,FALSE)*E$46+VLOOKUP(A$47,Foliars,9,FALSE)*E$47+VLOOKUP(A$48,Foliars,9,FALSE)*E$48","v":0},{"$f":"VLOOKUP(A$43,Foliars,10,FALSE)*E$43+VLOOKUP(A$44,Foliars,10,FALSE)*E$44+VLOOKUP(A$45,Foliars,10,FALSE)*E$45+VLOOKUP(A$46,Foliars,10,FALSE)*E$46+VLOOKUP(A$47,Foliars,10,FALSE)*E$47+VLOOKUP(A$48,Foliars,10,FALSE)*E$48","v":0},null,null,null,null,null,null,null,null,null,{"$f":"VLOOKUP(M$43,Foliars,8,FALSE)*Q$43+VLOOKUP(M$44,Foliars,8,FALSE)*Q$44+VLOOKUP(M$45,Foliars,8,FALSE)*Q$45+VLOOKUP(M$46,Foliars,8,FALSE)*Q$46+VLOOKUP(M$47,Foliars,8,FALSE)*Q$47+VLOOKUP(M$48,Foliars,8,FALSE)*Q$48","v":0},{"$f":"VLOOKUP(M$43,Foliars,9,FALSE)*Q$43+VLOOKUP(M$44,Foliars,9,FALSE)*Q$44+VLOOKUP(M$45,Foliars,9,FALSE)*Q$45+VLOOKUP(M$46,Foliars,9,FALSE)*Q$46+VLOOKUP(M$47,Foliars,9,FALSE)*Q$47+VLOOKUP(M$48,Foliars,9,FALSE)*Q$48","v":0},{"$f":"VLOOKUP(M$43,Foliars,10,FALSE)*Q$43+VLOOKUP(M$44,Foliars,10,FALSE)*Q$44+VLOOKUP(M$45,Foliars,10,FALSE)*Q$45+VLOOKUP(M$46,Foliars,10,FALSE)*Q$46+VLOOKUP(M$47,Foliars,10,FALSE)*Q$47+VLOOKUP(M$48,Foliars,10,FALSE)*Q$48","v":0},null,null,null,null,null,null,null,null,null,{"$f":"VLOOKUP(Y$43,Foliars,8,FALSE)*AC$43+VLOOKUP(Y$44,Foliars,8,FALSE)*AC$44+VLOOKUP(Y$45,Foliars,8,FALSE)*AC$45+VLOOKUP(Y$46,Foliars,8,FALSE)*AC$46+VLOOKUP(Y$47,Foliars,8,FALSE)*AC$47+VLOOKUP(Y$48,Foliars,8,FALSE)*AC$48","v":0},{"$f":"VLOOKUP(Y$43,Foliars,9,FALSE)*AC$43+VLOOKUP(Y$44,Foliars,9,FALSE)*AC$44+VLOOKUP(Y$45,Foliars,9,FALSE)*AC$45+VLOOKUP(Y$46,Foliars,9,FALSE)*AC$46+VLOOKUP(Y$47,Foliars,9,FALSE)*AC$47+VLOOKUP(Y$48,Foliars,9,FALSE)*AC$48","v":0},{"$f":"VLOOKUP(Y$43,Foliars,10,FALSE)*AC$43+VLOOKUP(Y$44,Foliars,10,FALSE)*AC$44+VLOOKUP(Y$45,Foliars,10,FALSE)*AC$45+VLOOKUP(Y$46,Foliars,10,FALSE)*AC$46+VLOOKUP(Y$47,Foliars,10,FALSE)*AC$47+VLOOKUP(Y$48,Foliars,10,FALSE)*AC$48","v":0}]
[]
["Total Foliar Application Cost/Acre",null,null,null,null,null,{"$f":"SUM(G43:G48)","v":0},null,"Cu","Mo","Fe",null,"Total Foliar Application Cost/Acre",null,null,null,null,null,{"$f":"SUM(S43:S48)","v":0},null,"Cu","Mo","Fe",null,"Total Foliar Application Cost/Acre",null,null,null,null,null,{"$f":"SUM(AE43:AE48)","v":0},null,"Cu","Mo","Fe"]
[null,null,null,null,null,null,null,null,{"$f":"VLOOKUP(A43,Foliars,11,FALSE)*E43+VLOOKUP(A44,Foliars,11,FALSE)*E44+VLOOKUP(A45,Foliars,11,FALSE)*E45+VLOOKUP(A46,Foliars,11,FALSE)*E46+VLOOKUP(A47,Foliars,11,FALSE)*E47+VLOOKUP(A48,Foliars,11,FALSE)*E48","v":0},{"$f":"VLOOKUP(A43,Foliars,12,FALSE)*E43+VLOOKUP(A44,Foliars,12,FALSE)*E44+VLOOKUP(A45,Foliars,12,FALSE)*E45+VLOOKUP(A46,Foliars,12,FALSE)*E46+VLOOKUP(A47,Foliars,12,FALSE)*E47+VLOOKUP(A48,Foliars,12,FALSE)*E48","v":0},{"$f":"VLOOKUP(A43,Foliars,13,FALSE)*E43+VLOOKUP(A44,Foliars,13,FALSE)*E44+VLOOKUP(A45,Foliars,13,FALSE)*E45+VLOOKUP(A46,Foliars,13,FALSE)*E46+VLOOKUP(A47,Foliars,13,FALSE)*E47+VLOOKUP(A48,Foliars,13,FALSE)*E48","v":0},null,null,null,null,null,null,null,null,null,{"$f":"VLOOKUP(M43,Foliars,11,FALSE)*Q43+VLOOKUP(M44,Foliars,11,FALSE)*Q44+VLOOKUP(M45,Foliars,11,FALSE)*Q45+VLOOKUP(M46,Foliars,11,FALSE)*Q46+VLOOKUP(M47,Foliars,11,FALSE)*Q47+VLOOKUP(M48,Foliars,11,FALSE)*Q48","v":0},{"$f":"VLOOKUP(M43,Foliars,12,FALSE)*Q43+VLOOKUP(M44,Foliars,12,FALSE)*Q44+VLOOKUP(M45,Foliars,12,FALSE)*Q45+VLOOKUP(M46,Foliars,12,FALSE)*Q46+VLOOKUP(M47,Foliars,12,FALSE)*Q47+VLOOKUP(M48,Foliars,12,FALSE)*Q48","v":0},{"$f":"VLOOKUP(M43,Foliars,13,FALSE)*Q43+VLOOKUP(M44,Foliars,13,FALSE)*Q44+VLOOKUP(M45,Foliars,13,FALSE)*Q45+VLOOKUP(M46,Foliars,13,FALSE)*Q46+VLOOKUP(M47,Foliars,13,FALSE)*Q47+VLOOKUP(M48,Foliars,13,FALSE)*Q48","v":0},null,null,null,null,null,null,null,null,null,{"$f":"VLOOKUP(Y43,Foliars,11,FALSE)*AC43+VLOOKUP(Y44,Foliars,11,FALSE)*AC44+VLOOKUP(Y45,Foliars,11,FALSE)*AC45+VLOOKUP(Y46,Foliars,11,FALSE)*AC46+VLOOKUP(Y47,Foliars,11,FALSE)*AC47+VLOOKUP(Y48,Foliars,11,FALSE)*AC48","v":0},{"$f":"VLOOKUP(Y43,Foliars,12,FALSE)*AC43+VLOOKUP(Y44,Foliars,12,FALSE)*AC44+VLOOKUP(Y45,Foliars,12,FALSE)*AC45+VLOOKUP(Y46,Foliars,12,FALSE)*AC46+VLOOKUP(Y47,Foliars,12,FALSE)*AC47+VLOOKUP(Y48,Foliars,12,FALSE)*AC48","v":0},{"$f":"VLOOKUP(Y43,Foliars,13,FALSE)*AC43+VLOOKUP(Y44,Foliars,13,FALSE)*AC44+VLOOKUP(Y45,Foliars,13,FALSE)*AC45+VLOOKUP(Y46,Foliars,13,FALSE)*AC46+VLOOKUP(Y47,Foliars,13,FALSE)*AC47+VLOOKUP(Y48,Foliars,13,FALSE)*AC48","v":0}]
["Fertigation Applications",null,null,null,null,null,null,null,null,null,null,null,"Fertigation Applications",null,null,null,null,null,null,null,null,null,null,null,"Fertigation Applications"]
["Fertilizer Source","Purchase Units","Package Price (Gals, Lbs, etc.)","Units/Pkg","Rate/Acre","Units","Cost",null,null,null,null,null,"Fertilizer Source","Purchase Units","Package Price (Gals, Lbs, etc.)","Units/Pkg","Rate/Acre","Units","Cost",null,null,null,null,null,"Fertilizer Source","Purchase Units","Package Price (Gals, Lbs, etc.)","Units/Pkg","Rate/Acre","Units","Cost"]
["Fertigation (drop down menu)",null,null,null,"(Enter Below)",null,null,null,"N","P","K",null,"Fertigation (drop down menu)",null,null,null,"(Enter Below)",null,null,null,"N","P","K",null,"Fertigation (drop down menu)",null,null,null,"(Enter Below)",null,null,null,"N","P","K"]
["None",{"$f":"VLOOKUP(A56,Fertigation,14,FALSE)","v":0},{"$f":"VLOOKUP(A56,Fertigation,18,FALSE)","v":0},{"$f":"VLOOKUP(A56,Fertigation,16,FALSE)","v":1},0,{"$f":"VLOOKUP(A56,Fertigation,15,FALSE)","v":0},{"$f":"(E56*VLOOKUP(A56,Fertigation,14,FALSE)/D56)*C56","v":0},null,{"$f":"VLOOKUP(A$56,Fertigation,2,FALSE)*E$56+VLOOKUP(A$57,Fertigation,2,FALSE)*E$57+VLOOKUP(A$58,Fertigation,2,FALSE)*E$58+VLOOKUP(A$59,Fertigation,2,FALSE)*E$59+VLOOKUP(A$60,Fertigation,2,FALSE)*E$60+VLOOKUP(A$61,Fertigation,2,FALSE)*E$61","v":0},{"$f":"VLOOKUP(A$56,Fertigation,3,FALSE)*E$56+VLOOKUP(A$57,Fertigation,3,FALSE)*E$57+VLOOKUP(A$58,Fertigation,3,FALSE)*E$58+VLOOKUP(A$59,Fertigation,3,FALSE)*E$59+VLOOKUP(A$60,Fertigation,3,FALSE)*E$60+VLOOKUP(A$61,Fertigation,3,FALSE)*E$61","v":0},{"$f":"VLOOKUP(A$56,Fertigation,4,FALSE)*E$56+VLOOKUP(A$57,Fertigation,4,FALSE)*E$57+VLOOKUP(A$58,Fertigation,4,FALSE)*E$58+VLOOKUP(A$59,Fertigation,4,FALSE)*E$59+VLOOKUP(A$60,Fertigation,4,FALSE)*E$60+VLOOKUP(A$61,Fertigation,4,FALSE)*E$61","v":0},null,"None",{"$f":"VLOOKUP(M56,Fertigation,14,FALSE)","v":0},{"$f":"VLOOKUP(M56,Fertigation,18,FALSE)","v":0},{"$f":"VLOOKUP(M56,Fertigation,16,FALSE)","v":1},0,{"$f":"VLOOKUP(M56,Fertigation,15,FALSE)","v":0},{"$f":"(Q56*VLOOKUP(M56,Foliars,14,FALSE)/P56)*O56","v":0},null,{"$f":"VLOOKUP(M$56,Fertigation,2,FALSE)*Q$56+VLOOKUP(M$57,Fertigation,2,FALSE)*Q$57+VLOOKUP(M$58,Fertigation,2,FALSE)*Q$58+VLOOKUP(M$59,Fertigation,2,FALSE)*Q$59+VLOOKUP(M$60,Fertigation,2,FALSE)*Q$60+VLOOKUP(M$61,Fertigation,2,FALSE)*Q$61","v":0},{"$f":"VLOOKUP(M$56,Fertigation,3,FALSE)*Q$56+VLOOKUP(M$57,Fertigation,3,FALSE)*Q$57+VLOOKUP(M$58,Fertigation,3,FALSE)*Q$58+VLOOKUP(M$59,Fertigation,3,FALSE)*Q$59+VLOOKUP(M$60,Fertigation,3,FALSE)*Q$60+VLOOKUP(M$61,Fertigation,3,FALSE)*Q$61","v":0},{"$f":"VLOOKUP(M$56,Fertigation,4,FALSE)*Q$56+VLOOKUP(M$57,Fertigation,4,FALSE)*Q$57+VLOOKUP(M$58,Fertigation,4,FALSE)*Q$58+VLOOKUP(M$59,Fertigation,4,FALSE)*Q$59+VLOOKUP(M$60,Fertigation,4,FALSE)*Q$60+VLOOKUP(M$61,Fertigation,4,FALSE)*Q$61","v":0},null,"None",{"$f":"VLOOKUP(Y56,Fertigation,14,FALSE)","v":0},{"$f":"VLOOKUP(Y56,Fertigation,18,FALSE)","v":0},{"$f":"VLOOKUP(Y56,Fertigation,16,FALSE)","v":1},0,{"$f":"VLOOKUP(Y56,Fertigation,15,FALSE)","v":0},{"$f":"(AC56*VLOOKUP(Y56,Foliars,14,FALSE)/AB56)*AA56","v":0},null,{"$f":"VLOOKUP(Y$56,Fertigation,2,FALSE)*AC$56+VLOOKUP(Y$57,Fertigation,2,FALSE)*AC$57+VLOOKUP(Y$58,Fertigation,2,FALSE)*AC$58+VLOOKUP(Y$59,Fertigation,2,FALSE)*AC$59+VLOOKUP(Y$60,Fertigation,2,FALSE)*AC$60+VLOOKUP(Y$61,Fertigation,2,FALSE)*AC$61","v":0},{"$f":"VLOOKUP(Y$56,Fertigation,3,FALSE)*AC$56+VLOOKUP(Y$57,Fertigation,3,FALSE)*AC$57+VLOOKUP(Y$58,Fertigation,3,FALSE)*AC$58+VLOOKUP(Y$59,Fertigation,3,FALSE)*AC$59+VLOOKUP(Y$60,Fertigation,3,FALSE)*AC$60+VLOOKUP(Y$61,Fertigation,3,FALSE)*AC$61","v":0},{"$f":"VLOOKUP(Y$56,Fertigation,4,FALSE)*AC$56+VLOOKUP(Y$57,Fertigation,4,FALSE)*AC$57+VLOOKUP(Y$58,Fertigation,4,FALSE)*AC$58+VLOOKUP(Y$59,Fertigation,4,FALSE)*AC$59+VLOOKUP(Y$60,Fertigation,4,FALSE)*AC$60+VLOOKUP(Y$61,Fertigation,4,FALSE)*AC$61","v":0}]
["None",{"$f":"VLOOKUP(A57,Foliars,14,FALSE)","v":0},0,1,0,0,0,null,null,null,null,null,"None",{"$f":"VLOOKUP(M57,Foliars,14,FALSE)","v":0},0,1,0,0,0,null,null,null,null,null,"None",{"$f":"VLOOKUP(Y57,Foliars,14,FALSE)","v":0},0,1,0,0,0]
["None",{"$f":"VLOOKUP(A58,Foliars,14,FALSE)","v":0},0,1,0,0,0,null,"S","Ca","Mg",null,"None",{"$f":"VLOOKUP(M58,Foliars,14,FALSE)","v":0},0,1,0,0,0,null,"S","Ca","Mg",null,"None",{"$f":"VLOOKUP(Y58,Foliars,14,FALSE)","v":0},0,1,0,0,0,null,"S","Ca","Mg"]
["None",{"$f":"VLOOKUP(A59,Foliars,14,FALSE)","v":0},0,1,0,0,0,null,{"$f":"VLOOKUP(A$56,Fertigation,5,FALSE)*E$56+VLOOKUP(A$57,Fertigation,5,FALSE)*E$57+VLOOKUP(A$58,Fertigation,5,FALSE)*E$58+VLOOKUP(A$59,Fertigation,5,FALSE)*E$59+VLOOKUP(A$60,Fertigation,5,FALSE)*E$60+VLOOKUP(A$61,Fertigation,5,FALSE)*E$61","v":0},{"$f":"VLOOKUP(A$56,Fertigation,7,FALSE)*E$56+VLOOKUP(A$57,Fertigation,7,FALSE)*E$57+VLOOKUP(A$58,Fertigation,7,FALSE)*E$58+VLOOKUP(A$59,Fertigation,7,FALSE)*E$59+VLOOKUP(A$60,Fertigation,7,FALSE)*E$60+VLOOKUP(A$61,Fertigation,7,FALSE)*E$61","v":0},{"$f":"VLOOKUP(A$56,Fertigation,6,FALSE)*E$56+VLOOKUP(A$57,Fertigation,6,FALSE)*E$57+VLOOKUP(A$58,Fertigation,6,FALSE)*E$58+VLOOKUP(A$59,Fertigation,6,FALSE)*E$59+VLOOKUP(A$60,Fertigation,6,FALSE)*E$60+VLOOKUP(A$61,Fertigation,6,FALSE)*E$61","v":0},null,"None",{"$f":"VLOOKUP(M59,Foliars,14,FALSE)","v":0},0,1,0,0,0,null,{"$f":"VLOOKUP(M$56,Fertigation,5,FALSE)*Q$56+VLOOKUP(M$57,Fertigation,5,FALSE)*Q$57+VLOOKUP(M$58,Fertigation,5,FALSE)*Q$58+VLOOKUP(M$59,Fertigation,5,FALSE)*Q$59+VLOOKUP(M$60,Fertigation,5,FALSE)*Q$60+VLOOKUP(M$61,Fertigation,5,FALSE)*Q$61","v":0},{"$f":"VLOOKUP(M$56,Fertigation,7,FALSE)*Q$56+VLOOKUP(M$57,Fertigation,7,FALSE)*Q$57+VLOOKUP(M$58,Fertigation,7,FALSE)*Q$58+VLOOKUP(M$59,Fertigation,7,FALSE)*Q$59+VLOOKUP(M$60,Fertigation,7,FALSE)*Q$60+VLOOKUP(M$61,Fertigation,7,FALSE)*Q$61","v":0},{"$f":"VLOOKUP(M$56,Fertigation,6,FALSE)*Q$56+VLOOKUP(M$57,Fertigation,6,FALSE)*Q$57+VLOOKUP(M$58,Fertigation,6,FALSE)*Q$58+VLOOKUP(M$59,Fertigation,6,FALSE)*Q$59+VLOOKUP(M$60,Fertigation,6,FALSE)*Q$60+VLOOKUP(M$61,Fertigation,6,FALSE)*Q$61","v":0},null,"None",{"$f":"VLOOKUP(Y59,Foliars,14,FALSE)","v":0},0,1,0,0,0,null,{"$f":"VLOOKUP(Y$56,Fertigation,5,FALSE)*AC$56+VLOOKUP(Y$57,Fertigation,5,FALSE)*AC$57+VLOOKUP(Y$58,Fertigation,5,FALSE)*AC$58+VLOOKUP(Y$59,Fertigation,5,FALSE)*AC$59+VLOOKUP(Y$60,Fertigation,5,FALSE)*AC$60+VLOOKUP(Y$61,Fertigation,5,FALSE)*AC$61","v":0},{"$f":"VLOOKUP(Y$56,Fertigation,7,FALSE)*AC$56+VLOOKUP(Y$57,Fertigation,7,FALSE)*AC$57+VLOOKUP(Y$58,Fertigation,7,FALSE)*AC$58+VLOOKUP(Y$59,Fertigation,7,FALSE)*AC$59+VLOOKUP(Y$60,Fertigation,7,FALSE)*AC$60+VLOOKUP(Y$61,Fertigation,7,FALSE)*AC$61","v":0},{"$f":"VLOOKUP(Y$56,Fertigation,6,FALSE)*AC$56+VLOOKUP(Y$57,Fertigation,6,FALSE)*AC$57+VLOOKUP(Y$58,Fertigation,6,FALSE)*AC$58+VLOOKUP(Y$59,Fertigation,6,FALSE)*AC$59+VLOOKUP(Y$60,Fertigation,6,FALSE)*AC$60+VLOOKUP(Y$61,Fertigation,6,FALSE)*AC$61","v":0}]
["None",{"$f":"VLOOKUP(A60,Foliars,14,FALSE)","v":0},0,1,0,0,0,null,null,null,null,null,"None",{"$f":"VLOOKUP(M60,Foliars,14,FALSE)","v":0},0,1,0,0,0,null,null,null,null,null,"None",{"$f":"VLOOKUP(Y60,Foliars,14,FALSE)","v":0},0,1,0,0,0]
["None",{"$f":"VLOOKUP(A61,Foliars,14,FALSE)","v":0},0,1,0,0,0,null,"Z","B","Mn",null,"None",{"$f":"VLOOKUP(M61,Foliars,14,FALSE)","v":0},0,1,0,0,0,null,"Z","B","Mn",null,"None",{"$f":"VLOOKUP(Y61,Foliars,14,FALSE)","v":0},0,1,0,0,0,null,"Z","B","Mn"]
[null,null,null,null,null,null,null,null,{"$f":"VLOOKUP(A$56,Fertigation,8,FALSE)*E$56+VLOOKUP(A$57,Fertigation,8,FALSE)*E$57+VLOOKUP(A$58,Fertigation,8,FALSE)*E$58+VLOOKUP(A$59,Fertigation,8,FALSE)*E$59+VLOOKUP(A$60,Fertigation,8,FALSE)*E$60+VLOOKUP(A$61,Fertigation,8,FALSE)*E$61","v":0},{"$f":"VLOOKUP(A$56,Fertigation,9,FALSE)*E$56+VLOOKUP(A$57,Fertigation,9,FALSE)*E$57+VLOOKUP(A$58,Fertigation,9,FALSE)*E$58+VLOOKUP(A$59,Fertigation,9,FALSE)*E$59+VLOOKUP(A$60,Fertigation,9,FALSE)*E$60+VLOOKUP(A$61,Fertigation,9,FALSE)*E$61","v":0},{"$f":"VLOOKUP(A$56,Fertigation,10,FALSE)*E$56+VLOOKUP(A$57,Fertigation,10,FALSE)*E$57+VLOOKUP(A$58,Fertigation,10,FALSE)*E$58+VLOOKUP(A$59,Fertigation,10,FALSE)*E$59+VLOOKUP(A$60,Fertigation,10,FALSE)*E$60+VLOOKUP(A$61,Fertigation,10,FALSE)*E$61","v":0},null,null,null,null,null,null,null,null,null,{"$f":"VLOOKUP(M$56,Fertigation,8,FALSE)*Q$56+VLOOKUP(M$57,Fertigation,8,FALSE)*Q$57+VLOOKUP(M$58,Fertigation,8,FALSE)*Q$58+VLOOKUP(M$59,Fertigation,8,FALSE)*Q$59+VLOOKUP(M$60,Fertigation,8,FALSE)*Q$60+VLOOKUP(M$61,Fertigation,8,FALSE)*Q$61","v":0},{"$f":"VLOOKUP(M$56,Fertigation,9,FALSE)*Q$56+VLOOKUP(M$57,Fertigation,9,FALSE)*Q$57+VLOOKUP(M$58,Fertigation,9,FALSE)*Q$58+VLOOKUP(M$59,Fertigation,9,FALSE)*Q$59+VLOOKUP(M$60,Fertigation,9,FALSE)*Q$60+VLOOKUP(M$61,Fertigation,9,FALSE)*Q$61","v":0},{"$f":"VLOOKUP(M$56,Fertigation,10,FALSE)*Q$56+VLOOKUP(M$57,Fertigation,10,FALSE)*Q$57+VLOOKUP(M$58,Fertigation,10,FALSE)*Q$58+VLOOKUP(M$59,Fertigation,10,FALSE)*Q$59+VLOOKUP(M$60,Fertigation,10,FALSE)*Q$60+VLOOKUP(M$61,Fertigation,10,FALSE)*Q$61","v":0},null,null,null,null,null,null,null,null,null,{"$f":"VLOOKUP(Y$56,Fertigation,8,FALSE)*AC$56+VLOOKUP(Y$57,Fertigation,8,FALSE)*AC$57+VLOOKUP(Y$58,Fertigation,8,FALSE)*AC$58+VLOOKUP(Y$59,Fertigation,8,FALSE)*AC$59+VLOOKUP(Y$60,Fertigation,8,FALSE)*AC$60+VLOOKUP(Y$61,Fertigation,8,FALSE)*AC$61","v":0},{"$f":"VLOOKUP(Y$56,Fertigation,9,FALSE)*AC$56+VLOOKUP(Y$57,Fertigation,9,FALSE)*AC$57+VLOOKUP(Y$58,Fertigation,9,FALSE)*AC$58+VLOOKUP(Y$59,Fertigation,9,FALSE)*AC$59+VLOOKUP(Y$60,Fertigation,9,FALSE)*AC$60+VLOOKUP(Y$61,Fertigation,9,FALSE)*AC$61","v":0},{"$f":"VLOOKUP(Y$56,Fertigation,10,FALSE)*AC$56+VLOOKUP(Y$57,Fertigation,10,FALSE)*AC$57+VLOOKUP(Y$58,Fertigation,10,FALSE)*AC$58+VLOOKUP(Y$59,Fertigation,10,FALSE)*AC$59+VLOOKUP(Y$60,Fertigation,10,FALSE)*AC$60+VLOOKUP(Y$61,Fertigation,10,FALSE)*AC$61","v":0}]
[]
["Total Fertigation Cost/Acre",null,null,null,null,null,{"$f":"SUM(G56:G61)","v":0},null,"Cu","Mo","Fe",null,"Total Fertigation Cost/Acre",null,null,null,null,null,{"$f":"SUM(S56:S61)","v":0},null,"Cu","Mo","Fe",null,"Total Fertigation Cost/Acre",null,null,null,null,null,{"$f":"SUM(AE56:AE61)","v":0},null,"Cu","Mo","Fe"]
[null,null,null,null,null,null,null,null,{"$f":"VLOOKUP(A56,Fertigation,11,FALSE)*E56+VLOOKUP(A57,Fertigation,11,FALSE)*E57+VLOOKUP(A58,Fertigation,11,FALSE)*E58+VLOOKUP(A59,Fertigation,11,FALSE)*E59+VLOOKUP(A60,Fertigation,11,FALSE)*E60+VLOOKUP(A61,Fertigation,11,FALSE)*E61","v":0},{"$f":"VLOOKUP(A56,Fertigation,12,FALSE)*E56+VLOOKUP(A57,Fertigation,12,FALSE)*E57+VLOOKUP(A58,Fertigation,12,FALSE)*E58+VLOOKUP(A59,Fertigation,12,FALSE)*E59+VLOOKUP(A60,Fertigation,12,FALSE)*E60+VLOOKUP(A61,Fertigation,12,FALSE)*E61","v":0},{"$f":"VLOOKUP(A56,Fertigation,13,FALSE)*E56+VLOOKUP(A57,Fertigation,13,FALSE)*E57+VLOOKUP(A58,Fertigation,13,FALSE)*E58+VLOOKUP(A59,Fertigation,13,FALSE)*E59+VLOOKUP(A60,Fertigation,13,FALSE)*E60+VLOOKUP(A61,Fertigation,13,FALSE)*E61","v":0},null,null,null,null,null,null,null,null,null,{"$f":"VLOOKUP(M56,Fertigation,11,FALSE)*Q56+VLOOKUP(M57,Fertigation,11,FALSE)*Q57+VLOOKUP(M58,Fertigation,11,FALSE)*Q58+VLOOKUP(M59,Fertigation,11,FALSE)*Q59+VLOOKUP(M60,Fertigation,11,FALSE)*Q60+VLOOKUP(M61,Fertigation,11,FALSE)*Q61","v":0},{"$f":"VLOOKUP(M56,Fertigation,12,FALSE)*Q56+VLOOKUP(M57,Fertigation,12,FALSE)*Q57+VLOOKUP(M58,Fertigation,12,FALSE)*Q58+VLOOKUP(M59,Fertigation,12,FALSE)*Q59+VLOOKUP(M60,Fertigation,12,FALSE)*Q60+VLOOKUP(M61,Fertigation,12,FALSE)*Q61","v":0},{"$f":"VLOOKUP(M56,Fertigation,13,FALSE)*Q56+VLOOKUP(M57,Fertigation,13,FALSE)*Q57+VLOOKUP(M58,Fertigation,13,FALSE)*Q58+VLOOKUP(M59,Fertigation,13,FALSE)*Q59+VLOOKUP(M60,Fertigation,13,FALSE)*Q60+VLOOKUP(M61,Fertigation,13,FALSE)*Q61","v":0},null,null,null,null,null,null,null,null,null,{"$f":"VLOOKUP(Y56,Fertigation,11,FALSE)*AC56+VLOOKUP(Y57,Fertigation,11,FALSE)*AC57+VLOOKUP(Y58,Fertigation,11,FALSE)*AC58+VLOOKUP(Y59,Fertigation,11,FALSE)*AC59+VLOOKUP(Y60,Fertigation,11,FALSE)*AC60+VLOOKUP(Y61,Fertigation,11,FALSE)*AC61","v":0},{"$f":"VLOOKUP(Y56,Fertigation,12,FALSE)*AC56+VLOOKUP(Y57,Fertigation,12,FALSE)*AC57+VLOOKUP(Y58,Fertigation,12,FALSE)*AC58+VLOOKUP(Y59,Fertigation,12,FALSE)*AC59+VLOOKUP(Y60,Fertigation,12,FALSE)*AC60+VLOOKUP(Y61,Fertigation,12,FALSE)*AC61","v":0},{"$f":"VLOOKUP(Y56,Fertigation,13,FALSE)*AC56+VLOOKUP(Y57,Fertigation,13,FALSE)*AC57+VLOOKUP(Y58,Fertigation,13,FALSE)*AC58+VLOOKUP(Y59,Fertigation,13,FALSE)*AC59+VLOOKUP(Y60,Fertigation,13,FALSE)*AC60+VLOOKUP(Y61,Fertigation,13,FALSE)*AC61","v":0}]
[]
["Total Fertilizer Cost/Acre",null,null,null,null,null,{"$f":"G38+G21+G51","v":0},null,null,null,null,null,"Total Fertilizer Cost/Acre",null,null,null,null,null,{"$f":"S38+S21+S51","v":0},null,null,null,null,null,"Total Fertilizer Cost/Acre",null,null,null,null,null,{"$f":"AE38+AE21+AE51","v":0}]
[]
[null,null,null,null,"Total Nutrient Needs",null,null,null,"Total Fertilizer Program",null,null,null,null,null,null,null,"Total Nutrient Needs",null,null,null,"Total Fertilizer Program",null,null,null,null,null,null,null,"Total Nutrient Needs",null,null,null,"Total Fertilizer Program"]
[null,null,null,null,"Based on:","Soil Test Based Recs",null,null,"Comparison 1",null,null,null,null,null,null,null,"Based on:","Soil Test Based Recs",null,null,"Comparison 2",null,null,null,null,null,null,null,"Based on:","Soil Test Based Recs",null,null,"Comparison 3"]
["Farm Name",null,null,null,"N","P","K",null,"N","P","K",null,{"$f":"A71","v":"Farm Name"},null,null,null,"N","P","K",null,"N","P","K",null,{"$f":"A71","v":"Farm Name"},null,null,null,"N","P","K",null,"N","P","K"]
["Farm Tract",null,null,null,{"$f":"'Nutrient Management'!$B$56","v":0},{"$f":"'Nutrient Management'!$C$56","v":0},{"$f":"'Nutrient Management'!$D$56","v":0},null,{"$f":"I43+I26+I6+I56","v":0},{"$f":"J43+J26+J6+J56","v":0},{"$f":"K43+K26+K6+K56","v":0},null,{"$f":"A72","v":"Farm Tract"},null,null,null,{"$f":"'Nutrient Management'!$B$56","v":0},{"$f":"'Nutrient Management'!$C$56","v":0},{"$f":"'Nutrient Management'!$D$56","v":0},null,{"$f":"U43+U26+U6+U56","v":0},{"$f":"V43+V26+V6+V56","v":0},{"$f":"W43+W26+W6+W56","v":0},null,{"$f":"A72","v":"Farm Tract"},null,null,null,{"$f":"'Nutrient Management'!$B$56","v":0},{"$f":"'Nutrient Management'!$C$56","v":0},{"$f":"'Nutrient Management'!$D$56","v":0},null,{"$f":"AG43+AG26+AG6+AG56","v":0},{"$f":"AH43+AH26+AH6+AH56","v":0},{"$f":"AI43+AI26+AI6+AI56","v":0}]
["Farm Number",null,null,null,"S","Ca","Mg",null,"S","Ca","Mg",null,"Farm Number",null,null,null,"S","Ca","Mg",null,"S","Ca","Mg",null,"Farm Number",null,null,null,"S","Ca","Mg",null,"S","Ca","Mg"]
[null,null,null,null,{"$f":"'Nutrient Management'!$B$59","v":0},{"$f":"'Nutrient Management'!$C$59","v":0},{"$f":"'Nutrient Management'!$D$59","v":0},null,{"$f":"I46+I29+I9+I59","v":0},{"$f":"J46+J29+J9+J59","v":0},{"$f":"K46+K29+K9+K59","v":0},null,null,null,null,null,{"$f":"'Nutrient Management'!$B$59","v":0},{"$f":"'Nutrient Management'!$C$59","v":0},{"$f":"'Nutrient Management'!$D$59","v":0},null,{"$f":"U46+U29+U9+U59","v":0},{"$f":"V46+V29+V9+V59","v":0},{"$f":"W46+W29+W9+W59","v":0},null,null,null,null,null,{"$f":"'Nutrient Management'!$B$59","v":0},{"$f":"'Nutrient Management'!$C$59","v":0},{"$f":"'Nutrient Management'!$D$59","v":0},null,{"$f":"AG46+AG29+AG9+AG59","v":0},{"$f":"AH46+AH29+AH9+AH59","v":0},{"$f":"AI46+AI29+AI9+AI59","v":0}]
[null,null,null,null,"Z","B","Mn",null,"Z","B","Mn",null,null,null,null,null,"Z","B","Mn",null,"Z","B","Mn",null,null,null,null,null,"Z","B","Mn",null,"Z","B","Mn"]
[null,null,null,null,{"$f":"'Nutrient Management'!$B$61","v":0},{"$f":"'Nutrient Management'!$C$61","v":0},{"$f":"'Nutrient Management'!$D$61","v":0},null,{"$f":"I49+I32+I12+I62","v":0},{"$f":"J49+J32+J12+J62","v":0},{"$f":"K49+K32+K12+K62","v":0},null,null,null,null,null,{"$f":"'Nutrient Management'!$B$61","v":0},{"$f":"'Nutrient Management'!$C$61","v":0},{"$f":"'Nutrient Management'!$D$61","v":0},null,{"$f":"U49+U32+U12+U62","v":0},{"$f":"V49+V32+V12+V62","v":0},{"$f":"W49+W32+W12+W62","v":0},null,null,null,null,null,{"$f":"'Nutrient Management'!$B$61","v":0},{"$f":"'Nutrient Management'!$C$61","v":0},{"$f":"'Nutrient Management'!$D$61","v":0},null,{"$f":"AG49+AG32+AG12+AG62","v":0},{"$f":"AH49+AH32+AH12+AH62","v":0},{"$f":"AI49+AI32+AI12+AI62","v":0}]
[null,null,null,null,"Cu","Mo","Fe",null,"Cu","Mo","Fe",null,null,null,null,null,"Cu","Mo","Fe",null,"Cu","Mo","Fe",null,null,null,null,null,"Cu","Mo","Fe",null,"Cu","Mo","Fe"]
[null,null,null,null,{"$f":"'Nutrient Management'!$B$63","v":0},{"$f":"'Nutrient Management'!$C$63","v":0},{"$f":"'Nutrient Management'!$D$63","v":0},null,{"$f":"I65+I52+I35+I15","v":0},{"$f":"J65+J52+J35+J15","v":0},0,null,null,null,null,null,{"$f":"'Nutrient Management'!$B$63","v":0},{"$f":"'Nutrient Management'!$C$63","v":0},{"$f":"'Nutrient Management'!$D$63","v":0},null,{"$f":"U65+U52+U35+U15","v":0},{"$f":"V65+V52+V35+V15","v":0},0,null,null,null,null,null,{"$f":"'Nutrient Management'!$B$63","v":0},{"$f":"'Nutrient Management'!$C$63","v":0},{"$f":"'Nutrient Management'!$D$63","v":0},null,{"$f":"AG65+AG52+AG35+AG15","v":0},{"$f":"AH65+AH52+AH35+AH15","v":0},0]
[null,null,null,null,"* from Nutrient Management tab",null,null,null,null,null,null,null,null,null,null,null,"* from Nutrient Management tab",null,null,null,null,null,null,null,null,null,null,null,"* from Nutrient Management tab"]

{"sheet":"Fertilizer Plan (Fruit 2)","index":8,"n_rows":79,"n_cols":35,"rows_kept":79,"cut":false,"hidden":false,"merged":[[52,12,52,22],[52,24,52,34],[69,32,69,34],[68,4,68,6],[68,8,68,10],[68,16,68,18],[68,20,68,22],[68,28,68,30],[68,32,68,34],[69,5,69,6],[69,8,69,10],[69,17,69,18],[69,20,69,22],[69,29,69,30],[52,0,52,10],[21,23,22,23],[22,0,22,10],[22,12,22,22],[22,24,22,34],[39,0,39,10],[39,12,39,22],[39,24,39,34],[2,0,2,10],[2,12,2,22],[2,24,2,34],[0,0,0,10],[0,12,0,22],[0,24,0,34],[1,0,1,10],[1,12,1,22],[1,24,1,34]]}
[{"$f":"'Nutrient Management'!B2","v":"Enter Crop Name"},null,null,null,null,null,null,null,null,null,null,null,{"$f":"A1","v":"Enter Crop Name"},null,null,null,null,null,null,null,null,null,null,null,{"$f":"A1","v":"Enter Crop Name"}]
["Comparison Plan 1",null,null,null,null,null,null,null,null,null,null,null,"Comparison Plan 2",null,null,null,null,null,null,null,null,null,null,null,"Comparison Plan 3"]
["1st Application (i.e., Pre-Plant or Broadcast Fertilizer)",null,null,null,null,null,null,null,null,null,null,null,"1st Application (i.e., Pre-Plant or Broadcast Fertilizer)",null,null,null,null,null,null,null,null,null,null,null,"1st Application (i.e., Pre-Plant or Broadcast Fertilizer)"]
["Fertilizer Source","Purchase Units","Package Price (Gals, Lbs, etc.)","Units/Pkg","Rate/Acre","Units","Cost",null,null,null,null,null,"Fertilizer Source","Purchase Units","Package Price (Gals, Lbs, etc.)","Units/Pkg","Rate/Acre","Units","Cost",null,null,null,null,null,"Fertilizer Source","Purchase Units","Package Price (Gals, Lbs, etc.)","Units/Pkg","Rate/Acre","Units","Cost"]
["Macronutrients (drop down menu)",null,null,null,"(Enter Below)",null,null,null,"N","P","K",null,"Macronutrients (drop down menu)",null,null,null,"(Enter Below)",null,null,null,"N","P","K",null,"Macronutrients (drop down menu)",null,null,null,"(Enter Below)",null,null,null,"N","P","K"]
["None",{"$f":"VLOOKUP(A6,Macronutrients,18,FALSE)","v":0},{"$f":"VLOOKUP(A6,Macronutrients,18,FALSE)","v":0},{"$f":"VLOOKUP(A6,Macronutrients,16,FALSE)","v":1},0,{"$f":"VLOOKUP(A6,Macronutrients,15,FALSE)","v":0},{"$f":"(E6*VLOOKUP(A6,Macronutrients,14,FALSE)/D6)*C6","v":0},null,{"$f":"VLOOKUP(A6,Macronutrients,2,FALSE)*E6+VLOOKUP(A7,Macronutrients,2,FALSE)*E7+VLOOKUP(A8,Macronutrients,2,FALSE)*E8+VLOOKUP(A9,Macronutrients,2,FALSE)*E9+VLOOKUP(A10,Macronutrients,2,FALSE)*E10+VLOOKUP(A11,Macronutrients,2,FALSE)*E11+VLOOKUP(A14,Micronutrients,2,FALSE)*E14+VLOOKUP(A15,Micronutrients,2,FALSE)*E15+VLOOKUP(A16,Micronutrients,2,FALSE)*E16+VLOOKUP(A17,Micronutrients,2,FALSE)*E17","v":0},{"$f":"VLOOKUP(A6,Macronutrients,3,FALSE)*E6+VLOOKUP(A7,Macronutrients,3,FALSE)*E7+VLOOKUP(A8,Macronutrients,3,FALSE)*E8+VLOOKUP(A9,Macronutrients,3,FALSE)*E9+VLOOKUP(A10,Macronutrients,3,FALSE)*E10+VLOOKUP(A11,Macronutrients,3,FALSE)*E11+VLOOKUP(A14,Micronutrients,3,FALSE)*E14+VLOOKUP(A15,Micronutrients,3,FALSE)*E15+VLOOKUP(A16,Micronutrients,3,FALSE)*E16+VLOOKUP(A17,Micronutrients,3,FALSE)*E17","v":0},{"$f":"VLOOKUP(A6,Macronutrients,4,FALSE)*E6+VLOOKUP(A7,Macronutrients,4,FALSE)*E7+VLOOKUP(A8,Macronutrients,4,FALSE)*E8+VLOOKUP(A9,Macronutrients,4,FALSE)*E9+VLOOKUP(A10,Macronutrients,4,FALSE)*E10+VLOOKUP(A11,Macronutrients,4,FALSE)*E11+VLOOKUP(A14,Micronutrients,4,FALSE)*E14+VLOOKUP(A15,Micronutrients,4,FALSE)*E15+VLOOKUP(A16,Micronutrients,4,FALSE)*E16+VLOOKUP(A17,Micronutrients,4,FALSE)*E17","v":0},null,"None",{"$f":"VLOOKUP(M6,Macronutrients,14,FALSE)","v":0},{"$f":"VLOOKUP(M6,Macronutrients,18,FALSE)","v":0},{"$f":"VLOOKUP(M6,Macronutrients,16,FALSE)","v":1},0,{"$f":"VLOOKUP(M6,Macronutrients,15,FALSE)","v":0},{"$f":"(Q6*VLOOKUP(M6,Macronutrients,14,FALSE)/P6)*O6","v":0},null,{"$f":"VLOOKUP(M6,Macronutrients,2,FALSE)*Q6+VLOOKUP(M7,Macronutrients,2,FALSE)*Q7+VLOOKUP(M8,Macronutrients,2,FALSE)*Q8+VLOOKUP(M9,Macronutrients,2,FALSE)*Q9+VLOOKUP(M10,Macronutrients,2,FALSE)*Q10+VLOOKUP(M11,Macronutrients,2,FALSE)*Q11+VLOOKUP(M14,Micronutrients,2,FALSE)*Q14+VLOOKUP(M15,Micronutrients,2,FALSE)*Q15+VLOOKUP(M16,Micronutrients,2,FALSE)*Q16+VLOOKUP(M17,Micronutrients,2,FALSE)*Q17","v":0},{"$f":"VLOOKUP(M6,Macronutrients,3,FALSE)*Q6+VLOOKUP(M7,Macronutrients,3,FALSE)*Q7+VLOOKUP(M8,Macronutrients,3,FALSE)*Q8+VLOOKUP(M9,Macronutrients,3,FALSE)*Q9+VLOOKUP(M10,Macronutrients,3,FALSE)*Q10+VLOOKUP(M11,Macronutrients,3,FALSE)*Q11+VLOOKUP(M14,Micronutrients,3,FALSE)*Q14+VLOOKUP(M15,Micronutrients,3,FALSE)*Q15+VLOOKUP(M16,Micronutrients,3,FALSE)*Q16+VLOOKUP(M17,Micronutrients,3,FALSE)*Q17","v":0},{"$f":"VLOOKUP(M6,Macronutrients,4,FALSE)*Q6+VLOOKUP(M7,Macronutrients,4,FALSE)*Q7+VLOOKUP(M8,Macronutrients,4,FALSE)*Q8+VLOOKUP(M9,Macronutrients,4,FALSE)*Q9+VLOOKUP(M10,Macronutrients,4,FALSE)*Q10+VLOOKUP(M11,Macronutrients,4,FALSE)*Q11+VLOOKUP(M14,Micronutrients,4,FALSE)*Q14+VLOOKUP(M15,Micronutrients,4,FALSE)*Q15+VLOOKUP(M16,Micronutrients,4,FALSE)*Q16+VLOOKUP(M17,Micronutrients,4,FALSE)*Q17","v":0},null,"None",{"$f":"VLOOKUP(Y6,Macronutrients,14,FALSE)","v":0},{"$f":"VLOOKUP(Y6,Macronutrients,18,FALSE)","v":0},{"$f":"VLOOKUP(Y6,Macronutrients,16,FALSE)","v":1},0,{"$f":"VLOOKUP(Y6,Macronutrients,15,FALSE)","v":0},{"$f":"(AC6*VLOOKUP(Y6,Macronutrients,14,FALSE)/AB6)*AA6","v":0},null,{"$f":"VLOOKUP(Y6,Macronutrients,2,FALSE)*AC6+VLOOKUP(Y7,Macronutrients,2,FALSE)*AC7+VLOOKUP(Y8,Macronutrients,2,FALSE)*AC8+VLOOKUP(Y9,Macronutrients,2,FALSE)*AC9+VLOOKUP(Y10,Macronutrients,2,FALSE)*AC10+VLOOKUP(Y11,Macronutrients,2,FALSE)*AC11+VLOOKUP(Y14,Micronutrients,2,FALSE)*AC14+VLOOKUP(Y15,Micronutrients,2,FALSE)*AC15+VLOOKUP(Y16,Micronutrients,2,FALSE)*AC16+VLOOKUP(Y17,Micronutrients,2,FALSE)*AC17","v":0},{"$f":"VLOOKUP(Y6,Macronutrients,3,FALSE)*AC6+VLOOKUP(Y7,Macronutrients,3,FALSE)*AC7+VLOOKUP(Y8,Macronutrients,3,FALSE)*AC8+VLOOKUP(Y9,Macronutrients,3,FALSE)*AC9+VLOOKUP(Y10,Macronutrients,3,FALSE)*AC10+VLOOKUP(Y11,Macronutrients,3,FALSE)*AC11+VLOOKUP(Y14,Micronutrients,3,FALSE)*AC14+VLOOKUP(Y15,Micronutrients,3,FALSE)*AC15+VLOOKUP(Y16,Micronutrients,3,FALSE)*AC16+VLOOKUP(Y17,Micronutrients,3,FALSE)*AC17","v":0},{"$f":"VLOOKUP(Y6,Macronutrients,4,FALSE)*AC6+VLOOKUP(Y7,Macronutrients,4,FALSE)*AC7+VLOOKUP(Y8,Macronutrients,4,FALSE)*AC8+VLOOKUP(Y9,Macronutrients,4,FALSE)*AC9+VLOOKUP(Y10,Macronutrients,4,FALSE)*AC10+VLOOKUP(Y11,Macronutrients,4,FALSE)*AC11+VLOOKUP(Y14,Micronutrients,4,FALSE)*AC14+VLOOKUP(Y15,Micronutrients,4,FALSE)*AC15+VLOOKUP(Y16,Micronutrients,4,FALSE)*AC16+VLOOKUP(Y17,Micronutrients,4,FALSE)*AC17","v":0}]
["None",{"$f":"VLOOKUP(A7,Macronutrients,18,FALSE)","v":0},0,1,0,0,0,null,null,null,null,null,"None",0,0,1,0,0,0,null,null,null,null,null,"None",0,0,1,0,0,0]
["None",{"$f":"VLOOKUP(A8,Macronutrients,14,FALSE)","v":0},0,1,0,0,0,null,"S","Ca","Mg",null,"None",0,0,1,0,0,0,null,"S","Ca","Mg",null,"None",0,0,1,0,0,0,null,"S","Ca","Mg"]
["None",0,0,1,0,0,0,null,{"$f":"VLOOKUP(A6,Macronutrients,5,FALSE)*E6+VLOOKUP(A7,Macronutrients,5,FALSE)*E7+VLOOKUP(A8,Macronutrients,5,FALSE)*E8+VLOOKUP(A9,Macronutrients,5,FALSE)*E9+VLOOKUP(A10,Macronutrients,5,FALSE)*E10+VLOOKUP(A11,Macronutrients,5,FALSE)*E11+VLOOKUP(A14,Micronutrients,5,FALSE)*E14+VLOOKUP(A15,Micronutrients,5,FALSE)*E15+VLOOKUP(A16,Micronutrients,5,FALSE)*E16+VLOOKUP(A17,Micronutrients,5,FALSE)*E17+VLOOKUP(A20,Lime,5,FALSE)*E20","v":0},{"$f":"VLOOKUP(A6,Macronutrients,7,FALSE)*E6+VLOOKUP(A7,Macronutrients,7,FALSE)*E7+VLOOKUP(A8,Macronutrients,7,FALSE)*E8+VLOOKUP(A9,Macronutrients,7,FALSE)*E9+VLOOKUP(A10,Macronutrients,7,FALSE)*E10+VLOOKUP(A11,Macronutrients,7,FALSE)*E11+VLOOKUP(A14,Micronutrients,7,FALSE)*E14+VLOOKUP(A15,Micronutrients,7,FALSE)*E15+VLOOKUP(A16,Micronutrients,7,FALSE)*E16+VLOOKUP(A17,Micronutrients,7,FALSE)*E17+VLOOKUP(A20,Lime,7,FALSE)*E20","v":0},{"$f":"VLOOKUP($A6,Macronutrients,6,FALSE)*$E$6+VLOOKUP($A7,Macronutrients,6,FALSE)*$E$7+VLOOKUP($A8,Macronutrients,6,FALSE)*$E$8+VLOOKUP($A9,Macronutrients,6,FALSE)*$E$9+VLOOKUP($A10,Macronutrients,6,FALSE)*$E$10+VLOOKUP($A11,Macronutrients,6,FALSE)*$E$11+VLOOKUP($A14,Micronutrients,6,FALSE)*$E$14+VLOOKUP($A15,Micronutrients,6,FALSE)*E15+VLOOKUP($A16,Micronutrients,6,FALSE)*$E$16+VLOOKUP($A17,Micronutrients,6,FALSE)*$E$17+VLOOKUP($A20,Lime,6,FALSE)*E20","v":0},null,"None",0,0,1,0,0,0,null,{"$f":"VLOOKUP(M6,Macronutrients,5,FALSE)*Q6+VLOOKUP(M7,Macronutrients,5,FALSE)*Q7+VLOOKUP(M8,Macronutrients,5,FALSE)*Q8+VLOOKUP(M9,Macronutrients,5,FALSE)*Q9+VLOOKUP(M10,Macronutrients,5,FALSE)*Q10+VLOOKUP(M11,Macronutrients,5,FALSE)*Q11+VLOOKUP(M14,Micronutrients,5,FALSE)*Q14+VLOOKUP(M15,Micronutrients,5,FALSE)*Q15+VLOOKUP(M16,Micronutrients,5,FALSE)*Q16+VLOOKUP(M17,Micronutrients,5,FALSE)*Q17+VLOOKUP(M20,Lime,5,FALSE)*Q20","v":0},{"$f":"VLOOKUP(M6,Macronutrients,7,FALSE)*Q6+VLOOKUP(M7,Macronutrients,7,FALSE)*Q7+VLOOKUP(M8,Macronutrients,7,FALSE)*Q8+VLOOKUP(M9,Macronutrients,7,FALSE)*Q9+VLOOKUP(M10,Macronutrients,7,FALSE)*Q10+VLOOKUP(M11,Macronutrients,7,FALSE)*Q11+VLOOKUP(M14,Micronutrients,7,FALSE)*Q14+VLOOKUP(M15,Micronutrients,7,FALSE)*Q15+VLOOKUP(M16,Micronutrients,7,FALSE)*Q16+VLOOKUP(M17,Micronutrients,7,FALSE)*Q17+VLOOKUP(M20,Lime,7,FALSE)*Q20","v":0},{"$f":"VLOOKUP($A6,Macronutrients,6,FALSE)*$E$6+VLOOKUP($A7,Macronutrients,6,FALSE)*$E$7+VLOOKUP($A8,Macronutrients,6,FALSE)*$E$8+VLOOKUP($A9,Macronutrients,6,FALSE)*$E$9+VLOOKUP($A10,Macronutrients,6,FALSE)*$E$10+VLOOKUP($A11,Macronutrients,6,FALSE)*$E$11+VLOOKUP($A14,Micronutrients,6,FALSE)*$E$14+VLOOKUP($A15,Micronutrients,6,FALSE)*Q15+VLOOKUP($A16,Micronutrients,6,FALSE)*$E$16+VLOOKUP($A17,Micronutrients,6,FALSE)*$E$17+VLOOKUP($A20,Lime,6,FALSE)*Q20","v":0},null,"None",0,0,1,0,0,0,null,{"$f":"VLOOKUP(Y6,Macronutrients,5,FALSE)*AC6+VLOOKUP(Y7,Macronutrients,5,FALSE)*AC7+VLOOKUP(Y8,Macronutrients,5,FALSE)*AC8+VLOOKUP(Y9,Macronutrients,5,FALSE)*AC9+VLOOKUP(Y10,Macronutrients,5,FALSE)*AC10+VLOOKUP(Y11,Macronutrients,5,FALSE)*AC11+VLOOKUP(Y14,Micronutrients,5,FALSE)*AC14+VLOOKUP(Y15,Micronutrients,5,FALSE)*AC15+VLOOKUP(Y16,Micronutrients,5,FALSE)*AC16+VLOOKUP(Y17,Micronutrients,5,FALSE)*AC17+VLOOKUP(Y20,Lime,5,FALSE)*AC20","v":0},{"$f":"VLOOKUP(Y6,Macronutrients,7,FALSE)*AC6+VLOOKUP(Y7,Macronutrients,7,FALSE)*AC7+VLOOKUP(Y8,Macronutrients,7,FALSE)*AC8+VLOOKUP(Y9,Macronutrients,7,FALSE)*AC9+VLOOKUP(Y10,Macronutrients,7,FALSE)*AC10+VLOOKUP(Y11,Macronutrients,7,FALSE)*AC11+VLOOKUP(Y14,Micronutrients,7,FALSE)*AC14+VLOOKUP(Y15,Micronutrients,7,FALSE)*AC15+VLOOKUP(Y16,Micronutrients,7,FALSE)*AC16+VLOOKUP(Y17,Micronutrients,7,FALSE)*AC17+VLOOKUP(Y20,Lime,7,FALSE)*AC20","v":0},{"$f":"VLOOKUP($A6,Macronutrients,6,FALSE)*$E$6+VLOOKUP($A7,Macronutrients,6,FALSE)*$E$7+VLOOKUP($A8,Macronutrients,6,FALSE)*$E$8+VLOOKUP($A9,Macronutrients,6,FALSE)*$E$9+VLOOKUP($A10,Macronutrients,6,FALSE)*$E$10+VLOOKUP($A11,Macronutrients,6,FALSE)*$E$11+VLOOKUP($A14,Micronutrients,6,FALSE)*$E$14+VLOOKUP($A15,Micronutrients,6,FALSE)*AC15+VLOOKUP($A16,Micronutrients,6,FALSE)*$E$16+VLOOKUP($A17,Micronutrients,6,FALSE)*$E$17+VLOOKUP($A20,Lime,6,FALSE)*AC20","v":0}]
["None",0,0,1,0,0,0,null,null,null,null,null,"None",0,0,1,0,0,0,null,null,null,null,null,"None",0,0,1,0,0,0]
["None",0,0,1,0,0,0,null,"Z","B","Mn",null,"None",0,0,1,0,0,0,null,"Z","B","Mn",null,"None",0,0,1,0,0,0,null,"Z","B","Mn"]
[null,null,null,null,null,null,null,null,{"$f":"VLOOKUP(A6,Macronutrients,8,FALSE)*E6+VLOOKUP(A7,Macronutrients,8,FALSE)*E7+VLOOKUP(A8,Macronutrients,8,FALSE)*E8+VLOOKUP(A9,Macronutrients,8,FALSE)*E9+VLOOKUP(A10,Macronutrients,8,FALSE)*E10+VLOOKUP(A11,Macronutrients,8,FALSE)*E11+VLOOKUP(A14,Micronutrients,8,FALSE)*E14+VLOOKUP(A15,Micronutrients,8,FALSE)*E15+VLOOKUP(A16,Micronutrients,8,FALSE)*E16+VLOOKUP(A17,Micronutrients,8,FALSE)*E17+VLOOKUP(A20,Lime,8,FALSE)*E20","v":0},{"$f":"VLOOKUP(A6,Macronutrients,9,FALSE)*E6+VLOOKUP(A7,Macronutrients,9,FALSE)*E7+VLOOKUP(A8,Macronutrients,9,FALSE)*E8+VLOOKUP(A9,Macronutrients,9,FALSE)*E9+VLOOKUP(A10,Macronutrients,9,FALSE)*E10+VLOOKUP(A11,Macronutrients,9,FALSE)*E11+VLOOKUP(A14,Micronutrients,9,FALSE)*E14+VLOOKUP(A15,Micronutrients,9,FALSE)*E15+VLOOKUP(A16,Micronutrients,9,FALSE)*E16+VLOOKUP(A17,Micronutrients,9,FALSE)*E17+VLOOKUP(A20,Lime,9,FALSE)*E20","v":0},{"$f":"VLOOKUP(A6,Macronutrients,10,FALSE)*E6+VLOOKUP(A7,Macronutrients,10,FALSE)*E7+VLOOKUP(A8,Macronutrients,10,FALSE)*E8+VLOOKUP(A9,Macronutrients,10,FALSE)*E9+VLOOKUP(A10,Macronutrients,10,FALSE)*E10+VLOOKUP(A11,Macronutrients,10,FALSE)*E11+VLOOKUP(A14,Micronutrients,10,FALSE)*E14+VLOOKUP(A15,Micronutrients,10,FALSE)*E15+VLOOKUP(A16,Micronutrients,10,FALSE)*E16+VLOOKUP(A17,Micronutrients,10,FALSE)*E17+VLOOKUP(A20,Lime,10,FALSE)*E20","v":0},null,null,null,null,null,null,null,null,null,{"$f":"VLOOKUP(M6,Macronutrients,8,FALSE)*Q6+VLOOKUP(M7,Macronutrients,8,FALSE)*Q7+VLOOKUP(M8,Macronutrients,8,FALSE)*Q8+VLOOKUP(M9,Macronutrients,8,FALSE)*Q9+VLOOKUP(M10,Macronutrients,8,FALSE)*Q10+VLOOKUP(M11,Macronutrients,8,FALSE)*Q11+VLOOKUP(M14,Micronutrients,8,FALSE)*Q14+VLOOKUP(M15,Micronutrients,8,FALSE)*Q15+VLOOKUP(M16,Micronutrients,8,FALSE)*Q16+VLOOKUP(M17,Micronutrients,8,FALSE)*Q17+VLOOKUP(M20,Lime,8,FALSE)*Q20","v":0},{"$f":"VLOOKUP(M6,Macronutrients,9,FALSE)*Q6+VLOOKUP(M7,Macronutrients,9,FALSE)*Q7+VLOOKUP(M8,Macronutrients,9,FALSE)*Q8+VLOOKUP(M9,Macronutrients,9,FALSE)*Q9+VLOOKUP(M10,Macronutrients,9,FALSE)*Q10+VLOOKUP(M11,Macronutrients,9,FALSE)*Q11+VLOOKUP(M14,Micronutrients,9,FALSE)*Q14+VLOOKUP(M15,Micronutrients,9,FALSE)*Q15+VLOOKUP(M16,Micronutrients,9,FALSE)*Q16+VLOOKUP(M17,Micronutrients,9,FALSE)*Q17+VLOOKUP(M20,Lime,9,FALSE)*Q20","v":0},{"$f":"VLOOKUP(M6,Macronutrients,10,FALSE)*Q6+VLOOKUP(M7,Macronutrients,10,FALSE)*Q7+VLOOKUP(M8,Macronutrients,10,FALSE)*Q8+VLOOKUP(M9,Macronutrients,10,FALSE)*Q9+VLOOKUP(M10,Macronutrients,10,FALSE)*Q10+VLOOKUP(M11,Macronutrients,10,FALSE)*Q11+VLOOKUP(M14,Micronutrients,10,FALSE)*Q14+VLOOKUP(M15,Micronutrients,10,FALSE)*Q15+VLOOKUP(M16,Micronutrients,10,FALSE)*Q16+VLOOKUP(M17,Micronutrients,10,FALSE)*Q17+VLOOKUP(M20,Lime,10,FALSE)*Q20","v":0},null,null,null,null,null,null,null,null,null,{"$f":"VLOOKUP(Y6,Macronutrients,8,FALSE)*AC6+VLOOKUP(Y7,Macronutrients,8,FALSE)*AC7+VLOOKUP(Y8,Macronutrients,8,FALSE)*AC8+VLOOKUP(Y9,Macronutrients,8,FALSE)*AC9+VLOOKUP(Y10,Macronutrients,8,FALSE)*AC10+VLOOKUP(Y11,Macronutrients,8,FALSE)*AC11+VLOOKUP(Y14,Micronutrients,8,FALSE)*AC14+VLOOKUP(Y15,Micronutrients,8,FALSE)*AC15+VLOOKUP(Y16,Micronutrients,8,FALSE)*AC16+VLOOKUP(Y17,Micronutrients,8,FALSE)*AC17+VLOOKUP(Y20,Lime,8,FALSE)*AC20","v":0},{"$f":"VLOOKUP(Y6,Macronutrients,9,FALSE)*AC6+VLOOKUP(Y7,Macronutrients,9,FALSE)*AC7+VLOOKUP(Y8,Macronutrients,9,FALSE)*AC8+VLOOKUP(Y9,Macronutrients,9,FALSE)*AC9+VLOOKUP(Y10,Macronutrients,9,FALSE)*AC10+VLOOKUP(Y11,Macronutrients,9,FALSE)*AC11+VLOOKUP(Y14,Micronutrients,9,FALSE)*AC14+VLOOKUP(Y15,Micronutrients,9,FALSE)*AC15+VLOOKUP(Y16,Micronutrients,9,FALSE)*AC16+VLOOKUP(Y17,Micronutrients,9,FALSE)*AC17+VLOOKUP(Y20,Lime,9,FALSE)*AC20","v":0},{"$f":"VLOOKUP(Y6,Macronutrients,10,FALSE)*AC6+VLOOKUP(Y7,Macronutrients,10,FALSE)*AC7+VLOOKUP(Y8,Macronutrients,10,FALSE)*AC8+VLOOKUP(Y9,Macronutrients,10,FALSE)*AC9+VLOOKUP(Y10,Macronutrients,10,FALSE)*AC10+VLOOKUP(Y11,Macronutrients,10,FALSE)*AC11+VLOOKUP(Y14,Micronutrients,10,FALSE)*AC14+VLOOKUP(Y15,Micronutrients,10,FALSE)*AC15+VLOOKUP(Y16,Micronutrients,10,FALSE)*AC16+VLOOKUP(Y17,Micronutrients,10,FALSE)*AC17+VLOOKUP(Y20,Lime,10,FALSE)*AC20","v":0}]
["Micronutrients (drop down menu)",null,null,null,null,null,null,null,null,null,null,null,"Micronutrients (drop down menu)",null,null,null,null,null,null,null,null,null,null,null,"Micronutrients (drop down menu)"]
["None",{"$f":"VLOOKUP($A14,Micronutrients,18,FALSE)","v":0},{"$f":"VLOOKUP(A14,Micronutrients,18,FALSE)","v":0},{"$f":"VLOOKUP(A14,Micronutrients,16,FALSE)","v":1},0,{"$f":"VLOOKUP(A14,Micronutrients,15,FALSE)","v":0},{"$f":"(E14*VLOOKUP(A14,Micronutrients,14,FALSE)/D14)*C14","v":0},null,"Cu","Mo","Fe",null,"None",{"$f":"VLOOKUP($A14,Micronutrients,14,FALSE)","v":0},{"$f":"VLOOKUP(M14,Micronutrients,18,FALSE)","v":0},{"$f":"VLOOKUP(M14,Micronutrients,16,FALSE)","v":1},0,{"$f":"VLOOKUP(M14,Micronutrients,15,FALSE)","v":0},{"$f":"(Q14*VLOOKUP(M14,Micronutrients,14,FALSE)/P14)*O14","v":0},null,"Cu","Mo","Fe",null,"None",{"$f":"VLOOKUP($A14,Micronutrients,14,FALSE)","v":0},{"$f":"VLOOKUP(Y14,Micronutrients,18,FALSE)","v":0},{"$f":"VLOOKUP(Y14,Micronutrients,16,FALSE)","v":1},0,{"$f":"VLOOKUP(Y14,Micronutrients,15,FALSE)","v":0},{"$f":"(AC14*VLOOKUP(Y14,Micronutrients,14,FALSE)/AB14)*AA14","v":0},null,"Cu","Mo","Fe"]
["None",{"$f":"VLOOKUP($A15,Micronutrients,14,FALSE)","v":0},{"$f":"VLOOKUP(A15,Micronutrients,18,FALSE)","v":0},{"$f":"VLOOKUP(A15,Micronutrients,16,FALSE)","v":1},0,{"$f":"VLOOKUP(A15,Micronutrients,15,FALSE)","v":0},{"$f":"(E15*VLOOKUP(A15,Micronutrients,14,FALSE)/D15)*C15","v":0},null,{"$f":"VLOOKUP(A6,Macronutrients,11,FALSE)*E6+VLOOKUP(A7,Macronutrients,11,FALSE)*E7+VLOOKUP(A8,Macronutrients,11,FALSE)*E8+VLOOKUP(A9,Macronutrients,11,FALSE)*E9+VLOOKUP(A10,Macronutrients,11,FALSE)*E10+VLOOKUP(A11,Macronutrients,11,FALSE)*E11+VLOOKUP(A14,Micronutrients,11,FALSE)*E14+VLOOKUP(A15,Micronutrients,11,FALSE)*E15+VLOOKUP(A16,Micronutrients,11,FALSE)*E16+VLOOKUP(A17,Micronutrients,11,FALSE)*E17+VLOOKUP(A20,Lime,11,FALSE)*E20","v":0},{"$f":"VLOOKUP(A6,Macronutrients,12,FALSE)*E6+VLOOKUP(A7,Macronutrients,12,FALSE)*E7+VLOOKUP(A8,Macronutrients,12,FALSE)*E8+VLOOKUP(A9,Macronutrients,12,FALSE)*E9+VLOOKUP(A10,Macronutrients,12,FALSE)*E10+VLOOKUP(A11,Macronutrients,12,FALSE)*E11+VLOOKUP(A14,Micronutrients,12,FALSE)*E14+VLOOKUP(A15,Micronutrients,12,FALSE)*E15+VLOOKUP(A16,Micronutrients,12,FALSE)*E16+VLOOKUP(A17,Micronutrients,12,FALSE)*E17+VLOOKUP(A20,Lime,12,FALSE)*E20","v":0},{"$f":"VLOOKUP(A6,Macronutrients,13,FALSE)*E6+VLOOKUP(A7,Macronutrients,13,FALSE)*E7+VLOOKUP(A8,Macronutrients,13,FALSE)*E8+VLOOKUP(A9,Macronutrients,13,FALSE)*E9+VLOOKUP(A10,Macronutrients,13,FALSE)*E10+VLOOKUP(A11,Macronutrients,13,FALSE)*E11+VLOOKUP(A14,Micronutrients,13,FALSE)*E14+VLOOKUP(A15,Micronutrients,13,FALSE)*E15+VLOOKUP(A16,Micronutrients,13,FALSE)*E16+VLOOKUP(A17,Micronutrients,13,FALSE)*E17+VLOOKUP(A20,Lime,13,FALSE)*E20","v":0},null,"None",{"$f":"VLOOKUP($A15,Micronutrients,14,FALSE)","v":0},{"$f":"VLOOKUP(M15,Micronutrients,18,FALSE)","v":0},{"$f":"VLOOKUP(M15,Micronutrients,16,FALSE)","v":1},0,{"$f":"VLOOKUP(M15,Micronutrients,15,FALSE)","v":0},{"$f":"(Q15*VLOOKUP(M15,Micronutrients,14,FALSE)/P15)*O15","v":0},null,{"$f":"VLOOKUP(M6,Macronutrients,11,FALSE)*Q6+VLOOKUP(M7,Macronutrients,11,FALSE)*Q7+VLOOKUP(M8,Macronutrients,11,FALSE)*Q8+VLOOKUP(M9,Macronutrients,11,FALSE)*Q9+VLOOKUP(M10,Macronutrients,11,FALSE)*Q10+VLOOKUP(M11,Macronutrients,11,FALSE)*Q11+VLOOKUP(M14,Micronutrients,11,FALSE)*Q14+VLOOKUP(M15,Micronutrients,11,FALSE)*Q15+VLOOKUP(M16,Micronutrients,11,FALSE)*Q16+VLOOKUP(M17,Micronutrients,11,FALSE)*Q17+VLOOKUP(M20,Lime,11,FALSE)*Q20","v":0},{"$f":"VLOOKUP(M6,Macronutrients,12,FALSE)*Q6+VLOOKUP(M7,Macronutrients,12,FALSE)*Q7+VLOOKUP(M8,Macronutrients,12,FALSE)*Q8+VLOOKUP(M9,Macronutrients,12,FALSE)*Q9+VLOOKUP(M10,Macronutrients,12,FALSE)*Q10+VLOOKUP(M11,Macronutrients,12,FALSE)*Q11+VLOOKUP(M14,Micronutrients,12,FALSE)*Q14+VLOOKUP(M15,Micronutrients,12,FALSE)*Q15+VLOOKUP(M16,Micronutrients,12,FALSE)*Q16+VLOOKUP(M17,Micronutrients,12,FALSE)*Q17+VLOOKUP(M20,Lime,12,FALSE)*Q20","v":0},{"$f":"VLOOKUP(M6,Macronutrients,13,FALSE)*Q6+VLOOKUP(M7,Macronutrients,13,FALSE)*Q7+VLOOKUP(M8,Macronutrients,13,FALSE)*Q8+VLOOKUP(M9,Macronutrients,13,FALSE)*Q9+VLOOKUP(M10,Macronutrients,13,FALSE)*Q10+VLOOKUP(M11,Macronutrients,13,FALSE)*Q11+VLOOKUP(M14,Micronutrients,13,FALSE)*Q14+VLOOKUP(M15,Micronutrients,13,FALSE)*Q15+VLOOKUP(M16,Micronutrients,13,FALSE)*Q16+VLOOKUP(M17,Micronutrients,13,FALSE)*Q17+VLOOKUP(M20,Lime,13,FALSE)*Q20","v":0},null,"None",{"$f":"VLOOKUP($A15,Micronutrients,14,FALSE)","v":0},{"$f":"VLOOKUP(Y15,Micronutrients,18,FALSE)","v":0},{"$f":"VLOOKUP(Y15,Micronutrients,16,FALSE)","v":1},0,{"$f":"VLOOKUP(Y15,Micronutrients,15,FALSE)","v":0},{"$f":"(AC15*VLOOKUP(Y15,Micronutrients,14,FALSE)/AB15)*AA15","v":0},null,{"$f":"VLOOKUP(Y6,Macronutrients,11,FALSE)*AC6+VLOOKUP(Y7,Macronutrients,11,FALSE)*AC7+VLOOKUP(Y8,Macronutrients,11,FALSE)*AC8+VLOOKUP(Y9,Macronutrients,11,FALSE)*AC9+VLOOKUP(Y10,Macronutrients,11,FALSE)*AC10+VLOOKUP(Y11,Macronutrients,11,FALSE)*AC11+VLOOKUP(Y14,Micronutrients,11,FALSE)*AC14+VLOOKUP(Y15,Micronutrients,11,FALSE)*AC15+VLOOKUP(Y16,Micronutrients,11,FALSE)*AC16+VLOOKUP(Y17,Micronutrients,11,FALSE)*AC17+VLOOKUP(Y20,Lime,11,FALSE)*AC20","v":0},{"$f":"VLOOKUP(Y6,Macronutrients,12,FALSE)*AC6+VLOOKUP(Y7,Macronutrients,12,FALSE)*AC7+VLOOKUP(Y8,Macronutrients,12,FALSE)*AC8+VLOOKUP(Y9,Macronutrients,12,FALSE)*AC9+VLOOKUP(Y10,Macronutrients,12,FALSE)*AC10+VLOOKUP(Y11,Macronutrients,12,FALSE)*AC11+VLOOKUP(Y14,Micronutrients,12,FALSE)*AC14+VLOOKUP(Y15,Micronutrients,12,FALSE)*AC15+VLOOKUP(Y16,Micronutrients,12,FALSE)*AC16+VLOOKUP(Y17,Micronutrients,12,FALSE)*AC17+VLOOKUP(Y20,Lime,12,FALSE)*AC20","v":0},{"$f":"VLOOKUP(Y6,Macronutrients,13,FALSE)*AC6+VLOOKUP(Y7,Macronutrients,13,FALSE)*AC7+VLOOKUP(Y8,Macronutrients,13,FALSE)*AC8+VLOOKUP(Y9,Macronutrients,13,FALSE)*AC9+VLOOKUP(Y10,Macronutrients,13,FALSE)*AC10+VLOOKUP(Y11,Macronutrients,13,FALSE)*AC11+VLOOKUP(Y14,Micronutrients,13,FALSE)*AC14+VLOOKUP(Y15,Micronutrients,13,FALSE)*AC15+VLOOKUP(Y16,Micronutrients,13,FALSE)*AC16+VLOOKUP(Y17,Micronutrients,13,FALSE)*AC17+VLOOKUP(Y20,Lime,13,FALSE)*AC20","v":0}]
["None",{"$f":"VLOOKUP($A16,Micronutrients,14,FALSE)","v":0},{"$f":"VLOOKUP(A16,Micronutrients,18,FALSE)","v":0},{"$f":"VLOOKUP(A16,Micronutrients,16,FALSE)","v":1},0,{"$f":"VLOOKUP(A16,Micronutrients,15,FALSE)","v":0},{"$f":"(E16*VLOOKUP(A16,Micronutrients,14,FALSE)/D16)*C16","v":0},null,null,null,null,null,"None",{"$f":"VLOOKUP($A16,Micronutrients,14,FALSE)","v":0},{"$f":"VLOOKUP(M16,Micronutrients,18,FALSE)","v":0},{"$f":"VLOOKUP(M16,Micronutrients,16,FALSE)","v":1},0,{"$f":"VLOOKUP(M16,Micronutrients,15,FALSE)","v":0},{"$f":"(Q16*VLOOKUP(M16,Micronutrients,14,FALSE)/P16)*O16","v":0},null,null,null,null,null,"None",{"$f":"VLOOKUP($A16,Micronutrients,14,FALSE)","v":0},{"$f":"VLOOKUP(Y16,Micronutrients,18,FALSE)","v":0},{"$f":"VLOOKUP(Y16,Micronutrients,16,FALSE)","v":1},0,{"$f":"VLOOKUP(Y16,Micronutrients,15,FALSE)","v":0},{"$f":"(AC16*VLOOKUP(Y16,Micronutrients,14,FALSE)/AB16)*AA16","v":0}]
["None",{"$f":"VLOOKUP($A17,Micronutrients,14,FALSE)","v":0},{"$f":"VLOOKUP(A17,Micronutrients,18,FALSE)","v":0},{"$f":"VLOOKUP(A17,Micronutrients,16,FALSE)","v":1},0,{"$f":"VLOOKUP(A17,Micronutrients,15,FALSE)","v":0},{"$f":"(E17*VLOOKUP(A17,Micronutrients,14,FALSE)/D17)*C17","v":0},null,null,null,null,null,"None",{"$f":"VLOOKUP($A17,Micronutrients,14,FALSE)","v":0},{"$f":"VLOOKUP(M17,Micronutrients,18,FALSE)","v":0},{"$f":"VLOOKUP(M17,Micronutrients,16,FALSE)","v":1},0,{"$f":"VLOOKUP(M17,Micronutrients,15,FALSE)","v":0},{"$f":"(Q17*VLOOKUP(M17,Micronutrients,14,FALSE)/P17)*O17","v":0},null,null,null,null,null,"None",{"$f":"VLOOKUP($A17,Micronutrients,14,FALSE)","v":0},{"$f":"VLOOKUP(Y17,Micronutrients,18,FALSE)","v":0},{"$f":"VLOOKUP(Y17,Micronutrients,16,FALSE)","v":1},0,{"$f":"VLOOKUP(Y17,Micronutrients,15,FALSE)","v":0},{"$f":"(AC17*VLOOKUP(Y17,Micronutrients,14,FALSE)/AB17)*AA17","v":0}]
[]
["Lime (drop down menu)",null,null,null,null,null,null,null,null,null,null,null,"Lime (drop down menu)",null,null,null,null,null,null,null,null,null,null,null,"Lime (drop down menu)"]
["None",{"$f":"VLOOKUP(A20,Lime,14,FALSE)","v":0},{"$f":"VLOOKUP(A20,Lime,18,FALSE)","v":0},{"$f":"VLOOKUP(A20,Lime,16,FALSE)","v":1},0,{"$f":"VLOOKUP(A20,Lime,15,FALSE)","v":0},{"$f":"(E20*VLOOKUP(A20,Lime,14,FALSE)/D20)*C20","v":0},null,null,null,null,null,"None",{"$f":"VLOOKUP(M20,Lime,14,FALSE)","v":0},{"$f":"VLOOKUP(M20,Lime,18,FALSE)","v":0},{"$f":"VLOOKUP(M20,Lime,16,FALSE)","v":1},0,{"$f":"VLOOKUP(M20,Lime,15,FALSE)","v":0},{"$f":"(Q20*VLOOKUP(M20,Lime,14,FALSE)/P20)*O20","v":0},null,null,null,null,null,"None",{"$f":"VLOOKUP(Y20,Lime,14,FALSE)","v":0},{"$f":"VLOOKUP(Y20,Lime,18,FALSE)","v":0},{"$f":"VLOOKUP(Y20,Lime,16,FALSE)","v":1},0,{"$f":"VLOOKUP(Y20,Lime,15,FALSE)","v":0},{"$f":"(AC20*VLOOKUP(Y20,Lime,14,FALSE)/AB20)*AA20","v":0}]
["1st Application Fertilizer Cost/Acre",null,null,null,null,null,{"$f":"SUM(G6:G20)","v":0},null,null,null,null,null,"1st Application Fertilizer Cost/Acre",null,null,null,null,null,{"$f":"SUM(S6:S20)","v":0},null,null,null,null,null,"1st Application Fertilizer Cost/Acre",null,null,null,null,null,{"$f":"SUM(AE6:AE20)","v":0}]
[]
["2nd Application (i.e., Broadcast)",null,null,null,null,null,null,null,null,null,null,null,"2nd Application (i.e., Broadcast)",null,null,null,null,null,null,null,null,null,null,null,"2nd Application (i.e., Broadcast)"]
["Fertilizer Source","Purchase Units","Package Price (Gals, Lbs, etc.)","Units/Pkg","Rate/Acre","Units","Cost",null,null,null,null,null,"Fertilizer Source","Purchase Units","Package Price (Gals, Lbs, etc.)","Units/Pkg","Rate/Acre","Units","Cost",null,null,null,null,null,"Fertilizer Source","Purchase Units","Package Price (Gals, Lbs, etc.)","Units/Pkg","Rate/Acre","Units","Cost"]
["Macronutrients (drop down menu)",null,null,null,"(Enter Below)",null,null,null,"N","P","K",null,"Macronutrients (drop down menu)",null,null,null,"(Enter Below)",null,null,null,"N","P","K",null,"Macronutrients (drop down menu)",null,null,null,"(Enter Below)",null,null,null,"N","P","K"]
["None",{"$f":"VLOOKUP(A26,Macronutrients,14,FALSE)","v":0},{"$f":"VLOOKUP(A26,Macronutrients,18,FALSE)","v":0},{"$f":"VLOOKUP(A26,Macronutrients,16,FALSE)","v":1},0,{"$f":"VLOOKUP(A26,Macronutrients,15,FALSE)","v":0},{"$f":"(E26*VLOOKUP(A26,Macronutrients,14,FALSE)/D26)*C26","v":0},null,{"$f":"VLOOKUP(A26,Macronutrients,2,FALSE)*E26+VLOOKUP(A27,Macronutrients,2,FALSE)*E27+VLOOKUP(A28,Macronutrients,2,FALSE)*E28+VLOOKUP(A29,Macronutrients,2,FALSE)*E29+VLOOKUP(A30,Macronutrients,2,FALSE)*E30+VLOOKUP(A31,Macronutrients,2,FALSE)*E31+VLOOKUP(A34,Micronutrients,2,FALSE)*E34+VLOOKUP(A35,Micronutrients,2,FALSE)*E35+VLOOKUP(A36,Micronutrients,2,FALSE)*E36+VLOOKUP(A37,Micronutrients,2,FALSE)*E37","v":0},{"$f":"VLOOKUP(A26,Macronutrients,3,FALSE)*E26+VLOOKUP(A27,Macronutrients,3,FALSE)*E27+VLOOKUP(A28,Macronutrients,3,FALSE)*E28+VLOOKUP(A29,Macronutrients,3,FALSE)*E29+VLOOKUP(A30,Macronutrients,3,FALSE)*E30+VLOOKUP(A31,Macronutrients,3,FALSE)*E31+VLOOKUP(A34,Micronutrients,3,FALSE)*E34+VLOOKUP(A35,Micronutrients,3,FALSE)*E35+VLOOKUP(A36,Micronutrients,3,FALSE)*E36+VLOOKUP(A37,Micronutrients,3,FALSE)*E37","v":0},{"$f":"VLOOKUP(A26,Macronutrients,4,FALSE)*E26+VLOOKUP(A27,Macronutrients,4,FALSE)*E27+VLOOKUP(A28,Macronutrients,4,FALSE)*E28+VLOOKUP(A29,Macronutrients,4,FALSE)*E29+VLOOKUP(A30,Macronutrients,4,FALSE)*E30+VLOOKUP(A31,Macronutrients,4,FALSE)*E31+VLOOKUP(A34,Micronutrients,4,FALSE)*E34+VLOOKUP(A35,Micronutrients,4,FALSE)*E35+VLOOKUP(A36,Micronutrients,4,FALSE)*E36+VLOOKUP(A37,Micronutrients,4,FALSE)*E37","v":0},null,"None",{"$f":"VLOOKUP(M26,Macronutrients,14,FALSE)","v":0},{"$f":"VLOOKUP(M26,Macronutrients,18,FALSE)","v":0},{"$f":"VLOOKUP(M26,Macronutrients,16,FALSE)","v":1},0,{"$f":"VLOOKUP(M26,Macronutrients,15,FALSE)","v":0},{"$f":"(Q26*VLOOKUP(M26,Macronutrients,14,FALSE)/P26)*O26","v":0},null,{"$f":"VLOOKUP(M26,Macronutrients,2,FALSE)*Q26+VLOOKUP(M27,Macronutrients,2,FALSE)*Q27+VLOOKUP(M28,Macronutrients,2,FALSE)*Q28+VLOOKUP(M29,Macronutrients,2,FALSE)*Q29+VLOOKUP(M30,Macronutrients,2,FALSE)*Q30+VLOOKUP(M31,Macronutrients,2,FALSE)*Q31+VLOOKUP(M34,Micronutrients,2,FALSE)*Q34+VLOOKUP(M35,Micronutrients,2,FALSE)*Q35+VLOOKUP(M36,Micronutrients,2,FALSE)*Q36+VLOOKUP(M37,Micronutrients,2,FALSE)*Q37","v":0},{"$f":"VLOOKUP(M26,Macronutrients,3,FALSE)*Q26+VLOOKUP(M27,Macronutrients,3,FALSE)*Q27+VLOOKUP(M28,Macronutrients,3,FALSE)*Q28+VLOOKUP(M29,Macronutrients,3,FALSE)*Q29+VLOOKUP(M30,Macronutrients,3,FALSE)*Q30+VLOOKUP(M31,Macronutrients,3,FALSE)*Q31+VLOOKUP(M34,Micronutrients,3,FALSE)*Q34+VLOOKUP(M35,Micronutrients,3,FALSE)*Q35+VLOOKUP(M36,Micronutrients,3,FALSE)*Q36+VLOOKUP(M37,Micronutrients,3,FALSE)*Q37","v":0},{"$f":"VLOOKUP(M26,Macronutrients,4,FALSE)*Q26+VLOOKUP(M27,Macronutrients,4,FALSE)*Q27+VLOOKUP(M28,Macronutrients,4,FALSE)*Q28+VLOOKUP(M29,Macronutrients,4,FALSE)*Q29+VLOOKUP(M30,Macronutrients,4,FALSE)*Q30+VLOOKUP(M31,Macronutrients,4,FALSE)*Q31+VLOOKUP(M34,Micronutrients,4,FALSE)*Q34+VLOOKUP(M35,Micronutrients,4,FALSE)*Q35+VLOOKUP(M36,Micronutrients,4,FALSE)*Q36+VLOOKUP(M37,Micronutrients,4,FALSE)*Q37","v":0},null,"None",{"$f":"VLOOKUP(Y26,Macronutrients,14,FALSE)","v":0},{"$f":"VLOOKUP(Y26,Macronutrients,18,FALSE)","v":0},{"$f":"VLOOKUP(Y26,Macronutrients,16,FALSE)","v":1},0,{"$f":"VLOOKUP(Y26,Macronutrients,15,FALSE)","v":0},{"$f":"(AC26*VLOOKUP(Y26,Macronutrients,14,FALSE)/AB26)*AA26","v":0},null,{"$f":"VLOOKUP(Y26,Macronutrients,2,FALSE)*AC26+VLOOKUP(Y27,Macronutrients,2,FALSE)*AC27+VLOOKUP(Y28,Macronutrients,2,FALSE)*AC28+VLOOKUP(Y29,Macronutrients,2,FALSE)*AC29+VLOOKUP(Y30,Macronutrients,2,FALSE)*AC30+VLOOKUP(Y31,Macronutrients,2,FALSE)*AC31+VLOOKUP(Y34,Micronutrients,2,FALSE)*AC34+VLOOKUP(Y35,Micronutrients,2,FALSE)*AC35+VLOOKUP(Y36,Micronutrients,2,FALSE)*AC36+VLOOKUP(Y37,Micronutrients,2,FALSE)*AC37","v":0},{"$f":"VLOOKUP(Y26,Macronutrients,3,FALSE)*AC26+VLOOKUP(Y27,Macronutrients,3,FALSE)*AC27+VLOOKUP(Y28,Macronutrients,3,FALSE)*AC28+VLOOKUP(Y29,Macronutrients,3,FALSE)*AC29+VLOOKUP(Y30,Macronutrients,3,FALSE)*AC30+VLOOKUP(Y31,Macronutrients,3,FALSE)*AC31+VLOOKUP(Y34,Micronutrients,3,FALSE)*AC34+VLOOKUP(Y35,Micronutrients,3,FALSE)*AC35+VLOOKUP(Y36,Micronutrients,3,FALSE)*AC36+VLOOKUP(Y37,Micronutrients,3,FALSE)*AC37","v":0},{"$f":"VLOOKUP(Y26,Macronutrients,4,FALSE)*AC26+VLOOKUP(Y27,Macronutrients,4,FALSE)*AC27+VLOOKUP(Y28,Macronutrients,4,FALSE)*AC28+VLOOKUP(Y29,Macronutrients,4,FALSE)*AC29+VLOOKUP(Y30,Macronutrients,4,FALSE)*AC30+VLOOKUP(Y31,Macronutrients,4,FALSE)*AC31+VLOOKUP(Y34,Micronutrients,4,FALSE)*AC34+VLOOKUP(Y35,Micronutrients,4,FALSE)*AC35+VLOOKUP(Y36,Micronutrients,4,FALSE)*AC36+VLOOKUP(Y37,Micronutrients,4,FALSE)*AC37","v":0}]
["None",0,0,1,0,0,0,null,null,null,null,null,"None",0,0,1,0,0,0,null,null,null,null,null,"None",0,0,1,0,0,0]
["None",0,0,1,0,0,0,null,"S","Ca","Mg",null,"None",0,0,1,0,0,0,null,"S","Ca","Mg",null,"None",0,0,1,0,0,0,null,"S","Ca","Mg"]
["None",0,0,1,0,0,0,null,{"$f":"VLOOKUP(A26,Macronutrients,5,FALSE)*E26+VLOOKUP(A27,Macronutrients,5,FALSE)*E27+VLOOKUP(A28,Macronutrients,5,FALSE)*E28+VLOOKUP(A29,Macronutrients,5,FALSE)*E29+VLOOKUP(A30,Macronutrients,5,FALSE)*E30+VLOOKUP(A31,Macronutrients,5,FALSE)*E31+VLOOKUP(A34,Micronutrients,5,FALSE)*E34+VLOOKUP(A35,Micronutrients,5,FALSE)*E35+VLOOKUP(A36,Micronutrients,5,FALSE)*E36+VLOOKUP(A37,Micronutrients,5,FALSE)*E37","v":0},{"$f":"VLOOKUP(A26,Macronutrients,7,FALSE)*E26+VLOOKUP(A27,Macronutrients,7,FALSE)*E27+VLOOKUP(A28,Macronutrients,7,FALSE)*E28+VLOOKUP(A29,Macronutrients,7,FALSE)*E29+VLOOKUP(A30,Macronutrients,7,FALSE)*E30+VLOOKUP(A31,Macronutrients,7,FALSE)*E31+VLOOKUP(A34,Micronutrients,7,FALSE)*E34+VLOOKUP(A35,Micronutrients,7,FALSE)*E35+VLOOKUP(A36,Micronutrients,7,FALSE)*E36+VLOOKUP(A37,Micronutrients,7,FALSE)*E37","v":0},{"$f":"VLOOKUP($A26,Macronutrients,6,FALSE)*$E$6+VLOOKUP($A27,Macronutrients,6,FALSE)*$E$7+VLOOKUP($A28,Macronutrients,6,FALSE)*$E$8+VLOOKUP($A29,Macronutrients,6,FALSE)*$E$9+VLOOKUP($A30,Macronutrients,6,FALSE)*$E$10+VLOOKUP($A31,Macronutrients,6,FALSE)*$E$11+VLOOKUP($A34,Micronutrients,6,FALSE)*$E$14+VLOOKUP($A35,Micronutrients,6,FALSE)*E35+VLOOKUP($A36,Micronutrients,6,FALSE)*$E$16+VLOOKUP($A37,Micronutrients,6,FALSE)*$E$17","v":0},null,"None",0,0,1,0,0,0,null,{"$f":"VLOOKUP(M26,Macronutrients,5,FALSE)*Q26+VLOOKUP(M27,Macronutrients,5,FALSE)*Q27+VLOOKUP(M28,Macronutrients,5,FALSE)*Q28+VLOOKUP(M29,Macronutrients,5,FALSE)*Q29+VLOOKUP(M30,Macronutrients,5,FALSE)*Q30+VLOOKUP(M31,Macronutrients,5,FALSE)*Q31+VLOOKUP(M34,Micronutrients,5,FALSE)*Q34+VLOOKUP(M35,Micronutrients,5,FALSE)*Q35+VLOOKUP(M36,Micronutrients,5,FALSE)*Q36+VLOOKUP(M37,Micronutrients,5,FALSE)*Q37","v":0},{"$f":"VLOOKUP(M26,Macronutrients,7,FALSE)*Q26+VLOOKUP(M27,Macronutrients,7,FALSE)*Q27+VLOOKUP(M28,Macronutrients,7,FALSE)*Q28+VLOOKUP(M29,Macronutrients,7,FALSE)*Q29+VLOOKUP(M30,Macronutrients,7,FALSE)*Q30+VLOOKUP(M31,Macronutrients,7,FALSE)*Q31+VLOOKUP(M34,Micronutrients,7,FALSE)*Q34+VLOOKUP(M35,Micronutrients,7,FALSE)*Q35+VLOOKUP(M36,Micronutrients,7,FALSE)*Q36+VLOOKUP(M37,Micronutrients,7,FALSE)*Q37","v":0},{"$f":"VLOOKUP($A26,Macronutrients,6,FALSE)*$E$6+VLOOKUP($A27,Macronutrients,6,FALSE)*$E$7+VLOOKUP($A28,Macronutrients,6,FALSE)*$E$8+VLOOKUP($A29,Macronutrients,6,FALSE)*$E$9+VLOOKUP($A30,Macronutrients,6,FALSE)*$E$10+VLOOKUP($A31,Macronutrients,6,FALSE)*$E$11+VLOOKUP($A34,Micronutrients,6,FALSE)*$E$14+VLOOKUP($A35,Micronutrients,6,FALSE)*Q35+VLOOKUP($A36,Micronutrients,6,FALSE)*$E$16+VLOOKUP($A37,Micronutrients,6,FALSE)*$E$17","v":0},null,"None",0,0,1,0,0,0,null,{"$f":"VLOOKUP(Y26,Macronutrients,5,FALSE)*AC26+VLOOKUP(Y27,Macronutrients,5,FALSE)*AC27+VLOOKUP(Y28,Macronutrients,5,FALSE)*AC28+VLOOKUP(Y29,Macronutrients,5,FALSE)*AC29+VLOOKUP(Y30,Macronutrients,5,FALSE)*AC30+VLOOKUP(Y31,Macronutrients,5,FALSE)*AC31+VLOOKUP(Y34,Micronutrients,5,FALSE)*AC34+VLOOKUP(Y35,Micronutrients,5,FALSE)*AC35+VLOOKUP(Y36,Micronutrients,5,FALSE)*AC36+VLOOKUP(Y37,Micronutrients,5,FALSE)*AC37","v":0},{"$f":"VLOOKUP(Y26,Macronutrients,7,FALSE)*AC26+VLOOKUP(Y27,Macronutrients,7,FALSE)*AC27+VLOOKUP(Y28,Macronutrients,7,FALSE)*AC28+VLOOKUP(Y29,Macronutrients,7,FALSE)*AC29+VLOOKUP(Y30,Macronutrients,7,FALSE)*AC30+VLOOKUP(Y31,Macronutrients,7,FALSE)*AC31+VLOOKUP(Y34,Micronutrients,7,FALSE)*AC34+VLOOKUP(Y35,Micronutrients,7,FALSE)*AC35+VLOOKUP(Y36,Micronutrients,7,FALSE)*AC36+VLOOKUP(Y37,Micronutrients,7,FALSE)*AC37","v":0},{"$f":"VLOOKUP($A26,Macronutrients,6,FALSE)*$E$6+VLOOKUP($A27,Macronutrients,6,FALSE)*$E$7+VLOOKUP($A28,Macronutrients,6,FALSE)*$E$8+VLOOKUP($A29,Macronutrients,6,FALSE)*$E$9+VLOOKUP($A30,Macronutrients,6,FALSE)*$E$10+VLOOKUP($A31,Macronutrients,6,FALSE)*$E$11+VLOOKUP($A34,Micronutrients,6,FALSE)*$E$14+VLOOKUP($A35,Micronutrients,6,FALSE)*AC35+VLOOKUP($A36,Micronutrients,6,FALSE)*$E$16+VLOOKUP($A37,Micronutrients,6,FALSE)*$E$17","v":0}]
["None",0,0,1,0,0,0,null,null,null,null,null,"None",0,0,1,0,0,0,null,null,null,null,null,"None",0,0,1,0,0,0]
["None",0,0,1,0,0,0,null,"Z","B","Mn",null,"None",0,0,1,0,0,0,null,"Z","B","Mn",null,"None",0,0,1,0,0,0,null,"Z","B","Mn"]
[null,null,null,null,null,null,null,null,{"$f":"VLOOKUP(A26,Macronutrients,8,FALSE)*E26+VLOOKUP(A27,Macronutrients,8,FALSE)*E27+VLOOKUP(A28,Macronutrients,8,FALSE)*E28+VLOOKUP(A29,Macronutrients,8,FALSE)*E29+VLOOKUP(A30,Macronutrients,8,FALSE)*E30+VLOOKUP(A31,Macronutrients,8,FALSE)*E31+VLOOKUP(A34,Micronutrients,8,FALSE)*E34+VLOOKUP(A35,Micronutrients,8,FALSE)*E35+VLOOKUP(A36,Micronutrients,8,FALSE)*E36+VLOOKUP(A37,Micronutrients,8,FALSE)*E37","v":0},{"$f":"VLOOKUP(A26,Macronutrients,9,FALSE)*E26+VLOOKUP(A27,Macronutrients,9,FALSE)*E27+VLOOKUP(A28,Macronutrients,9,FALSE)*E28+VLOOKUP(A29,Macronutrients,9,FALSE)*E29+VLOOKUP(A30,Macronutrients,9,FALSE)*E30+VLOOKUP(A31,Macronutrients,9,FALSE)*E31+VLOOKUP(A34,Micronutrients,9,FALSE)*E34+VLOOKUP(A35,Micronutrients,9,FALSE)*E35+VLOOKUP(A36,Micronutrients,9,FALSE)*E36+VLOOKUP(A37,Micronutrients,9,FALSE)","v":0},{"$f":"VLOOKUP(A26,Macronutrients,10,FALSE)*E26+VLOOKUP(A27,Macronutrients,10,FALSE)*E27+VLOOKUP(A28,Macronutrients,10,FALSE)*E28+VLOOKUP(A29,Macronutrients,10,FALSE)*E29+VLOOKUP(A30,Macronutrients,10,FALSE)*E30+VLOOKUP(A31,Macronutrients,10,FALSE)*E31+VLOOKUP(A34,Micronutrients,10,FALSE)*E34+VLOOKUP(A35,Micronutrients,10,FALSE)*E35+VLOOKUP(A36,Micronutrients,10,FALSE)*E36+VLOOKUP(A37,Micronutrients,10,FALSE)*E37","v":0},null,null,null,null,null,null,null,null,null,{"$f":"VLOOKUP(M26,Macronutrients,8,FALSE)*Q26+VLOOKUP(M27,Macronutrients,8,FALSE)*Q27+VLOOKUP(M28,Macronutrients,8,FALSE)*Q28+VLOOKUP(M29,Macronutrients,8,FALSE)*Q29+VLOOKUP(M30,Macronutrients,8,FALSE)*Q30+VLOOKUP(M31,Macronutrients,8,FALSE)*Q31+VLOOKUP(M34,Micronutrients,8,FALSE)*Q34+VLOOKUP(M35,Micronutrients,8,FALSE)*Q35+VLOOKUP(M36,Micronutrients,8,FALSE)*Q36+VLOOKUP(M37,Micronutrients,8,FALSE)*Q37","v":0},{"$f":"VLOOKUP(M26,Macronutrients,9,FALSE)*Q26+VLOOKUP(M27,Macronutrients,9,FALSE)*Q27+VLOOKUP(M28,Macronutrients,9,FALSE)*Q28+VLOOKUP(M29,Macronutrients,9,FALSE)*Q29+VLOOKUP(M30,Macronutrients,9,FALSE)*Q30+VLOOKUP(M31,Macronutrients,9,FALSE)*Q31+VLOOKUP(M34,Micronutrients,9,FALSE)*Q34+VLOOKUP(M35,Micronutrients,9,FALSE)*Q35+VLOOKUP(M36,Micronutrients,9,FALSE)*Q36+VLOOKUP(M37,Micronutrients,9,FALSE)","v":0},{"$f":"VLOOKUP(M26,Macronutrients,10,FALSE)*Q26+VLOOKUP(M27,Macronutrients,10,FALSE)*Q27+VLOOKUP(M28,Macronutrients,10,FALSE)*Q28+VLOOKUP(M29,Macronutrients,10,FALSE)*Q29+VLOOKUP(M30,Macronutrients,10,FALSE)*Q30+VLOOKUP(M31,Macronutrients,10,FALSE)*Q31+VLOOKUP(M34,Micronutrients,10,FALSE)*Q34+VLOOKUP(M35,Micronutrients,10,FALSE)*Q35+VLOOKUP(M36,Micronutrients,10,FALSE)*Q36+VLOOKUP(M37,Micronutrients,10,FALSE)*Q37","v":0},null,null,null,null,null,null,null,null,null,{"$f":"VLOOKUP(Y26,Macronutrients,8,FALSE)*AC26+VLOOKUP(Y27,Macronutrients,8,FALSE)*AC27+VLOOKUP(Y28,Macronutrients,8,FALSE)*AC28+VLOOKUP(Y29,Macronutrients,8,FALSE)*AC29+VLOOKUP(Y30,Macronutrients,8,FALSE)*AC30+VLOOKUP(Y31,Macronutrients,8,FALSE)*AC31+VLOOKUP(Y34,Micronutrients,8,FALSE)*AC34+VLOOKUP(Y35,Micronutrients,8,FALSE)*AC35+VLOOKUP(Y36,Micronutrients,8,FALSE)*AC36+VLOOKUP(Y37,Micronutrients,8,FALSE)*AC37","v":0},{"$f":"VLOOKUP(Y26,Macronutrients,9,FALSE)*AC26+VLOOKUP(Y27,Macronutrients,9,FALSE)*AC27+VLOOKUP(Y28,Macronutrients,9,FALSE)*AC28+VLOOKUP(Y29,Macronutrients,9,FALSE)*AC29+VLOOKUP(Y30,Macronutrients,9,FALSE)*AC30+VLOOKUP(Y31,Macronutrients,9,FALSE)*AC31+VLOOKUP(Y34,Micronutrients,9,FALSE)*AC34+VLOOKUP(Y35,Micronutrients,9,FALSE)*AC35+VLOOKUP(Y36,Micronutrients,9,FALSE)*AC36+VLOOKUP(Y37,Micronutrients,9,FALSE)","v":0},{"$f":"VLOOKUP(Y26,Macronutrients,10,FALSE)*AC26+VLOOKUP(Y27,Macronutrients,10,FALSE)*AC27+VLOOKUP(Y28,Macronutrients,10,FALSE)*AC28+VLOOKUP(Y29,Macronutrients,10,FALSE)*AC29+VLOOKUP(Y30,Macronutrients,10,FALSE)*AC30+VLOOKUP(Y31,Macronutrients,10,FALSE)*AC31+VLOOKUP(Y34,Micronutrients,10,FALSE)*AC34+VLOOKUP(Y35,Micronutrients,10,FALSE)*AC35+VLOOKUP(Y36,Micronutrients,10,FALSE)*AC36+VLOOKUP(Y37,Micronutrients,10,FALSE)*AC37","v":0}]
["Micronutrients (drop down menu)",null,null,null,null,null,null,null,null,null,null,null,"Micronutrients (drop down menu)",null,null,null,null,null,null,null,null,null,null,null,"Micronutrients (drop down menu)"]
["None",{"$f":"VLOOKUP($A34,Micronutrients,14,FALSE)","v":0},{"$f":"VLOOKUP(A34,Micronutrients,18,FALSE)","v":0},{"$f":"VLOOKUP(A34,Micronutrients,16,FALSE)","v":1},0,{"$f":"VLOOKUP(A34,Micronutrients,15,FALSE)","v":0},{"$f":"(E34*VLOOKUP(A34,Micronutrients,14,FALSE)/D34)*C34","v":0},null,"Cu","Mo","Fe",null,"None",{"$f":"VLOOKUP($A34,Micronutrients,14,FALSE)","v":0},{"$f":"VLOOKUP(M34,Micronutrients,18,FALSE)","v":0},{"$f":"VLOOKUP(M34,Micronutrients,16,FALSE)","v":1},0,{"$f":"VLOOKUP(M34,Micronutrients,15,FALSE)","v":0},{"$f":"(Q34*VLOOKUP(M34,Micronutrients,14,FALSE)/P34)*O34","v":0},null,"Cu","Mo","Fe",null,"None",{"$f":"VLOOKUP($A34,Micronutrients,14,FALSE)","v":0},{"$f":"VLOOKUP(Y34,Micronutrients,18,FALSE)","v":0},{"$f":"VLOOKUP(Y34,Micronutrients,16,FALSE)","v":1},0,{"$f":"VLOOKUP(Y34,Micronutrients,15,FALSE)","v":0},{"$f":"(AC34*VLOOKUP(Y34,Micronutrients,14,FALSE)/AB34)*AA34","v":0},null,"Cu","Mo","Fe"]
["None",{"$f":"VLOOKUP($A35,Micronutrients,14,FALSE)","v":0},{"$f":"VLOOKUP(A35,Micronutrients,18,FALSE)","v":0},{"$f":"VLOOKUP(A35,Micronutrients,16,FALSE)","v":1},0,{"$f":"VLOOKUP(A35,Micronutrients,15,FALSE)","v":0},{"$f":"(E35*VLOOKUP(A35,Micronutrients,14,FALSE)/D35)*C35","v":0},null,{"$f":"VLOOKUP(A26,Macronutrients,11,FALSE)*E26+VLOOKUP(A27,Macronutrients,11,FALSE)*E27+VLOOKUP(A28,Macronutrients,11,FALSE)*E28+VLOOKUP(A29,Macronutrients,11,FALSE)*E29+VLOOKUP(A30,Macronutrients,11,FALSE)*E30+VLOOKUP(A31,Macronutrients,11,FALSE)*E31+VLOOKUP(A34,Micronutrients,11,FALSE)*E34+VLOOKUP(A35,Micronutrients,11,FALSE)*E35+VLOOKUP(A36,Micronutrients,11,FALSE)*E36+VLOOKUP(A37,Micronutrients,11,FALSE)*E37","v":0},{"$f":"VLOOKUP(A26,Macronutrients,12,FALSE)*E26+VLOOKUP(A27,Macronutrients,12,FALSE)*E27+VLOOKUP(A28,Macronutrients,12,FALSE)*E28+VLOOKUP(A29,Macronutrients,12,FALSE)*E29+VLOOKUP(A30,Macronutrients,12,FALSE)*E30+VLOOKUP(A31,Macronutrients,12,FALSE)*E31+VLOOKUP(A34,Micronutrients,12,FALSE)*E34+VLOOKUP(A35,Micronutrients,12,FALSE)*E35+VLOOKUP(A36,Micronutrients,12,FALSE)*E36+VLOOKUP(A37,Micronutrients,12,FALSE)*E37","v":0},{"$f":"VLOOKUP(A26,Macronutrients,13,FALSE)*E26+VLOOKUP(A27,Macronutrients,13,FALSE)*E27+VLOOKUP(A28,Macronutrients,13,FALSE)*E28+VLOOKUP(A29,Macronutrients,13,FALSE)*E29+VLOOKUP(A30,Macronutrients,13,FALSE)*E30+VLOOKUP(A31,Macronutrients,13,FALSE)*E31+VLOOKUP(A34,Micronutrients,13,FALSE)*E34+VLOOKUP(A35,Micronutrients,13,FALSE)*E35+VLOOKUP(A36,Micronutrients,13,FALSE)*E36+VLOOKUP(A37,Micronutrients,13,FALSE)*E37","v":0},null,"None",{"$f":"VLOOKUP($A35,Micronutrients,14,FALSE)","v":0},{"$f":"VLOOKUP(M35,Micronutrients,18,FALSE)","v":0},{"$f":"VLOOKUP(M35,Micronutrients,16,FALSE)","v":1},0,{"$f":"VLOOKUP(M35,Micronutrients,15,FALSE)","v":0},{"$f":"(Q35*VLOOKUP(M35,Micronutrients,14,FALSE)/P35)*O35","v":0},null,{"$f":"VLOOKUP(M26,Macronutrients,11,FALSE)*Q26+VLOOKUP(M27,Macronutrients,11,FALSE)*Q27+VLOOKUP(M28,Macronutrients,11,FALSE)*Q28+VLOOKUP(M29,Macronutrients,11,FALSE)*Q29+VLOOKUP(M30,Macronutrients,11,FALSE)*Q30+VLOOKUP(M31,Macronutrients,11,FALSE)*Q31+VLOOKUP(M34,Micronutrients,11,FALSE)*Q34+VLOOKUP(M35,Micronutrients,11,FALSE)*Q35+VLOOKUP(M36,Micronutrients,11,FALSE)*Q36+VLOOKUP(M37,Micronutrients,11,FALSE)*Q37","v":0},{"$f":"VLOOKUP(M26,Macronutrients,12,FALSE)*Q26+VLOOKUP(M27,Macronutrients,12,FALSE)*Q27+VLOOKUP(M28,Macronutrients,12,FALSE)*Q28+VLOOKUP(M29,Macronutrients,12,FALSE)*Q29+VLOOKUP(M30,Macronutrients,12,FALSE)*Q30+VLOOKUP(M31,Macronutrients,12,FALSE)*Q31+VLOOKUP(M34,Micronutrients,12,FALSE)*Q34+VLOOKUP(M35,Micronutrients,12,FALSE)*Q35+VLOOKUP(M36,Micronutrients,12,FALSE)*Q36+VLOOKUP(M37,Micronutrients,12,FALSE)*Q37","v":0},{"$f":"VLOOKUP(M26,Macronutrients,13,FALSE)*Q26+VLOOKUP(M27,Macronutrients,13,FALSE)*Q27+VLOOKUP(M28,Macronutrients,13,FALSE)*Q28+VLOOKUP(M29,Macronutrients,13,FALSE)*Q29+VLOOKUP(M30,Macronutrients,13,FALSE)*Q30+VLOOKUP(M31,Macronutrients,13,FALSE)*Q31+VLOOKUP(M34,Micronutrients,13,FALSE)*Q34+VLOOKUP(M35,Micronutrients,13,FALSE)*Q35+VLOOKUP(M36,Micronutrients,13,FALSE)*Q36+VLOOKUP(M37,Micronutrients,13,FALSE)*Q37","v":0},null,"None",{"$f":"VLOOKUP($A35,Micronutrients,14,FALSE)","v":0},{"$f":"VLOOKUP(Y35,Micronutrients,18,FALSE)","v":0},{"$f":"VLOOKUP(Y35,Micronutrients,16,FALSE)","v":1},0,{"$f":"VLOOKUP(Y35,Micronutrients,15,FALSE)","v":0},{"$f":"(AC35*VLOOKUP(Y35,Micronutrients,14,FALSE)/AB35)*AA35","v":0},null,{"$f":"VLOOKUP(Y26,Macronutrients,11,FALSE)*AC26+VLOOKUP(Y27,Macronutrients,11,FALSE)*AC27+VLOOKUP(Y28,Macronutrients,11,FALSE)*AC28+VLOOKUP(Y29,Macronutrients,11,FALSE)*AC29+VLOOKUP(Y30,Macronutrients,11,FALSE)*AC30+VLOOKUP(Y31,Macronutrients,11,FALSE)*AC31+VLOOKUP(Y34,Micronutrients,11,FALSE)*AC34+VLOOKUP(Y35,Micronutrients,11,FALSE)*AC35+VLOOKUP(Y36,Micronutrients,11,FALSE)*AC36+VLOOKUP(Y37,Micronutrients,11,FALSE)*AC37","v":0},{"$f":"VLOOKUP(Y26,Macronutrients,12,FALSE)*AC26+VLOOKUP(Y27,Macronutrients,12,FALSE)*AC27+VLOOKUP(Y28,Macronutrients,12,FALSE)*AC28+VLOOKUP(Y29,Macronutrients,12,FALSE)*AC29+VLOOKUP(Y30,Macronutrients,12,FALSE)*AC30+VLOOKUP(Y31,Macronutrients,12,FALSE)*AC31+VLOOKUP(Y34,Micronutrients,12,FALSE)*AC34+VLOOKUP(Y35,Micronutrients,12,FALSE)*AC35+VLOOKUP(Y36,Micronutrients,12,FALSE)*AC36+VLOOKUP(Y37,Micronutrients,12,FALSE)*AC37","v":0},{"$f":"VLOOKUP(Y26,Macronutrients,13,FALSE)*AC26+VLOOKUP(Y27,Macronutrients,13,FALSE)*AC27+VLOOKUP(Y28,Macronutrients,13,FALSE)*AC28+VLOOKUP(Y29,Macronutrients,13,FALSE)*AC29+VLOOKUP(Y30,Macronutrients,13,FALSE)*AC30+VLOOKUP(Y31,Macronutrients,13,FALSE)*AC31+VLOOKUP(Y34,Micronutrients,13,FALSE)*AC34+VLOOKUP(Y35,Micronutrients,13,FALSE)*AC35+VLOOKUP(Y36,Micronutrients,13,FALSE)*AC36+VLOOKUP(Y37,Micronutrients,13,FALSE)*AC37","v":0}]
["None",{"$f":"VLOOKUP($A36,Micronutrients,14,FALSE)","v":0},{"$f":"VLOOKUP(A36,Micronutrients,18,FALSE)","v":0},{"$f":"VLOOKUP(A36,Micronutrients,16,FALSE)","v":1},0,{"$f":"VLOOKUP(A36,Micronutrients,15,FALSE)","v":0},{"$f":"(E36*VLOOKUP(A36,Micronutrients,14,FALSE)/D36)*C36","v":0},null,null,null,null,null,"None",{"$f":"VLOOKUP($A36,Micronutrients,14,FALSE)","v":0},{"$f":"VLOOKUP(M36,Micronutrients,18,FALSE)","v":0},{"$f":"VLOOKUP(M36,Micronutrients,16,FALSE)","v":1},0,{"$f":"VLOOKUP(M36,Micronutrients,15,FALSE)","v":0},{"$f":"(Q36*VLOOKUP(M36,Micronutrients,14,FALSE)/P36)*O36","v":0},null,null,null,null,null,"None",{"$f":"VLOOKUP($A36,Micronutrients,14,FALSE)","v":0},{"$f":"VLOOKUP(Y36,Micronutrients,18,FALSE)","v":0},{"$f":"VLOOKUP(Y36,Micronutrients,16,FALSE)","v":1},0,{"$f":"VLOOKUP(Y36,Micronutrients,15,FALSE)","v":0},{"$f":"(AC36*VLOOKUP(Y36,Micronutrients,14,FALSE)/AB36)*AA36","v":0}]
["None",{"$f":"VLOOKUP($A37,Micronutrients,14,FALSE)","v":0},{"$f":"VLOOKUP(A37,Micronutrients,18,FALSE)","v":0},{"$f":"VLOOKUP(A37,Micronutrients,16,FALSE)","v":1},0,{"$f":"VLOOKUP(A37,Micronutrients,15,FALSE)","v":0},{"$f":"(E37*VLOOKUP(A37,Micronutrients,14,FALSE)/D37)*C37","v":0},null,null,null,"More",null,"None",{"$f":"VLOOKUP($A37,Micronutrients,14,FALSE)","v":0},{"$f":"VLOOKUP(M37,Micronutrients,18,FALSE)","v":0},{"$f":"VLOOKUP(M37,Micronutrients,16,FALSE)","v":1},0,{"$f":"VLOOKUP(M37,Micronutrients,15,FALSE)","v":0},{"$f":"(Q37*VLOOKUP(M37,Micronutrients,14,FALSE)/P37)*O37","v":0},null,null,null,"More",null,"None",{"$f":"VLOOKUP($A37,Micronutrients,14,FALSE)","v":0},{"$f":"VLOOKUP(Y37,Micronutrients,18,FALSE)","v":0},{"$f":"VLOOKUP(Y37,Micronutrients,16,FALSE)","v":1},0,{"$f":"VLOOKUP(Y37,Micronutrients,15,FALSE)","v":0},{"$f":"(AC37*VLOOKUP(Y37,Micronutrients,14,FALSE)/AB37)*AA37","v":0},null,null,null,"More"]
["2nd Application Fertilizer Cost/Acre",null,null,null,null,null,{"$f":"SUM(G26:G37)","v":0},null,null,null,"Below",null,"2nd Application Fertilizer Cost/Acre",null,null,null,null,null,{"$f":"SUM(S26:S37)","v":0},null,null,null,"Below",null,"2nd Application Fertilizer Cost/Acre",null,null,null,null,null,{"$f":"SUM(AE26:AE37)","v":0},null,null,null,"Below"]
[null,null,null,null,null,null,null,null,null,null,"¯",null,null,null,null,null,null,null,null,null,null,null,"¯",null,null,null,null,null,null,null,null,null,null,null,"¯"]
["Foliar Applications",null,null,null,null,null,null,null,null,null,null,null,"Foliar Applications",null,null,null,null,null,null,null,null,null,null,null,"Foliar Applications"]
["Fertilizer Source","Purchase Units","Package Price (Gals, Lbs, etc.)","Units/Pkg","Rate/Acre","Units","Cost",null,null,null,null,null,"Fertilizer Source","Purchase Units","Package Price (Gals, Lbs, etc.)","Units/Pkg","Rate/Acre","Units","Cost",null,null,null,null,null,"Fertilizer Source","Purchase Units","Package Price (Gals, Lbs, etc.)","Units/Pkg","Rate/Acre","Units","Cost"]
["Foliars (drop down menu)",null,null,null,"(Enter Below)",null,null,null,"N","P","K",null,"Foliars (drop down menu)",null,null,null,"(Enter Below)",null,null,null,"N","P","K",null,"Foliars (drop down menu)",null,null,null,"(Enter Below)",null,null,null,"N","P","K"]
["None",{"$f":"VLOOKUP(A43,Foliars,14,FALSE)","v":0},{"$f":"VLOOKUP(A43,Foliars,18,FALSE)","v":0},{"$f":"VLOOKUP(A43,Foliars,16,FALSE)","v":1},0,{"$f":"VLOOKUP(A43,Foliars,15,FALSE)","v":0},{"$f":"(E43*VLOOKUP(A43,Foliars,14,FALSE)/D43)*C43","v":0},null,{"$f":"VLOOKUP(A$43,Foliars,2,FALSE)*E$43+VLOOKUP(A$44,Foliars,2,FALSE)*E$44+VLOOKUP(A$45,Foliars,2,FALSE)*E$45+VLOOKUP(A$46,Foliars,2,FALSE)*E$46+VLOOKUP(A$47,Foliars,2,FALSE)*E$47+VLOOKUP(A$48,Foliars,2,FALSE)*E$48","v":0},{"$f":"VLOOKUP(A$43,Foliars,3,FALSE)*E$43+VLOOKUP(A$44,Foliars,3,FALSE)*E$44+VLOOKUP(A$45,Foliars,3,FALSE)*E$45+VLOOKUP(A$46,Foliars,3,FALSE)*E$46+VLOOKUP(A$47,Foliars,3,FALSE)*E$47+VLOOKUP(A$48,Foliars,3,FALSE)*E$48","v":0},{"$f":"VLOOKUP(A$43,Foliars,4,FALSE)*E$43+VLOOKUP(A$44,Foliars,4,FALSE)*E$44+VLOOKUP(A$45,Foliars,4,FALSE)*E$45+VLOOKUP(A$46,Foliars,4,FALSE)*E$46+VLOOKUP(A$47,Foliars,4,FALSE)*E$47+VLOOKUP(A$48,Foliars,4,FALSE)*E$48","v":0},null,"None",{"$f":"VLOOKUP(M43,Foliars,14,FALSE)","v":0},{"$f":"VLOOKUP(M43,Foliars,18,FALSE)","v":0},{"$f":"VLOOKUP(M43,Foliars,16,FALSE)","v":1},0,{"$f":"VLOOKUP(M43,Foliars,15,FALSE)","v":0},{"$f":"(Q43*VLOOKUP(M43,Foliars,14,FALSE)/P43)*O43","v":0},null,{"$f":"VLOOKUP(M$43,Foliars,2,FALSE)*Q$43+VLOOKUP(M$44,Foliars,2,FALSE)*Q$44+VLOOKUP(M$45,Foliars,2,FALSE)*Q$45+VLOOKUP(M$46,Foliars,2,FALSE)*Q$46+VLOOKUP(M$47,Foliars,2,FALSE)*Q$47+VLOOKUP(M$48,Foliars,2,FALSE)*Q$48","v":0},{"$f":"VLOOKUP(M$43,Foliars,3,FALSE)*Q$43+VLOOKUP(M$44,Foliars,3,FALSE)*Q$44+VLOOKUP(M$45,Foliars,3,FALSE)*Q$45+VLOOKUP(M$46,Foliars,3,FALSE)*Q$46+VLOOKUP(M$47,Foliars,3,FALSE)*Q$47+VLOOKUP(M$48,Foliars,3,FALSE)*Q$48","v":0},{"$f":"VLOOKUP(M$43,Foliars,4,FALSE)*Q$43+VLOOKUP(M$44,Foliars,4,FALSE)*Q$44+VLOOKUP(M$45,Foliars,4,FALSE)*Q$45+VLOOKUP(M$46,Foliars,4,FALSE)*Q$46+VLOOKUP(M$47,Foliars,4,FALSE)*Q$47+VLOOKUP(M$48,Foliars,4,FALSE)*Q$48","v":0},null,"None",{"$f":"VLOOKUP(Y43,Foliars,14,FALSE)","v":0},{"$f":"VLOOKUP(Y43,Foliars,18,FALSE)","v":0},{"$f":"VLOOKUP(Y43,Foliars,16,FALSE)","v":1},0,{"$f":"VLOOKUP(Y43,Foliars,15,FALSE)","v":0},{"$f":"(AC43*VLOOKUP(Y43,Foliars,14,FALSE)/AB43)*AA43","v":0},null,{"$f":"VLOOKUP(Y$43,Foliars,2,FALSE)*AC$43+VLOOKUP(Y$44,Foliars,2,FALSE)*AC$44+VLOOKUP(Y$45,Foliars,2,FALSE)*AC$45+VLOOKUP(Y$46,Foliars,2,FALSE)*AC$46+VLOOKUP(Y$47,Foliars,2,FALSE)*AC$47+VLOOKUP(Y$48,Foliars,2,FALSE)*AC$48","v":0},{"$f":"VLOOKUP(Y$43,Foliars,3,FALSE)*AC$43+VLOOKUP(Y$44,Foliars,3,FALSE)*AC$44+VLOOKUP(Y$45,Foliars,3,FALSE)*AC$45+VLOOKUP(Y$46,Foliars,3,FALSE)*AC$46+VLOOKUP(Y$47,Foliars,3,FALSE)*AC$47+VLOOKUP(Y$48,Foliars,3,FALSE)*AC$48","v":0},{"$f":"VLOOKUP(Y$43,Foliars,4,FALSE)*AC$43+VLOOKUP(Y$44,Foliars,4,FALSE)*AC$44+VLOOKUP(Y$45,Foliars,4,FALSE)*AC$45+VLOOKUP(Y$46,Foliars,4,FALSE)*AC$46+VLOOKUP(Y$47,Foliars,4,FALSE)*AC$47+VLOOKUP(Y$48,Foliars,4,FALSE)*AC$48","v":0}]
["None",{"$f":"VLOOKUP(A44,Foliars,14,FALSE)","v":0},0,1,0,0,0,null,null,null,null,null,"None",0,0,1,0,0,0,null,null,null,null,null,"None",0,0,1,0,0,0]
["None",0,0,1,0,0,0,null,"S","Ca","Mg",null,"None",0,0,1,0,0,0,null,"S","Ca","Mg",null,"None",0,0,1,0,0,0,null,"S","Ca","Mg"]
["None",0,0,1,0,0,0,null,{"$f":"VLOOKUP(A$43,Foliars,5,FALSE)*E$43+VLOOKUP(A$44,Foliars,5,FALSE)*E$44+VLOOKUP(A$45,Foliars,5,FALSE)*E$45+VLOOKUP(A$46,Foliars,5,FALSE)*E$46+VLOOKUP(A$47,Foliars,5,FALSE)*E$47+VLOOKUP(A$48,Foliars,5,FALSE)*E$48","v":0},{"$f":"VLOOKUP(A$43,Foliars,7,FALSE)*E$43+VLOOKUP(A$44,Foliars,7,FALSE)*E$44+VLOOKUP(A$45,Foliars,7,FALSE)*E$45+VLOOKUP(A$46,Foliars,7,FALSE)*E$46+VLOOKUP(A$47,Foliars,7,FALSE)*E$47+VLOOKUP(A$48,Foliars,7,FALSE)*E$48","v":0},{"$f":"VLOOKUP(A$43,Foliars,6,FALSE)*E$43+VLOOKUP(A$44,Foliars,6,FALSE)*E$44+VLOOKUP(A$45,Foliars,6,FALSE)*E$45+VLOOKUP(A$46,Foliars,6,FALSE)*E$46+VLOOKUP(A$47,Foliars,6,FALSE)*E$47+VLOOKUP(A$48,Foliars,6,FALSE)*E$48","v":0},null,"None",0,0,1,0,0,0,null,{"$f":"VLOOKUP(M$43,Foliars,5,FALSE)*Q$43+VLOOKUP(M$44,Foliars,5,FALSE)*Q$44+VLOOKUP(M$45,Foliars,5,FALSE)*Q$45+VLOOKUP(M$46,Foliars,5,FALSE)*Q$46+VLOOKUP(M$47,Foliars,5,FALSE)*Q$47+VLOOKUP(M$48,Foliars,5,FALSE)*Q$48","v":0},{"$f":"VLOOKUP(M$43,Foliars,7,FALSE)*Q$43+VLOOKUP(M$44,Foliars,7,FALSE)*Q$44+VLOOKUP(M$45,Foliars,7,FALSE)*Q$45+VLOOKUP(M$46,Foliars,7,FALSE)*Q$46+VLOOKUP(M$47,Foliars,7,FALSE)*Q$47+VLOOKUP(M$48,Foliars,7,FALSE)*Q$48","v":0},{"$f":"VLOOKUP(M$43,Foliars,6,FALSE)*Q$43+VLOOKUP(M$44,Foliars,6,FALSE)*Q$44+VLOOKUP(M$45,Foliars,6,FALSE)*Q$45+VLOOKUP(M$46,Foliars,6,FALSE)*Q$46+VLOOKUP(M$47,Foliars,6,FALSE)*Q$47+VLOOKUP(M$48,Foliars,6,FALSE)*Q$48","v":0},null,"None",0,0,1,0,0,0,null,{"$f":"VLOOKUP(Y$43,Foliars,5,FALSE)*AC$43+VLOOKUP(Y$44,Foliars,5,FALSE)*AC$44+VLOOKUP(Y$45,Foliars,5,FALSE)*AC$45+VLOOKUP(Y$46,Foliars,5,FALSE)*AC$46+VLOOKUP(Y$47,Foliars,5,FALSE)*AC$47+VLOOKUP(Y$48,Foliars,5,FALSE)*AC$48","v":0},{"$f":"VLOOKUP(Y$43,Foliars,7,FALSE)*AC$43+VLOOKUP(Y$44,Foliars,7,FALSE)*AC$44+VLOOKUP(Y$45,Foliars,7,FALSE)*AC$45+VLOOKUP(Y$46,Foliars,7,FALSE)*AC$46+VLOOKUP(Y$47,Foliars,7,FALSE)*AC$47+VLOOKUP(Y$48,Foliars,7,FALSE)*AC$48","v":0},{"$f":"VLOOKUP(Y$43,Foliars,6,FALSE)*AC$43+VLOOKUP(Y$44,Foliars,6,FALSE)*AC$44+VLOOKUP(Y$45,Foliars,6,FALSE)*AC$45+VLOOKUP(Y$46,Foliars,6,FALSE)*AC$46+VLOOKUP(Y$47,Foliars,6,FALSE)*AC$47+VLOOKUP(Y$48,Foliars,6,FALSE)*AC$48","v":0}]
["None",0,0,1,0,0,0,null,null,null,null,null,"None",0,0,1,0,0,0,null,null,null,null,null,"None",0,0,1,0,0,0]
["None",0,0,1,0,0,0,null,"Z","B","Mn",null,"None",0,0,1,0,0,0,null,"Z","B","Mn",null,"None",0,0,1,0,0,0,null,"Z","B","Mn"]
[null,null,null,null,null,null,null,null,{"$f":"VLOOKUP(A$43,Foliars,8,FALSE)*E$43+VLOOKUP(A$44,Foliars,8,FALSE)*E$44+VLOOKUP(A$45,Foliars,8,FALSE)*E$45+VLOOKUP(A$46,Foliars,8,FALSE)*E$46+VLOOKUP(A$47,Foliars,8,FALSE)*E$47+VLOOKUP(A$48,Foliars,8,FALSE)*E$48","v":0},{"$f":"VLOOKUP(A$43,Foliars,9,FALSE)*E$43+VLOOKUP(A$44,Foliars,9,FALSE)*E$44+VLOOKUP(A$45,Foliars,9,FALSE)*E$45+VLOOKUP(A$46,Foliars,9,FALSE)*E$46+VLOOKUP(A$47,Foliars,9,FALSE)*E$47+VLOOKUP(A$48,Foliars,9,FALSE)*E$48","v":0},{"$f":"VLOOKUP(A$43,Foliars,10,FALSE)*E$43+VLOOKUP(A$44,Foliars,10,FALSE)*E$44+VLOOKUP(A$45,Foliars,10,FALSE)*E$45+VLOOKUP(A$46,Foliars,10,FALSE)*E$46+VLOOKUP(A$47,Foliars,10,FALSE)*E$47+VLOOKUP(A$48,Foliars,10,FALSE)*E$48","v":0},null,null,null,null,null,null,null,null,null,{"$f":"VLOOKUP(M$43,Foliars,8,FALSE)*Q$43+VLOOKUP(M$44,Foliars,8,FALSE)*Q$44+VLOOKUP(M$45,Foliars,8,FALSE)*Q$45+VLOOKUP(M$46,Foliars,8,FALSE)*Q$46+VLOOKUP(M$47,Foliars,8,FALSE)*Q$47+VLOOKUP(M$48,Foliars,8,FALSE)*Q$48","v":0},{"$f":"VLOOKUP(M$43,Foliars,9,FALSE)*Q$43+VLOOKUP(M$44,Foliars,9,FALSE)*Q$44+VLOOKUP(M$45,Foliars,9,FALSE)*Q$45+VLOOKUP(M$46,Foliars,9,FALSE)*Q$46+VLOOKUP(M$47,Foliars,9,FALSE)*Q$47+VLOOKUP(M$48,Foliars,9,FALSE)*Q$48","v":0},{"$f":"VLOOKUP(M$43,Foliars,10,FALSE)*Q$43+VLOOKUP(M$44,Foliars,10,FALSE)*Q$44+VLOOKUP(M$45,Foliars,10,FALSE)*Q$45+VLOOKUP(M$46,Foliars,10,FALSE)*Q$46+VLOOKUP(M$47,Foliars,10,FALSE)*Q$47+VLOOKUP(M$48,Foliars,10,FALSE)*Q$48","v":0},null,null,null,null,null,null,null,null,null,{"$f":"VLOOKUP(Y$43,Foliars,8,FALSE)*AC$43+VLOOKUP(Y$44,Foliars,8,FALSE)*AC$44+VLOOKUP(Y$45,Foliars,8,FALSE)*AC$45+VLOOKUP(Y$46,Foliars,8,FALSE)*AC$46+VLOOKUP(Y$47,Foliars,8,FALSE)*AC$47+VLOOKUP(Y$48,Foliars,8,FALSE)*AC$48","v":0},{"$f":"VLOOKUP(Y$43,Foliars,9,FALSE)*AC$43+VLOOKUP(Y$44,Foliars,9,FALSE)*AC$44+VLOOKUP(Y$45,Foliars,9,FALSE)*AC$45+VLOOKUP(Y$46,Foliars,9,FALSE)*AC$46+VLOOKUP(Y$47,Foliars,9,FALSE)*AC$47+VLOOKUP(Y$48,Foliars,9,FALSE)*AC$48","v":0},{"$f":"VLOOKUP(Y$43,Foliars,10,FALSE)*AC$43+VLOOKUP(Y$44,Foliars,10,FALSE)*AC$44+VLOOKUP(Y$45,Foliars,10,FALSE)*AC$45+VLOOKUP(Y$46,Foliars,10,FALSE)*AC$46+VLOOKUP(Y$47,Foliars,10,FALSE)*AC$47+VLOOKUP(Y$48,Foliars,10,FALSE)*AC$48","v":0}]
[]
["Total Foliar Application Cost/Acre",null,null,null,null,null,{"$f":"SUM(G43:G48)","v":0},null,"Cu","Mo","Fe",null,"Total Foliar Application Cost/Acre",null,null,null,null,null,{"$f":"SUM(S43:S48)","v":0},null,"Cu","Mo","Fe",null,"Total Foliar Application Cost/Acre",null,null,null,null,null,{"$f":"SUM(AE43:AE48)","v":0},null,"Cu","Mo","Fe"]
[null,null,null,null,null,null,null,null,{"$f":"VLOOKUP(A43,Foliars,11,FALSE)*E43+VLOOKUP(A44,Foliars,11,FALSE)*E44+VLOOKUP(A45,Foliars,11,FALSE)*E45+VLOOKUP(A46,Foliars,11,FALSE)*E46+VLOOKUP(A47,Foliars,11,FALSE)*E47+VLOOKUP(A48,Foliars,11,FALSE)*E48","v":0},{"$f":"VLOOKUP(A43,Foliars,12,FALSE)*E43+VLOOKUP(A44,Foliars,12,FALSE)*E44+VLOOKUP(A45,Foliars,12,FALSE)*E45+VLOOKUP(A46,Foliars,12,FALSE)*E46+VLOOKUP(A47,Foliars,12,FALSE)*E47+VLOOKUP(A48,Foliars,12,FALSE)*E48","v":0},{"$f":"VLOOKUP(A43,Foliars,13,FALSE)*E43+VLOOKUP(A44,Foliars,13,FALSE)*E44+VLOOKUP(A45,Foliars,13,FALSE)*E45+VLOOKUP(A46,Foliars,13,FALSE)*E46+VLOOKUP(A47,Foliars,13,FALSE)*E47+VLOOKUP(A48,Foliars,13,FALSE)*E48","v":0},null,null,null,null,null,null,null,null,null,{"$f":"VLOOKUP(M43,Foliars,11,FALSE)*Q43+VLOOKUP(M44,Foliars,11,FALSE)*Q44+VLOOKUP(M45,Foliars,11,FALSE)*Q45+VLOOKUP(M46,Foliars,11,FALSE)*Q46+VLOOKUP(M47,Foliars,11,FALSE)*Q47+VLOOKUP(M48,Foliars,11,FALSE)*Q48","v":0},{"$f":"VLOOKUP(M43,Foliars,12,FALSE)*Q43+VLOOKUP(M44,Foliars,12,FALSE)*Q44+VLOOKUP(M45,Foliars,12,FALSE)*Q45+VLOOKUP(M46,Foliars,12,FALSE)*Q46+VLOOKUP(M47,Foliars,12,FALSE)*Q47+VLOOKUP(M48,Foliars,12,FALSE)*Q48","v":0},{"$f":"VLOOKUP(M43,Foliars,13,FALSE)*Q43+VLOOKUP(M44,Foliars,13,FALSE)*Q44+VLOOKUP(M45,Foliars,13,FALSE)*Q45+VLOOKUP(M46,Foliars,13,FALSE)*Q46+VLOOKUP(M47,Foliars,13,FALSE)*Q47+VLOOKUP(M48,Foliars,13,FALSE)*Q48","v":0},null,null,null,null,null,null,null,null,null,{"$f":"VLOOKUP(Y43,Foliars,11,FALSE)*AC43+VLOOKUP(Y44,Foliars,11,FALSE)*AC44+VLOOKUP(Y45,Foliars,11,FALSE)*AC45+VLOOKUP(Y46,Foliars,11,FALSE)*AC46+VLOOKUP(Y47,Foliars,11,FALSE)*AC47+VLOOKUP(Y48,Foliars,11,FALSE)*AC48","v":0},{"$f":"VLOOKUP(Y43,Foliars,12,FALSE)*AC43+VLOOKUP(Y44,Foliars,12,FALSE)*AC44+VLOOKUP(Y45,Foliars,12,FALSE)*AC45+VLOOKUP(Y46,Foliars,12,FALSE)*AC46+VLOOKUP(Y47,Foliars,12,FALSE)*AC47+VLOOKUP(Y48,Foliars,12,FALSE)*AC48","v":0},{"$f":"VLOOKUP(Y43,Foliars,13,FALSE)*AC43+VLOOKUP(Y44,Foliars,13,FALSE)*AC44+VLOOKUP(Y45,Foliars,13,FALSE)*AC45+VLOOKUP(Y46,Foliars,13,FALSE)*AC46+VLOOKUP(Y47,Foliars,13,FALSE)*AC47+VLOOKUP(Y48,Foliars,13,FALSE)*AC48","v":0}]
["Fertigation Applications",null,null,null,null,null,null,null,null,null,null,null,"Fertigation Applications",null,null,null,null,null,null,null,null,null,null,null,"Fertigation Applications"]
["Fertilizer Source","Purchase Units","Package Price (Gals, Lbs, etc.)","Units/Pkg","Rate/Acre","Units","Cost",null,null,null,null,null,"Fertilizer Source","Purchase Units","Package Price (Gals, Lbs, etc.)","Units/Pkg","Rate/Acre","Units","Cost",null,null,null,null,null,"Fertilizer Source","Purchase Units","Package Price (Gals, Lbs, etc.)","Units/Pkg","Rate/Acre","Units","Cost"]
["Fertigation (drop down menu)",null,null,null,"(Enter Below)",null,null,null,"N","P","K",null,"Fertigation (drop down menu)",null,null,null,"(Enter Below)",null,null,null,"N","P","K",null,"Fertigation (drop down menu)",null,null,null,"(Enter Below)",null,null,null,"N","P","K"]
["None",{"$f":"VLOOKUP(A56,Fertigation,14,FALSE)","v":0},{"$f":"VLOOKUP(A56,Fertigation,18,FALSE)","v":0},{"$f":"VLOOKUP(A56,Fertigation,16,FALSE)","v":1},0,{"$f":"VLOOKUP(A56,Fertigation,15,FALSE)","v":0},{"$f":"(E56*VLOOKUP(A56,Foliars,14,FALSE)/D56)*C56","v":0},null,{"$f":"VLOOKUP(A$56,Fertigation,2,FALSE)*E$56+VLOOKUP(A$57,Fertigation,2,FALSE)*E$57+VLOOKUP(A$58,Fertigation,2,FALSE)*E$58+VLOOKUP(A$59,Fertigation,2,FALSE)*E$59+VLOOKUP(A$60,Fertigation,2,FALSE)*E$60+VLOOKUP(A$61,Fertigation,2,FALSE)*E$61","v":0},{"$f":"VLOOKUP(A$56,Fertigation,3,FALSE)*E$56+VLOOKUP(A$57,Fertigation,3,FALSE)*E$57+VLOOKUP(A$58,Fertigation,3,FALSE)*E$58+VLOOKUP(A$59,Fertigation,3,FALSE)*E$59+VLOOKUP(A$60,Fertigation,3,FALSE)*E$60+VLOOKUP(A$61,Fertigation,3,FALSE)*E$61","v":0},{"$f":"VLOOKUP(A$56,Fertigation,4,FALSE)*E$56+VLOOKUP(A$57,Fertigation,4,FALSE)*E$57+VLOOKUP(A$58,Fertigation,4,FALSE)*E$58+VLOOKUP(A$59,Fertigation,4,FALSE)*E$59+VLOOKUP(A$60,Fertigation,4,FALSE)*E$60+VLOOKUP(A$61,Fertigation,4,FALSE)*E$61","v":0},null,"None",{"$f":"VLOOKUP(M56,Fertigation,14,FALSE)","v":0},{"$f":"VLOOKUP(M56,Fertigation,18,FALSE)","v":0},{"$f":"VLOOKUP(M56,Fertigation,16,FALSE)","v":1},0,{"$f":"VLOOKUP(M56,Fertigation,15,FALSE)","v":0},{"$f":"(Q56*VLOOKUP(M56,Foliars,14,FALSE)/P56)*O56","v":0},null,{"$f":"VLOOKUP(M$56,Fertigation,2,FALSE)*Q$56+VLOOKUP(M$57,Fertigation,2,FALSE)*Q$57+VLOOKUP(M$58,Fertigation,2,FALSE)*Q$58+VLOOKUP(M$59,Fertigation,2,FALSE)*Q$59+VLOOKUP(M$60,Fertigation,2,FALSE)*Q$60+VLOOKUP(M$61,Fertigation,2,FALSE)*Q$61","v":0},{"$f":"VLOOKUP(M$56,Fertigation,3,FALSE)*Q$56+VLOOKUP(M$57,Fertigation,3,FALSE)*Q$57+VLOOKUP(M$58,Fertigation,3,FALSE)*Q$58+VLOOKUP(M$59,Fertigation,3,FALSE)*Q$59+VLOOKUP(M$60,Fertigation,3,FALSE)*Q$60+VLOOKUP(M$61,Fertigation,3,FALSE)*Q$61","v":0},{"$f":"VLOOKUP(M$56,Fertigation,4,FALSE)*Q$56+VLOOKUP(M$57,Fertigation,4,FALSE)*Q$57+VLOOKUP(M$58,Fertigation,4,FALSE)*Q$58+VLOOKUP(M$59,Fertigation,4,FALSE)*Q$59+VLOOKUP(M$60,Fertigation,4,FALSE)*Q$60+VLOOKUP(M$61,Fertigation,4,FALSE)*Q$61","v":0},null,"None",{"$f":"VLOOKUP(Y56,Fertigation,14,FALSE)","v":0},{"$f":"VLOOKUP(Y56,Fertigation,18,FALSE)","v":0},{"$f":"VLOOKUP(Y56,Fertigation,16,FALSE)","v":1},0,{"$f":"VLOOKUP(Y56,Fertigation,15,FALSE)","v":0},{"$f":"(AC56*VLOOKUP(Y56,Foliars,14,FALSE)/AB56)*AA56","v":0},null,{"$f":"VLOOKUP(Y$56,Fertigation,2,FALSE)*AC$56+VLOOKUP(Y$57,Fertigation,2,FALSE)*AC$57+VLOOKUP(Y$58,Fertigation,2,FALSE)*AC$58+VLOOKUP(Y$59,Fertigation,2,FALSE)*AC$59+VLOOKUP(Y$60,Fertigation,2,FALSE)*AC$60+VLOOKUP(Y$61,Fertigation,2,FALSE)*AC$61","v":0},{"$f":"VLOOKUP(Y$56,Fertigation,3,FALSE)*AC$56+VLOOKUP(Y$57,Fertigation,3,FALSE)*AC$57+VLOOKUP(Y$58,Fertigation,3,FALSE)*AC$58+VLOOKUP(Y$59,Fertigation,3,FALSE)*AC$59+VLOOKUP(Y$60,Fertigation,3,FALSE)*AC$60+VLOOKUP(Y$61,Fertigation,3,FALSE)*AC$61","v":0},{"$f":"VLOOKUP(Y$56,Fertigation,4,FALSE)*AC$56+VLOOKUP(Y$57,Fertigation,4,FALSE)*AC$57+VLOOKUP(Y$58,Fertigation,4,FALSE)*AC$58+VLOOKUP(Y$59,Fertigation,4,FALSE)*AC$59+VLOOKUP(Y$60,Fertigation,4,FALSE)*AC$60+VLOOKUP(Y$61,Fertigation,4,FALSE)*AC$61","v":0}]
["None",{"$f":"VLOOKUP(A57,Foliars,14,FALSE)","v":0},0,1,0,0,0,null,null,null,null,null,"None",{"$f":"VLOOKUP(M57,Foliars,14,FALSE)","v":0},0,1,0,0,0,null,null,null,null,null,"None",{"$f":"VLOOKUP(Y57,Foliars,14,FALSE)","v":0},0,1,0,0,0]
["None",{"$f":"VLOOKUP(A58,Foliars,14,FALSE)","v":0},0,1,0,0,0,null,"S","Ca","Mg",null,"None",{"$f":"VLOOKUP(M58,Foliars,14,FALSE)","v":0},0,1,0,0,0,null,"S","Ca","Mg",null,"None",{"$f":"VLOOKUP(Y58,Foliars,14,FALSE)","v":0},0,1,0,0,0,null,"S","Ca","Mg"]
["None",{"$f":"VLOOKUP(A59,Foliars,14,FALSE)","v":0},0,1,0,0,0,null,{"$f":"VLOOKUP(A$56,Fertigation,5,FALSE)*E$56+VLOOKUP(A$57,Fertigation,5,FALSE)*E$57+VLOOKUP(A$58,Fertigation,5,FALSE)*E$58+VLOOKUP(A$59,Fertigation,5,FALSE)*E$59+VLOOKUP(A$60,Fertigation,5,FALSE)*E$60+VLOOKUP(A$61,Fertigation,5,FALSE)*E$61","v":0},{"$f":"VLOOKUP(A$56,Fertigation,7,FALSE)*E$56+VLOOKUP(A$57,Fertigation,7,FALSE)*E$57+VLOOKUP(A$58,Fertigation,7,FALSE)*E$58+VLOOKUP(A$59,Fertigation,7,FALSE)*E$59+VLOOKUP(A$60,Fertigation,7,FALSE)*E$60+VLOOKUP(A$61,Fertigation,7,FALSE)*E$61","v":0},{"$f":"VLOOKUP(A$56,Fertigation,6,FALSE)*E$56+VLOOKUP(A$57,Fertigation,6,FALSE)*E$57+VLOOKUP(A$58,Fertigation,6,FALSE)*E$58+VLOOKUP(A$59,Fertigation,6,FALSE)*E$59+VLOOKUP(A$60,Fertigation,6,FALSE)*E$60+VLOOKUP(A$61,Fertigation,6,FALSE)*E$61","v":0},null,"None",{"$f":"VLOOKUP(M59,Foliars,14,FALSE)","v":0},0,1,0,0,0,null,{"$f":"VLOOKUP(M$56,Fertigation,5,FALSE)*Q$56+VLOOKUP(M$57,Fertigation,5,FALSE)*Q$57+VLOOKUP(M$58,Fertigation,5,FALSE)*Q$58+VLOOKUP(M$59,Fertigation,5,FALSE)*Q$59+VLOOKUP(M$60,Fertigation,5,FALSE)*Q$60+VLOOKUP(M$61,Fertigation,5,FALSE)*Q$61","v":0},{"$f":"VLOOKUP(M$56,Fertigation,7,FALSE)*Q$56+VLOOKUP(M$57,Fertigation,7,FALSE)*Q$57+VLOOKUP(M$58,Fertigation,7,FALSE)*Q$58+VLOOKUP(M$59,Fertigation,7,FALSE)*Q$59+VLOOKUP(M$60,Fertigation,7,FALSE)*Q$60+VLOOKUP(M$61,Fertigation,7,FALSE)*Q$61","v":0},{"$f":"VLOOKUP(M$56,Fertigation,6,FALSE)*Q$56+VLOOKUP(M$57,Fertigation,6,FALSE)*Q$57+VLOOKUP(M$58,Fertigation,6,FALSE)*Q$58+VLOOKUP(M$59,Fertigation,6,FALSE)*Q$59+VLOOKUP(M$60,Fertigation,6,FALSE)*Q$60+VLOOKUP(M$61,Fertigation,6,FALSE)*Q$61","v":0},null,"None",{"$f":"VLOOKUP(Y59,Foliars,14,FALSE)","v":0},0,1,0,0,0,null,{"$f":"VLOOKUP(Y$56,Fertigation,5,FALSE)*AC$56+VLOOKUP(Y$57,Fertigation,5,FALSE)*AC$57+VLOOKUP(Y$58,Fertigation,5,FALSE)*AC$58+VLOOKUP(Y$59,Fertigation,5,FALSE)*AC$59+VLOOKUP(Y$60,Fertigation,5,FALSE)*AC$60+VLOOKUP(Y$61,Fertigation,5,FALSE)*AC$61","v":0},{"$f":"VLOOKUP(Y$56,Fertigation,7,FALSE)*AC$56+VLOOKUP(Y$57,Fertigation,7,FALSE)*AC$57+VLOOKUP(Y$58,Fertigation,7,FALSE)*AC$58+VLOOKUP(Y$59,Fertigation,7,FALSE)*AC$59+VLOOKUP(Y$60,Fertigation,7,FALSE)*AC$60+VLOOKUP(Y$61,Fertigation,7,FALSE)*AC$61","v":0},{"$f":"VLOOKUP(Y$56,Fertigation,6,FALSE)*AC$56+VLOOKUP(Y$57,Fertigation,6,FALSE)*AC$57+VLOOKUP(Y$58,Fertigation,6,FALSE)*AC$58+VLOOKUP(Y$59,Fertigation,6,FALSE)*AC$59+VLOOKUP(Y$60,Fertigation,6,FALSE)*AC$60+VLOOKUP(Y$61,Fertigation,6,FALSE)*AC$61","v":0}]
["None",{"$f":"VLOOKUP(A60,Foliars,14,FALSE)","v":0},0,1,0,0,0,null,null,null,null,null,"None",{"$f":"VLOOKUP(M60,Foliars,14,FALSE)","v":0},0,1,0,0,0,null,null,null,null,null,"None",{"$f":"VLOOKUP(Y60,Foliars,14,FALSE)","v":0},0,1,0,0,0]
["None",{"$f":"VLOOKUP(A61,Foliars,14,FALSE)","v":0},0,1,0,0,0,null,"Z","B","Mn",null,"None",{"$f":"VLOOKUP(M61,Foliars,14,FALSE)","v":0},0,1,0,0,0,null,"Z","B","Mn",null,"None",{"$f":"VLOOKUP(Y61,Foliars,14,FALSE)","v":0},0,1,0,0,0,null,"Z","B","Mn"]
[null,null,null,null,null,null,null,null,{"$f":"VLOOKUP(A$56,Fertigation,8,FALSE)*E$56+VLOOKUP(A$57,Fertigation,8,FALSE)*E$57+VLOOKUP(A$58,Fertigation,8,FALSE)*E$58+VLOOKUP(A$59,Fertigation,8,FALSE)*E$59+VLOOKUP(A$60,Fertigation,8,FALSE)*E$60+VLOOKUP(A$61,Fertigation,8,FALSE)*E$61","v":0},{"$f":"VLOOKUP(A$56,Fertigation,9,FALSE)*E$56+VLOOKUP(A$57,Fertigation,9,FALSE)*E$57+VLOOKUP(A$58,Fertigation,9,FALSE)*E$58+VLOOKUP(A$59,Fertigation,9,FALSE)*E$59+VLOOKUP(A$60,Fertigation,9,FALSE)*E$60+VLOOKUP(A$61,Fertigation,9,FALSE)*E$61","v":0},{"$f":"VLOOKUP(A$56,Fertigation,10,FALSE)*E$56+VLOOKUP(A$57,Fertigation,10,FALSE)*E$57+VLOOKUP(A$58,Fertigation,10,FALSE)*E$58+VLOOKUP(A$59,Fertigation,10,FALSE)*E$59+VLOOKUP(A$60,Fertigation,10,FALSE)*E$60+VLOOKUP(A$61,Fertigation,10,FALSE)*E$61","v":0},null,null,null,null,null,null,null,null,null,{"$f":"VLOOKUP(M$56,Fertigation,8,FALSE)*Q$56+VLOOKUP(M$57,Fertigation,8,FALSE)*Q$57+VLOOKUP(M$58,Fertigation,8,FALSE)*Q$58+VLOOKUP(M$59,Fertigation,8,FALSE)*Q$59+VLOOKUP(M$60,Fertigation,8,FALSE)*Q$60+VLOOKUP(M$61,Fertigation,8,FALSE)*Q$61","v":0},{"$f":"VLOOKUP(M$56,Fertigation,9,FALSE)*Q$56+VLOOKUP(M$57,Fertigation,9,FALSE)*Q$57+VLOOKUP(M$58,Fertigation,9,FALSE)*Q$58+VLOOKUP(M$59,Fertigation,9,FALSE)*Q$59+VLOOKUP(M$60,Fertigation,9,FALSE)*Q$60+VLOOKUP(M$61,Fertigation,9,FALSE)*Q$61","v":0},{"$f":"VLOOKUP(M$56,Fertigation,10,FALSE)*Q$56+VLOOKUP(M$57,Fertigation,10,FALSE)*Q$57+VLOOKUP(M$58,Fertigation,10,FALSE)*Q$58+VLOOKUP(M$59,Fertigation,10,FALSE)*Q$59+VLOOKUP(M$60,Fertigation,10,FALSE)*Q$60+VLOOKUP(M$61,Fertigation,10,FALSE)*Q$61","v":0},null,null,null,null,null,null,null,null,null,{"$f":"VLOOKUP(Y$56,Fertigation,8,FALSE)*AC$56+VLOOKUP(Y$57,Fertigation,8,FALSE)*AC$57+VLOOKUP(Y$58,Fertigation,8,FALSE)*AC$58+VLOOKUP(Y$59,Fertigation,8,FALSE)*AC$59+VLOOKUP(Y$60,Fertigation,8,FALSE)*AC$60+VLOOKUP(Y$61,Fertigation,8,FALSE)*AC$61","v":0},{"$f":"VLOOKUP(Y$56,Fertigation,9,FALSE)*AC$56+VLOOKUP(Y$57,Fertigation,9,FALSE)*AC$57+VLOOKUP(Y$58,Fertigation,9,FALSE)*AC$58+VLOOKUP(Y$59,Fertigation,9,FALSE)*AC$59+VLOOKUP(Y$60,Fertigation,9,FALSE)*AC$60+VLOOKUP(Y$61,Fertigation,9,FALSE)*AC$61","v":0},{"$f":"VLOOKUP(Y$56,Fertigation,10,FALSE)*AC$56+VLOOKUP(Y$57,Fertigation,10,FALSE)*AC$57+VLOOKUP(Y$58,Fertigation,10,FALSE)*AC$58+VLOOKUP(Y$59,Fertigation,10,FALSE)*AC$59+VLOOKUP(Y$60,Fertigation,10,FALSE)*AC$60+VLOOKUP(Y$61,Fertigation,10,FALSE)*AC$61","v":0}]
[]
["Total Fertigation Cost/Acre",null,null,null,null,null,{"$f":"SUM(G56:G61)","v":0},null,"Cu","Mo","Fe",null,"Total Fertigation Cost/Acre",null,null,null,null,null,{"$f":"SUM(S56:S61)","v":0},null,"Cu","Mo","Fe",null,"Total Fertigation Cost/Acre",null,null,null,null,null,{"$f":"SUM(AE56:AE61)","v":0},null,"Cu","Mo","Fe"]
[null,null,null,null,null,null,null,null,{"$f":"VLOOKUP(A56,Fertigation,11,FALSE)*E56+VLOOKUP(A57,Fertigation,11,FALSE)*E57+VLOOKUP(A58,Fertigation,11,FALSE)*E58+VLOOKUP(A59,Fertigation,11,FALSE)*E59+VLOOKUP(A60,Fertigation,11,FALSE)*E60+VLOOKUP(A61,Fertigation,11,FALSE)*E61","v":0},{"$f":"VLOOKUP(A56,Fertigation,12,FALSE)*E56+VLOOKUP(A57,Fertigation,12,FALSE)*E57+VLOOKUP(A58,Fertigation,12,FALSE)*E58+VLOOKUP(A59,Fertigation,12,FALSE)*E59+VLOOKUP(A60,Fertigation,12,FALSE)*E60+VLOOKUP(A61,Fertigation,12,FALSE)*E61","v":0},{"$f":"VLOOKUP(A56,Fertigation,13,FALSE)*E56+VLOOKUP(A57,Fertigation,13,FALSE)*E57+VLOOKUP(A58,Fertigation,13,FALSE)*E58+VLOOKUP(A59,Fertigation,13,FALSE)*E59+VLOOKUP(A60,Fertigation,13,FALSE)*E60+VLOOKUP(A61,Fertigation,13,FALSE)*E61","v":0},null,null,null,null,null,null,null,null,null,{"$f":"VLOOKUP(M56,Fertigation,11,FALSE)*Q56+VLOOKUP(M57,Fertigation,11,FALSE)*Q57+VLOOKUP(M58,Fertigation,11,FALSE)*Q58+VLOOKUP(M59,Fertigation,11,FALSE)*Q59+VLOOKUP(M60,Fertigation,11,FALSE)*Q60+VLOOKUP(M61,Fertigation,11,FALSE)*Q61","v":0},{"$f":"VLOOKUP(M56,Fertigation,12,FALSE)*Q56+VLOOKUP(M57,Fertigation,12,FALSE)*Q57+VLOOKUP(M58,Fertigation,12,FALSE)*Q58+VLOOKUP(M59,Fertigation,12,FALSE)*Q59+VLOOKUP(M60,Fertigation,12,FALSE)*Q60+VLOOKUP(M61,Fertigation,12,FALSE)*Q61","v":0},{"$f":"VLOOKUP(M56,Fertigation,13,FALSE)*Q56+VLOOKUP(M57,Fertigation,13,FALSE)*Q57+VLOOKUP(M58,Fertigation,13,FALSE)*Q58+VLOOKUP(M59,Fertigation,13,FALSE)*Q59+VLOOKUP(M60,Fertigation,13,FALSE)*Q60+VLOOKUP(M61,Fertigation,13,FALSE)*Q61","v":0},null,null,null,null,null,null,null,null,null,{"$f":"VLOOKUP(Y56,Fertigation,11,FALSE)*AC56+VLOOKUP(Y57,Fertigation,11,FALSE)*AC57+VLOOKUP(Y58,Fertigation,11,FALSE)*AC58+VLOOKUP(Y59,Fertigation,11,FALSE)*AC59+VLOOKUP(Y60,Fertigation,11,FALSE)*AC60+VLOOKUP(Y61,Fertigation,11,FALSE)*AC61","v":0},{"$f":"VLOOKUP(Y56,Fertigation,12,FALSE)*AC56+VLOOKUP(Y57,Fertigation,12,FALSE)*AC57+VLOOKUP(Y58,Fertigation,12,FALSE)*AC58+VLOOKUP(Y59,Fertigation,12,FALSE)*AC59+VLOOKUP(Y60,Fertigation,12,FALSE)*AC60+VLOOKUP(Y61,Fertigation,12,FALSE)*AC61","v":0},{"$f":"VLOOKUP(Y56,Fertigation,13,FALSE)*AC56+VLOOKUP(Y57,Fertigation,13,FALSE)*AC57+VLOOKUP(Y58,Fertigation,13,FALSE)*AC58+VLOOKUP(Y59,Fertigation,13,FALSE)*AC59+VLOOKUP(Y60,Fertigation,13,FALSE)*AC60+VLOOKUP(Y61,Fertigation,13,FALSE)*AC61","v":0}]
[]
["Total Fertilizer Cost/Acre",null,null,null,null,null,{"$f":"G38+G21+G51","v":0},null,null,null,null,null,"Total Fertilizer Cost/Acre",null,null,null,null,null,{"$f":"S38+S21+S51","v":0},null,null,null,null,null,"Total Fertilizer Cost/Acre",null,null,null,null,null,{"$f":"AE38+AE21+AE51","v":0}]
[]
[null,null,null,null,"Total Nutrient Needs",null,null,null,"Total Fertilizer Program",null,null,null,null,null,null,null,"Total Nutrient Needs",null,null,null,"Total Fertilizer Program",null,null,null,null,null,null,null,"Total Nutrient Needs",null,null,null,"Total Fertilizer Program"]
[null,null,null,null,"Based on:","Soil Test Based Recs",null,null,"Comparison 1",null,null,null,null,null,null,null,"Based on:","Soil Test Based Recs",null,null,"Comparison 2",null,null,null,null,null,null,null,"Based on:","Soil Test Based Recs",null,null,"Comparison 3"]
["Farm Name",null,null,null,"N","P","K",null,"N","P","K",null,{"$f":"A71","v":"Farm Name"},null,null,null,"N","P","K",null,"N","P","K",null,{"$f":"A71","v":"Farm Name"},null,null,null,"N","P","K",null,"N","P","K"]
["Farm Tract",null,null,null,{"$f":"'Nutrient Management'!$F$56","v":0},{"$f":"'Nutrient Management'!$G$56","v":0},{"$f":"'Nutrient Management'!$H$56","v":0},null,{"$f":"I43+I26+I6+I56","v":0},{"$f":"J43+J26+J6+J56","v":0},{"$f":"K43+K26+K6+K56","v":0},null,{"$f":"A72","v":"Farm Tract"},null,null,null,{"$f":"'Nutrient Management'!$F$56","v":0},{"$f":"'Nutrient Management'!$G$56","v":0},{"$f":"'Nutrient Management'!$H$56","v":0},null,{"$f":"U43+U26+U6+U56","v":0},{"$f":"V43+V26+V6+V56","v":0},{"$f":"W43+W26+W6+W56","v":0},null,{"$f":"A72","v":"Farm Tract"},null,null,null,{"$f":"'Nutrient Management'!$F$56","v":0},{"$f":"'Nutrient Management'!$G$56","v":0},{"$f":"'Nutrient Management'!$H$56","v":0},null,{"$f":"AG43+AG26+AG6+AG56","v":0},{"$f":"AH43+AH26+AH6+AH56","v":0},{"$f":"AI43+AI26+AI6+AI56","v":0}]
["Farm Number",null,null,null,"S","Ca","Mg",null,"S","Ca","Mg",null,"Farm Number",null,null,null,"S","Ca","Mg",null,"S","Ca","Mg",null,"Farm Number",null,null,null,"S","Ca","Mg",null,"S","Ca","Mg"]
[null,null,null,null,{"$f":"'Nutrient Management'!$F$59","v":0},{"$f":"'Nutrient Management'!$G$59","v":0},{"$f":"'Nutrient Management'!$H$59","v":0},null,{"$f":"I46+I29+I9+I59","v":0},{"$f":"J46+J29+J9+J59","v":0},{"$f":"K46+K29+K9+K59","v":0},null,null,null,null,null,{"$f":"'Nutrient Management'!$F$59","v":0},{"$f":"'Nutrient Management'!$G$59","v":0},{"$f":"'Nutrient Management'!$H$59","v":0},null,{"$f":"U46+U29+U9+U59","v":0},{"$f":"V46+V29+V9+V59","v":0},{"$f":"W46+W29+W9+W59","v":0},null,null,null,null,null,{"$f":"'Nutrient Management'!$F$59","v":0},{"$f":"'Nutrient Management'!$G$59","v":0},{"$f":"'Nutrient Management'!$H$59","v":0},null,{"$f":"AG46+AG29+AG9+AG59","v":0},{"$f":"AH46+AH29+AH9+AH59","v":0},{"$f":"AI46+AI29+AI9+AI59","v":0}]
[null,null,null,null,"Z","B","Mn",null,"Z","B","Mn",null,null,null,null,null,"Z","B","Mn",null,"Z","B","Mn",null,null,null,null,null,"Z","B","Mn",null,"Z","B","Mn"]
[null,null,null,null,{"$f":"'Nutrient Management'!$F$61","v":0},{"$f":"'Nutrient Management'!$G$61","v":0},{"$f":"'Nutrient Management'!$H$61","v":0},null,{"$f":"I49+I32+I12+I62","v":0},{"$f":"J49+J32+J12+J62","v":0},{"$f":"K49+K32+K12+K62","v":0},null,null,null,null,null,{"$f":"'Nutrient Management'!$F$61","v":0},{"$f":"'Nutrient Management'!$G$61","v":0},{"$f":"'Nutrient Management'!$H$61","v":0},null,{"$f":"U49+U32+U12+U62","v":0},{"$f":"V49+V32+V12+V62","v":0},{"$f":"W49+W32+W12+W62","v":0},null,null,null,null,null,{"$f":"'Nutrient Management'!$F$61","v":0},{"$f":"'Nutrient Management'!$G$61","v":0},{"$f":"'Nutrient Management'!$H$61","v":0},null,{"$f":"AG49+AG32+AG12+AG62","v":0},{"$f":"AH49+AH32+AH12+AH62","v":0},{"$f":"AI49+AI32+AI12+AI62","v":0}]
[null,null,null,null,"Cu","Mo","Fe",null,"Cu","Mo","Fe",null,null,null,null,null,"Cu","Mo","Fe",null,"Cu","Mo","Fe",null,null,null,null,null,"Cu","Mo","Fe",null,"Cu","Mo","Fe"]
[null,null,null,null,{"$f":"'Nutrient Management'!$F$63","v":0},{"$f":"'Nutrient Management'!$G$63","v":0},{"$f":"'Nutrient Management'!$H$63","v":0},null,{"$f":"I65+I52+I35+I15","v":0},{"$f":"J65+J52+J35+J15","v":0},0,null,null,null,null,null,{"$f":"'Nutrient Management'!$F$63","v":0},{"$f":"'Nutrient Management'!$G$63","v":0},{"$f":"'Nutrient Management'!$H$63","v":0},null,{"$f":"U65+U52+U35+U15","v":0},{"$f":"V65+V52+V35+V15","v":0},0,null,null,null,null,null,{"$f":"'Nutrient Management'!$F$63","v":0},{"$f":"'Nutrient Management'!$G$63","v":0},{"$f":"'Nutrient Management'!$H$63","v":0},null,{"$f":"AG65+AG52+AG35+AG15","v":0},{"$f":"AH65+AH52+AH35+AH15","v":0},0]
[null,null,null,null,"* from Nutrient Management tab",null,null,null,null,null,null,null,null,null,null,null,"* from Nutrient Management tab",null,null,null,null,null,null,null,null,null,null,null,"* from Nutrient Management tab"]

{"sheet":"Fertilizer Plan (Fruit 3)","index":9,"n_rows":79,"n_cols":35,"rows_kept":79,"cut":false,"hidden":false,"merged":[[52,12,52,22],[52,24,52,34],[69,32,69,34],[68,4,68,6],[68,8,68,10],[68,16,68,18],[68,20,68,22],[68,28,68,30],[68,32,68,34],[69,5,69,6],[69,8,69,10],[69,17,69,18],[69,20,69,22],[69,29,69,30],[52,0,52,10],[21,23,22,23],[22,0,22,10],[22,12,22,22],[22,24,22,34],[39,0,39,10],[39,12,39,22],[39,24,39,34],[2,0,2,10],[2,12,2,22],[2,24,2,34],[0,0,0,10],[0,12,0,22],[0,24,0,34],[1,0,1,10],[1,12,1,22],[1,24,1,34]]}
[{"$f":"'Nutrient Management'!J2","v":"Enter Crop Name"},null,null,null,null,null,null,null,null,null,null,null,{"$f":"A1","v":"Enter Crop Name"},null,null,null,null,null,null,null,null,null,null,null,{"$f":"A1","v":"Enter Crop Name"}]
["Comparison Plan 1",null,null,null,null,null,null,null,null,null,null,null,"Comparison Plan 2",null,null,null,null,null,null,null,null,null,null,null,"Comparison Plan 3"]
["1st Application (i.e., Pre-Plant or Broadcast Fertilizer)",null,null,null,null,null,null,null,null,null,null,null,"1st Application (i.e., Pre-Plant or Broadcast Fertilizer)",null,null,null,null,null,null,null,null,null,null,null,"1st Application (i.e., Pre-Plant or Broadcast Fertilizer)"]
["Fertilizer Source","Purchase Units","Package Price (Gals, Lbs, etc.)","Units/Pkg","Rate/Acre","Units","Cost",null,null,null,null,null,"Fertilizer Source","Purchase Units","Package Price (Gals, Lbs, etc.)","Units/Pkg","Rate/Acre","Units","Cost",null,null,null,null,null,"Fertilizer Source","Purchase Units","Package Price (Gals, Lbs, etc.)","Units/Pkg","Rate/Acre","Units","Cost"]
["Macronutrients (drop down menu)",null,null,null,"(Enter Below)",null,null,null,"N","P","K",null,"Macronutrients (drop down menu)",null,null,null,"(Enter Below)",null,null,null,"N","P","K",null,"Macronutrients (drop down menu)",null,null,null,"(Enter Below)",null,null,null,"N","P","K"]
["None",{"$f":"VLOOKUP(A6,Macronutrients,18,FALSE)","v":0},{"$f":"VLOOKUP(A6,Macronutrients,18,FALSE)","v":0},{"$f":"VLOOKUP(A6,Macronutrients,16,FALSE)","v":1},0,{"$f":"VLOOKUP(A6,Macronutrients,15,FALSE)","v":0},{"$f":"(E6*VLOOKUP(A6,Macronutrients,14,FALSE)/D6)*C6","v":0},null,{"$f":"VLOOKUP(A6,Macronutrients,2,FALSE)*E6+VLOOKUP(A7,Macronutrients,2,FALSE)*E7+VLOOKUP(A8,Macronutrients,2,FALSE)*E8+VLOOKUP(A9,Macronutrients,2,FALSE)*E9+VLOOKUP(A10,Macronutrients,2,FALSE)*E10+VLOOKUP(A11,Macronutrients,2,FALSE)*E11+VLOOKUP(A14,Micronutrients,2,FALSE)*E14+VLOOKUP(A15,Micronutrients,2,FALSE)*E15+VLOOKUP(A16,Micronutrients,2,FALSE)*E16+VLOOKUP(A17,Micronutrients,2,FALSE)*E17","v":0},{"$f":"VLOOKUP(A6,Macronutrients,3,FALSE)*E6+VLOOKUP(A7,Macronutrients,3,FALSE)*E7+VLOOKUP(A8,Macronutrients,3,FALSE)*E8+VLOOKUP(A9,Macronutrients,3,FALSE)*E9+VLOOKUP(A10,Macronutrients,3,FALSE)*E10+VLOOKUP(A11,Macronutrients,3,FALSE)*E11+VLOOKUP(A14,Micronutrients,3,FALSE)*E14+VLOOKUP(A15,Micronutrients,3,FALSE)*E15+VLOOKUP(A16,Micronutrients,3,FALSE)*E16+VLOOKUP(A17,Micronutrients,3,FALSE)*E17","v":0},{"$f":"VLOOKUP(A6,Macronutrients,4,FALSE)*E6+VLOOKUP(A7,Macronutrients,4,FALSE)*E7+VLOOKUP(A8,Macronutrients,4,FALSE)*E8+VLOOKUP(A9,Macronutrients,4,FALSE)*E9+VLOOKUP(A10,Macronutrients,4,FALSE)*E10+VLOOKUP(A11,Macronutrients,4,FALSE)*E11+VLOOKUP(A14,Micronutrients,4,FALSE)*E14+VLOOKUP(A15,Micronutrients,4,FALSE)*E15+VLOOKUP(A16,Micronutrients,4,FALSE)*E16+VLOOKUP(A17,Micronutrients,4,FALSE)*E17","v":0},null,"None",{"$f":"VLOOKUP(M6,Macronutrients,14,FALSE)","v":0},{"$f":"VLOOKUP(M6,Macronutrients,18,FALSE)","v":0},{"$f":"VLOOKUP(M6,Macronutrients,16,FALSE)","v":1},0,{"$f":"VLOOKUP(M6,Macronutrients,15,FALSE)","v":0},{"$f":"(Q6*VLOOKUP(M6,Macronutrients,14,FALSE)/P6)*O6","v":0},null,{"$f":"VLOOKUP(M6,Macronutrients,2,FALSE)*Q6+VLOOKUP(M7,Macronutrients,2,FALSE)*Q7+VLOOKUP(M8,Macronutrients,2,FALSE)*Q8+VLOOKUP(M9,Macronutrients,2,FALSE)*Q9+VLOOKUP(M10,Macronutrients,2,FALSE)*Q10+VLOOKUP(M11,Macronutrients,2,FALSE)*Q11+VLOOKUP(M14,Micronutrients,2,FALSE)*Q14+VLOOKUP(M15,Micronutrients,2,FALSE)*Q15+VLOOKUP(M16,Micronutrients,2,FALSE)*Q16+VLOOKUP(M17,Micronutrients,2,FALSE)*Q17","v":0},{"$f":"VLOOKUP(M6,Macronutrients,3,FALSE)*Q6+VLOOKUP(M7,Macronutrients,3,FALSE)*Q7+VLOOKUP(M8,Macronutrients,3,FALSE)*Q8+VLOOKUP(M9,Macronutrients,3,FALSE)*Q9+VLOOKUP(M10,Macronutrients,3,FALSE)*Q10+VLOOKUP(M11,Macronutrients,3,FALSE)*Q11+VLOOKUP(M14,Micronutrients,3,FALSE)*Q14+VLOOKUP(M15,Micronutrients,3,FALSE)*Q15+VLOOKUP(M16,Micronutrients,3,FALSE)*Q16+VLOOKUP(M17,Micronutrients,3,FALSE)*Q17","v":0},{"$f":"VLOOKUP(M6,Macronutrients,4,FALSE)*Q6+VLOOKUP(M7,Macronutrients,4,FALSE)*Q7+VLOOKUP(M8,Macronutrients,4,FALSE)*Q8+VLOOKUP(M9,Macronutrients,4,FALSE)*Q9+VLOOKUP(M10,Macronutrients,4,FALSE)*Q10+VLOOKUP(M11,Macronutrients,4,FALSE)*Q11+VLOOKUP(M14,Micronutrients,4,FALSE)*Q14+VLOOKUP(M15,Micronutrients,4,FALSE)*Q15+VLOOKUP(M16,Micronutrients,4,FALSE)*Q16+VLOOKUP(M17,Micronutrients,4,FALSE)*Q17","v":0},null,"None",{"$f":"VLOOKUP(Y6,Macronutrients,14,FALSE)","v":0},{"$f":"VLOOKUP(Y6,Macronutrients,18,FALSE)","v":0},{"$f":"VLOOKUP(Y6,Macronutrients,16,FALSE)","v":1},0,{"$f":"VLOOKUP(Y6,Macronutrients,15,FALSE)","v":0},{"$f":"(AC6*VLOOKUP(Y6,Macronutrients,14,FALSE)/AB6)*AA6","v":0},null,{"$f":"VLOOKUP(Y6,Macronutrients,2,FALSE)*AC6+VLOOKUP(Y7,Macronutrients,2,FALSE)*AC7+VLOOKUP(Y8,Macronutrients,2,FALSE)*AC8+VLOOKUP(Y9,Macronutrients,2,FALSE)*AC9+VLOOKUP(Y10,Macronutrients,2,FALSE)*AC10+VLOOKUP(Y11,Macronutrients,2,FALSE)*AC11+VLOOKUP(Y14,Micronutrients,2,FALSE)*AC14+VLOOKUP(Y15,Micronutrients,2,FALSE)*AC15+VLOOKUP(Y16,Micronutrients,2,FALSE)*AC16+VLOOKUP(Y17,Micronutrients,2,FALSE)*AC17","v":0},{"$f":"VLOOKUP(Y6,Macronutrients,3,FALSE)*AC6+VLOOKUP(Y7,Macronutrients,3,FALSE)*AC7+VLOOKUP(Y8,Macronutrients,3,FALSE)*AC8+VLOOKUP(Y9,Macronutrients,3,FALSE)*AC9+VLOOKUP(Y10,Macronutrients,3,FALSE)*AC10+VLOOKUP(Y11,Macronutrients,3,FALSE)*AC11+VLOOKUP(Y14,Micronutrients,3,FALSE)*AC14+VLOOKUP(Y15,Micronutrients,3,FALSE)*AC15+VLOOKUP(Y16,Micronutrients,3,FALSE)*AC16+VLOOKUP(Y17,Micronutrients,3,FALSE)*AC17","v":0},{"$f":"VLOOKUP(Y6,Macronutrients,4,FALSE)*AC6+VLOOKUP(Y7,Macronutrients,4,FALSE)*AC7+VLOOKUP(Y8,Macronutrients,4,FALSE)*AC8+VLOOKUP(Y9,Macronutrients,4,FALSE)*AC9+VLOOKUP(Y10,Macronutrients,4,FALSE)*AC10+VLOOKUP(Y11,Macronutrients,4,FALSE)*AC11+VLOOKUP(Y14,Micronutrients,4,FALSE)*AC14+VLOOKUP(Y15,Micronutrients,4,FALSE)*AC15+VLOOKUP(Y16,Micronutrients,4,FALSE)*AC16+VLOOKUP(Y17,Micronutrients,4,FALSE)*AC17","v":0}]
["None",{"$f":"VLOOKUP(A7,Macronutrients,18,FALSE)","v":0},0,1,0,0,0,null,null,null,null,null,"None",0,0,1,0,0,0,null,null,null,null,null,"None",0,0,1,0,0,0]
["None",{"$f":"VLOOKUP(A8,Macronutrients,14,FALSE)","v":0},0,1,0,0,0,null,"S","Ca","Mg",null,"None",0,0,1,0,0,0,null,"S","Ca","Mg",null,"None",0,0,1,0,0,0,null,"S","Ca","Mg"]
["None",0,0,1,0,0,0,null,{"$f":"VLOOKUP(A6,Macronutrients,5,FALSE)*E6+VLOOKUP(A7,Macronutrients,5,FALSE)*E7+VLOOKUP(A8,Macronutrients,5,FALSE)*E8+VLOOKUP(A9,Macronutrients,5,FALSE)*E9+VLOOKUP(A10,Macronutrients,5,FALSE)*E10+VLOOKUP(A11,Macronutrients,5,FALSE)*E11+VLOOKUP(A14,Micronutrients,5,FALSE)*E14+VLOOKUP(A15,Micronutrients,5,FALSE)*E15+VLOOKUP(A16,Micronutrients,5,FALSE)*E16+VLOOKUP(A17,Micronutrients,5,FALSE)*E17+VLOOKUP(A20,Lime,5,FALSE)*E20","v":0},{"$f":"VLOOKUP(A6,Macronutrients,7,FALSE)*E6+VLOOKUP(A7,Macronutrients,7,FALSE)*E7+VLOOKUP(A8,Macronutrients,7,FALSE)*E8+VLOOKUP(A9,Macronutrients,7,FALSE)*E9+VLOOKUP(A10,Macronutrients,7,FALSE)*E10+VLOOKUP(A11,Macronutrients,7,FALSE)*E11+VLOOKUP(A14,Micronutrients,7,FALSE)*E14+VLOOKUP(A15,Micronutrients,7,FALSE)*E15+VLOOKUP(A16,Micronutrients,7,FALSE)*E16+VLOOKUP(A17,Micronutrients,7,FALSE)*E17+VLOOKUP(A20,Lime,7,FALSE)*E20","v":0},{"$f":"VLOOKUP($A6,Macronutrients,6,FALSE)*$E$6+VLOOKUP($A7,Macronutrients,6,FALSE)*$E$7+VLOOKUP($A8,Macronutrients,6,FALSE)*$E$8+VLOOKUP($A9,Macronutrients,6,FALSE)*$E$9+VLOOKUP($A10,Macronutrients,6,FALSE)*$E$10+VLOOKUP($A11,Macronutrients,6,FALSE)*$E$11+VLOOKUP($A14,Micronutrients,6,FALSE)*$E$14+VLOOKUP($A15,Micronutrients,6,FALSE)*E15+VLOOKUP($A16,Micronutrients,6,FALSE)*$E$16+VLOOKUP($A17,Micronutrients,6,FALSE)*$E$17+VLOOKUP($A20,Lime,6,FALSE)*E20","v":0},null,"None",0,0,1,0,0,0,null,{"$f":"VLOOKUP(M6,Macronutrients,5,FALSE)*Q6+VLOOKUP(M7,Macronutrients,5,FALSE)*Q7+VLOOKUP(M8,Macronutrients,5,FALSE)*Q8+VLOOKUP(M9,Macronutrients,5,FALSE)*Q9+VLOOKUP(M10,Macronutrients,5,FALSE)*Q10+VLOOKUP(M11,Macronutrients,5,FALSE)*Q11+VLOOKUP(M14,Micronutrients,5,FALSE)*Q14+VLOOKUP(M15,Micronutrients,5,FALSE)*Q15+VLOOKUP(M16,Micronutrients,5,FALSE)*Q16+VLOOKUP(M17,Micronutrients,5,FALSE)*Q17+VLOOKUP(M20,Lime,5,FALSE)*Q20","v":0},{"$f":"VLOOKUP(M6,Macronutrients,7,FALSE)*Q6+VLOOKUP(M7,Macronutrients,7,FALSE)*Q7+VLOOKUP(M8,Macronutrients,7,FALSE)*Q8+VLOOKUP(M9,Macronutrients,7,FALSE)*Q9+VLOOKUP(M10,Macronutrients,7,FALSE)*Q10+VLOOKUP(M11,Macronutrients,7,FALSE)*Q11+VLOOKUP(M14,Micronutrients,7,FALSE)*Q14+VLOOKUP(M15,Micronutrients,7,FALSE)*Q15+VLOOKUP(M16,Micronutrients,7,FALSE)*Q16+VLOOKUP(M17,Micronutrients,7,FALSE)*Q17+VLOOKUP(M20,Lime,7,FALSE)*Q20","v":0},{"$f":"VLOOKUP($A6,Macronutrients,6,FALSE)*$E$6+VLOOKUP($A7,Macronutrients,6,FALSE)*$E$7+VLOOKUP($A8,Macronutrients,6,FALSE)*$E$8+VLOOKUP($A9,Macronutrients,6,FALSE)*$E$9+VLOOKUP($A10,Macronutrients,6,FALSE)*$E$10+VLOOKUP($A11,Macronutrients,6,FALSE)*$E$11+VLOOKUP($A14,Micronutrients,6,FALSE)*$E$14+VLOOKUP($A15,Micronutrients,6,FALSE)*Q15+VLOOKUP($A16,Micronutrients,6,FALSE)*$E$16+VLOOKUP($A17,Micronutrients,6,FALSE)*$E$17+VLOOKUP($A20,Lime,6,FALSE)*Q20","v":0},null,"None",0,0,1,0,0,0,null,{"$f":"VLOOKUP(Y6,Macronutrients,5,FALSE)*AC6+VLOOKUP(Y7,Macronutrients,5,FALSE)*AC7+VLOOKUP(Y8,Macronutrients,5,FALSE)*AC8+VLOOKUP(Y9,Macronutrients,5,FALSE)*AC9+VLOOKUP(Y10,Macronutrients,5,FALSE)*AC10+VLOOKUP(Y11,Macronutrients,5,FALSE)*AC11+VLOOKUP(Y14,Micronutrients,5,FALSE)*AC14+VLOOKUP(Y15,Micronutrients,5,FALSE)*AC15+VLOOKUP(Y16,Micronutrients,5,FALSE)*AC16+VLOOKUP(Y17,Micronutrients,5,FALSE)*AC17+VLOOKUP(Y20,Lime,5,FALSE)*AC20","v":0},{"$f":"VLOOKUP(Y6,Macronutrients,7,FALSE)*AC6+VLOOKUP(Y7,Macronutrients,7,FALSE)*AC7+VLOOKUP(Y8,Macronutrients,7,FALSE)*AC8+VLOOKUP(Y9,Macronutrients,7,FALSE)*AC9+VLOOKUP(Y10,Macronutrients,7,FALSE)*AC10+VLOOKUP(Y11,Macronutrients,7,FALSE)*AC11+VLOOKUP(Y14,Micronutrients,7,FALSE)*AC14+VLOOKUP(Y15,Micronutrients,7,FALSE)*AC15+VLOOKUP(Y16,Micronutrients,7,FALSE)*AC16+VLOOKUP(Y17,Micronutrients,7,FALSE)*AC17+VLOOKUP(Y20,Lime,7,FALSE)*AC20","v":0},{"$f":"VLOOKUP($A6,Macronutrients,6,FALSE)*$E$6+VLOOKUP($A7,Macronutrients,6,FALSE)*$E$7+VLOOKUP($A8,Macronutrients,6,FALSE)*$E$8+VLOOKUP($A9,Macronutrients,6,FALSE)*$E$9+VLOOKUP($A10,Macronutrients,6,FALSE)*$E$10+VLOOKUP($A11,Macronutrients,6,FALSE)*$E$11+VLOOKUP($A14,Micronutrients,6,FALSE)*$E$14+VLOOKUP($A15,Micronutrients,6,FALSE)*AC15+VLOOKUP($A16,Micronutrients,6,FALSE)*$E$16+VLOOKUP($A17,Micronutrients,6,FALSE)*$E$17+VLOOKUP($A20,Lime,6,FALSE)*AC20","v":0}]
["None",0,0,1,0,0,0,null,null,null,null,null,"None",0,0,1,0,0,0,null,null,null,null,null,"None",0,0,1,0,0,0]
["None",0,0,1,0,0,0,null,"Z","B","Mn",null,"None",0,0,1,0,0,0,null,"Z","B","Mn",null,"None",0,0,1,0,0,0,null,"Z","B","Mn"]
[null,null,null,null,null,null,null,null,{"$f":"VLOOKUP(A6,Macronutrients,8,FALSE)*E6+VLOOKUP(A7,Macronutrients,8,FALSE)*E7+VLOOKUP(A8,Macronutrients,8,FALSE)*E8+VLOOKUP(A9,Macronutrients,8,FALSE)*E9+VLOOKUP(A10,Macronutrients,8,FALSE)*E10+VLOOKUP(A11,Macronutrients,8,FALSE)*E11+VLOOKUP(A14,Micronutrients,8,FALSE)*E14+VLOOKUP(A15,Micronutrients,8,FALSE)*E15+VLOOKUP(A16,Micronutrients,8,FALSE)*E16+VLOOKUP(A17,Micronutrients,8,FALSE)*E17+VLOOKUP(A20,Lime,8,FALSE)*E20","v":0},{"$f":"VLOOKUP(A6,Macronutrients,9,FALSE)*E6+VLOOKUP(A7,Macronutrients,9,FALSE)*E7+VLOOKUP(A8,Macronutrients,9,FALSE)*E8+VLOOKUP(A9,Macronutrients,9,FALSE)*E9+VLOOKUP(A10,Macronutrients,9,FALSE)*E10+VLOOKUP(A11,Macronutrients,9,FALSE)*E11+VLOOKUP(A14,Micronutrients,9,FALSE)*E14+VLOOKUP(A15,Micronutrients,9,FALSE)*E15+VLOOKUP(A16,Micronutrients,9,FALSE)*E16+VLOOKUP(A17,Micronutrients,9,FALSE)*E17+VLOOKUP(A20,Lime,9,FALSE)*E20","v":0},{"$f":"VLOOKUP(A6,Macronutrients,10,FALSE)*E6+VLOOKUP(A7,Macronutrients,10,FALSE)*E7+VLOOKUP(A8,Macronutrients,10,FALSE)*E8+VLOOKUP(A9,Macronutrients,10,FALSE)*E9+VLOOKUP(A10,Macronutrients,10,FALSE)*E10+VLOOKUP(A11,Macronutrients,10,FALSE)*E11+VLOOKUP(A14,Micronutrients,10,FALSE)*E14+VLOOKUP(A15,Micronutrients,10,FALSE)*E15+VLOOKUP(A16,Micronutrients,10,FALSE)*E16+VLOOKUP(A17,Micronutrients,10,FALSE)*E17+VLOOKUP(A20,Lime,10,FALSE)*E20","v":0},null,null,null,null,null,null,null,null,null,{"$f":"VLOOKUP(M6,Macronutrients,8,FALSE)*Q6+VLOOKUP(M7,Macronutrients,8,FALSE)*Q7+VLOOKUP(M8,Macronutrients,8,FALSE)*Q8+VLOOKUP(M9,Macronutrients,8,FALSE)*Q9+VLOOKUP(M10,Macronutrients,8,FALSE)*Q10+VLOOKUP(M11,Macronutrients,8,FALSE)*Q11+VLOOKUP(M14,Micronutrients,8,FALSE)*Q14+VLOOKUP(M15,Micronutrients,8,FALSE)*Q15+VLOOKUP(M16,Micronutrients,8,FALSE)*Q16+VLOOKUP(M17,Micronutrients,8,FALSE)*Q17+VLOOKUP(M20,Lime,8,FALSE)*Q20","v":0},{"$f":"VLOOKUP(M6,Macronutrients,9,FALSE)*Q6+VLOOKUP(M7,Macronutrients,9,FALSE)*Q7+VLOOKUP(M8,Macronutrients,9,FALSE)*Q8+VLOOKUP(M9,Macronutrients,9,FALSE)*Q9+VLOOKUP(M10,Macronutrients,9,FALSE)*Q10+VLOOKUP(M11,Macronutrients,9,FALSE)*Q11+VLOOKUP(M14,Micronutrients,9,FALSE)*Q14+VLOOKUP(M15,Micronutrients,9,FALSE)*Q15+VLOOKUP(M16,Micronutrients,9,FALSE)*Q16+VLOOKUP(M17,Micronutrients,9,FALSE)*Q17+VLOOKUP(M20,Lime,9,FALSE)*Q20","v":0},{"$f":"VLOOKUP(M6,Macronutrients,10,FALSE)*Q6+VLOOKUP(M7,Macronutrients,10,FALSE)*Q7+VLOOKUP(M8,Macronutrients,10,FALSE)*Q8+VLOOKUP(M9,Macronutrients,10,FALSE)*Q9+VLOOKUP(M10,Macronutrients,10,FALSE)*Q10+VLOOKUP(M11,Macronutrients,10,FALSE)*Q11+VLOOKUP(M14,Micronutrients,10,FALSE)*Q14+VLOOKUP(M15,Micronutrients,10,FALSE)*Q15+VLOOKUP(M16,Micronutrients,10,FALSE)*Q16+VLOOKUP(M17,Micronutrients,10,FALSE)*Q17+VLOOKUP(M20,Lime,10,FALSE)*Q20","v":0},null,null,null,null,null,null,null,null,null,{"$f":"VLOOKUP(Y6,Macronutrients,8,FALSE)*AC6+VLOOKUP(Y7,Macronutrients,8,FALSE)*AC7+VLOOKUP(Y8,Macronutrients,8,FALSE)*AC8+VLOOKUP(Y9,Macronutrients,8,FALSE)*AC9+VLOOKUP(Y10,Macronutrients,8,FALSE)*AC10+VLOOKUP(Y11,Macronutrients,8,FALSE)*AC11+VLOOKUP(Y14,Micronutrients,8,FALSE)*AC14+VLOOKUP(Y15,Micronutrients,8,FALSE)*AC15+VLOOKUP(Y16,Micronutrients,8,FALSE)*AC16+VLOOKUP(Y17,Micronutrients,8,FALSE)*AC17+VLOOKUP(Y20,Lime,8,FALSE)*AC20","v":0},{"$f":"VLOOKUP(Y6,Macronutrients,9,FALSE)*AC6+VLOOKUP(Y7,Macronutrients,9,FALSE)*AC7+VLOOKUP(Y8,Macronutrients,9,FALSE)*AC8+VLOOKUP(Y9,Macronutrients,9,FALSE)*AC9+VLOOKUP(Y10,Macronutrients,9,FALSE)*AC10+VLOOKUP(Y11,Macronutrients,9,FALSE)*AC11+VLOOKUP(Y14,Micronutrients,9,FALSE)*AC14+VLOOKUP(Y15,Micronutrients,9,FALSE)*AC15+VLOOKUP(Y16,Micronutrients,9,FALSE)*AC16+VLOOKUP(Y17,Micronutrients,9,FALSE)*AC17+VLOOKUP(Y20,Lime,9,FALSE)*AC20","v":0},{"$f":"VLOOKUP(Y6,Macronutrients,10,FALSE)*AC6+VLOOKUP(Y7,Macronutrients,10,FALSE)*AC7+VLOOKUP(Y8,Macronutrients,10,FALSE)*AC8+VLOOKUP(Y9,Macronutrients,10,FALSE)*AC9+VLOOKUP(Y10,Macronutrients,10,FALSE)*AC10+VLOOKUP(Y11,Macronutrients,10,FALSE)*AC11+VLOOKUP(Y14,Micronutrients,10,FALSE)*AC14+VLOOKUP(Y15,Micronutrients,10,FALSE)*AC15+VLOOKUP(Y16,Micronutrients,10,FALSE)*AC16+VLOOKUP(Y17,Micronutrients,10,FALSE)*AC17+VLOOKUP(Y20,Lime,10,FALSE)*AC20","v":0}]
["Micronutrients (drop down menu)",null,null,null,null,null,null,null,null,null,null,null,"Micronutrients (drop down menu)",null,null,null,null,null,null,null,null,null,null,null,"Micronutrients (drop down menu)"]
["None",{"$f":"VLOOKUP($A14,Micronutrients,18,FALSE)","v":0},{"$f":"VLOOKUP(A14,Micronutrients,18,FALSE)","v":0},{"$f":"VLOOKUP(A14,Micronutrients,16,FALSE)","v":1},0,{"$f":"VLOOKUP(A14,Micronutrients,15,FALSE)","v":0},{"$f":"(E14*VLOOKUP(A14,Micronutrients,14,FALSE)/D14)*C14","v":0},null,"Cu","Mo","Fe",null,"None",{"$f":"VLOOKUP($A14,Micronutrients,14,FALSE)","v":0},{"$f":"VLOOKUP(M14,Micronutrients,18,FALSE)","v":0},{"$f":"VLOOKUP(M14,Micronutrients,16,FALSE)","v":1},0,{"$f":"VLOOKUP(M14,Micronutrients,15,FALSE)","v":0},{"$f":"(Q14*VLOOKUP(M14,Micronutrients,14,FALSE)/P14)*O14","v":0},null,"Cu","Mo","Fe",null,"None",{"$f":"VLOOKUP($A14,Micronutrients,14,FALSE)","v":0},{"$f":"VLOOKUP(Y14,Micronutrients,18,FALSE)","v":0},{"$f":"VLOOKUP(Y14,Micronutrients,16,FALSE)","v":1},0,{"$f":"VLOOKUP(Y14,Micronutrients,15,FALSE)","v":0},{"$f":"(AC14*VLOOKUP(Y14,Micronutrients,14,FALSE)/AB14)*AA14","v":0},null,"Cu","Mo","Fe"]
["None",{"$f":"VLOOKUP($A15,Micronutrients,14,FALSE)","v":0},{"$f":"VLOOKUP(A15,Micronutrients,18,FALSE)","v":0},{"$f":"VLOOKUP(A15,Micronutrients,16,FALSE)","v":1},0,{"$f":"VLOOKUP(A15,Micronutrients,15,FALSE)","v":0},{"$f":"(E15*VLOOKUP(A15,Micronutrients,14,FALSE)/D15)*C15","v":0},null,{"$f":"VLOOKUP(A6,Macronutrients,11,FALSE)*E6+VLOOKUP(A7,Macronutrients,11,FALSE)*E7+VLOOKUP(A8,Macronutrients,11,FALSE)*E8+VLOOKUP(A9,Macronutrients,11,FALSE)*E9+VLOOKUP(A10,Macronutrients,11,FALSE)*E10+VLOOKUP(A11,Macronutrients,11,FALSE)*E11+VLOOKUP(A14,Micronutrients,11,FALSE)*E14+VLOOKUP(A15,Micronutrients,11,FALSE)*E15+VLOOKUP(A16,Micronutrients,11,FALSE)*E16+VLOOKUP(A17,Micronutrients,11,FALSE)*E17+VLOOKUP(A20,Lime,11,FALSE)*E20","v":0},{"$f":"VLOOKUP(A6,Macronutrients,12,FALSE)*E6+VLOOKUP(A7,Macronutrients,12,FALSE)*E7+VLOOKUP(A8,Macronutrients,12,FALSE)*E8+VLOOKUP(A9,Macronutrients,12,FALSE)*E9+VLOOKUP(A10,Macronutrients,12,FALSE)*E10+VLOOKUP(A11,Macronutrients,12,FALSE)*E11+VLOOKUP(A14,Micronutrients,12,FALSE)*E14+VLOOKUP(A15,Micronutrients,12,FALSE)*E15+VLOOKUP(A16,Micronutrients,12,FALSE)*E16+VLOOKUP(A17,Micronutrients,12,FALSE)*E17+VLOOKUP(A20,Lime,12,FALSE)*E20","v":0},{"$f":"VLOOKUP(A6,Macronutrients,13,FALSE)*E6+VLOOKUP(A7,Macronutrients,13,FALSE)*E7+VLOOKUP(A8,Macronutrients,13,FALSE)*E8+VLOOKUP(A9,Macronutrients,13,FALSE)*E9+VLOOKUP(A10,Macronutrients,13,FALSE)*E10+VLOOKUP(A11,Macronutrients,13,FALSE)*E11+VLOOKUP(A14,Micronutrients,13,FALSE)*E14+VLOOKUP(A15,Micronutrients,13,FALSE)*E15+VLOOKUP(A16,Micronutrients,13,FALSE)*E16+VLOOKUP(A17,Micronutrients,13,FALSE)*E17+VLOOKUP(A20,Lime,13,FALSE)*E20","v":0},null,"None",{"$f":"VLOOKUP($A15,Micronutrients,14,FALSE)","v":0},{"$f":"VLOOKUP(M15,Micronutrients,18,FALSE)","v":0},{"$f":"VLOOKUP(M15,Micronutrients,16,FALSE)","v":1},0,{"$f":"VLOOKUP(M15,Micronutrients,15,FALSE)","v":0},{"$f":"(Q15*VLOOKUP(M15,Micronutrients,14,FALSE)/P15)*O15","v":0},null,{"$f":"VLOOKUP(M6,Macronutrients,11,FALSE)*Q6+VLOOKUP(M7,Macronutrients,11,FALSE)*Q7+VLOOKUP(M8,Macronutrients,11,FALSE)*Q8+VLOOKUP(M9,Macronutrients,11,FALSE)*Q9+VLOOKUP(M10,Macronutrients,11,FALSE)*Q10+VLOOKUP(M11,Macronutrients,11,FALSE)*Q11+VLOOKUP(M14,Micronutrients,11,FALSE)*Q14+VLOOKUP(M15,Micronutrients,11,FALSE)*Q15+VLOOKUP(M16,Micronutrients,11,FALSE)*Q16+VLOOKUP(M17,Micronutrients,11,FALSE)*Q17+VLOOKUP(M20,Lime,11,FALSE)*Q20","v":0},{"$f":"VLOOKUP(M6,Macronutrients,12,FALSE)*Q6+VLOOKUP(M7,Macronutrients,12,FALSE)*Q7+VLOOKUP(M8,Macronutrients,12,FALSE)*Q8+VLOOKUP(M9,Macronutrients,12,FALSE)*Q9+VLOOKUP(M10,Macronutrients,12,FALSE)*Q10+VLOOKUP(M11,Macronutrients,12,FALSE)*Q11+VLOOKUP(M14,Micronutrients,12,FALSE)*Q14+VLOOKUP(M15,Micronutrients,12,FALSE)*Q15+VLOOKUP(M16,Micronutrients,12,FALSE)*Q16+VLOOKUP(M17,Micronutrients,12,FALSE)*Q17+VLOOKUP(M20,Lime,12,FALSE)*Q20","v":0},{"$f":"VLOOKUP(M6,Macronutrients,13,FALSE)*Q6+VLOOKUP(M7,Macronutrients,13,FALSE)*Q7+VLOOKUP(M8,Macronutrients,13,FALSE)*Q8+VLOOKUP(M9,Macronutrients,13,FALSE)*Q9+VLOOKUP(M10,Macronutrients,13,FALSE)*Q10+VLOOKUP(M11,Macronutrients,13,FALSE)*Q11+VLOOKUP(M14,Micronutrients,13,FALSE)*Q14+VLOOKUP(M15,Micronutrients,13,FALSE)*Q15+VLOOKUP(M16,Micronutrients,13,FALSE)*Q16+VLOOKUP(M17,Micronutrients,13,FALSE)*Q17+VLOOKUP(M20,Lime,13,FALSE)*Q20","v":0},null,"None",{"$f":"VLOOKUP($A15,Micronutrients,14,FALSE)","v":0},{"$f":"VLOOKUP(Y15,Micronutrients,18,FALSE)","v":0},{"$f":"VLOOKUP(Y15,Micronutrients,16,FALSE)","v":1},0,{"$f":"VLOOKUP(Y15,Micronutrients,15,FALSE)","v":0},{"$f":"(AC15*VLOOKUP(Y15,Micronutrients,14,FALSE)/AB15)*AA15","v":0},null,{"$f":"VLOOKUP(Y6,Macronutrients,11,FALSE)*AC6+VLOOKUP(Y7,Macronutrients,11,FALSE)*AC7+VLOOKUP(Y8,Macronutrients,11,FALSE)*AC8+VLOOKUP(Y9,Macronutrients,11,FALSE)*AC9+VLOOKUP(Y10,Macronutrients,11,FALSE)*AC10+VLOOKUP(Y11,Macronutrients,11,FALSE)*AC11+VLOOKUP(Y14,Micronutrients,11,FALSE)*AC14+VLOOKUP(Y15,Micronutrients,11,FALSE)*AC15+VLOOKUP(Y16,Micronutrients,11,FALSE)*AC16+VLOOKUP(Y17,Micronutrients,11,FALSE)*AC17+VLOOKUP(Y20,Lime,11,FALSE)*AC20","v":0},{"$f":"VLOOKUP(Y6,Macronutrients,12,FALSE)*AC6+VLOOKUP(Y7,Macronutrients,12,FALSE)*AC7+VLOOKUP(Y8,Macronutrients,12,FALSE)*AC8+VLOOKUP(Y9,Macronutrients,12,FALSE)*AC9+VLOOKUP(Y10,Macronutrients,12,FALSE)*AC10+VLOOKUP(Y11,Macronutrients,12,FALSE)*AC11+VLOOKUP(Y14,Micronutrients,12,FALSE)*AC14+VLOOKUP(Y15,Micronutrients,12,FALSE)*AC15+VLOOKUP(Y16,Micronutrients,12,FALSE)*AC16+VLOOKUP(Y17,Micronutrients,12,FALSE)*AC17+VLOOKUP(Y20,Lime,12,FALSE)*AC20","v":0},{"$f":"VLOOKUP(Y6,Macronutrients,13,FALSE)*AC6+VLOOKUP(Y7,Macronutrients,13,FALSE)*AC7+VLOOKUP(Y8,Macronutrients,13,FALSE)*AC8+VLOOKUP(Y9,Macronutrients,13,FALSE)*AC9+VLOOKUP(Y10,Macronutrients,13,FALSE)*AC10+VLOOKUP(Y11,Macronutrients,13,FALSE)*AC11+VLOOKUP(Y14,Micronutrients,13,FALSE)*AC14+VLOOKUP(Y15,Micronutrients,13,FALSE)*AC15+VLOOKUP(Y16,Micronutrients,13,FALSE)*AC16+VLOOKUP(Y17,Micronutrients,13,FALSE)*AC17+VLOOKUP(Y20,Lime,13,FALSE)*AC20","v":0}]
["None",{"$f":"VLOOKUP($A16,Micronutrients,14,FALSE)","v":0},{"$f":"VLOOKUP(A16,Micronutrients,18,FALSE)","v":0},{"$f":"VLOOKUP(A16,Micronutrients,16,FALSE)","v":1},0,{"$f":"VLOOKUP(A16,Micronutrients,15,FALSE)","v":0},{"$f":"(E16*VLOOKUP(A16,Micronutrients,14,FALSE)/D16)*C16","v":0},null,null,null,null,null,"None",{"$f":"VLOOKUP($A16,Micronutrients,14,FALSE)","v":0},{"$f":"VLOOKUP(M16,Micronutrients,18,FALSE)","v":0},{"$f":"VLOOKUP(M16,Micronutrients,16,FALSE)","v":1},0,{"$f":"VLOOKUP(M16,Micronutrients,15,FALSE)","v":0},{"$f":"(Q16*VLOOKUP(M16,Micronutrients,14,FALSE)/P16)*O16","v":0},null,null,null,null,null,"None",{"$f":"VLOOKUP($A16,Micronutrients,14,FALSE)","v":0},{"$f":"VLOOKUP(Y16,Micronutrients,18,FALSE)","v":0},{"$f":"VLOOKUP(Y16,Micronutrients,16,FALSE)","v":1},0,{"$f":"VLOOKUP(Y16,Micronutrients,15,FALSE)","v":0},{"$f":"(AC16*VLOOKUP(Y16,Micronutrients,14,FALSE)/AB16)*AA16","v":0}]
["None",{"$f":"VLOOKUP($A17,Micronutrients,14,FALSE)","v":0},{"$f":"VLOOKUP(A17,Micronutrients,18,FALSE)","v":0},{"$f":"VLOOKUP(A17,Micronutrients,16,FALSE)","v":1},0,{"$f":"VLOOKUP(A17,Micronutrients,15,FALSE)","v":0},{"$f":"(E17*VLOOKUP(A17,Micronutrients,14,FALSE)/D17)*C17","v":0},null,null,null,null,null,"None",{"$f":"VLOOKUP($A17,Micronutrients,14,FALSE)","v":0},{"$f":"VLOOKUP(M17,Micronutrients,18,FALSE)","v":0},{"$f":"VLOOKUP(M17,Micronutrients,16,FALSE)","v":1},0,{"$f":"VLOOKUP(M17,Micronutrients,15,FALSE)","v":0},{"$f":"(Q17*VLOOKUP(M17,Micronutrients,14,FALSE)/P17)*O17","v":0},null,null,null,null,null,"None",{"$f":"VLOOKUP($A17,Micronutrients,14,FALSE)","v":0},{"$f":"VLOOKUP(Y17,Micronutrients,18,FALSE)","v":0},{"$f":"VLOOKUP(Y17,Micronutrients,16,FALSE)","v":1},0,{"$f":"VLOOKUP(Y17,Micronutrients,15,FALSE)","v":0},{"$f":"(AC17*VLOOKUP(Y17,Micronutrients,14,FALSE)/AB17)*AA17","v":0}]
[]
["Lime (drop down menu)",null,null,null,null,null,null,null,null,null,null,null,"Lime (drop down menu)",null,null,null,null,null,null,null,null,null,null,null,"Lime (drop down menu)"]
["None",{"$f":"VLOOKUP(A20,Lime,14,FALSE)","v":0},{"$f":"VLOOKUP(A20,Lime,18,FALSE)","v":0},{"$f":"VLOOKUP(A20,Lime,16,FALSE)","v":1},0,{"$f":"VLOOKUP(A20,Lime,15,FALSE)","v":0},{"$f":"(E20*VLOOKUP(A20,Lime,14,FALSE)/D20)*C20","v":0},null,null,null,null,null,"None",{"$f":"VLOOKUP(M20,Lime,14,FALSE)","v":0},{"$f":"VLOOKUP(M20,Lime,18,FALSE)","v":0},{"$f":"VLOOKUP(M20,Lime,16,FALSE)","v":1},0,{"$f":"VLOOKUP(M20,Lime,15,FALSE)","v":0},{"$f":"(Q20*VLOOKUP(M20,Lime,14,FALSE)/P20)*O20","v":0},null,null,null,null,null,"None",{"$f":"VLOOKUP(Y20,Lime,14,FALSE)","v":0},{"$f":"VLOOKUP(Y20,Lime,18,FALSE)","v":0},{"$f":"VLOOKUP(Y20,Lime,16,FALSE)","v":1},0,{"$f":"VLOOKUP(Y20,Lime,15,FALSE)","v":0},{"$f":"(AC20*VLOOKUP(Y20,Lime,14,FALSE)/AB20)*AA20","v":0}]
["1st Application Fertilizer Cost/Acre",null,null,null,null,null,{"$f":"SUM(G6:G20)","v":0},null,null,null,null,null,"1st Application Fertilizer Cost/Acre",null,null,null,null,null,{"$f":"SUM(S6:S20)","v":0},null,null,null,null,null,"1st Application Fertilizer Cost/Acre",null,null,null,null,null,{"$f":"SUM(AE6:AE20)","v":0}]
[]
["2nd Application (i.e., Broadcast)",null,null,null,null,null,null,null,null,null,null,null,"2nd Application (i.e., Broadcast)",null,null,null,null,null,null,null,null,null,null,null,"2nd Application (i.e., Broadcast)"]
["Fertilizer Source","Purchase Units","Package Price (Gals, Lbs, etc.)","Units/Pkg","Rate/Acre","Units","Cost",null,null,null,null,null,"Fertilizer Source","Purchase Units","Package Price (Gals, Lbs, etc.)","Units/Pkg","Rate/Acre","Units","Cost",null,null,null,null,null,"Fertilizer Source","Purchase Units","Package Price (Gals, Lbs, etc.)","Units/Pkg","Rate/Acre","Units","Cost"]
["Macronutrients (drop down menu)",null,null,null,"(Enter Below)",null,null,null,"N","P","K",null,"Macronutrients (drop down menu)",null,null,null,"(Enter Below)",null,null,null,"N","P","K",null,"Macronutrients (drop down menu)",null,null,null,"(Enter Below)",null,null,null,"N","P","K"]
["None",{"$f":"VLOOKUP(A26,Macronutrients,14,FALSE)","v":0},{"$f":"VLOOKUP(A26,Macronutrients,18,FALSE)","v":0},{"$f":"VLOOKUP(A26,Macronutrients,16,FALSE)","v":1},0,{"$f":"VLOOKUP(A26,Macronutrients,15,FALSE)","v":0},{"$f":"(E26*VLOOKUP(A26,Macronutrients,14,FALSE)/D26)*C26","v":0},null,{"$f":"VLOOKUP(A26,Macronutrients,2,FALSE)*E26+VLOOKUP(A27,Macronutrients,2,FALSE)*E27+VLOOKUP(A28,Macronutrients,2,FALSE)*E28+VLOOKUP(A29,Macronutrients,2,FALSE)*E29+VLOOKUP(A30,Macronutrients,2,FALSE)*E30+VLOOKUP(A31,Macronutrients,2,FALSE)*E31+VLOOKUP(A34,Micronutrients,2,FALSE)*E34+VLOOKUP(A35,Micronutrients,2,FALSE)*E35+VLOOKUP(A36,Micronutrients,2,FALSE)*E36+VLOOKUP(A37,Micronutrients,2,FALSE)*E37","v":0},{"$f":"VLOOKUP(A26,Macronutrients,3,FALSE)*E26+VLOOKUP(A27,Macronutrients,3,FALSE)*E27+VLOOKUP(A28,Macronutrients,3,FALSE)*E28+VLOOKUP(A29,Macronutrients,3,FALSE)*E29+VLOOKUP(A30,Macronutrients,3,FALSE)*E30+VLOOKUP(A31,Macronutrients,3,FALSE)*E31+VLOOKUP(A34,Micronutrients,3,FALSE)*E34+VLOOKUP(A35,Micronutrients,3,FALSE)*E35+VLOOKUP(A36,Micronutrients,3,FALSE)*E36+VLOOKUP(A37,Micronutrients,3,FALSE)*E37","v":0},{"$f":"VLOOKUP(A26,Macronutrients,4,FALSE)*E26+VLOOKUP(A27,Macronutrients,4,FALSE)*E27+VLOOKUP(A28,Macronutrients,4,FALSE)*E28+VLOOKUP(A29,Macronutrients,4,FALSE)*E29+VLOOKUP(A30,Macronutrients,4,FALSE)*E30+VLOOKUP(A31,Macronutrients,4,FALSE)*E31+VLOOKUP(A34,Micronutrients,4,FALSE)*E34+VLOOKUP(A35,Micronutrients,4,FALSE)*E35+VLOOKUP(A36,Micronutrients,4,FALSE)*E36+VLOOKUP(A37,Micronutrients,4,FALSE)*E37","v":0},null,"None",{"$f":"VLOOKUP(M26,Macronutrients,14,FALSE)","v":0},{"$f":"VLOOKUP(M26,Macronutrients,18,FALSE)","v":0},{"$f":"VLOOKUP(M26,Macronutrients,16,FALSE)","v":1},0,{"$f":"VLOOKUP(M26,Macronutrients,15,FALSE)","v":0},{"$f":"(Q26*VLOOKUP(M26,Macronutrients,14,FALSE)/P26)*O26","v":0},null,{"$f":"VLOOKUP(M26,Macronutrients,2,FALSE)*Q26+VLOOKUP(M27,Macronutrients,2,FALSE)*Q27+VLOOKUP(M28,Macronutrients,2,FALSE)*Q28+VLOOKUP(M29,Macronutrients,2,FALSE)*Q29+VLOOKUP(M30,Macronutrients,2,FALSE)*Q30+VLOOKUP(M31,Macronutrients,2,FALSE)*Q31+VLOOKUP(M34,Micronutrients,2,FALSE)*Q34+VLOOKUP(M35,Micronutrients,2,FALSE)*Q35+VLOOKUP(M36,Micronutrients,2,FALSE)*Q36+VLOOKUP(M37,Micronutrients,2,FALSE)*Q37","v":0},{"$f":"VLOOKUP(M26,Macronutrients,3,FALSE)*Q26+VLOOKUP(M27,Macronutrients,3,FALSE)*Q27+VLOOKUP(M28,Macronutrients,3,FALSE)*Q28+VLOOKUP(M29,Macronutrients,3,FALSE)*Q29+VLOOKUP(M30,Macronutrients,3,FALSE)*Q30+VLOOKUP(M31,Macronutrients,3,FALSE)*Q31+VLOOKUP(M34,Micronutrients,3,FALSE)*Q34+VLOOKUP(M35,Micronutrients,3,FALSE)*Q35+VLOOKUP(M36,Micronutrients,3,FALSE)*Q36+VLOOKUP(M37,Micronutrients,3,FALSE)*Q37","v":0},{"$f":"VLOOKUP(M26,Macronutrients,4,FALSE)*Q26+VLOOKUP(M27,Macronutrients,4,FALSE)*Q27+VLOOKUP(M28,Macronutrients,4,FALSE)*Q28+VLOOKUP(M29,Macronutrients,4,FALSE)*Q29+VLOOKUP(M30,Macronutrients,4,FALSE)*Q30+VLOOKUP(M31,Macronutrients,4,FALSE)*Q31+VLOOKUP(M34,Micronutrients,4,FALSE)*Q34+VLOOKUP(M35,Micronutrients,4,FALSE)*Q35+VLOOKUP(M36,Micronutrients,4,FALSE)*Q36+VLOOKUP(M37,Micronutrients,4,FALSE)*Q37","v":0},null,"None",{"$f":"VLOOKUP(Y26,Macronutrients,14,FALSE)","v":0},{"$f":"VLOOKUP(Y26,Macronutrients,18,FALSE)","v":0},{"$f":"VLOOKUP(Y26,Macronutrients,16,FALSE)","v":1},0,{"$f":"VLOOKUP(Y26,Macronutrients,15,FALSE)","v":0},{"$f":"(AC26*VLOOKUP(Y26,Macronutrients,14,FALSE)/AB26)*AA26","v":0},null,{"$f":"VLOOKUP(Y26,Macronutrients,2,FALSE)*AC26+VLOOKUP(Y27,Macronutrients,2,FALSE)*AC27+VLOOKUP(Y28,Macronutrients,2,FALSE)*AC28+VLOOKUP(Y29,Macronutrients,2,FALSE)*AC29+VLOOKUP(Y30,Macronutrients,2,FALSE)*AC30+VLOOKUP(Y31,Macronutrients,2,FALSE)*AC31+VLOOKUP(Y34,Micronutrients,2,FALSE)*AC34+VLOOKUP(Y35,Micronutrients,2,FALSE)*AC35+VLOOKUP(Y36,Micronutrients,2,FALSE)*AC36+VLOOKUP(Y37,Micronutrients,2,FALSE)*AC37","v":0},{"$f":"VLOOKUP(Y26,Macronutrients,3,FALSE)*AC26+VLOOKUP(Y27,Macronutrients,3,FALSE)*AC27+VLOOKUP(Y28,Macronutrients,3,FALSE)*AC28+VLOOKUP(Y29,Macronutrients,3,FALSE)*AC29+VLOOKUP(Y30,Macronutrients,3,FALSE)*AC30+VLOOKUP(Y31,Macronutrients,3,FALSE)*AC31+VLOOKUP(Y34,Micronutrients,3,FALSE)*AC34+VLOOKUP(Y35,Micronutrients,3,FALSE)*AC35+VLOOKUP(Y36,Micronutrients,3,FALSE)*AC36+VLOOKUP(Y37,Micronutrients,3,FALSE)*AC37","v":0},{"$f":"VLOOKUP(Y26,Macronutrients,4,FALSE)*AC26+VLOOKUP(Y27,Macronutrients,4,FALSE)*AC27+VLOOKUP(Y28,Macronutrients,4,FALSE)*AC28+VLOOKUP(Y29,Macronutrients,4,FALSE)*AC29+VLOOKUP(Y30,Macronutrients,4,FALSE)*AC30+VLOOKUP(Y31,Macronutrients,4,FALSE)*AC31+VLOOKUP(Y34,Micronutrients,4,FALSE)*AC34+VLOOKUP(Y35,Micronutrients,4,FALSE)*AC35+VLOOKUP(Y36,Micronutrients,4,FALSE)*AC36+VLOOKUP(Y37,Micronutrients,4,FALSE)*AC37","v":0}]
["None",0,0,1,0,0,0,null,null,null,null,null,"None",0,0,1,0,0,0,null,null,null,null,null,"None",0,0,1,0,0,0]
["None",0,0,1,0,0,0,null,"S","Ca","Mg",null,"None",0,0,1,0,0,0,null,"S","Ca","Mg",null,"None",0,0,1,0,0,0,null,"S","Ca","Mg"]
["None",0,0,1,0,0,0,null,{"$f":"VLOOKUP(A26,Macronutrients,5,FALSE)*E26+VLOOKUP(A27,Macronutrients,5,FALSE)*E27+VLOOKUP(A28,Macronutrients,5,FALSE)*E28+VLOOKUP(A29,Macronutrients,5,FALSE)*E29+VLOOKUP(A30,Macronutrients,5,FALSE)*E30+VLOOKUP(A31,Macronutrients,5,FALSE)*E31+VLOOKUP(A34,Micronutrients,5,FALSE)*E34+VLOOKUP(A35,Micronutrients,5,FALSE)*E35+VLOOKUP(A36,Micronutrients,5,FALSE)*E36+VLOOKUP(A37,Micronutrients,5,FALSE)*E37","v":0},{"$f":"VLOOKUP(A26,Macronutrients,7,FALSE)*E26+VLOOKUP(A27,Macronutrients,7,FALSE)*E27+VLOOKUP(A28,Macronutrients,7,FALSE)*E28+VLOOKUP(A29,Macronutrients,7,FALSE)*E29+VLOOKUP(A30,Macronutrients,7,FALSE)*E30+VLOOKUP(A31,Macronutrients,7,FALSE)*E31+VLOOKUP(A34,Micronutrients,7,FALSE)*E34+VLOOKUP(A35,Micronutrients,7,FALSE)*E35+VLOOKUP(A36,Micronutrients,7,FALSE)*E36+VLOOKUP(A37,Micronutrients,7,FALSE)*E37","v":0},{"$f":"VLOOKUP($A26,Macronutrients,6,FALSE)*$E$6+VLOOKUP($A27,Macronutrients,6,FALSE)*$E$7+VLOOKUP($A28,Macronutrients,6,FALSE)*$E$8+VLOOKUP($A29,Macronutrients,6,FALSE)*$E$9+VLOOKUP($A30,Macronutrients,6,FALSE)*$E$10+VLOOKUP($A31,Macronutrients,6,FALSE)*$E$11+VLOOKUP($A34,Micronutrients,6,FALSE)*$E$14+VLOOKUP($A35,Micronutrients,6,FALSE)*E35+VLOOKUP($A36,Micronutrients,6,FALSE)*$E$16+VLOOKUP($A37,Micronutrients,6,FALSE)*$E$17","v":0},null,"None",0,0,1,0,0,0,null,{"$f":"VLOOKUP(M26,Macronutrients,5,FALSE)*Q26+VLOOKUP(M27,Macronutrients,5,FALSE)*Q27+VLOOKUP(M28,Macronutrients,5,FALSE)*Q28+VLOOKUP(M29,Macronutrients,5,FALSE)*Q29+VLOOKUP(M30,Macronutrients,5,FALSE)*Q30+VLOOKUP(M31,Macronutrients,5,FALSE)*Q31+VLOOKUP(M34,Micronutrients,5,FALSE)*Q34+VLOOKUP(M35,Micronutrients,5,FALSE)*Q35+VLOOKUP(M36,Micronutrients,5,FALSE)*Q36+VLOOKUP(M37,Micronutrients,5,FALSE)*Q37","v":0},{"$f":"VLOOKUP(M26,Macronutrients,7,FALSE)*Q26+VLOOKUP(M27,Macronutrients,7,FALSE)*Q27+VLOOKUP(M28,Macronutrients,7,FALSE)*Q28+VLOOKUP(M29,Macronutrients,7,FALSE)*Q29+VLOOKUP(M30,Macronutrients,7,FALSE)*Q30+VLOOKUP(M31,Macronutrients,7,FALSE)*Q31+VLOOKUP(M34,Micronutrients,7,FALSE)*Q34+VLOOKUP(M35,Micronutrients,7,FALSE)*Q35+VLOOKUP(M36,Micronutrients,7,FALSE)*Q36+VLOOKUP(M37,Micronutrients,7,FALSE)*Q37","v":0},{"$f":"VLOOKUP($A26,Macronutrients,6,FALSE)*$E$6+VLOOKUP($A27,Macronutrients,6,FALSE)*$E$7+VLOOKUP($A28,Macronutrients,6,FALSE)*$E$8+VLOOKUP($A29,Macronutrients,6,FALSE)*$E$9+VLOOKUP($A30,Macronutrients,6,FALSE)*$E$10+VLOOKUP($A31,Macronutrients,6,FALSE)*$E$11+VLOOKUP($A34,Micronutrients,6,FALSE)*$E$14+VLOOKUP($A35,Micronutrients,6,FALSE)*Q35+VLOOKUP($A36,Micronutrients,6,FALSE)*$E$16+VLOOKUP($A37,Micronutrients,6,FALSE)*$E$17","v":0},null,"None",0,0,1,0,0,0,null,{"$f":"VLOOKUP(Y26,Macronutrients,5,FALSE)*AC26+VLOOKUP(Y27,Macronutrients,5,FALSE)*AC27+VLOOKUP(Y28,Macronutrients,5,FALSE)*AC28+VLOOKUP(Y29,Macronutrients,5,FALSE)*AC29+VLOOKUP(Y30,Macronutrients,5,FALSE)*AC30+VLOOKUP(Y31,Macronutrients,5,FALSE)*AC31+VLOOKUP(Y34,Micronutrients,5,FALSE)*AC34+VLOOKUP(Y35,Micronutrients,5,FALSE)*AC35+VLOOKUP(Y36,Micronutrients,5,FALSE)*AC36+VLOOKUP(Y37,Micronutrients,5,FALSE)*AC37","v":0},{"$f":"VLOOKUP(Y26,Macronutrients,7,FALSE)*AC26+VLOOKUP(Y27,Macronutrients,7,FALSE)*AC27+VLOOKUP(Y28,Macronutrients,7,FALSE)*AC28+VLOOKUP(Y29,Macronutrients,7,FALSE)*AC29+VLOOKUP(Y30,Macronutrients,7,FALSE)*AC30+VLOOKUP(Y31,Macronutrients,7,FALSE)*AC31+VLOOKUP(Y34,Micronutrients,7,FALSE)*AC34+VLOOKUP(Y35,Micronutrients,7,FALSE)*AC35+VLOOKUP(Y36,Micronutrients,7,FALSE)*AC36+VLOOKUP(Y37,Micronutrients,7,FALSE)*AC37","v":0},{"$f":"VLOOKUP($A26,Macronutrients,6,FALSE)*$E$6+VLOOKUP($A27,Macronutrients,6,FALSE)*$E$7+VLOOKUP($A28,Macronutrients,6,FALSE)*$E$8+VLOOKUP($A29,Macronutrients,6,FALSE)*$E$9+VLOOKUP($A30,Macronutrients,6,FALSE)*$E$10+VLOOKUP($A31,Macronutrients,6,FALSE)*$E$11+VLOOKUP($A34,Micronutrients,6,FALSE)*$E$14+VLOOKUP($A35,Micronutrients,6,FALSE)*AC35+VLOOKUP($A36,Micronutrients,6,FALSE)*$E$16+VLOOKUP($A37,Micronutrients,6,FALSE)*$E$17","v":0}]
["None",0,0,1,0,0,0,null,null,null,null,null,"None",0,0,1,0,0,0,null,null,null,null,null,"None",0,0,1,0,0,0]
["None",0,0,1,0,0,0,null,"Z","B","Mn",null,"None",0,0,1,0,0,0,null,"Z","B","Mn",null,"None",0,0,1,0,0,0,null,"Z","B","Mn"]
[null,null,null,null,null,null,null,null,{"$f":"VLOOKUP(A26,Macronutrients,8,FALSE)*E26+VLOOKUP(A27,Macronutrients,8,FALSE)*E27+VLOOKUP(A28,Macronutrients,8,FALSE)*E28+VLOOKUP(A29,Macronutrients,8,FALSE)*E29+VLOOKUP(A30,Macronutrients,8,FALSE)*E30+VLOOKUP(A31,Macronutrients,8,FALSE)*E31+VLOOKUP(A34,Micronutrients,8,FALSE)*E34+VLOOKUP(A35,Micronutrients,8,FALSE)*E35+VLOOKUP(A36,Micronutrients,8,FALSE)*E36+VLOOKUP(A37,Micronutrients,8,FALSE)*E37","v":0},{"$f":"VLOOKUP(A26,Macronutrients,9,FALSE)*E26+VLOOKUP(A27,Macronutrients,9,FALSE)*E27+VLOOKUP(A28,Macronutrients,9,FALSE)*E28+VLOOKUP(A29,Macronutrients,9,FALSE)*E29+VLOOKUP(A30,Macronutrients,9,FALSE)*E30+VLOOKUP(A31,Macronutrients,9,FALSE)*E31+VLOOKUP(A34,Micronutrients,9,FALSE)*E34+VLOOKUP(A35,Micronutrients,9,FALSE)*E35+VLOOKUP(A36,Micronutrients,9,FALSE)*E36+VLOOKUP(A37,Micronutrients,9,FALSE)","v":0},{"$f":"VLOOKUP(A26,Macronutrients,10,FALSE)*E26+VLOOKUP(A27,Macronutrients,10,FALSE)*E27+VLOOKUP(A28,Macronutrients,10,FALSE)*E28+VLOOKUP(A29,Macronutrients,10,FALSE)*E29+VLOOKUP(A30,Macronutrients,10,FALSE)*E30+VLOOKUP(A31,Macronutrients,10,FALSE)*E31+VLOOKUP(A34,Micronutrients,10,FALSE)*E34+VLOOKUP(A35,Micronutrients,10,FALSE)*E35+VLOOKUP(A36,Micronutrients,10,FALSE)*E36+VLOOKUP(A37,Micronutrients,10,FALSE)*E37","v":0},null,null,null,null,null,null,null,null,null,{"$f":"VLOOKUP(M26,Macronutrients,8,FALSE)*Q26+VLOOKUP(M27,Macronutrients,8,FALSE)*Q27+VLOOKUP(M28,Macronutrients,8,FALSE)*Q28+VLOOKUP(M29,Macronutrients,8,FALSE)*Q29+VLOOKUP(M30,Macronutrients,8,FALSE)*Q30+VLOOKUP(M31,Macronutrients,8,FALSE)*Q31+VLOOKUP(M34,Micronutrients,8,FALSE)*Q34+VLOOKUP(M35,Micronutrients,8,FALSE)*Q35+VLOOKUP(M36,Micronutrients,8,FALSE)*Q36+VLOOKUP(M37,Micronutrients,8,FALSE)*Q37","v":0},{"$f":"VLOOKUP(M26,Macronutrients,9,FALSE)*Q26+VLOOKUP(M27,Macronutrients,9,FALSE)*Q27+VLOOKUP(M28,Macronutrients,9,FALSE)*Q28+VLOOKUP(M29,Macronutrients,9,FALSE)*Q29+VLOOKUP(M30,Macronutrients,9,FALSE)*Q30+VLOOKUP(M31,Macronutrients,9,FALSE)*Q31+VLOOKUP(M34,Micronutrients,9,FALSE)*Q34+VLOOKUP(M35,Micronutrients,9,FALSE)*Q35+VLOOKUP(M36,Micronutrients,9,FALSE)*Q36+VLOOKUP(M37,Micronutrients,9,FALSE)","v":0},{"$f":"VLOOKUP(M26,Macronutrients,10,FALSE)*Q26+VLOOKUP(M27,Macronutrients,10,FALSE)*Q27+VLOOKUP(M28,Macronutrients,10,FALSE)*Q28+VLOOKUP(M29,Macronutrients,10,FALSE)*Q29+VLOOKUP(M30,Macronutrients,10,FALSE)*Q30+VLOOKUP(M31,Macronutrients,10,FALSE)*Q31+VLOOKUP(M34,Micronutrients,10,FALSE)*Q34+VLOOKUP(M35,Micronutrients,10,FALSE)*Q35+VLOOKUP(M36,Micronutrients,10,FALSE)*Q36+VLOOKUP(M37,Micronutrients,10,FALSE)*Q37","v":0},null,null,null,null,null,null,null,null,null,{"$f":"VLOOKUP(Y26,Macronutrients,8,FALSE)*AC26+VLOOKUP(Y27,Macronutrients,8,FALSE)*AC27+VLOOKUP(Y28,Macronutrients,8,FALSE)*AC28+VLOOKUP(Y29,Macronutrients,8,FALSE)*AC29+VLOOKUP(Y30,Macronutrients,8,FALSE)*AC30+VLOOKUP(Y31,Macronutrients,8,FALSE)*AC31+VLOOKUP(Y34,Micronutrients,8,FALSE)*AC34+VLOOKUP(Y35,Micronutrients,8,FALSE)*AC35+VLOOKUP(Y36,Micronutrients,8,FALSE)*AC36+VLOOKUP(Y37,Micronutrients,8,FALSE)*AC37","v":0},{"$f":"VLOOKUP(Y26,Macronutrients,9,FALSE)*AC26+VLOOKUP(Y27,Macronutrients,9,FALSE)*AC27+VLOOKUP(Y28,Macronutrients,9,FALSE)*AC28+VLOOKUP(Y29,Macronutrients,9,FALSE)*AC29+VLOOKUP(Y30,Macronutrients,9,FALSE)*AC30+VLOOKUP(Y31,Macronutrients,9,FALSE)*AC31+VLOOKUP(Y34,Micronutrients,9,FALSE)*AC34+VLOOKUP(Y35,Micronutrients,9,FALSE)*AC35+VLOOKUP(Y36,Micronutrients,9,FALSE)*AC36+VLOOKUP(Y37,Micronutrients,9,FALSE)","v":0},{"$f":"VLOOKUP(Y26,Macronutrients,10,FALSE)*AC26+VLOOKUP(Y27,Macronutrients,10,FALSE)*AC27+VLOOKUP(Y28,Macronutrients,10,FALSE)*AC28+VLOOKUP(Y29,Macronutrients,10,FALSE)*AC29+VLOOKUP(Y30,Macronutrients,10,FALSE)*AC30+VLOOKUP(Y31,Macronutrients,10,FALSE)*AC31+VLOOKUP(Y34,Micronutrients,10,FALSE)*AC34+VLOOKUP(Y35,Micronutrients,10,FALSE)*AC35+VLOOKUP(Y36,Micronutrients,10,FALSE)*AC36+VLOOKUP(Y37,Micronutrients,10,FALSE)*AC37","v":0}]
["Micronutrients (drop down menu)",null,null,null,null,null,null,null,null,null,null,null,"Micronutrients (drop down menu)",null,null,null,null,null,null,null,null,null,null,null,"Micronutrients (drop down menu)"]
["None",{"$f":"VLOOKUP($A34,Micronutrients,14,FALSE)","v":0},{"$f":"VLOOKUP(A34,Micronutrients,18,FALSE)","v":0},{"$f":"VLOOKUP(A34,Micronutrients,16,FALSE)","v":1},0,{"$f":"VLOOKUP(A34,Micronutrients,15,FALSE)","v":0},{"$f":"(E34*VLOOKUP(A34,Micronutrients,14,FALSE)/D34)*C34","v":0},null,"Cu","Mo","Fe",null,"None",{"$f":"VLOOKUP($A34,Micronutrients,14,FALSE)","v":0},{"$f":"VLOOKUP(M34,Micronutrients,18,FALSE)","v":0},{"$f":"VLOOKUP(M34,Micronutrients,16,FALSE)","v":1},0,{"$f":"VLOOKUP(M34,Micronutrients,15,FALSE)","v":0},{"$f":"(Q34*VLOOKUP(M34,Micronutrients,14,FALSE)/P34)*O34","v":0},null,"Cu","Mo","Fe",null,"None",{"$f":"VLOOKUP($A34,Micronutrients,14,FALSE)","v":0},{"$f":"VLOOKUP(Y34,Micronutrients,18,FALSE)","v":0},{"$f":"VLOOKUP(Y34,Micronutrients,16,FALSE)","v":1},0,{"$f":"VLOOKUP(Y34,Micronutrients,15,FALSE)","v":0},{"$f":"(AC34*VLOOKUP(Y34,Micronutrients,14,FALSE)/AB34)*AA34","v":0},null,"Cu","Mo","Fe"]
["None",{"$f":"VLOOKUP($A35,Micronutrients,14,FALSE)","v":0},{"$f":"VLOOKUP(A35,Micronutrients,18,FALSE)","v":0},{"$f":"VLOOKUP(A35,Micronutrients,16,FALSE)","v":1},0,{"$f":"VLOOKUP(A35,Micronutrients,15,FALSE)","v":0},{"$f":"(E35*VLOOKUP(A35,Micronutrients,14,FALSE)/D35)*C35","v":0},null,{"$f":"VLOOKUP(A26,Macronutrients,11,FALSE)*E26+VLOOKUP(A27,Macronutrients,11,FALSE)*E27+VLOOKUP(A28,Macronutrients,11,FALSE)*E28+VLOOKUP(A29,Macronutrients,11,FALSE)*E29+VLOOKUP(A30,Macronutrients,11,FALSE)*E30+VLOOKUP(A31,Macronutrients,11,FALSE)*E31+VLOOKUP(A34,Micronutrients,11,FALSE)*E34+VLOOKUP(A35,Micronutrients,11,FALSE)*E35+VLOOKUP(A36,Micronutrients,11,FALSE)*E36+VLOOKUP(A37,Micronutrients,11,FALSE)*E37","v":0},{"$f":"VLOOKUP(A26,Macronutrients,12,FALSE)*E26+VLOOKUP(A27,Macronutrients,12,FALSE)*E27+VLOOKUP(A28,Macronutrients,12,FALSE)*E28+VLOOKUP(A29,Macronutrients,12,FALSE)*E29+VLOOKUP(A30,Macronutrients,12,FALSE)*E30+VLOOKUP(A31,Macronutrients,12,FALSE)*E31+VLOOKUP(A34,Micronutrients,12,FALSE)*E34+VLOOKUP(A35,Micronutrients,12,FALSE)*E35+VLOOKUP(A36,Micronutrients,12,FALSE)*E36+VLOOKUP(A37,Micronutrients,12,FALSE)*E37","v":0},{"$f":"VLOOKUP(A26,Macronutrients,13,FALSE)*E26+VLOOKUP(A27,Macronutrients,13,FALSE)*E27+VLOOKUP(A28,Macronutrients,13,FALSE)*E28+VLOOKUP(A29,Macronutrients,13,FALSE)*E29+VLOOKUP(A30,Macronutrients,13,FALSE)*E30+VLOOKUP(A31,Macronutrients,13,FALSE)*E31+VLOOKUP(A34,Micronutrients,13,FALSE)*E34+VLOOKUP(A35,Micronutrients,13,FALSE)*E35+VLOOKUP(A36,Micronutrients,13,FALSE)*E36+VLOOKUP(A37,Micronutrients,13,FALSE)*E37","v":0},null,"None",{"$f":"VLOOKUP($A35,Micronutrients,14,FALSE)","v":0},{"$f":"VLOOKUP(M35,Micronutrients,18,FALSE)","v":0},{"$f":"VLOOKUP(M35,Micronutrients,16,FALSE)","v":1},0,{"$f":"VLOOKUP(M35,Micronutrients,15,FALSE)","v":0},{"$f":"(Q35*VLOOKUP(M35,Micronutrients,14,FALSE)/P35)*O35","v":0},null,{"$f":"VLOOKUP(M26,Macronutrients,11,FALSE)*Q26+VLOOKUP(M27,Macronutrients,11,FALSE)*Q27+VLOOKUP(M28,Macronutrients,11,FALSE)*Q28+VLOOKUP(M29,Macronutrients,11,FALSE)*Q29+VLOOKUP(M30,Macronutrients,11,FALSE)*Q30+VLOOKUP(M31,Macronutrients,11,FALSE)*Q31+VLOOKUP(M34,Micronutrients,11,FALSE)*Q34+VLOOKUP(M35,Micronutrients,11,FALSE)*Q35+VLOOKUP(M36,Micronutrients,11,FALSE)*Q36+VLOOKUP(M37,Micronutrients,11,FALSE)*Q37","v":0},{"$f":"VLOOKUP(M26,Macronutrients,12,FALSE)*Q26+VLOOKUP(M27,Macronutrients,12,FALSE)*Q27+VLOOKUP(M28,Macronutrients,12,FALSE)*Q28+VLOOKUP(M29,Macronutrients,12,FALSE)*Q29+VLOOKUP(M30,Macronutrients,12,FALSE)*Q30+VLOOKUP(M31,Macronutrients,12,FALSE)*Q31+VLOOKUP(M34,Micronutrients,12,FALSE)*Q34+VLOOKUP(M35,Micronutrients,12,FALSE)*Q35+VLOOKUP(M36,Micronutrients,12,FALSE)*Q36+VLOOKUP(M37,Micronutrients,12,FALSE)*Q37","v":0},{"$f":"VLOOKUP(M26,Macronutrients,13,FALSE)*Q26+VLOOKUP(M27,Macronutrients,13,FALSE)*Q27+VLOOKUP(M28,Macronutrients,13,FALSE)*Q28+VLOOKUP(M29,Macronutrients,13,FALSE)*Q29+VLOOKUP(M30,Macronutrients,13,FALSE)*Q30+VLOOKUP(M31,Macronutrients,13,FALSE)*Q31+VLOOKUP(M34,Micronutrients,13,FALSE)*Q34+VLOOKUP(M35,Micronutrients,13,FALSE)*Q35+VLOOKUP(M36,Micronutrients,13,FALSE)*Q36+VLOOKUP(M37,Micronutrients,13,FALSE)*Q37","v":0},null,"None",{"$f":"VLOOKUP($A35,Micronutrients,14,FALSE)","v":0},{"$f":"VLOOKUP(Y35,Micronutrients,18,FALSE)","v":0},{"$f":"VLOOKUP(Y35,Micronutrients,16,FALSE)","v":1},0,{"$f":"VLOOKUP(Y35,Micronutrients,15,FALSE)","v":0},{"$f":"(AC35*VLOOKUP(Y35,Micronutrients,14,FALSE)/AB35)*AA35","v":0},null,{"$f":"VLOOKUP(Y26,Macronutrients,11,FALSE)*AC26+VLOOKUP(Y27,Macronutrients,11,FALSE)*AC27+VLOOKUP(Y28,Macronutrients,11,FALSE)*AC28+VLOOKUP(Y29,Macronutrients,11,FALSE)*AC29+VLOOKUP(Y30,Macronutrients,11,FALSE)*AC30+VLOOKUP(Y31,Macronutrients,11,FALSE)*AC31+VLOOKUP(Y34,Micronutrients,11,FALSE)*AC34+VLOOKUP(Y35,Micronutrients,11,FALSE)*AC35+VLOOKUP(Y36,Micronutrients,11,FALSE)*AC36+VLOOKUP(Y37,Micronutrients,11,FALSE)*AC37","v":0},{"$f":"VLOOKUP(Y26,Macronutrients,12,FALSE)*AC26+VLOOKUP(Y27,Macronutrients,12,FALSE)*AC27+VLOOKUP(Y28,Macronutrients,12,FALSE)*AC28+VLOOKUP(Y29,Macronutrients,12,FALSE)*AC29+VLOOKUP(Y30,Macronutrients,12,FALSE)*AC30+VLOOKUP(Y31,Macronutrients,12,FALSE)*AC31+VLOOKUP(Y34,Micronutrients,12,FALSE)*AC34+VLOOKUP(Y35,Micronutrients,12,FALSE)*AC35+VLOOKUP(Y36,Micronutrients,12,FALSE)*AC36+VLOOKUP(Y37,Micronutrients,12,FALSE)*AC37","v":0},{"$f":"VLOOKUP(Y26,Macronutrients,13,FALSE)*AC26+VLOOKUP(Y27,Macronutrients,13,FALSE)*AC27+VLOOKUP(Y28,Macronutrients,13,FALSE)*AC28+VLOOKUP(Y29,Macronutrients,13,FALSE)*AC29+VLOOKUP(Y30,Macronutrients,13,FALSE)*AC30+VLOOKUP(Y31,Macronutrients,13,FALSE)*AC31+VLOOKUP(Y34,Micronutrients,13,FALSE)*AC34+VLOOKUP(Y35,Micronutrients,13,FALSE)*AC35+VLOOKUP(Y36,Micronutrients,13,FALSE)*AC36+VLOOKUP(Y37,Micronutrients,13,FALSE)*AC37","v":0}]
["None",{"$f":"VLOOKUP($A36,Micronutrients,14,FALSE)","v":0},{"$f":"VLOOKUP(A36,Micronutrients,18,FALSE)","v":0},{"$f":"VLOOKUP(A36,Micronutrients,16,FALSE)","v":1},0,{"$f":"VLOOKUP(A36,Micronutrients,15,FALSE)","v":0},{"$f":"(E36*VLOOKUP(A36,Micronutrients,14,FALSE)/D36)*C36","v":0},null,null,null,null,null,"None",{"$f":"VLOOKUP($A36,Micronutrients,14,FALSE)","v":0},{"$f":"VLOOKUP(M36,Micronutrients,18,FALSE)","v":0},{"$f":"VLOOKUP(M36,Micronutrients,16,FALSE)","v":1},0,{"$f":"VLOOKUP(M36,Micronutrients,15,FALSE)","v":0},{"$f":"(Q36*VLOOKUP(M36,Micronutrients,14,FALSE)/P36)*O36","v":0},null,null,null,null,null,"None",{"$f":"VLOOKUP($A36,Micronutrients,14,FALSE)","v":0},{"$f":"VLOOKUP(Y36,Micronutrients,18,FALSE)","v":0},{"$f":"VLOOKUP(Y36,Micronutrients,16,FALSE)","v":1},0,{"$f":"VLOOKUP(Y36,Micronutrients,15,FALSE)","v":0},{"$f":"(AC36*VLOOKUP(Y36,Micronutrients,14,FALSE)/AB36)*AA36","v":0}]
["None",{"$f":"VLOOKUP($A37,Micronutrients,14,FALSE)","v":0},{"$f":"VLOOKUP(A37,Micronutrients,18,FALSE)","v":0},{"$f":"VLOOKUP(A37,Micronutrients,16,FALSE)","v":1},0,{"$f":"VLOOKUP(A37,Micronutrients,15,FALSE)","v":0},{"$f":"(E37*VLOOKUP(A37,Micronutrients,14,FALSE)/D37)*C37","v":0},null,null,null,"More",null,"None",{"$f":"VLOOKUP($A37,Micronutrients,14,FALSE)","v":0},{"$f":"VLOOKUP(M37,Micronutrients,18,FALSE)","v":0},{"$f":"VLOOKUP(M37,Micronutrients,16,FALSE)","v":1},0,{"$f":"VLOOKUP(M37,Micronutrients,15,FALSE)","v":0},{"$f":"(Q37*VLOOKUP(M37,Micronutrients,14,FALSE)/P37)*O37","v":0},null,null,null,"More",null,"None",{"$f":"VLOOKUP($A37,Micronutrients,14,FALSE)","v":0},{"$f":"VLOOKUP(Y37,Micronutrients,18,FALSE)","v":0},{"$f":"VLOOKUP(Y37,Micronutrients,16,FALSE)","v":1},0,{"$f":"VLOOKUP(Y37,Micronutrients,15,FALSE)","v":0},{"$f":"(AC37*VLOOKUP(Y37,Micronutrients,14,FALSE)/AB37)*AA37","v":0},null,null,null,"More"]
["2nd Application Fertilizer Cost/Acre",null,null,null,null,null,{"$f":"SUM(G26:G37)","v":0},null,null,null,"Below",null,"2nd Application Fertilizer Cost/Acre",null,null,null,null,null,{"$f":"SUM(S26:S37)","v":0},null,null,null,"Below",null,"2nd Application Fertilizer Cost/Acre",null,null,null,null,null,{"$f":"SUM(AE26:AE37)","v":0},null,null,null,"Below"]
[null,null,null,null,null,null,null,null,null,null,"¯",null,null,null,null,null,null,null,null,null,null,null,"¯",null,null,null,null,null,null,null,null,null,null,null,"¯"]
["Foliar Applications",null,null,null,null,null,null,null,null,null,null,null,"Foliar Applications",null,null,null,null,null,null,null,null,null,null,null,"Foliar Applications"]
["Fertilizer Source","Purchase Units","Package Price (Gals, Lbs, etc.)","Units/Pkg","Rate/Acre","Units","Cost",null,null,null,null,null,"Fertilizer Source","Purchase Units","Package Price (Gals, Lbs, etc.)","Units/Pkg","Rate/Acre","Units","Cost",null,null,null,null,null,"Fertilizer Source","Purchase Units","Package Price (Gals, Lbs, etc.)","Units/Pkg","Rate/Acre","Units","Cost"]
["Foliars (drop down menu)",null,null,null,"(Enter Below)",null,null,null,"N","P","K",null,"Foliars (drop down menu)",null,null,null,"(Enter Below)",null,null,null,"N","P","K",null,"Foliars (drop down menu)",null,null,null,"(Enter Below)",null,null,null,"N","P","K"]
["None",{"$f":"VLOOKUP(A43,Foliars,14,FALSE)","v":0},{"$f":"VLOOKUP(A43,Foliars,18,FALSE)","v":0},{"$f":"VLOOKUP(A43,Foliars,16,FALSE)","v":1},0,{"$f":"VLOOKUP(A43,Foliars,15,FALSE)","v":0},{"$f":"(E43*VLOOKUP(A43,Foliars,14,FALSE)/D43)*C43","v":0},null,{"$f":"VLOOKUP(A$43,Foliars,2,FALSE)*E$43+VLOOKUP(A$44,Foliars,2,FALSE)*E$44+VLOOKUP(A$45,Foliars,2,FALSE)*E$45+VLOOKUP(A$46,Foliars,2,FALSE)*E$46+VLOOKUP(A$47,Foliars,2,FALSE)*E$47+VLOOKUP(A$48,Foliars,2,FALSE)*E$48","v":0},{"$f":"VLOOKUP(A$43,Foliars,3,FALSE)*E$43+VLOOKUP(A$44,Foliars,3,FALSE)*E$44+VLOOKUP(A$45,Foliars,3,FALSE)*E$45+VLOOKUP(A$46,Foliars,3,FALSE)*E$46+VLOOKUP(A$47,Foliars,3,FALSE)*E$47+VLOOKUP(A$48,Foliars,3,FALSE)*E$48","v":0},{"$f":"VLOOKUP(A$43,Foliars,4,FALSE)*E$43+VLOOKUP(A$44,Foliars,4,FALSE)*E$44+VLOOKUP(A$45,Foliars,4,FALSE)*E$45+VLOOKUP(A$46,Foliars,4,FALSE)*E$46+VLOOKUP(A$47,Foliars,4,FALSE)*E$47+VLOOKUP(A$48,Foliars,4,FALSE)*E$48","v":0},null,"None",{"$f":"VLOOKUP(M43,Foliars,14,FALSE)","v":0},{"$f":"VLOOKUP(M43,Foliars,18,FALSE)","v":0},{"$f":"VLOOKUP(M43,Foliars,16,FALSE)","v":1},0,{"$f":"VLOOKUP(M43,Foliars,15,FALSE)","v":0},{"$f":"(Q43*VLOOKUP(M43,Foliars,14,FALSE)/P43)*O43","v":0},null,{"$f":"VLOOKUP(M$43,Foliars,2,FALSE)*Q$43+VLOOKUP(M$44,Foliars,2,FALSE)*Q$44+VLOOKUP(M$45,Foliars,2,FALSE)*Q$45+VLOOKUP(M$46,Foliars,2,FALSE)*Q$46+VLOOKUP(M$47,Foliars,2,FALSE)*Q$47+VLOOKUP(M$48,Foliars,2,FALSE)*Q$48","v":0},{"$f":"VLOOKUP(M$43,Foliars,3,FALSE)*Q$43+VLOOKUP(M$44,Foliars,3,FALSE)*Q$44+VLOOKUP(M$45,Foliars,3,FALSE)*Q$45+VLOOKUP(M$46,Foliars,3,FALSE)*Q$46+VLOOKUP(M$47,Foliars,3,FALSE)*Q$47+VLOOKUP(M$48,Foliars,3,FALSE)*Q$48","v":0},{"$f":"VLOOKUP(M$43,Foliars,4,FALSE)*Q$43+VLOOKUP(M$44,Foliars,4,FALSE)*Q$44+VLOOKUP(M$45,Foliars,4,FALSE)*Q$45+VLOOKUP(M$46,Foliars,4,FALSE)*Q$46+VLOOKUP(M$47,Foliars,4,FALSE)*Q$47+VLOOKUP(M$48,Foliars,4,FALSE)*Q$48","v":0},null,"None",{"$f":"VLOOKUP(Y43,Foliars,14,FALSE)","v":0},{"$f":"VLOOKUP(Y43,Foliars,18,FALSE)","v":0},{"$f":"VLOOKUP(Y43,Foliars,16,FALSE)","v":1},0,{"$f":"VLOOKUP(Y43,Foliars,15,FALSE)","v":0},{"$f":"(AC43*VLOOKUP(Y43,Foliars,14,FALSE)/AB43)*AA43","v":0},null,{"$f":"VLOOKUP(Y$43,Foliars,2,FALSE)*AC$43+VLOOKUP(Y$44,Foliars,2,FALSE)*AC$44+VLOOKUP(Y$45,Foliars,2,FALSE)*AC$45+VLOOKUP(Y$46,Foliars,2,FALSE)*AC$46+VLOOKUP(Y$47,Foliars,2,FALSE)*AC$47+VLOOKUP(Y$48,Foliars,2,FALSE)*AC$48","v":0},{"$f":"VLOOKUP(Y$43,Foliars,3,FALSE)*AC$43+VLOOKUP(Y$44,Foliars,3,FALSE)*AC$44+VLOOKUP(Y$45,Foliars,3,FALSE)*AC$45+VLOOKUP(Y$46,Foliars,3,FALSE)*AC$46+VLOOKUP(Y$47,Foliars,3,FALSE)*AC$47+VLOOKUP(Y$48,Foliars,3,FALSE)*AC$48","v":0},{"$f":"VLOOKUP(Y$43,Foliars,4,FALSE)*AC$43+VLOOKUP(Y$44,Foliars,4,FALSE)*AC$44+VLOOKUP(Y$45,Foliars,4,FALSE)*AC$45+VLOOKUP(Y$46,Foliars,4,FALSE)*AC$46+VLOOKUP(Y$47,Foliars,4,FALSE)*AC$47+VLOOKUP(Y$48,Foliars,4,FALSE)*AC$48","v":0}]
["None",{"$f":"VLOOKUP(A44,Foliars,14,FALSE)","v":0},0,1,0,0,0,null,null,null,null,null,"None",0,0,1,0,0,0,null,null,null,null,null,"None",0,0,1,0,0,0]
["None",0,0,1,0,0,0,null,"S","Ca","Mg",null,"None",0,0,1,0,0,0,null,"S","Ca","Mg",null,"None",0,0,1,0,0,0,null,"S","Ca","Mg"]
["None",0,0,1,0,0,0,null,{"$f":"VLOOKUP(A$43,Foliars,5,FALSE)*E$43+VLOOKUP(A$44,Foliars,5,FALSE)*E$44+VLOOKUP(A$45,Foliars,5,FALSE)*E$45+VLOOKUP(A$46,Foliars,5,FALSE)*E$46+VLOOKUP(A$47,Foliars,5,FALSE)*E$47+VLOOKUP(A$48,Foliars,5,FALSE)*E$48","v":0},{"$f":"VLOOKUP(A$43,Foliars,7,FALSE)*E$43+VLOOKUP(A$44,Foliars,7,FALSE)*E$44+VLOOKUP(A$45,Foliars,7,FALSE)*E$45+VLOOKUP(A$46,Foliars,7,FALSE)*E$46+VLOOKUP(A$47,Foliars,7,FALSE)*E$47+VLOOKUP(A$48,Foliars,7,FALSE)*E$48","v":0},{"$f":"VLOOKUP(A$43,Foliars,6,FALSE)*E$43+VLOOKUP(A$44,Foliars,6,FALSE)*E$44+VLOOKUP(A$45,Foliars,6,FALSE)*E$45+VLOOKUP(A$46,Foliars,6,FALSE)*E$46+VLOOKUP(A$47,Foliars,6,FALSE)*E$47+VLOOKUP(A$48,Foliars,6,FALSE)*E$48","v":0},null,"None",0,0,1,0,0,0,null,{"$f":"VLOOKUP(M$43,Foliars,5,FALSE)*Q$43+VLOOKUP(M$44,Foliars,5,FALSE)*Q$44+VLOOKUP(M$45,Foliars,5,FALSE)*Q$45+VLOOKUP(M$46,Foliars,5,FALSE)*Q$46+VLOOKUP(M$47,Foliars,5,FALSE)*Q$47+VLOOKUP(M$48,Foliars,5,FALSE)*Q$48","v":0},{"$f":"VLOOKUP(M$43,Foliars,7,FALSE)*Q$43+VLOOKUP(M$44,Foliars,7,FALSE)*Q$44+VLOOKUP(M$45,Foliars,7,FALSE)*Q$45+VLOOKUP(M$46,Foliars,7,FALSE)*Q$46+VLOOKUP(M$47,Foliars,7,FALSE)*Q$47+VLOOKUP(M$48,Foliars,7,FALSE)*Q$48","v":0},{"$f":"VLOOKUP(M$43,Foliars,6,FALSE)*Q$43+VLOOKUP(M$44,Foliars,6,FALSE)*Q$44+VLOOKUP(M$45,Foliars,6,FALSE)*Q$45+VLOOKUP(M$46,Foliars,6,FALSE)*Q$46+VLOOKUP(M$47,Foliars,6,FALSE)*Q$47+VLOOKUP(M$48,Foliars,6,FALSE)*Q$48","v":0},null,"None",0,0,1,0,0,0,null,{"$f":"VLOOKUP(Y$43,Foliars,5,FALSE)*AC$43+VLOOKUP(Y$44,Foliars,5,FALSE)*AC$44+VLOOKUP(Y$45,Foliars,5,FALSE)*AC$45+VLOOKUP(Y$46,Foliars,5,FALSE)*AC$46+VLOOKUP(Y$47,Foliars,5,FALSE)*AC$47+VLOOKUP(Y$48,Foliars,5,FALSE)*AC$48","v":0},{"$f":"VLOOKUP(Y$43,Foliars,7,FALSE)*AC$43+VLOOKUP(Y$44,Foliars,7,FALSE)*AC$44+VLOOKUP(Y$45,Foliars,7,FALSE)*AC$45+VLOOKUP(Y$46,Foliars,7,FALSE)*AC$46+VLOOKUP(Y$47,Foliars,7,FALSE)*AC$47+VLOOKUP(Y$48,Foliars,7,FALSE)*AC$48","v":0},{"$f":"VLOOKUP(Y$43,Foliars,6,FALSE)*AC$43+VLOOKUP(Y$44,Foliars,6,FALSE)*AC$44+VLOOKUP(Y$45,Foliars,6,FALSE)*AC$45+VLOOKUP(Y$46,Foliars,6,FALSE)*AC$46+VLOOKUP(Y$47,Foliars,6,FALSE)*AC$47+VLOOKUP(Y$48,Foliars,6,FALSE)*AC$48","v":0}]
["None",0,0,1,0,0,0,null,null,null,null,null,"None",0,0,1,0,0,0,null,null,null,null,null,"None",0,0,1,0,0,0]
["None",0,0,1,0,0,0,null,"Z","B","Mn",null,"None",0,0,1,0,0,0,null,"Z","B","Mn",null,"None",0,0,1,0,0,0,null,"Z","B","Mn"]
[null,null,null,null,null,null,null,null,{"$f":"VLOOKUP(A$43,Foliars,8,FALSE)*E$43+VLOOKUP(A$44,Foliars,8,FALSE)*E$44+VLOOKUP(A$45,Foliars,8,FALSE)*E$45+VLOOKUP(A$46,Foliars,8,FALSE)*E$46+VLOOKUP(A$47,Foliars,8,FALSE)*E$47+VLOOKUP(A$48,Foliars,8,FALSE)*E$48","v":0},{"$f":"VLOOKUP(A$43,Foliars,9,FALSE)*E$43+VLOOKUP(A$44,Foliars,9,FALSE)*E$44+VLOOKUP(A$45,Foliars,9,FALSE)*E$45+VLOOKUP(A$46,Foliars,9,FALSE)*E$46+VLOOKUP(A$47,Foliars,9,FALSE)*E$47+VLOOKUP(A$48,Foliars,9,FALSE)*E$48","v":0},{"$f":"VLOOKUP(A$43,Foliars,10,FALSE)*E$43+VLOOKUP(A$44,Foliars,10,FALSE)*E$44+VLOOKUP(A$45,Foliars,10,FALSE)*E$45+VLOOKUP(A$46,Foliars,10,FALSE)*E$46+VLOOKUP(A$47,Foliars,10,FALSE)*E$47+VLOOKUP(A$48,Foliars,10,FALSE)*E$48","v":0},null,null,null,null,null,null,null,null,null,{"$f":"VLOOKUP(M$43,Foliars,8,FALSE)*Q$43+VLOOKUP(M$44,Foliars,8,FALSE)*Q$44+VLOOKUP(M$45,Foliars,8,FALSE)*Q$45+VLOOKUP(M$46,Foliars,8,FALSE)*Q$46+VLOOKUP(M$47,Foliars,8,FALSE)*Q$47+VLOOKUP(M$48,Foliars,8,FALSE)*Q$48","v":0},{"$f":"VLOOKUP(M$43,Foliars,9,FALSE)*Q$43+VLOOKUP(M$44,Foliars,9,FALSE)*Q$44+VLOOKUP(M$45,Foliars,9,FALSE)*Q$45+VLOOKUP(M$46,Foliars,9,FALSE)*Q$46+VLOOKUP(M$47,Foliars,9,FALSE)*Q$47+VLOOKUP(M$48,Foliars,9,FALSE)*Q$48","v":0},{"$f":"VLOOKUP(M$43,Foliars,10,FALSE)*Q$43+VLOOKUP(M$44,Foliars,10,FALSE)*Q$44+VLOOKUP(M$45,Foliars,10,FALSE)*Q$45+VLOOKUP(M$46,Foliars,10,FALSE)*Q$46+VLOOKUP(M$47,Foliars,10,FALSE)*Q$47+VLOOKUP(M$48,Foliars,10,FALSE)*Q$48","v":0},null,null,null,null,null,null,null,null,null,{"$f":"VLOOKUP(Y$43,Foliars,8,FALSE)*AC$43+VLOOKUP(Y$44,Foliars,8,FALSE)*AC$44+VLOOKUP(Y$45,Foliars,8,FALSE)*AC$45+VLOOKUP(Y$46,Foliars,8,FALSE)*AC$46+VLOOKUP(Y$47,Foliars,8,FALSE)*AC$47+VLOOKUP(Y$48,Foliars,8,FALSE)*AC$48","v":0},{"$f":"VLOOKUP(Y$43,Foliars,9,FALSE)*AC$43+VLOOKUP(Y$44,Foliars,9,FALSE)*AC$44+VLOOKUP(Y$45,Foliars,9,FALSE)*AC$45+VLOOKUP(Y$46,Foliars,9,FALSE)*AC$46+VLOOKUP(Y$47,Foliars,9,FALSE)*AC$47+VLOOKUP(Y$48,Foliars,9,FALSE)*AC$48","v":0},{"$f":"VLOOKUP(Y$43,Foliars,10,FALSE)*AC$43+VLOOKUP(Y$44,Foliars,10,FALSE)*AC$44+VLOOKUP(Y$45,Foliars,10,FALSE)*AC$45+VLOOKUP(Y$46,Foliars,10,FALSE)*AC$46+VLOOKUP(Y$47,Foliars,10,FALSE)*AC$47+VLOOKUP(Y$48,Foliars,10,FALSE)*AC$48","v":0}]
[]
["Total Foliar Application Cost/Acre",null,null,null,null,null,{"$f":"SUM(G43:G48)","v":0},null,"Cu","Mo","Fe",null,"Total Foliar Application Cost/Acre",null,null,null,null,null,{"$f":"SUM(S43:S48)","v":0},null,"Cu","Mo","Fe",null,"Total Foliar Application Cost/Acre",null,null,null,null,null,{"$f":"SUM(AE43:AE48)","v":0},null,"Cu","Mo","Fe"]
[null,null,null,null,null,null,null,null,{"$f":"VLOOKUP(A43,Foliars,11,FALSE)*E43+VLOOKUP(A44,Foliars,11,FALSE)*E44+VLOOKUP(A45,Foliars,11,FALSE)*E45+VLOOKUP(A46,Foliars,11,FALSE)*E46+VLOOKUP(A47,Foliars,11,FALSE)*E47+VLOOKUP(A48,Foliars,11,FALSE)*E48","v":0},{"$f":"VLOOKUP(A43,Foliars,12,FALSE)*E43+VLOOKUP(A44,Foliars,12,FALSE)*E44+VLOOKUP(A45,Foliars,12,FALSE)*E45+VLOOKUP(A46,Foliars,12,FALSE)*E46+VLOOKUP(A47,Foliars,12,FALSE)*E47+VLOOKUP(A48,Foliars,12,FALSE)*E48","v":0},{"$f":"VLOOKUP(A43,Foliars,13,FALSE)*E43+VLOOKUP(A44,Foliars,13,FALSE)*E44+VLOOKUP(A45,Foliars,13,FALSE)*E45+VLOOKUP(A46,Foliars,13,FALSE)*E46+VLOOKUP(A47,Foliars,13,FALSE)*E47+VLOOKUP(A48,Foliars,13,FALSE)*E48","v":0},null,null,null,null,null,null,null,null,null,{"$f":"VLOOKUP(M43,Foliars,11,FALSE)*Q43+VLOOKUP(M44,Foliars,11,FALSE)*Q44+VLOOKUP(M45,Foliars,11,FALSE)*Q45+VLOOKUP(M46,Foliars,11,FALSE)*Q46+VLOOKUP(M47,Foliars,11,FALSE)*Q47+VLOOKUP(M48,Foliars,11,FALSE)*Q48","v":0},{"$f":"VLOOKUP(M43,Foliars,12,FALSE)*Q43+VLOOKUP(M44,Foliars,12,FALSE)*Q44+VLOOKUP(M45,Foliars,12,FALSE)*Q45+VLOOKUP(M46,Foliars,12,FALSE)*Q46+VLOOKUP(M47,Foliars,12,FALSE)*Q47+VLOOKUP(M48,Foliars,12,FALSE)*Q48","v":0},{"$f":"VLOOKUP(M43,Foliars,13,FALSE)*Q43+VLOOKUP(M44,Foliars,13,FALSE)*Q44+VLOOKUP(M45,Foliars,13,FALSE)*Q45+VLOOKUP(M46,Foliars,13,FALSE)*Q46+VLOOKUP(M47,Foliars,13,FALSE)*Q47+VLOOKUP(M48,Foliars,13,FALSE)*Q48","v":0},null,null,null,null,null,null,null,null,null,{"$f":"VLOOKUP(Y43,Foliars,11,FALSE)*AC43+VLOOKUP(Y44,Foliars,11,FALSE)*AC44+VLOOKUP(Y45,Foliars,11,FALSE)*AC45+VLOOKUP(Y46,Foliars,11,FALSE)*AC46+VLOOKUP(Y47,Foliars,11,FALSE)*AC47+VLOOKUP(Y48,Foliars,11,FALSE)*AC48","v":0},{"$f":"VLOOKUP(Y43,Foliars,12,FALSE)*AC43+VLOOKUP(Y44,Foliars,12,FALSE)*AC44+VLOOKUP(Y45,Foliars,12,FALSE)*AC45+VLOOKUP(Y46,Foliars,12,FALSE)*AC46+VLOOKUP(Y47,Foliars,12,FALSE)*AC47+VLOOKUP(Y48,Foliars,12,FALSE)*AC48","v":0},{"$f":"VLOOKUP(Y43,Foliars,13,FALSE)*AC43+VLOOKUP(Y44,Foliars,13,FALSE)*AC44+VLOOKUP(Y45,Foliars,13,FALSE)*AC45+VLOOKUP(Y46,Foliars,13,FALSE)*AC46+VLOOKUP(Y47,Foliars,13,FALSE)*AC47+VLOOKUP(Y48,Foliars,13,FALSE)*AC48","v":0}]
["Fertigation Applications",null,null,null,null,null,null,null,null,null,null,null,"Fertigation Applications",null,null,null,null,null,null,null,null,null,null,null,"Fertigation Applications"]
["Fertilizer Source","Purchase Units","Package Price (Gals, Lbs, etc.)","Units/Pkg","Rate/Acre","Units","Cost",null,null,null,null,null,"Fertilizer Source","Purchase Units","Package Price (Gals, Lbs, etc.)","Units/Pkg","Rate/Acre","Units","Cost",null,null,null,null,null,"Fertilizer Source","Purchase Units","Package Price (Gals, Lbs, etc.)","Units/Pkg","Rate/Acre","Units","Cost"]
["Fertigation (drop down menu)",null,null,null,"(Enter Below)",null,null,null,"N","P","K",null,"Fertigation (drop down menu)",null,null,null,"(Enter Below)",null,null,null,"N","P","K",null,"Fertigation (drop down menu)",null,null,null,"(Enter Below)",null,null,null,"N","P","K"]
["None",{"$f":"VLOOKUP(A56,Fertigation,14,FALSE)","v":0},{"$f":"VLOOKUP(A56,Fertigation,18,FALSE)","v":0},{"$f":"VLOOKUP(A56,Fertigation,16,FALSE)","v":1},0,{"$f":"VLOOKUP(A56,Fertigation,15,FALSE)","v":0},{"$f":"(E56*VLOOKUP(A56,Foliars,14,FALSE)/D56)*C56","v":0},null,{"$f":"VLOOKUP(A$56,Fertigation,2,FALSE)*E$56+VLOOKUP(A$57,Fertigation,2,FALSE)*E$57+VLOOKUP(A$58,Fertigation,2,FALSE)*E$58+VLOOKUP(A$59,Fertigation,2,FALSE)*E$59+VLOOKUP(A$60,Fertigation,2,FALSE)*E$60+VLOOKUP(A$61,Fertigation,2,FALSE)*E$61","v":0},{"$f":"VLOOKUP(A$56,Fertigation,3,FALSE)*E$56+VLOOKUP(A$57,Fertigation,3,FALSE)*E$57+VLOOKUP(A$58,Fertigation,3,FALSE)*E$58+VLOOKUP(A$59,Fertigation,3,FALSE)*E$59+VLOOKUP(A$60,Fertigation,3,FALSE)*E$60+VLOOKUP(A$61,Fertigation,3,FALSE)*E$61","v":0},{"$f":"VLOOKUP(A$56,Fertigation,4,FALSE)*E$56+VLOOKUP(A$57,Fertigation,4,FALSE)*E$57+VLOOKUP(A$58,Fertigation,4,FALSE)*E$58+VLOOKUP(A$59,Fertigation,4,FALSE)*E$59+VLOOKUP(A$60,Fertigation,4,FALSE)*E$60+VLOOKUP(A$61,Fertigation,4,FALSE)*E$61","v":0},null,"None",{"$f":"VLOOKUP(M56,Fertigation,14,FALSE)","v":0},{"$f":"VLOOKUP(M56,Fertigation,18,FALSE)","v":0},{"$f":"VLOOKUP(M56,Fertigation,16,FALSE)","v":1},0,{"$f":"VLOOKUP(M56,Fertigation,15,FALSE)","v":0},{"$f":"(Q56*VLOOKUP(M56,Foliars,14,FALSE)/P56)*O56","v":0},null,{"$f":"VLOOKUP(M$56,Fertigation,2,FALSE)*Q$56+VLOOKUP(M$57,Fertigation,2,FALSE)*Q$57+VLOOKUP(M$58,Fertigation,2,FALSE)*Q$58+VLOOKUP(M$59,Fertigation,2,FALSE)*Q$59+VLOOKUP(M$60,Fertigation,2,FALSE)*Q$60+VLOOKUP(M$61,Fertigation,2,FALSE)*Q$61","v":0},{"$f":"VLOOKUP(M$56,Fertigation,3,FALSE)*Q$56+VLOOKUP(M$57,Fertigation,3,FALSE)*Q$57+VLOOKUP(M$58,Fertigation,3,FALSE)*Q$58+VLOOKUP(M$59,Fertigation,3,FALSE)*Q$59+VLOOKUP(M$60,Fertigation,3,FALSE)*Q$60+VLOOKUP(M$61,Fertigation,3,FALSE)*Q$61","v":0},{"$f":"VLOOKUP(M$56,Fertigation,4,FALSE)*Q$56+VLOOKUP(M$57,Fertigation,4,FALSE)*Q$57+VLOOKUP(M$58,Fertigation,4,FALSE)*Q$58+VLOOKUP(M$59,Fertigation,4,FALSE)*Q$59+VLOOKUP(M$60,Fertigation,4,FALSE)*Q$60+VLOOKUP(M$61,Fertigation,4,FALSE)*Q$61","v":0},null,"None",{"$f":"VLOOKUP(Y56,Fertigation,14,FALSE)","v":0},{"$f":"VLOOKUP(Y56,Fertigation,18,FALSE)","v":0},{"$f":"VLOOKUP(Y56,Fertigation,16,FALSE)","v":1},0,{"$f":"VLOOKUP(Y56,Fertigation,15,FALSE)","v":0},{"$f":"(AC56*VLOOKUP(Y56,Foliars,14,FALSE)/AB56)*AA56","v":0},null,{"$f":"VLOOKUP(Y$56,Fertigation,2,FALSE)*AC$56+VLOOKUP(Y$57,Fertigation,2,FALSE)*AC$57+VLOOKUP(Y$58,Fertigation,2,FALSE)*AC$58+VLOOKUP(Y$59,Fertigation,2,FALSE)*AC$59+VLOOKUP(Y$60,Fertigation,2,FALSE)*AC$60+VLOOKUP(Y$61,Fertigation,2,FALSE)*AC$61","v":0},{"$f":"VLOOKUP(Y$56,Fertigation,3,FALSE)*AC$56+VLOOKUP(Y$57,Fertigation,3,FALSE)*AC$57+VLOOKUP(Y$58,Fertigation,3,FALSE)*AC$58+VLOOKUP(Y$59,Fertigation,3,FALSE)*AC$59+VLOOKUP(Y$60,Fertigation,3,FALSE)*AC$60+VLOOKUP(Y$61,Fertigation,3,FALSE)*AC$61","v":0},{"$f":"VLOOKUP(Y$56,Fertigation,4,FALSE)*AC$56+VLOOKUP(Y$57,Fertigation,4,FALSE)*AC$57+VLOOKUP(Y$58,Fertigation,4,FALSE)*AC$58+VLOOKUP(Y$59,Fertigation,4,FALSE)*AC$59+VLOOKUP(Y$60,Fertigation,4,FALSE)*AC$60+VLOOKUP(Y$61,Fertigation,4,FALSE)*AC$61","v":0}]
["None",{"$f":"VLOOKUP(A57,Foliars,14,FALSE)","v":0},0,1,0,0,0,null,null,null,null,null,"None",{"$f":"VLOOKUP(M57,Foliars,14,FALSE)","v":0},0,1,0,0,0,null,null,null,null,null,"None",{"$f":"VLOOKUP(Y57,Foliars,14,FALSE)","v":0},0,1,0,0,0]
["None",{"$f":"VLOOKUP(A58,Foliars,14,FALSE)","v":0},0,1,0,0,0,null,"S","Ca","Mg",null,"None",{"$f":"VLOOKUP(M58,Foliars,14,FALSE)","v":0},0,1,0,0,0,null,"S","Ca","Mg",null,"None",{"$f":"VLOOKUP(Y58,Foliars,14,FALSE)","v":0},0,1,0,0,0,null,"S","Ca","Mg"]
["None",{"$f":"VLOOKUP(A59,Foliars,14,FALSE)","v":0},0,1,0,0,0,null,{"$f":"VLOOKUP(A$56,Fertigation,5,FALSE)*E$56+VLOOKUP(A$57,Fertigation,5,FALSE)*E$57+VLOOKUP(A$58,Fertigation,5,FALSE)*E$58+VLOOKUP(A$59,Fertigation,5,FALSE)*E$59+VLOOKUP(A$60,Fertigation,5,FALSE)*E$60+VLOOKUP(A$61,Fertigation,5,FALSE)*E$61","v":0},{"$f":"VLOOKUP(A$56,Fertigation,7,FALSE)*E$56+VLOOKUP(A$57,Fertigation,7,FALSE)*E$57+VLOOKUP(A$58,Fertigation,7,FALSE)*E$58+VLOOKUP(A$59,Fertigation,7,FALSE)*E$59+VLOOKUP(A$60,Fertigation,7,FALSE)*E$60+VLOOKUP(A$61,Fertigation,7,FALSE)*E$61","v":0},{"$f":"VLOOKUP(A$56,Fertigation,6,FALSE)*E$56+VLOOKUP(A$57,Fertigation,6,FALSE)*E$57+VLOOKUP(A$58,Fertigation,6,FALSE)*E$58+VLOOKUP(A$59,Fertigation,6,FALSE)*E$59+VLOOKUP(A$60,Fertigation,6,FALSE)*E$60+VLOOKUP(A$61,Fertigation,6,FALSE)*E$61","v":0},null,"None",{"$f":"VLOOKUP(M59,Foliars,14,FALSE)","v":0},0,1,0,0,0,null,{"$f":"VLOOKUP(M$56,Fertigation,5,FALSE)*Q$56+VLOOKUP(M$57,Fertigation,5,FALSE)*Q$57+VLOOKUP(M$58,Fertigation,5,FALSE)*Q$58+VLOOKUP(M$59,Fertigation,5,FALSE)*Q$59+VLOOKUP(M$60,Fertigation,5,FALSE)*Q$60+VLOOKUP(M$61,Fertigation,5,FALSE)*Q$61","v":0},{"$f":"VLOOKUP(M$56,Fertigation,7,FALSE)*Q$56+VLOOKUP(M$57,Fertigation,7,FALSE)*Q$57+VLOOKUP(M$58,Fertigation,7,FALSE)*Q$58+VLOOKUP(M$59,Fertigation,7,FALSE)*Q$59+VLOOKUP(M$60,Fertigation,7,FALSE)*Q$60+VLOOKUP(M$61,Fertigation,7,FALSE)*Q$61","v":0},{"$f":"VLOOKUP(M$56,Fertigation,6,FALSE)*Q$56+VLOOKUP(M$57,Fertigation,6,FALSE)*Q$57+VLOOKUP(M$58,Fertigation,6,FALSE)*Q$58+VLOOKUP(M$59,Fertigation,6,FALSE)*Q$59+VLOOKUP(M$60,Fertigation,6,FALSE)*Q$60+VLOOKUP(M$61,Fertigation,6,FALSE)*Q$61","v":0},null,"None",{"$f":"VLOOKUP(Y59,Foliars,14,FALSE)","v":0},0,1,0,0,0,null,{"$f":"VLOOKUP(Y$56,Fertigation,5,FALSE)*AC$56+VLOOKUP(Y$57,Fertigation,5,FALSE)*AC$57+VLOOKUP(Y$58,Fertigation,5,FALSE)*AC$58+VLOOKUP(Y$59,Fertigation,5,FALSE)*AC$59+VLOOKUP(Y$60,Fertigation,5,FALSE)*AC$60+VLOOKUP(Y$61,Fertigation,5,FALSE)*AC$61","v":0},{"$f":"VLOOKUP(Y$56,Fertigation,7,FALSE)*AC$56+VLOOKUP(Y$57,Fertigation,7,FALSE)*AC$57+VLOOKUP(Y$58,Fertigation,7,FALSE)*AC$58+VLOOKUP(Y$59,Fertigation,7,FALSE)*AC$59+VLOOKUP(Y$60,Fertigation,7,FALSE)*AC$60+VLOOKUP(Y$61,Fertigation,7,FALSE)*AC$61","v":0},{"$f":"VLOOKUP(Y$56,Fertigation,6,FALSE)*AC$56+VLOOKUP(Y$57,Fertigation,6,FALSE)*AC$57+VLOOKUP(Y$58,Fertigation,6,FALSE)*AC$58+VLOOKUP(Y$59,Fertigation,6,FALSE)*AC$59+VLOOKUP(Y$60,Fertigation,6,FALSE)*AC$60+VLOOKUP(Y$61,Fertigation,6,FALSE)*AC$61","v":0}]
["None",{"$f":"VLOOKUP(A60,Foliars,14,FALSE)","v":0},0,1,0,0,0,null,null,null,null,null,"None",{"$f":"VLOOKUP(M60,Foliars,14,FALSE)","v":0},0,1,0,0,0,null,null,null,null,null,"None",{"$f":"VLOOKUP(Y60,Foliars,14,FALSE)","v":0},0,1,0,0,0]
["None",{"$f":"VLOOKUP(A61,Foliars,14,FALSE)","v":0},0,1,0,0,0,null,"Z","B","Mn",null,"None",{"$f":"VLOOKUP(M61,Foliars,14,FALSE)","v":0},0,1,0,0,0,null,"Z","B","Mn",null,"None",{"$f":"VLOOKUP(Y61,Foliars,14,FALSE)","v":0},0,1,0,0,0,null,"Z","B","Mn"]
[null,null,null,null,null,null,null,null,{"$f":"VLOOKUP(A$56,Fertigation,8,FALSE)*E$56+VLOOKUP(A$57,Fertigation,8,FALSE)*E$57+VLOOKUP(A$58,Fertigation,8,FALSE)*E$58+VLOOKUP(A$59,Fertigation,8,FALSE)*E$59+VLOOKUP(A$60,Fertigation,8,FALSE)*E$60+VLOOKUP(A$61,Fertigation,8,FALSE)*E$61","v":0},{"$f":"VLOOKUP(A$56,Fertigation,9,FALSE)*E$56+VLOOKUP(A$57,Fertigation,9,FALSE)*E$57+VLOOKUP(A$58,Fertigation,9,FALSE)*E$58+VLOOKUP(A$59,Fertigation,9,FALSE)*E$59+VLOOKUP(A$60,Fertigation,9,FALSE)*E$60+VLOOKUP(A$61,Fertigation,9,FALSE)*E$61","v":0},{"$f":"VLOOKUP(A$56,Fertigation,10,FALSE)*E$56+VLOOKUP(A$57,Fertigation,10,FALSE)*E$57+VLOOKUP(A$58,Fertigation,10,FALSE)*E$58+VLOOKUP(A$59,Fertigation,10,FALSE)*E$59+VLOOKUP(A$60,Fertigation,10,FALSE)*E$60+VLOOKUP(A$61,Fertigation,10,FALSE)*E$61","v":0},null,null,null,null,null,null,null,null,null,{"$f":"VLOOKUP(M$56,Fertigation,8,FALSE)*Q$56+VLOOKUP(M$57,Fertigation,8,FALSE)*Q$57+VLOOKUP(M$58,Fertigation,8,FALSE)*Q$58+VLOOKUP(M$59,Fertigation,8,FALSE)*Q$59+VLOOKUP(M$60,Fertigation,8,FALSE)*Q$60+VLOOKUP(M$61,Fertigation,8,FALSE)*Q$61","v":0},{"$f":"VLOOKUP(M$56,Fertigation,9,FALSE)*Q$56+VLOOKUP(M$57,Fertigation,9,FALSE)*Q$57+VLOOKUP(M$58,Fertigation,9,FALSE)*Q$58+VLOOKUP(M$59,Fertigation,9,FALSE)*Q$59+VLOOKUP(M$60,Fertigation,9,FALSE)*Q$60+VLOOKUP(M$61,Fertigation,9,FALSE)*Q$61","v":0},{"$f":"VLOOKUP(M$56,Fertigation,10,FALSE)*Q$56+VLOOKUP(M$57,Fertigation,10,FALSE)*Q$57+VLOOKUP(M$58,Fertigation,10,FALSE)*Q$58+VLOOKUP(M$59,Fertigation,10,FALSE)*Q$59+VLOOKUP(M$60,Fertigation,10,FALSE)*Q$60+VLOOKUP(M$61,Fertigation,10,FALSE)*Q$61","v":0},null,null,null,null,null,null,null,null,null,{"$f":"VLOOKUP(Y$56,Fertigation,8,FALSE)*AC$56+VLOOKUP(Y$57,Fertigation,8,FALSE)*AC$57+VLOOKUP(Y$58,Fertigation,8,FALSE)*AC$58+VLOOKUP(Y$59,Fertigation,8,FALSE)*AC$59+VLOOKUP(Y$60,Fertigation,8,FALSE)*AC$60+VLOOKUP(Y$61,Fertigation,8,FALSE)*AC$61","v":0},{"$f":"VLOOKUP(Y$56,Fertigation,9,FALSE)*AC$56+VLOOKUP(Y$57,Fertigation,9,FALSE)*AC$57+VLOOKUP(Y$58,Fertigation,9,FALSE)*AC$58+VLOOKUP(Y$59,Fertigation,9,FALSE)*AC$59+VLOOKUP(Y$60,Fertigation,9,FALSE)*AC$60+VLOOKUP(Y$61,Fertigation,9,FALSE)*AC$61","v":0},{"$f":"VLOOKUP(Y$56,Fertigation,10,FALSE)*AC$56+VLOOKUP(Y$57,Fertigation,10,FALSE)*AC$57+VLOOKUP(Y$58,Fertigation,10,FALSE)*AC$58+VLOOKUP(Y$59,Fertigation,10,FALSE)*AC$59+VLOOKUP(Y$60,Fertigation,10,FALSE)*AC$60+VLOOKUP(Y$61,Fertigation,10,FALSE)*AC$61","v":0}]
[]
["Total Fertigation Cost/Acre",null,null,null,null,null,{"$f":"SUM(G56:G61)","v":0},null,"Cu","Mo","Fe",null,"Total Fertigation Cost/Acre",null,null,null,null,null,{"$f":"SUM(S56:S61)","v":0},null,"Cu","Mo","Fe",null,"Total Fertigation Cost/Acre",null,null,null,null,null,{"$f":"SUM(AE56:AE61)","v":0},null,"Cu","Mo","Fe"]
[null,null,null,null,null,null,null,null,{"$f":"VLOOKUP(A56,Fertigation,11,FALSE)*E56+VLOOKUP(A57,Fertigation,11,FALSE)*E57+VLOOKUP(A58,Fertigation,11,FALSE)*E58+VLOOKUP(A59,Fertigation,11,FALSE)*E59+VLOOKUP(A60,Fertigation,11,FALSE)*E60+VLOOKUP(A61,Fertigation,11,FALSE)*E61","v":0},{"$f":"VLOOKUP(A56,Fertigation,12,FALSE)*E56+VLOOKUP(A57,Fertigation,12,FALSE)*E57+VLOOKUP(A58,Fertigation,12,FALSE)*E58+VLOOKUP(A59,Fertigation,12,FALSE)*E59+VLOOKUP(A60,Fertigation,12,FALSE)*E60+VLOOKUP(A61,Fertigation,12,FALSE)*E61","v":0},{"$f":"VLOOKUP(A56,Fertigation,13,FALSE)*E56+VLOOKUP(A57,Fertigation,13,FALSE)*E57+VLOOKUP(A58,Fertigation,13,FALSE)*E58+VLOOKUP(A59,Fertigation,13,FALSE)*E59+VLOOKUP(A60,Fertigation,13,FALSE)*E60+VLOOKUP(A61,Fertigation,13,FALSE)*E61","v":0},null,null,null,null,null,null,null,null,null,{"$f":"VLOOKUP(M56,Fertigation,11,FALSE)*Q56+VLOOKUP(M57,Fertigation,11,FALSE)*Q57+VLOOKUP(M58,Fertigation,11,FALSE)*Q58+VLOOKUP(M59,Fertigation,11,FALSE)*Q59+VLOOKUP(M60,Fertigation,11,FALSE)*Q60+VLOOKUP(M61,Fertigation,11,FALSE)*Q61","v":0},{"$f":"VLOOKUP(M56,Fertigation,12,FALSE)*Q56+VLOOKUP(M57,Fertigation,12,FALSE)*Q57+VLOOKUP(M58,Fertigation,12,FALSE)*Q58+VLOOKUP(M59,Fertigation,12,FALSE)*Q59+VLOOKUP(M60,Fertigation,12,FALSE)*Q60+VLOOKUP(M61,Fertigation,12,FALSE)*Q61","v":0},{"$f":"VLOOKUP(M56,Fertigation,13,FALSE)*Q56+VLOOKUP(M57,Fertigation,13,FALSE)*Q57+VLOOKUP(M58,Fertigation,13,FALSE)*Q58+VLOOKUP(M59,Fertigation,13,FALSE)*Q59+VLOOKUP(M60,Fertigation,13,FALSE)*Q60+VLOOKUP(M61,Fertigation,13,FALSE)*Q61","v":0},null,null,null,null,null,null,null,null,null,{"$f":"VLOOKUP(Y56,Fertigation,11,FALSE)*AC56+VLOOKUP(Y57,Fertigation,11,FALSE)*AC57+VLOOKUP(Y58,Fertigation,11,FALSE)*AC58+VLOOKUP(Y59,Fertigation,11,FALSE)*AC59+VLOOKUP(Y60,Fertigation,11,FALSE)*AC60+VLOOKUP(Y61,Fertigation,11,FALSE)*AC61","v":0},{"$f":"VLOOKUP(Y56,Fertigation,12,FALSE)*AC56+VLOOKUP(Y57,Fertigation,12,FALSE)*AC57+VLOOKUP(Y58,Fertigation,12,FALSE)*AC58+VLOOKUP(Y59,Fertigation,12,FALSE)*AC59+VLOOKUP(Y60,Fertigation,12,FALSE)*AC60+VLOOKUP(Y61,Fertigation,12,FALSE)*AC61","v":0},{"$f":"VLOOKUP(Y56,Fertigation,13,FALSE)*AC56+VLOOKUP(Y57,Fertigation,13,FALSE)*AC57+VLOOKUP(Y58,Fertigation,13,FALSE)*AC58+VLOOKUP(Y59,Fertigation,13,FALSE)*AC59+VLOOKUP(Y60,Fertigation,13,FALSE)*AC60+VLOOKUP(Y61,Fertigation,13,FALSE)*AC61","v":0}]
[]
["Total Fertilizer Cost/Acre",null,null,null,null,null,{"$f":"G38+G21+G51","v":0},null,null,null,null,null,"Total Fertilizer Cost/Acre",null,null,null,null,null,{"$f":"S38+S21+S51","v":0},null,null,null,null,null,"Total Fertilizer Cost/Acre",null,null,null,null,null,{"$f":"AE38+AE21+AE51","v":0}]
[]
[null,null,null,null,"Total Nutrient Needs",null,null,null,"Total Fertilizer Program",null,null,null,null,null,null,null,"Total Nutrient Needs",null,null,null,"Total Fertilizer Program",null,null,null,null,null,null,null,"Total Nutrient Needs",null,null,null,"Total Fertilizer Program"]
[null,null,null,null,"Based on:","Soil Test Based Recs",null,null,"Comparison 1",null,null,null,null,null,null,null,"Based on:","Soil Test Based Recs",null,null,"Comparison 2",null,null,null,null,null,null,null,"Based on:","Soil Test Based Recs",null,null,"Comparison 3"]
["Farm Name",null,null,null,"N","P","K",null,"N","P","K",null,{"$f":"A71","v":"Farm Name"},null,null,null,"N","P","K",null,"N","P","K",null,{"$f":"A71","v":"Farm Name"},null,null,null,"N","P","K",null,"N","P","K"]
["Farm Tract",null,null,null,{"$f":"'Nutrient Management'!$J$56","v":0},{"$f":"'Nutrient Management'!$K$56","v":0},{"$f":"'Nutrient Management'!$L$56","v":0},null,{"$f":"I43+I26+I6+I56","v":0},{"$f":"J43+J26+J6+J56","v":0},{"$f":"K43+K26+K6+K56","v":0},null,{"$f":"A72","v":"Farm Tract"},null,null,null,{"$f":"'Nutrient Management'!$J$56","v":0},{"$f":"'Nutrient Management'!$K$56","v":0},{"$f":"'Nutrient Management'!$L$56","v":0},null,{"$f":"U43+U26+U6+U56","v":0},{"$f":"V43+V26+V6+V56","v":0},{"$f":"W43+W26+W6+W56","v":0},null,{"$f":"A72","v":"Farm Tract"},null,null,null,{"$f":"'Nutrient Management'!$J$56","v":0},{"$f":"'Nutrient Management'!$K$56","v":0},{"$f":"'Nutrient Management'!$L$56","v":0},null,{"$f":"AG43+AG26+AG6+AG56","v":0},{"$f":"AH43+AH26+AH6+AH56","v":0},{"$f":"AI43+AI26+AI6+AI56","v":0}]
["Farm Number",null,null,null,"S","Ca","Mg",null,"S","Ca","Mg",null,"Farm Number",null,null,null,"S","Ca","Mg",null,"S","Ca","Mg",null,"Farm Number",null,null,null,"S","Ca","Mg",null,"S","Ca","Mg"]
[null,null,null,null,{"$f":"'Nutrient Management'!$J$59","v":0},{"$f":"'Nutrient Management'!$K$59","v":0},{"$f":"'Nutrient Management'!$L$59","v":0},null,{"$f":"I46+I29+I9+I59","v":0},{"$f":"J46+J29+J9+J59","v":0},{"$f":"K46+K29+K9+K59","v":0},null,null,null,null,null,{"$f":"'Nutrient Management'!$J$59","v":0},{"$f":"'Nutrient Management'!$K$59","v":0},{"$f":"'Nutrient Management'!$L$59","v":0},null,{"$f":"U46+U29+U9+U59","v":0},{"$f":"V46+V29+V9+V59","v":0},{"$f":"W46+W29+W9+W59","v":0},null,null,null,null,null,{"$f":"'Nutrient Management'!$J$59","v":0},{"$f":"'Nutrient Management'!$K$59","v":0},{"$f":"'Nutrient Management'!$L$59","v":0},null,{"$f":"AG46+AG29+AG9+AG59","v":0},{"$f":"AH46+AH29+AH9+AH59","v":0},{"$f":"AI46+AI29+AI9+AI59","v":0}]
[null,null,null,null,"Z","B","Mn",null,"Z","B","Mn",null,null,null,null,null,"Z","B","Mn",null,"Z","B","Mn",null,null,null,null,null,"Z","B","Mn",null,"Z","B","Mn"]
[null,null,null,null,{"$f":"'Nutrient Management'!$J$61","v":0},{"$f":"'Nutrient Management'!$K$61","v":0},{"$f":"'Nutrient Management'!$L$61","v":0},null,{"$f":"I49+I32+I12+I62","v":0},{"$f":"J49+J32+J12+J62","v":0},{"$f":"K49+K32+K12+K62","v":0},null,null,null,null,null,{"$f":"'Nutrient Management'!$J$61","v":0},{"$f":"'Nutrient Management'!$K$61","v":0},{"$f":"'Nutrient Management'!$L$61","v":0},null,{"$f":"U49+U32+U12+U62","v":0},{"$f":"V49+V32+V12+V62","v":0},{"$f":"W49+W32+W12+W62","v":0},null,null,null,null,null,{"$f":"'Nutrient Management'!$J$61","v":0},{"$f":"'Nutrient Management'!$K$61","v":0},{"$f":"'Nutrient Management'!$L$61","v":0},null,{"$f":"AG49+AG32+AG12+AG62","v":0},{"$f":"AH49+AH32+AH12+AH62","v":0},{"$f":"AI49+AI32+AI12+AI62","v":0}]
[null,null,null,null,"Cu","Mo","Fe",null,"Cu","Mo","Fe",null,null,null,null,null,"Cu","Mo","Fe",null,"Cu","Mo","Fe",null,null,null,null,null,"Cu","Mo","Fe",null,"Cu","Mo","Fe"]
[null,null,null,null,{"$f":"'Nutrient Management'!$J$63","v":0},{"$f":"'Nutrient Management'!$K$63","v":0},{"$f":"'Nutrient Management'!$L$63","v":0},null,{"$f":"I65+I52+I35+I15","v":0},{"$f":"J65+J52+J35+J15","v":0},0,null,null,null,null,null,{"$f":"'Nutrient Management'!$J$63","v":0},{"$f":"'Nutrient Management'!$K$63","v":0},{"$f":"'Nutrient Management'!$L$63","v":0},null,{"$f":"U65+U52+U35+U15","v":0},{"$f":"V65+V52+V35+V15","v":0},0,null,null,null,null,null,{"$f":"'Nutrient Management'!$J$63","v":0},{"$f":"'Nutrient Management'!$K$63","v":0},{"$f":"'Nutrient Management'!$L$63","v":0},null,{"$f":"AG65+AG52+AG35+AG15","v":0},{"$f":"AH65+AH52+AH35+AH15","v":0},0]
[null,null,null,null,"* from Nutrient Management tab",null,null,null,null,null,null,null,null,null,null,null,"* from Nutrient Management tab",null,null,null,null,null,null,null,null,null,null,null,"* from Nutrient Management tab"]

{"sheet":"Simple Fertilizer Calculator","index":10,"n_rows":46,"n_cols":11,"rows_kept":46,"cut":false,"hidden":false,"merged":[[42,1,43,6],[45,1,47,6],[27,1,28,6],[30,1,32,6],[1,1,1,6],[20,1,20,6],[35,1,35,6]]}
[]
[null,"Fertilizer Calculator"]
[null,null,"Source","Price/ton","Price/lb","Amount","Cost/Acre"]
[null,null,"(Enter Below)","(Enter Below)",null,"(Enter Below)"]
[null,"Nitrogen",0.46,361,{"$f":"D5/H5","v":0.3923913043478261},86,{"$f":"F5*E5","v":33.745652173913044},{"$f":"2000*C5","v":920}]
[null,"Nitrogen from Phosphate",0.18,144,{"$f":"D6/J20","v":0.6},40,{"$f":"F6*E6","v":24},{"$f":"2000*C10","v":920}]
[null,"Nitrogen from Sulfur",0.21,168,{"$f":"D7/J35","v":0.4},40,{"$f":"F7*E7","v":16}]
[null,null,null,null,null,null,{"$f":"SUM(G5:G7)","v":73.745652173913044}]
[null,null,"(Enter Below)","(Enter Below)",null,"(Enter Below)"]
[null,"Phosphorus",0.46,361,{"$f":"D10/H6","v":0.3923913043478261},60,{"$f":"F10*E10","v":23.543478260869566},{"$f":"2000*C6","v":360}]
[null,"Potassium",0.6,355,{"$f":"D11/H11","v":0.29583333333333334},75,{"$f":"F11*E11","v":22.1875},{"$f":"2000*C11","v":1200}]
[null,"Sulfur",0.24,157,{"$f":"D12/H12","v":0.32708333333333334},60,{"$f":"F12*E12","v":19.625},{"$f":"2000*C12","v":480}]
[null,null,null,null,null,null,{"$f":"SUM(G10:G12)","v":65.355978260869563}]
[null,null,null,null,null,"Total Fertilizer",{"$f":"G8+G13","v":139.10163043478261}]
[null,"Source Code:"]
[null,"Nitrogen","28-0-0","type in",0.28000000000000003]
[null,"Phosphorus","18-46-0","type in",0.46]
[null,"Potassium","0-0-60","type in",0.6]
[]
[null,null,null,null,null,null,null,null,"lbs/ton",{"$f":"2000*(C24/100)","v":240},{"$f":"2000*(D24/100)","v":800}]
[null,"Extract Nitrogen Cost from Phosphate Fertilizers",null,null,null,null,null,null,"%/ton",{"$f":"J20/(J20+K20)","v":0.23076923076923078},{"$f":"K20/(J20+K20)","v":0.76923076923076927}]
[null,null,"N","P","Price"]
[null,null,"(Enter Below)","(Enter Below)","(Enter Below)"]
[null,null,12,40,780]
[null,"Price/lb",0.31,{"$f":"D26/K20","v":0.88200000000000001}]
[null,"Price/ton",{"$f":"J20*C25","v":74.400000000000006},{"$f":"E24-C26","v":705.6},{"$f":"SUM(C26:D26)","v":780}]
[]
[null,"*Enter a price/lb of nitrogen to calculate the phosphate fertilizer price.  The price as calculated above can be used if a price is not already known."]
[]
[]
[null,"*If nitrogen from Phosphate fertilizer will not be utilized by the crop, simply enter \"0\" in Amount and adjust the price of the phosphate fertilizer to the total cost/ton of the blend."]
[]
[]
[]
[null,null,null,null,null,null,null,null,"lbs/ton",{"$f":"2000*(C39/100)","v":420},{"$f":"2000*(D39/100)","v":480}]
[null,"Extract Nitrogen Cost from Sulfur Fertilizers",null,null,null,null,null,null,"%/ton",{"$f":"J35/(J35+K35)","v":0.46666666666666667},{"$f":"K35/(J35+K35)","v":0.53333333333333333}]
[null,null,"N","S","Price"]
[null,null,"(Enter Below)","(Enter Below)","(Enter Below)"]
[null,null,21,24,325]
[null,"Price/lb",0.4,{"$f":"D41/K35","v":0.32708333333333334}]
[null,"Price/ton",{"$f":"J35*C40","v":168},{"$f":"E39-C41","v":157},{"$f":"SUM(C41:D41)","v":325}]
[]
[null,"*Enter a price/lb of nitrogen to calculate the sulfur fertilizer price.  The price as calculated above can be used if a price is not already known."]
[]
[]
[null,"*If nitrogen from sulfur fertilizer will not be utilized by the crop, simply enter \"0\" in Amount and adjust the price of the sulfur fertilizer to the total cost/ton of the blend."]

{"sheet":"Nutrient Removal Table","index":11,"n_rows":40,"n_cols":6,"rows_kept":40,"cut":false,"hidden":true,"merged":[]}
[]
[]
[null,"N Removal","P Removal","K Removal"]
[]
[]
["Select Crop",0,0,0]
["Asparagus",13.4,4,10,null,"IF(AND('Nutrient Management'!$D$11<=10),C7"]
["Beets, table",3.5,2.2000000000000002,7.8]
["Broccoli",4,1.1000000000000001,11]
["Brussels Sprouts",9.4,3.2,9.4]
["Cabbage",7,1.6,6.8]
["Carrots",3.4,1.8,6.8]
["Cauliflower",6.6,2.6,6.6]
["Celery",5,2,11.6]
["Cucumber",2,1.2,3.6]
["Eggplant",4.5,1.6,5.3]
["Endive",4.8,1.2,7.5]
["Garlic",5,2.8,5.6]
["Lettuce",4.8,2,9]
["Muskmelon",8.4,2,11]
["Onions (dry)",5,2.6,4.8]
["Onions (green)",5,2.6,4.8]
["Parsley",4.8,1.8,12.9]
["Parsnips",3.4,3.2,9]
["Peas",20,4.5999999999999996,11]
["Peppers",4,1.4,5.6]
["Potatoes ",6.6,2.6,12.6]
["Pumpkins",4,1.2,6.8]
["Radishes",3,0.8,5.6]
["Rhubarb",3.5,0.6,6.9]
["Rutabagas",3.4,2.6,8.1]
["Snap Beans",24,2.4,11]
["Spinach",10,2.7,12]
["Squash",4,2.2000000000000002,6.6]
["Sweet Corn",8.4,2.8,5.6]
["Swiss Chard",3.5,1.2,9.1]
["Tomatoes",4,0.8,7]
["Turnips",3.4,1.2,4.5999999999999996]
["Watermelon",4.8,0.4,2.4]
["Zucchini",4.5999999999999996,1.6,6.6,"Used Squash for soil test levels"]

{"sheet":"Tri-State Recommendations","index":12,"n_rows":31,"n_cols":12,"rows_kept":31,"cut":false,"hidden":true,"merged":[[29,1,29,14],[30,9,30,12],[15,0,17,0],[19,1,19,11],[0,1,0,11],[2,1,2,3],[2,5,2,7],[2,9,2,11],[6,1,6,11],[7,0,14,0],[0,0,3,0]]}
[null,"Tri-State Fertilizer Recommendations"]
[]
[null,"Corn",null,null,null,"Soybeans",null,null,null,"Wheat"]
[]
["Yield Goal:",{"$f":"'Nutrient Management'!C6","v":0},null,null,null,{"$f":"'Nutrient Management'!G6","v":0},null,null,null,{"$f":"'Nutrient Management'!K6","v":0}]
[]
["Soil Test Level:","Input amount of nutrients currently present in  field (based on soil test results)"]
[null,"(Enter Below)","(Enter Below)","(Enter Below)",null,"(Enter Below)","(Enter Below)","(Enter Below)",null,"(Enter Below)","(Enter Below)","(Enter Below)"]
[null,"N","P","K",null,"N","P","K",null,"N","P","K"]
[null,0,0,0,null,0,0,0,null,0,0,0]
[null,"S","Ca","Mag",null,"S","Ca","Mag",null,"S","Ca","Mag"]
[null,0,0,0,null,0,0,0,null,0,0,0]
[null,0,0,0,null,0,0,0,null,0,0,0]
[null,0,0,0,null,0,0,0,null,0,0,0]
[null,null,"(Enter Below)",null,null,null,"(Enter Below)",null,null,null,"(Enter Below)"]
["Note: CEC & pH levels needed for calculation accuracy in Soil Test Based Recommendations","CEC Level:",0,null,null,"CEC Level:",0,null,null,"CEC Level:",0]
[null,null,"(Enter Below)",null,null,null,"(Enter Below)",null,null,null,"(Enter Below)"]
[null,"pH Level:",0,null,null,"pH Level:",0,null,null,"pH Level:",0]
[]
["Soil Test Based Recommendations:","Based on soil test data, the following are tri-state recommendations for fertilizer needs to meet yield goals."]
[]
[null,"N","P","K",null,"N","P","K",null,"N","P","K"]
[null,0,{"$f":"IF(AND(C10<20,B5<=150),105,IF(AND(C10<20,B5<=200),120,IF(AND(C10<20,B5<=250),140,IF(AND(C10<20,B5<=300),155,IF(AND(C10<30,B5<=150),80,IF(AND(C10<30,B5<=200),95,IF(AND(C10<30,B5<=250),115,IF(AND(C10<30,B5<=300),130,IF(AND(C10<80,B5<=150),55,IF(AND(C10<80,B5<=200),70,IF(AND(C10<80,B5<=250),90,IF(AND(C10<80,B5<=300),105,IF(AND(C10>=80,B5<=150),0,IF(AND(C10>=80,B5<=200),0,IF(AND(C10>=80,B5<=250),0,IF(AND(C10>=80,B5<=300),0))))))))))))))))","v":105},{"$f":"IF(AND(D10<=100,B5<=150,C16<=5),95,IF(AND(D10<=100,B5<=200,C16<=5),105,IF(AND(D10<=105,B5<=250,C16<=5),115,IF(AND(D10<=100,B5<=160,C16<=5),125,IF(AND(D10<=150,B5<=150,C16<=5),60,IF(AND(D10<=150,B5<=200,C16<=5),70,IF(AND(D10<=150,B5<=250,C16<=5),80,IF(AND(D10<=150,B5<=160,C16<=5),90,IF(AND(D10<=260,B5<=150,C16<=5),30,IF(AND(D10<=260,B5<=200,C16<=5),40,IF(AND(D10<=260,B5<=250,C16<=5),50,IF(AND(D10<=260,B5<=160,C16<=5),60,IF(AND(D10>=260,B5<=150,C16<=5),0,IF(AND(D10>=260,B5<=200,C16<=5),0,IF(AND(D10>=260,B5<=250,C16<=5),0,IF(AND(D10>=260,B5<=160,C16<=5),0,IF(AND(D10<=100,B5<=150,C16>=6),155,IF(AND(D10<=100,B5<=200,C16>=6),165,IF(AND(D10<=100,B5<=250,C16>=6),175,IF(AND(D10<=100,B5<=160,C16>=6),185,IF(AND(D10<=150,B5<=150,C16>=6),110,IF(AND(D10<=150,B5<=200,C16>=6),120,IF(AND(D10<=150,B5<=250,C16>=6),130,IF(AND(D10<=150,B5<=160,C16>=6),140,IF(AND(D10<=200,B5<=150,C16>=6),65,IF(AND(D10<=200,B5<=200,C16>=6),75,IF(AND(D10<=200,B5<=250,C16>=6),85,IF(AND(D10<=200,B5<=160,C16>=6),95,IF(AND(D10<=340,B5<=150,C16>=6),30,IF(AND(D10<=340,B5<=200,C16>=6),40,IF(AND(D10<=340,B5<=250,C16>=6),50,IF(AND(D10<=340,B5<=160,C16>=6),60,IF(AND(D10>=340,B5<=150,C16>=6),0,IF(AND(D10>=340,B5<=200,C16>=6),0,IF(AND(D10>=340,B5<=250,C16>=6),0,IF(AND(D10>=340,B5<=160,C16>=6),0))))))))))))))))))))))))))))))))))))","v":95},null,0,{"$f":"IF(AND(G10<20,F5<=30),75,IF(AND(G10<20,F5<=50),90,IF(AND(G10<20,F5<=70),105,IF(AND(G10<20,F5<=90),120,IF(AND(G10<30,F5<=30),50,IF(AND(G10<30,F5<=50),65,IF(AND(G10<30,F5<=70),80,IF(AND(G10<30,F5<=90),95,IF(AND(G10<80,F5<=30),25,IF(AND(G10<80,F5<=50),40,IF(AND(G10<80,F5<=70),55,IF(AND(G10<80,F5<=90),70,IF(AND(G10>=80,F5<=30),0,IF(AND(G10>=80,F5<=50),0,IF(AND(G10>=80,F5<=70),0,IF(AND(G10>=80,F5<=90),0))))))))))))))))","v":75},{"$f":"IF(AND(H10<=100,F5<=30,G16<=5),95,IF(AND(H10<=100,F5<=50,G16<=5),120,IF(AND(H10<=100,F5<=70,G16<=5),145,IF(AND(H10<=100,F5<=90,G16<=5),165,IF(AND(H10<=150,F5<=30,G16<=5),65,IF(AND(H10<=150,F5<=50,G16<=5),90,IF(AND(H10<=150,F5<=70,G16<=5),110,IF(AND(H10<=150,F5<=90,G16<=5),135,IF(AND(H10<=260,F5<=30,G16<=5),35,IF(AND(H10<=260,F5<=50,G16<=5),60,IF(AND(H10<=260,F5<=70,G16<=5),80,IF(AND(H10<=260,F5<=90,G16<=5),105,IF(AND(H10>=260,F5<=30,G16<=5),0,IF(AND(H10>=260,F5<=50,G16<=5),0,IF(AND(H10>=260,F5<=70,G16<=5),0,IF(AND(H10>=260,F5<=90,G16<=5),0,IF(AND(H10<=100,F5<=30,G16>=6),155,IF(AND(H10<=100,F5<=50,G16>=6),180,IF(AND(H10<=100,F5<=70,G16>=6),205,IF(AND(H10<=100,F5<=90,G16>=6),225,IF(AND(H10<=150,F5<=30,G16>=6),115,IF(AND(H10<=150,F5<=50,G16>=6),135,IF(AND(H10<=150,F5<=70,G16>=6),160,IF(AND(H10<=150,F5<=90,G16>=6),180,IF(AND(H10<=200,F5<=30,G16>=6),70,IF(AND(H10<=200,F5<=50,G16>=6),95,IF(AND(H10<=200,F5<=70,G16>=6),115,IF(AND(H10<=200,F5<=90,G16>=6),140,IF(AND(H10<=340,F5<=30,G16>=6),35,IF(AND(H10<=340,F5<=50,G16>=6),60,IF(AND(H10<=340,F5<=70,G16>=6),80,IF(AND(H10<=340,F5<=90,G16>=6),105,IF(AND(H10>=340,F5<=30,G16>=6),0,IF(AND(H10>=340,F5<=50,G16>=6),0,IF(AND(H10>=340,F5<=70,G16>=6),0,IF(AND(H10>=340,F5<=90,G16>=6),0))))))))))))))))))))))))))))))))))))","v":95},null,0,{"$f":"IF(AND(K10<20,J5<=60),130,IF(AND(K10<20,J5<=90),145,IF(AND(K10<20,J5<=120),160,IF(AND(K10<20,J5<=150),175,IF(AND(K10<40,J5<=60),80,IF(AND(K10<40,J5<=90),95,IF(AND(K10<40,J5<=120),110,IF(AND(K10<40,J5<=150),125,IF(AND(K10<100,J5<=60),30,IF(AND(K10<100,J5<=90),45,IF(AND(K10<100,J5<=120),60,IF(AND(K10<100,J5<=150),75,IF(AND(K10>=100,J5<=60),0,IF(AND(K10>=100,J5<=90),0,IF(AND(K10>=100,J5<=120),0,IF(AND(K10>=100,J5<=150),0))))))))))))))))","v":130},{"$f":"IF(AND(L10<=100,J5<=60,K16<=5),80,IF(AND(L10<=100,J5<=150,K16<=5),85,IF(AND(L10<=100,J5<=120,K16<=5),95,IF(AND(L10<=100,J5<=150,K16<=5),100,IF(AND(L10<=150,J5<=60,K16<=5),45,IF(AND(L10<=150,J5<=150,K16<=5),55,IF(AND(L10<=150,J5<=120,K16<=5),60,IF(AND(L10<=150,J5<=150,K16<=5),70,IF(AND(L10<=260,J5<=60,K16<=5),15,IF(AND(L10<=260,J5<=150,K16<=5),25,IF(AND(L10<=260,J5<=120,K16<=5),30,IF(AND(L10<=260,J5<=150,K16<=5),40,IF(AND(L10>=260,J5<=60,K16<=5),0,IF(AND(L10>=260,J5<=150,K16<=5),0,IF(AND(L10>=260,J5<=120,K16<=5),0,IF(AND(L10>=260,J5<=150,K16<=5),0,IF(AND(L10<=100,J5<=60,K16>=6),140,IF(AND(L10<=100,J5<=90,K16>=6),145,IF(AND(L10<=100,J5<=120,K16>=6),155,IF(AND(L10<=100,J5<=150,K16>=6),160,IF(AND(L10<=150,J5<=60,K16>=6),95,IF(AND(L10<=150,J5<=90,K16>=6),100,IF(AND(L10<=150,J5<=120,K16>=6),110,IF(AND(L10<=150,J5<=150,K16>=6),160,IF(AND(L10<=200,J5<=60,K16>=6),50,IF(AND(L10<=200,J5<=90,K16>=6),60,IF(AND(L10<=200,J5<=120,K16>=6),65,IF(AND(L10<=200,J5<=150,K16>=6),75,IF(AND(L10<=340,J5<=60,K16>=6),15,IF(AND(L10<=340,J5<=90,K16>=6),25,IF(AND(L10<=340,J5<=120,K16>=6),30,IF(AND(L10<=340,J5<=150,K16>=6),40,IF(AND(L10>=340,J5<=60,K16>=6),0,IF(AND(L10>=340,J5<=90,K16>=6),0,IF(AND(L10>=340,J5<=120,K16>=6),0,IF(AND(L10>=340,J5<=150,K16>=6),0))))))))))))))))))))))))))))))))))))","v":80}]
[null,"S","Ca","Mag",null,"S","Ca","Mag",null,"S","Ca","Mag"]
[null,0,{"$f":"IF(AND(C12<=200),42,IF(AND(C12>200),0))","v":42},{"$f":"MAX(IF(AND(C16<=8,C18<=7,D12<=70),11,IF(AND(C16>=8,C18>=7,D12<=100),50,IF(AND(D10>D12,C16<=8),11,IF(AND(D10>D12,C16>8),50)))))","v":11},null,0,{"$f":"IF(AND(G12<=200),42,IF(AND(G12>200),0))","v":42},{"$f":"MAX(IF(AND(G16<=8,G18<=7,H12<=70),11,IF(AND(G16>=8,G18>=7,H12<=100),50,IF(AND(H10>H12,G16<=8),11,IF(AND(H10>H12,G16>8),50)))))","v":11},null,0,{"$f":"IF(AND(K12<=200),42,IF(AND(K12>200),0))","v":42},{"$f":"MAX(IF(AND(K16<=8,K18<=7,L12<=70),11,IF(AND(K16>=8,K18>=7,L12<=100),50,IF(AND(L10>L12,K16<=8),11,IF(AND(L10>L12,K16>8),50)))))","v":11}]
[null,"Z","B","Mn",null,"Z","B","Mn",null,"Z","B","Mn"]
[null,{"$f":"MAX(((5*C18)-(0.4*B14)-32),0)","v":0},0,0,null,0,0,{"$f":"MAX(0,((6.2*G18)-(0.35*H14))-36)","v":0},null,0,0,{"$f":"MAX(0,((6.2*K18)-(0.35*L14))-36)","v":0}]
[]
[]
[null,"Note: This section is not a replacement for recommendations from a soil test analysis obtained from soil test laboratories.  "]
[null,null,"For soil test based recommendations, visit the MSU Soil and Plant Nutrient Laboratory:",null,null,null,null,null,null,"https://www.canr.msu.edu/spnl/"]

{"sheet":"Charts","index":13,"n_rows":41,"n_cols":12,"rows_kept":41,"cut":false,"hidden":true,"merged":[]}
[null,"Corn","Soybeans","Wheat",null,null,null,null,null,"Corn","Soybeans","Wheat"]
["Seed",{"$f":"#REF!","v":{"$error":"#REF!"}},{"$f":"#REF!","v":{"$error":"#REF!"}},{"$f":"#REF!","v":{"$error":"#REF!"}},null,null,null,null,"Variable",{"$f":"#REF!","v":{"$error":"#REF!"}},{"$f":"#REF!","v":{"$error":"#REF!"}},{"$f":"#REF!","v":{"$error":"#REF!"}}]
["Fertilizer",{"$f":"#REF!","v":{"$error":"#REF!"}},{"$f":"#REF!","v":{"$error":"#REF!"}},{"$f":"#REF!","v":{"$error":"#REF!"}},null,null,null,null,"Fixed",{"$f":"#REF!","v":{"$error":"#REF!"}},{"$f":"#REF!","v":{"$error":"#REF!"}},{"$f":"#REF!","v":{"$error":"#REF!"}}]
["Crop Chemicals",{"$f":"SUM(B5:B7)","v":{"$error":"#REF!"}},{"$f":"SUM(C5:C7)","v":{"$error":"#REF!"}},{"$error":"#REF!"},null,null,null,null,"Variable & Fixed",{"$f":"#REF!","v":{"$error":"#REF!"}},{"$f":"#REF!","v":{"$error":"#REF!"}},{"$f":"#REF!","v":{"$error":"#REF!"}}]
["Herbicides",{"$f":"#REF!","v":{"$error":"#REF!"}},{"$f":"#REF!","v":{"$error":"#REF!"}},{"$f":"#REF!","v":{"$error":"#REF!"}}]
["Fungicides",{"$f":"#REF!","v":{"$error":"#REF!"}},{"$f":"#REF!","v":{"$error":"#REF!"}},{"$f":"#REF!","v":{"$error":"#REF!"}}]
["Insecticides",{"$f":"#REF!","v":{"$error":"#REF!"}},{"$f":"#REF!","v":{"$error":"#REF!"}},{"$f":"#REF!","v":{"$error":"#REF!"}}]
["Crop Insurance",{"$f":"#REF!","v":{"$error":"#REF!"}},{"$f":"#REF!","v":{"$error":"#REF!"}},{"$f":"#REF!","v":{"$error":"#REF!"}}]
["Crop Miscellaneous",{"$f":"#REF!","v":{"$error":"#REF!"}},{"$f":"#REF!","v":{"$error":"#REF!"}},{"$f":"#REF!","v":{"$error":"#REF!"}}]
["Supplies",{"$f":"#REF!","v":{"$error":"#REF!"}},{"$f":"#REF!","v":{"$error":"#REF!"}},{"$f":"#REF!","v":{"$error":"#REF!"}}]
["Gas/Fuel",{"$f":"SUM(B12:B13)","v":{"$error":"#REF!"}},{"$f":"SUM(C12:C13)","v":{"$error":"#REF!"}},{"$error":"#REF!"}]
["Equipment Fuel",{"$f":"#REF!","v":{"$error":"#REF!"}},{"$f":"#REF!","v":{"$error":"#REF!"}},{"$f":"#REF!","v":{"$error":"#REF!"}}]
["Drying Propane",{"$f":"#REF!","v":{"$error":"#REF!"}},{"$f":"#REF!","v":{"$error":"#REF!"}},{"$f":"#REF!","v":{"$error":"#REF!"}}]
["Repairs & Maintenance",{"$f":"SUM(B15:B16)","v":{"$error":"#REF!"}},{"$f":"SUM(C15:C16)","v":{"$error":"#REF!"}},{"$error":"#REF!"}]
["Repair, Machinery",{"$f":"#REF!","v":{"$error":"#REF!"}},{"$f":"#REF!","v":{"$error":"#REF!"}},{"$f":"#REF!","v":{"$error":"#REF!"}}]
["Repair, Buildings",{"$f":"#REF!","v":{"$error":"#REF!"}},{"$f":"#REF!","v":{"$error":"#REF!"}},{"$f":"#REF!","v":{"$error":"#REF!"}}]
["Custom Hire",{"$f":"SUM(B18:B20)","v":{"$error":"#REF!"}},{"$f":"SUM(C18:C20)","v":{"$error":"#REF!"}},{"$error":"#REF!"}]
["Driver & Equipment Hire",{"$f":"#REF!","v":{"$error":"#REF!"}},{"$f":"#REF!","v":{"$error":"#REF!"}},{"$f":"#REF!","v":{"$error":"#REF!"}}]
["Equipment Hire",{"$f":"#REF!","v":{"$error":"#REF!"}},{"$f":"#REF!","v":{"$error":"#REF!"}},{"$f":"#REF!","v":{"$error":"#REF!"}}]
["Custom Application",{"$f":"#REF!","v":{"$error":"#REF!"}},{"$f":"#REF!","v":{"$error":"#REF!"}},{"$f":"#REF!","v":{"$error":"#REF!"}}]
["Freight & Trucking",{"$f":"#REF!","v":{"$error":"#REF!"}},{"$f":"#REF!","v":{"$error":"#REF!"}},{"$f":"#REF!","v":{"$error":"#REF!"}}]
["Storage",{"$f":"#REF!","v":{"$error":"#REF!"}},{"$f":"#REF!","v":{"$error":"#REF!"}},{"$f":"#REF!","v":{"$error":"#REF!"}}]
["Utilities",{"$f":"#REF!","v":{"$error":"#REF!"}},{"$f":"#REF!","v":{"$error":"#REF!"}},{"$f":"#REF!","v":{"$error":"#REF!"}}]
["Irrigation",{"$f":"SUM(B25:B26)","v":{"$error":"#REF!"}},{"$f":"SUM(C25:C26)","v":{"$error":"#REF!"}},{"$error":"#REF!"}]
["Repairs",{"$f":"#REF!","v":{"$error":"#REF!"}},{"$f":"#REF!","v":{"$error":"#REF!"}},{"$f":"#REF!","v":{"$error":"#REF!"}}]
["Fuel/Electricity",{"$f":"#REF!","v":{"$error":"#REF!"}},{"$f":"#REF!","v":{"$error":"#REF!"}},{"$f":"#REF!","v":{"$error":"#REF!"}}]
["Marketing",{"$f":"#REF!","v":{"$error":"#REF!"}},{"$f":"#REF!","v":{"$error":"#REF!"}},{"$f":"#REF!","v":{"$error":"#REF!"}}]
["Hired Labor",{"$f":"#REF!","v":{"$error":"#REF!"}},{"$f":"#REF!","v":{"$error":"#REF!"}},{"$f":"#REF!","v":{"$error":"#REF!"}}]
["Interest (Operating)",{"$f":"#REF!","v":{"$error":"#REF!"}},{"$f":"#REF!","v":{"$error":"#REF!"}},{"$f":"#REF!","v":{"$error":"#REF!"}}]
["Other (variable)",{"$f":"#REF!","v":{"$error":"#REF!"}},{"$f":"#REF!","v":{"$error":"#REF!"}},{"$f":"#REF!","v":{"$error":"#REF!"}}]
["Farm Insurance",{"$f":"#REF!","v":{"$error":"#REF!"}},{"$f":"#REF!","v":{"$error":"#REF!"}},{"$f":"#REF!","v":{"$error":"#REF!"}}]
["Real Estate Taxes",{"$f":"#REF!","v":{"$error":"#REF!"}},{"$f":"#REF!","v":{"$error":"#REF!"}},{"$f":"#REF!","v":{"$error":"#REF!"}}]
["Land Rent",{"$f":"#REF!","v":{"$error":"#REF!"}},{"$f":"#REF!","v":{"$error":"#REF!"}},{"$f":"#REF!","v":{"$error":"#REF!"}}]
["Depreciation (Economic )",{"$f":"#REF!","v":{"$error":"#REF!"}},{"$f":"#REF!","v":{"$error":"#REF!"}},{"$f":"#REF!","v":{"$error":"#REF!"}}]
["Other (fixed)",{"$f":"#REF!","v":{"$error":"#REF!"}},{"$f":"#REF!","v":{"$error":"#REF!"}},{"$f":"#REF!","v":{"$error":"#REF!"}}]
["Other (variable & fixed)",{"$f":"B35+B30","v":{"$error":"#REF!"}},{"$f":"C35+C30","v":{"$error":"#REF!"}},{"$f":"D35+D30","v":{"$error":"#REF!"}}]
["Income Taxes",{"$f":"#REF!","v":{"$error":"#REF!"}},{"$f":"#REF!","v":{"$error":"#REF!"}},{"$f":"#REF!","v":{"$error":"#REF!"}}]
["Owner Withdrawal",{"$f":"#REF!","v":{"$error":"#REF!"}},{"$f":"#REF!","v":{"$error":"#REF!"}},{"$f":"#REF!","v":{"$error":"#REF!"}}]
["Interest (Oper & Term)",{"$f":"B40+B29","v":{"$error":"#REF!"}},{"$f":"C40+C29","v":{"$error":"#REF!"}},{"$f":"D40+D29","v":{"$error":"#REF!"}}]
["Interest (Term)",{"$f":"#REF!","v":{"$error":"#REF!"}},{"$f":"#REF!","v":{"$error":"#REF!"}},{"$f":"#REF!","v":{"$error":"#REF!"}}]
["Principal Payment",{"$f":"#REF!","v":{"$error":"#REF!"}},{"$f":"#REF!","v":{"$error":"#REF!"}},{"$f":"#REF!","v":{"$error":"#REF!"}}]